Workbook

Sheet Introduction
B2: Informing Interventions to reduce health Inequalities ('Triple I'):
B3: Income-based policies
B7: Please note: This spreadsheet was updated in April 2019 to correct an error identified in the original October 2018 version.
B8: The error has a small effect on the results for Years of Life Lost (YLL) and inequalities in YLL.
B9: Results for premature deaths and hospital stays are unchanged. No information in the briefing paper is affected.
B10: In the supplementary information some of the cost-effectiveness estimates in Table 2b have changed: the document has been re-issued as a result.
B12: Informing Interventions to reduce health Inequalities ('Triple I') is a collaboration between NHS Health Scotland and the Scottish Public Health Observatory (ScotPHO).
B13: Triple I provides national and local decision makers with practical tools and interpreted results about investing in interventions to reduce health inequalities in Scotland.
B14: It does this by modelling the potential impact of different interventions and policies on overall population health and health inequalities.
B15: This tool is part of a set of 9 spreadsheets and associated documentation, produced as an update and extension of our 2014 Triple I work.
B16: Data and evidence have been updated where applicable, new interventions have been included, and presentation of the results has been improved.
B17: The tool can be used to produce detailed results for different geographies (Scotland, Local Authorities, Health Boards, City Regions, or Integrated Joint Boards).
B18: Results are provided for three health outcomes: premature mortality, years of life lost, and hospital stays.
B20: The interventions:
B21: The interventions were chosen based on the highest quality and most generalisable evidence linking them to changes in all-cause mortality and hospital admissions.
B22: The topics addressed by the interventions span the determinants of health (including ‘upstream’, ‘downstream’, individual-level and population-wide).
B23: There are 9 Triple I spreadsheet tools (corresponding to the topic areas below).
C25: Individual-level interventions: | H25: Population-wide interventions:
C26: (N.B. modelled as being implemented in year 1 only) | H26: (N.B. permanent: modelled as remaining
C27: Topic | D27: Intervention(s) | H27: in place after implementation in year 1)
C28: Mental Health | D28: Interventions for depression | H28: Topic | J28: Intervention(s)
C29: Obesity | D29: Weight management service | H29: Physical Environment | J29: 20 mph speed limits
C30: Physical inactivity | D30: Physical activity interventions | H30: Smoking | J30: Tobacco taxation
C31: Smoking | D31: Smoking cessation | H31: Income | J31: Income-based policies
C32: Alcohol consumption | D32: Alcohol Brief Interventions (ABIs)
C33: Unemployment | D33: Job provision
B35: Pages in this spreadsheet tool:
C36: Introduction | E36: >> | F36: Information about the Triple I project
C37: User guide | E37: >> | F37: How to use this spreadsheet tool
C38: Options | E38: >> | F38: Where users can change the model options, and see high-level results
C39: Results | E39: >> | F39: Full results for the chosen model options
C40: Evidence | E40: >> | F40: Summary of the evidence underpinning the model, and definitions of the policies/interventions
B42: Further information is available on the Triple I website: | G42: Triple I website
C43: Interactive results browser | E43: >> | F43: An online interactive results browser for comparing different interventions (April 2019)
C44: National Overview Report | E44: >> | F44: A summary report of the national-level findings (April 2019)
C45: Technical Report | E45: >> | F45: Details of Triple I's methods and data sources (April 2019)
C46: Frequently Asked Questions | E46: >> | F46: Answers to frequently-asked questions about Triple I (April 2019)
C47: Income-based policies | E47: >> | F47: Report and Supplementary Information about the income-based policies work (October 2018)
C48: nhs.triple.i@nhs.net | E48: >> | F48: Email us for more information.
B50: Abbreviations used
B51: IJB | C51: Integrated Joint Board
B52: LA | C52: Local Authority
B53: RII | C53: Relative Index of Inequality
B54: SII | C54: Slope Index of Inequality
B55: SIMD | C55: Scottish Index of Multiple Deprivation
B56: Q1 - Q5 | C56: Quintiles of the SIMD: Q1 contains the 20% most deprived areas, and Q5 contains the 20% least deprived areas.

Sheet User Guide
B2: User Guide
B4: Please note: Macros need to be enabled for the tools to work properly.
B5: How to do this in a recent version of Excel: File > Options > Trust Center > Trust Center Settings > Macro Settings > "Enable all macros"
B6: How to do this in an older version of Excel: Tools > Options > Security > Macro Security > "Medium"
B8: Changing the intervention details:
B9: You can interact with the Triple I model from the Options tab.
B10: Changes made to the option cells on this tab will cause Excel to recalculate the model and present new results.
B11: Below are the options available (N.B. not every spreadsheet will have all of these options):
B13: Intervention:
B14: Choose the intervention of interest (only relevant for tools covering more than one intervention: Mental health, Physical activity, and Income-based interventions)
B16: Area:
B17: Choose the area to run the model for. The available geographies are listed below.
C18: 1. Health Boards: | F18: The 14 territorial NHS health boards responsible for delivery of frontline healthcare services in Scotland (2014 boundaries).
C19: 2. Local Authorities: | F19: The 32 elected councils that provide a range of services to local people, including education and care.
F20: The Gaelic name of Eilean Siar is used for the local authority covering the Western Isles.
C21: 3. Integrated Joint Boards: | F21: 31 integration authorities were created by The Public Bodies (Joint Working) Act 2014, in order to integrate the
F22: health and social care functions of health boards and local authorities.
F23: These Integrated Joint Boards (IJBs) or Partnerships correspond to local authority areas, with the exception of
F24: Clackmannanshire and Stirling IJB which combines two local authorities.
F25: The Gaelic name of Eilean Siar is used for the IJB covering the Western Isles.
C26: 4. City Region Deals: | F26: City Region Deals are agreements between the Scottish Government, the UK Government and local government.
F27: They have been designed to bring about long-term strategic approaches to improving regional economies.
F28: The following 6 city regions are included:
F30: City Region: | J30: Local Authorities (LAs) included:
F31: Aberdeen City Region Deal | J31: Aberdeen and Aberdeenshire
F32: Edinburgh & Southeast Scotland City Region Deal | J32: Edinburgh, Fife, East Lothian, Midlothian, West Lothian, Borders
F33: Glasgow City Region Deal | J33: East Dunbartonshire, East Renfrewshire, Glasgow City, Inverclyde,
J34: North Lanarkshire, Renfrewshire, South Lanarkshire, West Dunbartonshire
F35: Inverness & Highland City Region Deal | J35: Highland
F36: Stirling and Clackmannanshire City Region Deal | J36: Stirling and Clackmannanshire
F37: Tay Cities Region Deal | J37: Dundee, Perth & Kinross, Angus, Fife
B39: Targeting strategy:
B40: The strategy for delivering the individual-level* interventions can be altered by the user.
B41: *Interventions delivered to individuals: mental health, weight management, physical activity, smoking cessation, alcohol brief interventions, and job provision.
B42: Four options are available:
B43: · Even distribution: treat the same proportion of the eligible population in each subgroup (i.e., age group, sex and SIMD 2016 quintile).
B44: · Proportionate to need: the proportion of each subgroup treated is proportionate to the subgroup's prevalence of the exposure (e.g., smoking, depression, or hazardous/harmful drinking).
B45: · Most deprived 20% only**: treat only those in SIMD quintile 1 (even distribution within this quintile).
B46: · Most deprived 40% only: treat only those in SIMD quintiles 1 and 2 (even distribution within these quintiles).
B47: **The Orkney Islands, Shetland Islands and the Western Isles do not have population in SIMD 2016 quintile 1, so targeting to this quintile will produce an error message.
B49: Number to treat:
B50: For individual-level interventions you can choose the number of people to be treated.
B51: · For information the maximum number of people who are eligible to be treated will be calculated in the preceding cell.
B52: · If a higher number is entered an error message will prevent the calculation from occurring.
B53: · Be aware that the model will run and produce results if changes to another cell mean that the number of people then exceeds the new maximum number.
B55: Number of years:
B56: The interventions are delivered in year 1.
B57: Their effects can be modelled from year 2 (the first year of follow-up) to year 20.
B58: N.B. Individual-level interventions are delivered for a single year, while the population-level interventions are modelled as remaining in place after year 1.
B60: Viewing the results:
B61: Options tab | D61: A summary of the results is shown on the Options tab.
B62: Results tab | D62: More detailed results are shown on the Results tab.
B63: Technical Report | D63: Further information about how the results are calculated, and how to interpret them, can be found in the Triple I Technical Report.
B65: For advanced users: How to make more advanced changes to the model
B66: The inner workings of the Triple I tools are described in the Technical Report. We recommend you consult the report before making any advanced changes.
B67: The model data and calculations can be found in a number of 'hidden' tabs.
B68: These are hidden to simplify the spreadsheet for users.
B69: To see the hidden tabs, right-click on any tab, select 'Unhide', then select the tab you want to unhide.
B70: The hidden tabs include population data, prevalence data, targeting calculations, and result calculations.
B71: VBA (Visual Basic for Applications) code has been written to create bespoke functions for the calculations.
B72: The code can be found from the Developer tab > Visual Basic.
B73: If the Developer tab is not shown in your version of Excel go to File > Options > Customize Ribbon and switch on the Developer tab (recent Excel versions only).

Sheet Options
B2: Options for changing the model: | E2: Results summary:
B4: Change the cells below to recalculate results. | E4: Check the Results tab for a detailed breakdown of the results
B5: N.B. Results may take a few seconds to change. | E5: Results shown as cumulative difference from baseline over the follow-up period (% difference in brackets).
B7: Intervention: (defined on Evidence tab) | E7: POLICY IMPACT ON HEALTH* | F7: Whole population | G7: SIMD Q1 & Q2 | H7: SIMD Q1
B8: Means-tested benefits +50% | E8: Hospital stays prevented | F8: =CONCATENATE(FIXED(Results!E16,0)," (",FIXED(Results!F16,2),"%)") -> 44,263 (3.87%) | G8: =CONCATENATE(FIXED(Results!E17,0)," (",FIXED(Results!F17,2),"%)") -> 34,384 (6.34%) | H8: =IF(OR(Calculations!$E$2="Orkney Health Board",Calculations!$E$2="Orkney Islands Local Authority",Calculations!$E$2="Shetland Health Board",Calculations!$E$2="Western Isles Health Board",Calculations!$E$2="Shetland Islands Local Authority",Calculations!$E$2="Eilean Siar Local Authority"),"N/A", CONCATENATE(FIXED(Results!E18,0)," (",FIXED(Results!F18,2),"%)")) -> 22,448 (7.78%)
E9: Premature deaths prevented | F9: =CONCATENATE(FIXED(Results!E20,0)," (",FIXED(Results!F20,2),"%)") -> 1,045 (4.83%) | G9: =CONCATENATE(FIXED(Results!E21,0)," (",FIXED(Results!F21,2),"%)") -> 843 (7.39%) | H9: =IF(OR(Calculations!$E$2="Orkney Health Board",Calculations!$E$2="Orkney Islands Local Authority",Calculations!$E$2="Shetland Health Board",Calculations!$E$2="Western Isles Health Board",Calculations!$E$2="Shetland Islands Local Authority",Calculations!$E$2="Eilean Siar Local Authority"),"N/A", CONCATENATE(FIXED(Results!E22,0)," (",FIXED(Results!F22,2),"%)")) -> 573 (8.91%)
B10: Choose the area to run the model for: | E10: Years of life saved | F10: =CONCATENATE(FIXED(Results!E24,0)," (",FIXED(Results!F24,2),"%)") -> 28,908 (4.85%) | G10: =CONCATENATE(FIXED(Results!E25,0)," (",FIXED(Results!F25,2),"%)") -> 23,416 (7.36%) | H10: =IF(OR(Calculations!$E$2="Orkney Health Board",Calculations!$E$2="Orkney Islands Local Authority",Calculations!$E$2="Shetland Health Board",Calculations!$E$2="Western Isles Health Board",Calculations!$E$2="Shetland Islands Local Authority",Calculations!$E$2="Eilean Siar Local Authority"),"N/A", CONCATENATE(FIXED(Results!E26,0)," (",FIXED(Results!F26,2),"%)")) -> 15,936 (8.87%)
B11: Scotland | E11: *N.B. a positive figure indicates an improvement in health outcomes.
B13: Calculate health impact after this many years: | E13: POLICY IMPACT ON HEALTH INEQUALITIES**
B14: 2 | E14: Gap between most and least deprived | F14: Absolute | G14: Relative
E15: Hospital stays | F15: =CONCATENATE(FIXED(Results!E29,0)," (",FIXED(Results!F29,3),"%)") -> -2,178 (-16.320%) | G15: =CONCATENATE(FIXED(Results!E33,4)," (",FIXED(Results!F33,3),"%)") -> -0.1271 (-7.010%)
E16: Premature deaths | F16: =CONCATENATE(FIXED(Results!E30,0)," (",FIXED(Results!F30,3),"%)") -> -58 (-12.871%) | G16: =CONCATENATE(FIXED(Results!E34,4)," (",FIXED(Results!F34,3),"%)") -> -0.2412 (-8.027%)
E17: Years of life lost | F17: =CONCATENATE(FIXED(Results!E31,0)," (",FIXED(Results!F31,3),"%)") -> -1,602 (-12.823%) | G17: =CONCATENATE(FIXED(Results!E35,4)," (",FIXED(Results!F35,3),"%)") -> -0.2388 (-7.980%)
E18: Population-wide inequalities slope | F18: Absolute (SII) | G18: Relative (RII)
E19: Hospital stays | F19: =CONCATENATE(FIXED(Results!E37,0)," (",FIXED(Results!F37,3),"%)") -> -2,578 (-16.020%) | G19: =CONCATENATE(FIXED(Results!E41,4)," (",FIXED(Results!F41,3),"%)") -> -0.0920 (-12.541%)
E20: Premature deaths | F20: =CONCATENATE(FIXED(Results!E38,0)," (",FIXED(Results!F38,3),"%)") -> -68 (-12.685%) | G20: =CONCATENATE(FIXED(Results!E42,4)," (",FIXED(Results!F42,3),"%)") -> -0.1036 (-8.055%)
E21: Years of life lost | F21: =CONCATENATE(FIXED(Results!E39,0)," (",FIXED(Results!F39,3),"%)") -> -1,861 (-12.641%) | G21: =CONCATENATE(FIXED(Results!E43,4)," (",FIXED(Results!F43,3),"%)") -> -0.1030 (-8.035%)
E22: **N.B. Based on rates per 100,000. A negative figure indicates reduced inequalities / narrowing of the gap.
E24: SELECTED COSTS AND SAVINGS*** | G24: £
E25: Direct financial cost of the intervention (£)****: | G25: =Results!D50 -> 2172658980
E26: Direct financial savings from reduced hospitalisations (£):
F27: Whole population | G27: =CONCATENATE(FIXED(Results!E54,0)," (",FIXED(Results!F54,3),"%)") -> 111,189,586 (3.870%)
F28: SIMD Q1 & Q2 | G28: =CONCATENATE(FIXED(Results!E55,0)," (",FIXED(Results!F55,3),"%)") -> 86,372,896 (6.341%)
F29: SIMD Q1 | G29: =IF(OR(Calculations!$E$2="Orkney Health Board",Calculations!$E$2="Orkney Islands Local Authority",Calculations!$E$2="Shetland Health Board",Calculations!$E$2="Western Isles Health Board",Calculations!$E$2="Shetland Islands Local Authority",Calculations!$E$2="Eilean Siar Local Authority"),"N/A", CONCATENATE(FIXED(Results!E56,0)," (",FIXED(Results!F56,3),"%)")) -> 56,388,880 (7.775%)
E30: *** Costs/savings from changes to other health outcomes and to health inequalities have not been estimated.
E31: **** Relative to baseline fiscal costs. These interventions continue annually and the direct cost accounts
E32: for their recurring annual costs/savings.

Sheet Results
B2: Detailed results for intervention: | D2: =Options!B8 -> Means-tested benefits +50%
B4: Area of interest: | C4: =Options!B11 -> Scotland
B5: Age group: | C5: 16+ years
B6: Baseline year (prevalence and population data): | C6: 2016 | D6: Health impact calculated after: | E6: =CONCATENATE(Options!B14," years") -> 2 years
B8: Baseline situation (2016): | C8: Population (16+) | D8: No. all-cause hospital stays | E8: No. all-cause deaths | F8: No. premature all-cause deaths | G8: Years of life lost (all causes)
B9: Whole population | C9: =HLOOKUP(Calculations!$E$2,'Population 2016'!$C$3:$BC$17,'Population 2016'!$BD5,FALSE) -> 4488783 | D9: =HLOOKUP(Calculations!$E$2,'Health outcome totals 2016'!$C$3:$BC$17,'Health outcome totals 2016'!$BD6,FALSE) -> 1125093 | E9: =HLOOKUP(Calculations!$E$2,'Health outcome totals 2016'!$C$3:$BC$17,'Health outcome totals 2016'!$BD9,FALSE) -> 56725 | F9: =HLOOKUP(Calculations!$E$2,'Health outcome totals 2016'!$C$3:$BC$17,'Health outcome totals 2016'!$BD12,FALSE) -> 21313 | G9: =HLOOKUP(Calculations!$E$2,'Health outcome totals 2016'!$C$3:$BC$17,'Health outcome totals 2016'!$BD15,FALSE) -> 708624.0484
B10: Most deprived 40% (Q1 & Q2) | C10: =HLOOKUP(Calculations!$E$2,'Population 2016'!$C$3:$BC$17,'Population 2016'!$BD6,FALSE) -> 1769266 | D10: =HLOOKUP(Calculations!$E$2,'Health outcome totals 2016'!$C$3:$BC$17,'Health outcome totals 2016'!$BD8,FALSE) -> 534382 | E10: =HLOOKUP(Calculations!$E$2,'Health outcome totals 2016'!$C$3:$BC$17,'Health outcome totals 2016'!$BD11,FALSE) -> 26567 | F10: =HLOOKUP(Calculations!$E$2,'Health outcome totals 2016'!$C$3:$BC$17,'Health outcome totals 2016'!$BD14,FALSE) -> 11618 | G10: =HLOOKUP(Calculations!$E$2,'Health outcome totals 2016'!$C$3:$BC$17,'Health outcome totals 2016'!$BD17,FALSE) -> 372328.9705
B11: Most deprived 20% (Q1) | C11: =HLOOKUP(Calculations!$E$2,'Population 2016'!$C$3:$BC$17,'Population 2016'!$BD7,FALSE) -> 872234 | D11: =IF(OR(Calculations!$E$2="Orkney Health Board",Calculations!$E$2="Orkney Islands Local Authority",Calculations!$E$2="Shetland Health Board",Calculations!$E$2="Western Isles Health Board",Calculations!$E$2="Shetland Islands Local Authority",Calculations!$E$2="Eilean Siar Local Authority"),"N/A", HLOOKUP(Calculations!$E$2,'Health outcome totals 2016'!$C$3:$BC$17,'Health outcome totals 2016'!$BD7,FALSE)) -> 283718 | E11: =IF(OR(Calculations!$E$2="Orkney Health Board",Calculations!$E$2="Orkney Islands Local Authority",Calculations!$E$2="Shetland Health Board",Calculations!$E$2="Western Isles Health Board",Calculations!$E$2="Shetland Islands Local Authority",Calculations!$E$2="Eilean Siar Local Authority"),"N/A", HLOOKUP(Calculations!$E$2,'Health outcome totals 2016'!$C$3:$BC$17,'Health outcome totals 2016'!$BD10,FALSE)) -> 13665 | F11: =IF(OR(Calculations!$E$2="Orkney Health Board",Calculations!$E$2="Orkney Islands Local Authority",Calculations!$E$2="Shetland Health Board",Calculations!$E$2="Western Isles Health Board",Calculations!$E$2="Shetland Islands Local Authority",Calculations!$E$2="Eilean Siar Local Authority"),"N/A", HLOOKUP(Calculations!$E$2,'Health outcome totals 2016'!$C$3:$BC$17,'Health outcome totals 2016'!$BD13,FALSE)) -> 6443 | G11: =IF(OR(Calculations!$E$2="Orkney Health Board",Calculations!$E$2="Orkney Islands Local Authority",Calculations!$E$2="Shetland Health Board",Calculations!$E$2="Western Isles Health Board",Calculations!$E$2="Shetland Islands Local Authority",Calculations!$E$2="Eilean Siar Local Authority"),"N/A", HLOOKUP(Calculations!$E$2,'Health outcome totals 2016'!$C$3:$BC$17,'Health outcome totals 2016'!$BD16,FALSE)) -> 203545.7107
B13: Health impact | C13: Without intervention | D13: With intervention | E13: Difference | F13: Difference | G13: Interpretation
B14: HEALTH OUTCOMES | C14: n | D14: n | E14: n | F14: %
B15: Hospital stays | F15: % prevented
B16: Whole population | C16: =Calculations!O5 -> 1143855.727 | D16: =Calculations!P5 -> 1099592.357 | E16: =C16-D16 -> 44263.37029 | F16: =E16*100/C16 -> 3.869663737 | G16: Hospital stays prevented
B17: Q1 & Q2 | C17: =Calculations!O6 -> 542278.7308 | D17: =Calculations!P6 -> 507894.6163 | E17: =C17-D17 -> 34384.11449 | F17: =E17*100/C17 -> 6.340671787 | G17: (N.B. positive difference =
B18: Q1 | C18: =IF(OR(Calculations!$E$2="Orkney Health Board",Calculations!$E$2="Orkney Islands Local Authority",Calculations!$E$2="Shetland Health Board",Calculations!$E$2="Western Isles Health Board",Calculations!$E$2="Shetland Islands Local Authority",Calculations!$E$2="Eilean Siar Local Authority"),"N/A", Calculations!O7) -> 288715.8401 | D18: =IF(OR(Calculations!$E$2="Orkney Health Board",Calculations!$E$2="Orkney Islands Local Authority",Calculations!$E$2="Shetland Health Board",Calculations!$E$2="Western Isles Health Board",Calculations!$E$2="Shetland Islands Local Authority",Calculations!$E$2="Eilean Siar Local Authority"),"N/A", Calculations!P7) -> 266268.0373 | E18: =IF(OR(Calculations!$E$2="Orkney Health Board",Calculations!$E$2="Orkney Islands Local Authority",Calculations!$E$2="Shetland Health Board",Calculations!$E$2="Western Isles Health Board",Calculations!$E$2="Shetland Islands Local Authority",Calculations!$E$2="Eilean Siar Local Authority"),"N/A", C18-D18) -> 22447.80272 | F18: =IF(OR(Calculations!$E$2="Orkney Health Board",Calculations!$E$2="Orkney Islands Local Authority",Calculations!$E$2="Shetland Health Board",Calculations!$E$2="Western Isles Health Board",Calculations!$E$2="Shetland Islands Local Authority",Calculations!$E$2="Eilean Siar Local Authority"),"N/A", E18*100/C18) -> 7.775050623 | G18: fewer stays)
B19: Premature deaths (<75 years) | F19: % prevented
B20: Whole population | C20: =Calculations!Q5 -> 21625.30398 | D20: =Calculations!R5 -> 20579.80778 | E20: =C20-D20 -> 1045.496196 | F20: =E20*100/C20 -> 4.834596532 | G20: Premature deaths prevented
B21: Q1 & Q2 | C21: =Calculations!Q6 -> 11406.447 | D21: =Calculations!R6 -> 10563.73499 | E21: =C21-D21 -> 842.7120075 | F21: =E21*100/C21 -> 7.388032465 | G21: (N.B. positive difference =
B22: Q1 | C22: =IF(OR(Calculations!$E$2="Orkney Health Board",Calculations!$E$2="Orkney Islands Local Authority",Calculations!$E$2="Shetland Health Board",Calculations!$E$2="Western Isles Health Board",Calculations!$E$2="Shetland Islands Local Authority",Calculations!$E$2="Eilean Siar Local Authority"),"N/A", Calculations!Q7) -> 6424.777456 | D22: =IF(OR(Calculations!$E$2="Orkney Health Board",Calculations!$E$2="Orkney Islands Local Authority",Calculations!$E$2="Shetland Health Board",Calculations!$E$2="Western Isles Health Board",Calculations!$E$2="Shetland Islands Local Authority",Calculations!$E$2="Eilean Siar Local Authority"),"N/A", Calculations!R7) -> 5852.195217 | E22: =IF(OR(Calculations!$E$2="Orkney Health Board",Calculations!$E$2="Orkney Islands Local Authority",Calculations!$E$2="Shetland Health Board",Calculations!$E$2="Western Isles Health Board",Calculations!$E$2="Shetland Islands Local Authority",Calculations!$E$2="Eilean Siar Local Authority"),"N/A", C22-D22) -> 572.5822387 | F22: =IF(OR(Calculations!$E$2="Orkney Health Board",Calculations!$E$2="Orkney Islands Local Authority",Calculations!$E$2="Shetland Health Board",Calculations!$E$2="Western Isles Health Board",Calculations!$E$2="Shetland Islands Local Authority",Calculations!$E$2="Eilean Siar Local Authority"),"N/A", E22*100/C22) -> 8.912094507 | G22: fewer premature deaths)
B23: Years of life lost | F23: % saved
B24: Whole population | C24: =Calculations!M5 -> 595692.7873 | D24: =Calculations!N5 -> 566785.0048 | E24: =C24-D24 -> 28907.78254 | F24: =E24*100/C24 -> 4.852800497 | G24: Years of life saved
B25: Q1 & Q2 | C25: =Calculations!M6 -> 318079.1264 | D25: =Calculations!N6 -> 294662.7799 | E25: =C25-D25 -> 23416.3465 | F25: =E25*100/C25 -> 7.361799172 | G25: (N.B. positive difference =
B26: Q1 | C26: =IF(OR(Calculations!$E$2="Orkney Health Board",Calculations!$E$2="Orkney Islands Local Authority",Calculations!$E$2="Shetland Health Board",Calculations!$E$2="Western Isles Health Board",Calculations!$E$2="Shetland Islands Local Authority",Calculations!$E$2="Eilean Siar Local Authority"),"N/A", Calculations!M7) -> 179614.5327 | D26: =IF(OR(Calculations!$E$2="Orkney Health Board",Calculations!$E$2="Orkney Islands Local Authority",Calculations!$E$2="Shetland Health Board",Calculations!$E$2="Western Isles Health Board",Calculations!$E$2="Shetland Islands Local Authority",Calculations!$E$2="Eilean Siar Local Authority"),"N/A", Calculations!N7) -> 163678.6025 | E26: =IF(OR(Calculations!$E$2="Orkney Health Board",Calculations!$E$2="Orkney Islands Local Authority",Calculations!$E$2="Shetland Health Board",Calculations!$E$2="Western Isles Health Board",Calculations!$E$2="Shetland Islands Local Authority",Calculations!$E$2="Eilean Siar Local Authority"),"N/A", C26-D26) -> 15935.93025 | F26: =IF(OR(Calculations!$E$2="Orkney Health Board",Calculations!$E$2="Orkney Islands Local Authority",Calculations!$E$2="Shetland Health Board",Calculations!$E$2="Western Isles Health Board",Calculations!$E$2="Shetland Islands Local Authority",Calculations!$E$2="Eilean Siar Local Authority"),"N/A", E26*100/C26) -> 8.872294468 | G26: years of life saved)
B27: HEALTH INEQUALITIES | C27: rate* | D27: rate* | E27: rate* | F27: %
B28: Absolute gap (Q1 minus Q5**) | F28: % increase
B29: Hospital stays | C29: =Inequalities!H17 -> 13347.3262 | D29: =Inequalities!J17 -> 11169.05611 | E29: =D29-C29 -> -2178.270089 | F29: =E29*100/C29 -> -16.31989851 | G29: Change in the absolute gap
B30: Premature deaths | C30: =Inequalities!N17 -> 453.5705587 | D30: =Inequalities!P17 -> 395.1917486 | E30: =D30-C30 -> -58.37881009 | F30: =E30*100/C30 -> -12.87094345 | G30: (N.B. negative = narrower gap)
B31: YLL | C31: =Inequalities!T17 -> 12492.98266 | D31: =Inequalities!V17 -> 10891.00545 | E31: =D31-C31 -> -1601.977215 | F31: =E31*100/C31 -> -12.8230164
B32: Relative gap Q1 to Q5** | F32: % increase
B33: Hospital stays | C33: =Inequalities!H18 -> 1.813617171 | D33: =Inequalities!J18 -> 1.686487259 | E33: =D33-C33 -> -0.1271299115 | F33: =E33*100/C33 -> -7.009743486 | G33: Change in the relative gap
B34: Premature deaths | C34: =Inequalities!N18 -> 3.004909375 | D34: =Inequalities!P18 -> 2.763698126 | E34: =D34-C34 -> -0.2412112494 | F34: =E34*100/C34 -> -8.027238736 | G34: (N.B. negative = narrower gap)
B35: YLL | C35: =Inequalities!T18 -> 2.992640171 | D35: =Inequalities!V18 -> 2.753835002 | E35: =D35-C35 -> -0.2388051698 | F35: =E35*100/C35 -> -7.979748855
B36: Slope Index of Inequality (SII) | F36: % increase
B37: Hospital stays | C37: =Inequalities!H15 -> 16090.34056 | D37: =Inequalities!J15 -> 13512.6443 | E37: =D37-C37 -> -2577.69626 | F37: =E37*100/C37 -> -16.02014731 | G37: Change in absolute inequalities
B38: Premature deaths | C38: =Inequalities!N15 -> 534.2927283 | D38: =Inequalities!P15 -> 466.5198198 | E38: =D38-C38 -> -67.77290848 | F38: =E38*100/C38 -> -12.68460245 | G38: (N.B. negative = decreased inequalities)
B39: YLL | C39: =Inequalities!T15 -> 14719.14525 | D39: =Inequalities!V15 -> 12858.55469 | E39: =D39-C39 -> -1860.590563 | F39: =E39*100/C39 -> -12.64061555
B40: Relative Index of Inequality (RII) | F40: % increase
B41: Hospital stays | C41: =Inequalities!H16 -> 0.7333895263 | D41: =Inequalities!J16 -> 0.6414186165 | E41: =D41-C41 -> -0.09197090977 | F41: =E41*100/C41 -> -12.54052676 | G41: Change in relative inequalities
B42: Premature deaths | C42: =Inequalities!N16 -> 1.28602402 | D42: =Inequalities!P16 -> 1.18243988 | E42: =D42-C42 -> -0.1035841401 | F42: =E42*100/C42 -> -8.054603843 | G42: (N.B. negative = decreased inequalities)
B43: YLL | C43: =Inequalities!T16 -> 1.281270996 | D43: =Inequalities!V16 -> 1.178315288 | E43: =D43-C43 -> -0.1029557075 | F43: =E43*100/C43 -> -8.035435736
B45: * European age-standardised rate per 100,000
B46: ** or the most and least deprived quintiles in the area
B48: Economic impact | C48: Without intervention | D48: With intervention | E48: Difference | F48: Difference | G48: Interpretation
C49: £ | D49: £ | E49: £
B50: Direct financial cost: | C50: 0 | D50: =(Options!B14-1)*VLOOKUP(D2,PolicyCostsByArea!B6:BF34,57) -> 2172658980 | E50: =D50-C50 -> 2172658980 | G50: Positive difference = net cost incurred
B52: Direct financial savings: | C52: £ | D52: £ | E52: £ | F52: % saved
B53: Hospital stays
B54: Whole population | C54: =Evidence!$D$221*C16 -> 2873365587 | D54: =Evidence!$D$221*D16 -> 2762176001 | E54: =C54-D54 -> 111189586.2 | F54: =E54*100/C54 -> 3.869663737 | G54: Reduction in hospital stay costs
B55: Q1 & Q2 | C55: =Evidence!$D$221*C17 -> 1362204172 | D55: =Evidence!$D$221*D17 -> 1275831276 | E55: =C55-D55 -> 86372895.6 | F55: =E55*100/C55 -> 6.340671787 | G55: (N.B. positive difference =
B56: Q1 | C56: =IF(OR(Calculations!$E$2="Orkney Health Board",Calculations!$E$2="Orkney Islands Local Authority",Calculations!$E$2="Shetland Health Board",Calculations!$E$2="Western Isles Health Board",Calculations!$E$2="Shetland Islands Local Authority",Calculations!$E$2="Eilean Siar Local Authority"),"N/A", Evidence!$D$221*C18) -> 725254190.2 | D56: =IF(OR(Calculations!$E$2="Orkney Health Board",Calculations!$E$2="Orkney Islands Local Authority",Calculations!$E$2="Shetland Health Board",Calculations!$E$2="Western Isles Health Board",Calculations!$E$2="Shetland Islands Local Authority",Calculations!$E$2="Eilean Siar Local Authority"),"N/A", Evidence!$D$221*D18) -> 668865309.8 | E56: =IF(OR(Calculations!$E$2="Orkney Health Board",Calculations!$E$2="Orkney Islands Local Authority",Calculations!$E$2="Shetland Health Board",Calculations!$E$2="Western Isles Health Board",Calculations!$E$2="Shetland Islands Local Authority",Calculations!$E$2="Eilean Siar Local Authority"),"N/A", C56-D56) -> 56388880.43 | F56: =IF(OR(Calculations!$E$2="Orkney Health Board",Calculations!$E$2="Orkney Islands Local Authority",Calculations!$E$2="Shetland Health Board",Calculations!$E$2="Western Isles Health Board",Calculations!$E$2="Shetland Islands Local Authority",Calculations!$E$2="Eilean Siar Local Authority"),"N/A", E56*100/C56) -> 7.775050623 | G56: money saved)
B57: Premature deaths (<75 years) | E57: Savings not estimated
B58: Years of life lost | E58: Savings not estimated
B59: Inequalities | E59: Savings not estimated

Sheet Evidence
B2: The income-based policies
B4: In our research we considered three types of policies that can change household incomes:
B5: ● taxation-based
B6: ● benefits-based
B7: ● novel
B8: These were selected to represent a range of existing and future options, with varying levels of practical feasibility.
B9: The policies modelled in this workbook are summarised below. Further details are available from our website.
B10: Benefit rates were obtained from Department for Work and Pensions (DWP, 2016a).
B12: Policy short name | C12: Description
B13: Taxation-based
B14: Income Tax +1p | C14: All income Tax rates increased by 1p (to 21p basic rate, 41p higher rate, and 46p additional rate).
B15: Income Tax -1p | C15: All income Tax rates decreased by 1p (to 19p basic rate, 39p higher rate, and 44p additional rate).
B16: Income Tax basic rate -1p | C16: Income Tax basic rate decreased by 1p (to 19p)
B17: Income Tax basic rate +5p | C17: Income Tax basic rate increased by 5p (to 25p)
B18: Income Tax additional rate +5p | C18: Income Tax additional rate increased by 5p (to 50p)
B19: Personal Allowance +£1K | C19: Income Tax Personal Allowance (PA) increased from £11,000 to £12,000.
B20: Personal Allowance -£1K | C20: PA decreased from £11,000 to £10,000.
B21: Council Tax increase | C21: Council Tax increased for bands E (+7.5%, representing an increase from the Scottish average of £1,390 to £1,494 pa),
C22: F (+12.5%, from £1,643 to £1,848 pa), G (+17.5%, from £1,895 to £2,227 pa), and H (+22.5%, from £2,275 to £2,786 pa).
B24: Benefits-based
B25: Means-tested benefits +50% | C25: 50% increase in these benefits paid to those who pass an income test: Child Tax Credit, Working Tax Credit, Housing Benefit,
C26: income-based Job-Seeker’s Allowance, income-based Employment and Support Allowance, and Income Support.
B27: Means-tested benefits +10% | C27: 10% increase in the above benefits.
B28: Devolved benefits +50% | C28: 50% increase in these benefits devolved to the Scottish Government: Attendance Allowance, Carer's Allowance, Disability
C29: Living Allowance/Personal Independence Payment, Industrial Injuries Disability Benefit, Severe Disability Allowance,
C30: and Winter Fuel Allowance.
B31: Devolved benefits + 10% | C31: 10% increase in the above benefits.
B32: Attendance Allowance +10% | C32: 10% increase in the devolved benefit Attendance Allowance.
B33: Attendance Allowance +50% | C33: 50% increase in the devolved benefit Attendance Allowance.
B34: Carer’s Allowance +10% | C34: 10% increase in the devolved benefit Carer’s Allowance.
B35: Carer’s Allowance +50% | C35: 50% increase in the devolved benefit Carer’s Allowance.
B36: DLA/PIP +10% | C36: 10% increase in the devolved benefits Disability Living Allowance/Personal Independence Payment (DLA/PIP).
B37: DLA/PIP +50% | C37: 50% increase in the devolved benefits Disability Living Allowance/Personal Independence Payment (DLA/PIP).
B38: Industrial Injuries Disability Benefit +10% | C38: 10% increase in the devolved benefit Industrial Injuries Disability Benefit.
B39: Industrial Injuries Disability Benefit +50% | C39: 50% increase in the devolved benefit Industrial Injuries Disability Benefit.
B40: Severe Disability Allowance +10% | C40: 10% increase in the devolved benefit Severe Disability Allowance.
B41: Severe Disability Allowance +50% | C41: 50% increase in the devolved benefit Severe Disability Allowance.
B42: Winter Fuel Allowance +10% | C42: 10% increase in the devolved benefit Winter Fuel Allowance.
B43: Winter Fuel Allowance +50% | C43: 50% increase in the devolved benefit Winter Fuel Allowance.
B45: Novel
B46: Citizen’s Basic Income | C46: Introduction of Citizen’s Basic Income (CBI): an income from the state received by every citizen, not dependent on need.
C47: Rates = £67.01/week for <18 y, £73.10/week for 18-62 y women and 18-64 y men; £155.60/week for >62 y women and
C48: >64 y men. Most other benefits withdrawn. National Insurance set to 12% flat rate for all earnings, and income tax rates
C49: increased by 6p.
B50: Citizen’s Basic Income Plus | C50: Introduction of CBI with additional payments for disabled adults (£35.75/week, or £112.40/week for severely disabled) and
C51: children (£24.07/week, or £83.52/week if severely disabled). Income Tax rates increased by 7p.
B52: Local Income Tax | C52: Council Tax removed, and all Income Tax rates increased by 3p.
B53: Living Wage | C53: Mandatory payment of the real Living Wage to all employees (Living Wage Foundation calculation of £8.25/hour for 2016/17).
B54: Benefit uptake +1% | C54: A 1% increase in the number of claimants of means-tested benefits, e.g., from wider availability of
C55: income-maximisation advice services.
B59: Prevalence of exposure
B61: The entire Scottish population is affected by household income (i.e., 'exposed') at baseline, and would be affected by changes to household income.
B64: Exposure Rate Ratios (ERR)
B66: Because everyone is affected by household income the ERR = 1.0 for mortality and for hospitalisation at baseline.
B69: Intervention Rate Ratios: how the policies affect mortality and hospital admissions
B71: (a) How do the policies affect household incomes
B72: We modelled the effect of each policy on the incomes (before housing costs) of a representative sample of Scottish households (n = 2,871) in the
B73: 2014/15 Family Resources Survey (FRS) (Source: DWP et al 2016). We used EUROMOD H1.0+, a detailed tax-benefit microsimulation model.
B74: We modelled the year 2016, with monetary values uprated accordingly, and benefit uptake rates from DWP 2016 and Her Majesty’s Revenue and Customs (HMRC 2016).
B75: How EUROMOD models the UK economy is described fully by de Agostini (2017).
B76: We used FRS weights that account for differential non-response when scaling up to the overall population.
B77: For each policy we estimated average household income change from baseline (no policy) for each quintile of the 2016 Scottish Index of Multiple Deprivation (SIMD),
B78: using FRS data linked to SIMD quintiles for us by the DWP. We equivalised the household incomes using the Organisation for Economic Cooperation and Development
B79: (OECD) modified equivalence scale (Hagenaars et al 1994), so that they could be compared between households of differing sizes and compositions.
B80: Percentage change in equivalised household income (before housing costs) under each policy, by SIMD 2016 quintile, is shown below.
C83: Change from baseline (%)
B84: Policy | C84: Q1 (most deprived) | D84: Q2 | E84: Q3 | F84: Q4 | G84: Q5 (least deprived)
B85: Attendance Allowance +10% | C85: 0.031 | D85: 0.067 | E85: 0.024 | F85: 0.025 | G85: 0.027
B86: Attendance Allowance +50% | C86: 0.156 | D86: 0.335 | E86: 0.118 | F86: 0.127 | G86: 0.137
B87: Benefit uptake +1% | C87: 0.236 | D87: 0.051 | E87: 0 | F87: 0.018 | G87: 0
B88: Carer's Allowance +10% | C88: 0.012 | D88: 0.01 | E88: 0.005 | F88: 0 | G88: 0.001
B89: Carer's Allowance +50% | C89: 0.066 | D89: 0.06 | E89: 0.026 | F89: 0.003 | G89: 0.004
B90: Citizen’s Basic Income | C90: 1.777 | D90: 1.11 | E90: 0.991 | F90: -0.282 | G90: -2.549
B91: Citizen’s Basic Income Plus | C91: 3.33 | D91: 2.264 | E91: 1.166 | F91: -0.579 | G91: -3.027
B92: Council Tax increase | C92: -0.017 | D92: -0.072 | E92: -0.144 | F92: -0.222 | G92: -0.401
B93: Devolved benefits +10% | C93: 0.501 | D93: 0.386 | E93: 0.268 | F93: 0.136 | G93: 0.092
B94: Devolved benefits +50% | C94: 2.511 | D94: 1.941 | E94: 1.344 | F94: 0.682 | G94: 0.461
B95: DLA/PIP +10% | C95: 0.415 | D95: 0.248 | E95: 0.192 | F95: 0.075 | G95: 0.033
B96: DLA/PIP +50% | C96: 2.074 | D96: 1.242 | E96: 0.96 | F96: 0.376 | G96: 0.165
B97: Income Tax additional rate +5p | C97: -0.079 | D97: -0.009 | E97: -0.046 | F97: -0.043 | G97: -0.137
B98: Income Tax basic rate +5p | C98: -1.539 | D98: -2.127 | E98: -2.411 | F98: -2.811 | G98: -2.949
B99: Income Tax basic rate -1p | C99: 0.308 | D99: 0.426 | E99: 0.482 | F99: 0.562 | G99: 0.59
B100: Income Tax rates +1p | C100: -0.358 | D100: -0.482 | E100: -0.598 | F100: -0.694 | G100: -0.806
B101: Income Tax rates -1p | C101: 0.358 | D101: 0.483 | E101: 0.598 | F101: 0.694 | G101: 0.806
B102: Industrial Injuries Disability Benefit +10% | C102: 0.006 | D102: 0.014 | E102: 0.011 | F102: 0.006 | G102: 0
B103: Industrial Injuries Disability Benefit +50% | C103: 0.028 | D103: 0.071 | E103: 0.053 | F103: 0.031 | G103: 0
B104: Living Wage | C104: 3.089 | D104: 2.113 | E104: 2.111 | F104: 1.829 | G104: 0.943
B105: Local Income Tax | C105: 2.12 | D105: 1.997 | E105: 2.065 | F105: 2.122 | G105: 1.967
B106: Means-tested benefits +10% | C106: 1.765 | D106: 1.019 | E106: 0.508 | F106: 0.323 | G106: 0.17
B107: Means-tested benefits +50% | C107: 8.637 | D107: 5.059 | E107: 2.483 | F107: 1.591 | G107: 0.85
B108: Personal Allowance -£1K | C108: -0.669 | D108: -0.761 | E108: -0.798 | F108: -0.86 | G108: -0.816
B109: Personal Allowance +£1K | C109: 0.638 | D109: 0.695 | E109: 0.759 | F109: 0.817 | G109: 0.793
B110: Severe Disability Allowance +10% | C110: 0.004 | D110: 0.01 | E110: 0 | F110: 0.002 | G110: 0
B111: Severe Disability Allowance +50% | C111: 0.02 | D111: 0.048 | E111: 0 | F111: 0.008 | G111: 0
B112: Winter Fuel Allowance +10% | C112: 0.034 | D112: 0.037 | E112: 0.037 | F112: 0.028 | G112: 0.031
B113: Winter Fuel Allowance +50% | C113: 0.168 | D113: 0.186 | E113: 0.187 | F113: 0.138 | G113: 0.156
B116: (b) How does income change relate to all-cause mortality and hospitalisation risk?
B117: We identified no evidence that had quantified the effect of income change on health, hence we estimated the relationship using income, hospital admissions,
B118: and mortality data. Using the FRS data linked to SIMD quintiles, and relevant survey weights, we estimated mean equivalised income (before housing costs)
B119: for each SIMD quintile in 2016. We calculated European age-standardised all-cause mortality rates, using 2016 mortality data from National Records of
B120: Scotland (NRS), 2016 population data from NRS, and the European Standard Population 2013.We calculated European age-standardised all-cause hospitalisation
B121: rates, using 2016 data on continuous inpatient stays from NHS Information Services Division (Scottish Morbidity Records SMR01 and SMR04), 2016 population
B122: data from NRS, and the European Standard Population 2013. The resulting income, hospital admissions and mortality data are shown below:
B125: SIMD 2016 quintile | C125: Mean equivalised household income (£/month) | D125: Mortality rate per 100,000 | E125: Hospitalisation rate per 100,000
B126: Q1 (most deprived) | C126: 1124.58 | D126: 1572 | E126: 30737
B127: Q2 | C127: 1343.07 | D127: 1300 | E127: 25562
B128: Q3 | C128: 1513.08 | D128: 1148 | E128: 21952
B129: Q4 | C129: 1656.56 | D129: 985 | E129: 19534
B130: Q5 (least deprived) | C130: 1967.32 | D130: 843 | E130: 18266
B132: We then regressed log-transformed all-cause mortality or hospitalisation rates (base e) on log-transformed mean equivalised household income (base 2),
B133: for SIMD quintiles. By taking the exponent of the coefficients we calculated the mortality RR of 0.4543 and the hospitalisation RR of 0.5080 per doubling of income.
B134: The coefficient was used to estimate the effect on mortality rates of the change in household income resulting from each policy, by SIMD.
B135: The mortality or hospitalisation RR was raised to the power of the difference in log(2)-transformed household income between the policy and baseline,
B136: which produced the Intervention Rate Ratios below.
C138: All-cause hospitalisation RR, by SIMD quintile | I138: All-cause mortality RR, by SIMD quintile
B139: Policy | C139: 1 (most deprived) | D139: 2 | E139: 3 | F139: 4 | G139: 5 (least deprived) | I139: 1 (most deprived) | J139: 2 | K139: 3 | L139: 4 | M139: 5 (least deprived)
B140: Attendance Allowance +10% | C140: 0.99969602 | D140: 0.99934548 | E140: 0.99976927 | F140: 0.99975187 | G140: 0.99973226 | I140: 0.99964589 | J140: 0.9992376 | K140: 0.99973124 | L140: 0.99971092 | M140: 0.99968809
B141: Attendance Allowance +50% | C141: 0.99848241 | D141: 0.9967376 | E141: 0.99884719 | F141: 0.99876064 | G141: 0.99866182 | I141: 0.99823231 | J141: 0.99620044 | K141: 0.99865717 | L141: 0.99855632 | M141: 0.99844122
B142: Benefit uptake +1% | C142: 0.99769473 | D142: 0.99950337 | E142: 1 | F142: 0.99982518 | G142: 1.0000002 | I142: 0.99731499 | J142: 0.99942148 | K142: 1 | L142: 0.99979633 | M142: 1.0000002
B143: Carer's Allowance +10% | C143: 0.99988449 | D143: 0.99990505 | E143: 0.99995375 | F143: 1 | G143: 0.99999309 | I143: 0.99986541 | J143: 0.99988937 | K143: 0.99994612 | L143: 1 | M143: 0.99999195
B144: Carer's Allowance +50% | C144: 0.99935478 | D144: 0.99941599 | E144: 0.99974245 | F144: 0.99997389 | G144: 0.99996477 | I144: 0.99924839 | J144: 0.99931973 | K144: 0.99969995 | L144: 0.9999696 | M144: 0.99995899
B145: Citizen’s Basic Income | C145: 0.98293561 | D145: 0.98927546 | E145: 0.99040747 | F145: 1.0027623 | G145: 1.0255502 | I145: 0.98014885 | J145: 0.98751748 | K145: 0.98883402 | L145: 1.0032187 | M145: 1.0298272
B146: Citizen’s Basic Income Plus | C146: 0.968503 | D146: 0.97836834 | E146: 0.9887408 | F146: 1.0056906 | G146: 1.030486 | I146: 0.96340358 | J146: 0.97484535 | K146: 0.98689574 | L146: 1.0066324 | M146: 1.0356033
B147: Council Tax increase | C147: 1.0001624 | D147: 1.0007011 | E147: 1.0014081 | F147: 1.0021747 | G147: 1.0039332 | I147: 1.0001892 | J147: 1.0008167 | K147: 1.0016406 | L147: 1.0025339 | M147: 1.0045835
B148: Devolved benefits +10% | C148: 0.99513066 | D148: 0.99624437 | E148: 0.99738604 | F148: 0.99867469 | G148: 0.99910003 | I148: 0.99432969 | J148: 0.99562621 | K148: 0.99695551 | L148: 0.99845624 | M148: 0.99895167
B149: Devolved benefits +50% | C149: 0.97605902 | D149: 0.98139739 | E149: 0.98704153 | F149: 0.99338323 | G149: 0.99551588 | I149: 0.97216529 | J149: 0.97836226 | K149: 0.98492014 | L149: 0.99229598 | M149: 0.99477816
B150: DLA/PIP +10% | C150: 0.99596429 | D150: 0.99757975 | E150: 0.99812835 | F150: 0.99926651 | G150: 0.99967843 | I150: 0.99530011 | J150: 0.99718112 | K150: 0.99781996 | L150: 0.99914557 | M150: 0.99962544
B151: DLA/PIP +50% | C151: 0.98014581 | D151: 0.98801732 | E151: 0.99071229 | F151: 0.99634326 | G151: 0.99839389 | I151: 0.97690886 | J151: 0.98605454 | K151: 0.98918855 | L151: 0.99574131 | M151: 0.99812925
B152: Income Tax additional rate +5p | C152: 1.0007747 | D152: 1.0000859 | E152: 1.0004483 | F152: 1.0004174 | G152: 1.0013447 | I152: 1.0009025 | J152: 1.0001001 | K152: 1.0005224 | L152: 1.0004863 | M152: 1.0015666
B153: Income Tax basic rate +5p | C153: 1.0152695 | D153: 1.021228 | E153: 1.0241292 | F153: 1.0282528 | G153: 1.0296787 | I153: 1.0178106 | J153: 1.0247726 | K153: 1.0281649 | L153: 1.0329894 | M153: 1.0346582
B154: Income Tax basic rate -1p | C154: 0.99700016 | D154: 0.99585444 | E154: 0.99530929 | F154: 0.99453646 | G154: 0.9942708 | I154: 0.99650621 | J154: 0.9951722 | K154: 0.99453765 | L154: 0.9936381 | M154: 0.99332887
B155: Income Tax rates +1p | C155: 1.0035092 | D155: 1.0047357 | E155: 1.0058779 | F155: 1.0068244 | G155: 1.0079398 | I155: 1.0040891 | J155: 1.005519 | K155: 1.0068507 | L155: 1.0079546 | M155: 1.0092555
B156: Income Tax rates -1p | C156: 0.99651593 | D156: 0.99530411 | E156: 0.99419057 | F156: 0.99326921 | G156: 0.99218601 | I156: 0.99594241 | J156: 0.99453163 | K156: 0.99323559 | L156: 0.99216324 | M156: 0.99090296
B157: Industrial Injuries Disability Benefit +10% | C157: 0.99994504 | D157: 0.9998616 | E157: 0.99989712 | F157: 0.9999404 | G157: 1.0000002 | I157: 0.99993598 | J157: 0.99983877 | K157: 0.99988014 | L157: 0.99993056 | M157: 1.0000002
B158: Industrial Injuries Disability Benefit +50% | C158: 0.9997257 | D158: 0.99930978 | E158: 0.99948537 | F158: 0.99970204 | G158: 1.0000002 | I158: 0.99968046 | J158: 0.99919593 | K158: 0.9994005 | L158: 0.99965292 | M158: 1.0000002
B159: Living Wage | C159: 0.97071314 | D159: 0.97978294 | E159: 0.9797973 | F159: 0.98244804 | G159: 0.99087441 | I159: 0.96596521 | J159: 0.97648752 | K159: 0.97650421 | L159: 0.97958249 | M159: 0.98937714
B160: Local Income Tax | C160: 0.97970951 | D160: 0.98086476 | E160: 0.98022789 | F160: 0.97969425 | G160: 0.98114681 | I160: 0.97640222 | J160: 0.97774369 | K160: 0.97700417 | L160: 0.97638452 | M160: 0.97807121
B161: Means-tested benefits +10% | C161: 0.98305309 | D161: 0.99013937 | E161: 0.99506176 | F161: 0.99685812 | G161: 0.99834263 | I161: 0.98028535 | J161: 0.98852217 | K161: 0.99424952 | L161: 0.99634081 | M161: 0.99806947
B162: Means-tested benefits +50% | C162: 0.92225212 | D162: 0.95292658 | E162: 0.9763186 | F162: 0.98469681 | G162: 0.99176753 | I162: 0.91002107 | J162: 0.94537735 | K162: 0.97246647 | L162: 0.98219508 | M162: 0.99041605
B163: Personal Allowance -£1K | C163: 1.0065835 | D163: 1.0074952 | E163: 1.0078616 | F163: 1.0084786 | G163: 1.0080402 | I163: 1.0076736 | J163: 1.008737 | K163: 1.0091643 | L163: 1.0098841 | M163: 1.0093727
B164: Personal Allowance +£1K | C164: 0.99380255 | D164: 0.99326026 | E164: 0.99264348 | F164: 0.99208003 | G164: 0.99231625 | I164: 0.9927839 | J164: 0.99215287 | K164: 0.99143517 | L164: 0.99077964 | M164: 0.99105448
B165: Severe Disability Allowance +10% | C165: 0.99996096 | D165: 0.999906 | E165: 1 | F165: 0.99998426 | G165: 1.0000002 | I165: 0.99995452 | J165: 0.99989051 | K165: 1 | L165: 0.99998164 | M165: 1.0000002
B166: Severe Disability Allowance +50% | C166: 0.99980539 | D166: 0.99953157 | E166: 1 | F166: 0.9999212 | G166: 1.0000002 | I166: 0.99977332 | J166: 0.99945432 | K166: 1 | L166: 0.99990821 | M166: 1.0000002
B167: Winter Fuel Allowance +10% | C167: 0.99967206 | D167: 0.99963701 | E167: 0.9996345 | F167: 0.99973053 | G167: 0.9996962 | I167: 0.99961799 | J167: 0.99957711 | K167: 0.99957424 | L167: 0.99968612 | M167: 0.99964607
B168: Winter Fuel Allowance +50% | C168: 0.9983626 | D168: 0.99818897 | E168: 0.9981755 | F168: 0.99865472 | G168: 0.99848235 | I168: 0.99809277 | J168: 0.99789053 | K168: 0.99787486 | L168: 0.99843299 | M168: 0.99823219
B171: Change in intervention effect over time
B173: The intervention effect was assumed constant over time.
B176: Implications for government spending
B178: The implications for government expenditure on benefits and revenue from taxes and National Insurance contributions were also estimated from the EUROMOD output.
B179: The annual fiscal implications in 2016 £ millions are summarised below for each policy, relative to spending under the baseline scenario.
B180: Positive policy costs represent policies that would cost the government money, while negative policy costs represent cost-saving policies.
B181: An indication of the costs pertaining to the policy for each local area has been calculated on a % share of adult population basis.
B182: As the policy costs/savings recur for each year of the follow-up period, these are multiplied by the number of years of follow-up to calculate the total cost/saving.
B184: Policy | C184: Additional revenue (£m per year) | D184: Additional costs (£m per year) | E184: Net policy cost (£m per year)
B185: Attendance Allowance +10% | C185: 0 | D185: 20 | E185: 20
B186: Attendance Allowance +50% | C186: 0 | D186: 101 | E186: 101
B187: Benefit uptake +1% | C187: 0 | D187: 36 | E187: 36
B188: Carer's Allowance +10% | C188: 0 | D188: 4 | E188: 4
B189: Carer's Allowance +50% | C189: 2 | D189: 25 | E189: 23
B190: Citizen’s Basic Income | C190: 13374 | D190: 13816 | E190: 442
B191: Citizen’s Basic Income Plus | C191: 14074 | D191: 14609 | E191: 535
B192: Council Tax increase | C192: 146 | D192: 10 | E192: -135
B193: Devolved benefits +10% | C193: 0 | D193: 155 | E193: 154
B194: Devolved benefits +50% | C194: 2 | D194: 776 | E194: 773
B195: DLA/PIP +10% | C195: 0 | D195: 106 | E195: 106
B196: DLA/PIP +50% | C196: 0 | D196: 529 | E196: 529
B197: Income Tax additional rate +5p | C197: 51 | D197: 0 | E197: -51
B198: Income Tax basic rate +5p | C198: 1704 | D198: 7 | E198: -1697
B199: Income Tax basic rate -1p | C199: -341 | D199: -1 | E199: 340
B200: Income Tax rates +1p | C200: 430 | D200: 1 | E200: -429
B201: Income Tax rates -1p | C201: -430 | D201: -1 | E201: 429
B202: Industrial Injuries Disability Benefit +10% | C202: 0 | D202: 4 | E202: 4
B203: Industrial Injuries Disability Benefit +50% | C203: 0 | D203: 22 | E203: 22
B204: Living Wage* | C204: 740 | D204: -144 | E204: 1264 | F204: *
B205: Local Income Tax | C205: -1712 | D205: -424 | E205: 1288
B206: Means-tested benefits +10% | C206: 0 | D206: 442 | E206: 442
B207: Means-tested benefits +50% | C207: 0 | D207: 2173 | E207: 2173
B208: Personal Allowance -£1K | C208: 547 | D208: 6 | E208: -541
B209: Personal Allowance +£1K | C209: -518 | D209: -5 | E209: 513
B210: Severe Disability Allowance +10% | C210: 0 | D210: 2 | E210: 2
B211: Severe Disability Allowance +50% | C211: 0 | D211: 9 | E211: 9
B212: Winter Fuel Allowance +10% | C212: 0 | D212: 18 | E212: 18
B213: Winter Fuel Allowance +50% | C213: 0 | D213: 89 | E213: 89
B214: * Costs for Living Wage include the £2,148 m increased wage bill that is likely to be borne between the government and employers.
B217: Hospitalisation costs
B219: The cost of a continuous inpatient stay was estimated to be £2,113 in 2006/07 (Geue et al 2012; based on healthcare resource groups and the English tariff).
B220: This was inflated to £2,512 for 2015/16 using the Hospital and Community Health Service (HCHS) inflation index.
B221: Cost of continuous Inpatient stay | D221: 2512
B223: References
B225: De Agostini (2017) | C225: EUROMOD Country Report, United Kingdom. Available from https://www.euromod.ac.uk/sites/default/files/country-reports/year8/Y8_CR_UK_Final.pdf
B226: DWP (2016a) | C226: Department for Work and Pensions (2016) Benefit and Pension rates 2016/17. https://assets.publishing.service.gov.uk/government/uploads/system/uploads/attachment_data/file/524117/benefit-and-pension-rates-from-6-april-2016.pdf
B227: DWP (2016b) | C227: Income-related benefits: estimates of take-up: financial year 2014/15. https://www.gov.uk/government/statistics/income-related-benefits-estimates-of-take-up-financial-year-201415
B228: DWP et al (2016) | C228: Department for Work and Pensions, National Centre for Social Research, Office for National Statistics. Social and Vital Statistics Division. (2016). Family Resources Survey, 2014-2015. UK Data Service. SN: 8013, http://doi.org/10.5255/UKDA-SN-8013-1
B229: Geue et al (2012) | C229: Spoilt for choice: implications of using alternative methods of costing hospital episode statistics. Health Economics 21: 1201-1216. https://onlinelibrary.wiley.com/doi/abs/10.1002/hec.1785
B230: Hagenaars et al (1994) | C230: Hagenaars, A., K. de Vos and M.A. Zaidi (1994), Poverty Statistics in the Late 1980s: Research Based on Micro-data, Office for Official Publications of the European Communities. Luxembourg.
B231: HMRC (2016) | C231: Child Benefit, Child Tax Credit (CTC) and Working Tax Credit (WTC) take-up rates 2014 to 2015. https://www.gov.uk/government/statistics/child-benefit-child-tax-credit-ctc-and-working-tax-credit-wtc-take-up-rates-2014-to-2015

Sheet SHEETS TO BE HIDDEN -> (hidden)

Sheet Results_Scotland_5yrs (hidden)
A1: policy | B1: govcost | C1: type | D1: outcome | E1: difference | F1: diff | G1: diffQ1Q2 | H1: diffQ1 | I1: absgap | J1: relgap | K1: sii | L1: rii | M1: costperoutcome | N1: costperrii | O1: costperoutcomepc | P1: costperriipc
A2: Benefit uptake +1% | B2: 35696856 | C2: benefits | D2: hosp | E2: absolute | F2: 3167.757104 | G2: 3028.172987 | H2: 2538.10522 | I2: -257.1180144 | J2: -0.003804249333 | K2: -269.034776 | L2: -0.002538134184 | M2: 11268.81097 | N2: -1.406421151e+10 | O2: 523931537.8 | P2: -97172217.8
A3: Citizen's Basic Income | B3: 442120692 | C3: novel | D3: hosp | E3: absolute | F3: 17793.39519 | G3: 29389.0477 | H3: 18801.81805 | I3: -3593.920394 | J3: -0.0701863768 | K3: -4184.182325 | L3: -0.04447397785 | M3: 24847.46094 | N3: -9941109686 | O3: 1155256615 | P3: -68684950.8
A4: Citizen's Basic Income Plus | B4: 535237536 | C4: novel | D4: hosp | E4: absolute | F4: 40179.83488 | G4: 56093.22691 | H4: 34729.04521 | I4: -5534.04793 | J4: -0.1012492035 | K4: -6725.01021 | L4: -0.07005957414 | M4: 13321.04867 | N4: -7639748636 | O4: 619348175.5 | P4: -52784425.06
A5: Devolved benefits +50% | B5: 773385492 | C5: benefits | D5: hosp | E5: absolute | F5: 64817.58618 | G5: 44757.98189 | H5: 26387.6594 | I5: -2376.884482 | J5: -0.03201085828 | K5: -2982.871636 | L5: -0.02417896141 | M5: 11931.72313 | N5: -3.198588553e+10 | O5: 554752942.7 | P5: -220996351.8
A6: Income Tax rates +1p | B6: -428502000 | C6: taxation | D6: hosp | E6: absolute | F6: -24842.13548 | G6: -8534.642577 | H6: -3862.513968 | I6: -133.8540232 | J6: -0.007754602579 | K6: -161.3686123 | L6: -0.00543073072 | M6: 17249.0002 | N6: 7.890319407e+10 | O6: 801974159 | P6: 545156644.9
A7: Income Tax rates -1p | B7: 428554980 | C7: taxation | D7: hosp | E7: absolute | F7: 24559.51709 | G7: 8470.822549 | H7: 3836.192405 | I7: 128.3603845 | J7: 0.007702077609 | K7: 154.3371833 | L7: 0.00536713402 | M7: 17449.65011 | N7: 7.98480117e+10 | O7: 811303165.7 | P7: 551684563.2
A8: Living Wage | B8: 1263991452 | C8: novel | D8: hosp | E8: absolute | F8: 90825.40156 | G8: 52254.45278 | H8: 32288.52987 | I8: -2667.7858 | J8: -0.03305720071 | K8: -2942.146638 | L8: -0.01995360648 | M8: 13916.71746 | N8: -6.334651599e+10 | O8: 647043170.8 | P8: -437672701.7
A9: Local Income Tax | B9: 1288077228 | C9: novel | D9: hosp | E9: absolute | F9: 88498.8991 | G9: 41256.71378 | H9: 22360.00356 | I9: -1017.768493 | J9: -0.001218111668 | K9: -1158.117475 | L9: 5.950861294e-05 | M9: 14554.726 | N9: 2.164522351e+13 | O9: 676706708.2 | P9: 1.495508207e+11
A10: Means-tested benefits +50% | B10: 2172658980 | C10: benefits | D10: hosp | E10: absolute | F10: 171728.4438 | G10: 132464.9998 | H10: 85925.48688 | I10: -8165.245792 | J10: -0.1156866275 | K10: -9704.237409 | L10: -0.0864637631 | M10: 12651.71297 | N10: -2.512797156e+10 | O10: 588228114.9 | P10: -173613765.9
A11: Personal Allowance -£1K | B11: -540830316 | C11: taxation | D11: hosp | E11: absolute | F11: -34114.66671 | G11: -14638.96659 | H11: -7245.21417 | I11: 202.1302616 | J11: -0.002894894028 | K11: 240.9119067 | L11: -0.002300589971 | M11: 15853.30792 | N11: 2.350833146e+11 | O11: 737082911.5 | P11: 1624233753
A12: Personal Allowance +£1K | B12: 512898480 | C12: taxation | D12: hosp | E12: absolute | F12: 31811.2464 | G12: 13477.09716 | H12: 6824.72753 | I12: -183.0095729 | J12: 0.002962927243 | K12: -206.5830299 | L12: 0.002380936325 | M12: 16123.18089 | N12: 2.154188143e+11 | O12: 749630371.7 | P12: 1488368113
A13: Council Tax increase (bands E-H) | B13: -135493524 | C13: taxation | D13: hosp | E13: absolute | F13: -6639.337416 | G13: -870.5852725 | H13: -178.7800192 | I13: -242.0361132 | J13: -0.00644667202 | K13: -288.0480539 | L13: -0.004199279373 | M13: 20407.68762 | N13: 3.226589897e+10 | O13: 948834015 | P13: 222931016.1
A14: Benefit uptake +1% | B14: 35696856 | C14: benefits | D14: premmort | E14: absolute | F14: 79.63737693 | G14: 76.87803513 | H14: 65.75599332 | I14: -6.837986119 | J14: -0.007597525611 | K14: -7.111865578 | L14: -0.003094380274 | M14: 448242.4883 | N14: -1.153602752e+10 | O14: 385686269.6 | P14: -145743815.1
A15: Citizen's Basic Income | B15: 442120692 | C15: novel | D15: premmort | E15: absolute | F15: 581.6335627 | G15: 726.5285729 | H15: 486.4726555 | I15: -77.06205832 | J15: -0.1387994983 | K15: -89.89208775 | L15: -0.0460706074 | M15: 760136.1414 | N15: -9596589170 | O15: 654052394.3 | P15: -121241347.2
A16: Citizen's Basic Income Plus | B16: 535237536 | C16: novel | D16: premmort | E16: absolute | F16: 1166.827598 | G16: 1381.332889 | H16: 897.4037695 | I16: -124.9230551 | J16: -0.2001154009 | K16: -150.8372535 | L16: -0.07488452184 | M16: 458711.7554 | N16: -7147505557 | O16: 394694457.5 | P16: -90300125.13
A17: Devolved benefits +50% | B17: 773385492 | C17: benefits | D17: premmort | E17: absolute | F17: 1507.011511 | G17: 1098.554459 | H17: 682.3249984 | I17: -66.32055077 | J17: -0.06398310546 | K17: -80.75243634 | L17: -0.02717423538 | M17: 513191.496 | N17: -2.846024851e+10 | O17: 441571066.6 | P17: -359560965.9
A18: Income Tax rates +1p | B18: -428502000 | C18: taxation | D18: premmort | E18: absolute | F18: -518.7528154 | G18: -206.2011505 | H18: -100.1164405 | I18: 2.193756113 | J18: -0.01519824025 | K18: 2.479129999 | L18: -0.005932365414 | M18: 826023.4688 | N18: 7.223122145e+10 | O18: 710744560.3 | P18: 912554496.6
A19: Income Tax rates -1p | B19: 428554980 | C19: taxation | D19: premmort | E19: absolute | F19: 512.5770582 | G19: 204.519393 | H19: 99.37571028 | I19: -2.255595784 | J19: 0.01510386918 | K19: -2.564885301 | L19: 0.005861534777 | M19: 836079.1283 | N19: 7.311310029e+10 | O19: 719396863.2 | P19: 923695973.7
A20: Living Wage | B20: 1263991452 | C20: novel | D20: premmort | E20: absolute | F20: 2061.568357 | G20: 1286.823225 | H20: 834.5071286 | I20: -77.35110806 | J20: -0.06622711599 | K20: -85.71114091 | L20: -0.02225111303 | M20: 613121.2908 | N20: -5.680576295e+10 | O20: 527554771.4 | P20: -717672405
A21: Local Income Tax | B21: 1288077228 | C21: novel | D21: premmort | E21: absolute | F21: 1925.822815 | G21: 1006.505834 | H21: 578.370014 | I21: -40.66974486 | J21: -0.003122606759 | K21: -46.46732837 | L21: -0.0001616755739 | M21: 668845.1387 | N21: -7.967049051e+12 | O21: 575501861.6 | P21: -1.006540702e+11
A22: Means-tested benefits +50% | B22: 2172658980 | C22: benefits | D22: premmort | E22: absolute | F22: 4059.757492 | G22: 3262.62037 | H22: 2210.917742 | I22: -221.4425692 | J22: -0.229790302 | K22: -257.6350818 | L22: -0.1005375445 | M22: 535169.646 | N22: -2.161042416e+10 | O22: 460481970.7 | P22: -273021684.4
A23: Personal Allowance -£1K | B23: -540830316 | C23: taxation | D23: premmort | E23: absolute | F23: -734.4649996 | G23: -355.7779881 | H23: -187.8528095 | I23: 11.21291874 | J23: -0.005490794784 | K23: 13.20526399 | L23: -0.00260965975 | M23: 736359.5492 | N23: 2.072416973e+11 | O23: 633594036.8 | P23: 2618249269
A24: Personal Allowance +£1K | B24: 512898480 | C24: taxation | D24: premmort | E24: absolute | F24: 683.2518437 | G24: 327.6445305 | H24: 176.752982 | I24: -10.43659663 | J24: 0.005637719469 | K24: -12.00867055 | L24: 0.002638370101 | M24: 750672.6616 | N24: 1.943997469e+11 | O24: 645909627.2 | P24: 2456006691
A25: Council Tax increase (bands E-H) | B25: -135493524 | C25: taxation | D25: premmort | E25: absolute | F25: -126.6485927 | G25: -20.33344907 | H25: -4.633008989 | I25: -3.587677 | J25: -0.01273114827 | K25: -4.332666671 | L25: -0.004422835719 | M25: 1069838.37 | N25: 3.063498909e+10 | O25: 920532927.3 | P25: 387036194.1
A26: Benefit uptake +1% | B26: 35696856 | C26: benefits | D26: yll | E26: absolute | F26: 2074.744705 | G26: 2004.571763 | H26: 1715.527179 | I26: -175.898148 | J26: -0.007411808423 | K26: -183.0065723 | L26: -0.003047045364 | M26: 17205.42094 | N26: -1.171523615e+10 | O26: 385557761 | P26: -146620349.9
A27: Citizen's Basic Income | B27: 442120692 | C27: novel | D27: yll | E27: absolute | F27: 15167.32853 | G27: 18933.22273 | H27: 12693.86409 | I27: -1995.662507 | J27: -0.1361648312 | K27: -2329.002314 | L27: -0.04569483945 | M27: 29149.5428 | N27: -9675505972 | O27: 653214617.3 | P27: -121092400.8
A28: Citizen's Basic Income Plus | B28: 535237536 | C28: novel | D28: yll | E28: absolute | F28: 30448.02675 | G28: 35999.83339 | H28: 23420.44042 | I28: -3230.069725 | J28: -0.1961605627 | K28: -3903.359351 | L28: -0.07418139924 | M28: 17578.72654 | N28: -7215252630 | O28: 393923198.4 | P28: -90301454.58
A29: Devolved benefits +50% | B29: 773385492 | C29: benefits | D29: yll | E29: absolute | F29: 39053.34565 | G29: 28625.01372 | H29: 17805.77394 | I29: -1704.273422 | J29: -0.06230754094 | K29: -2078.029569 | L29: -0.0267549834 | M29: 19803.30953 | N29: -2.890622208e+10 | O29: 443774070.3 | P29: -361771657.1
A30: Income Tax rates +1p | B30: -428502000 | C30: taxation | D30: yll | E30: absolute | F30: -13357.80298 | G30: -5368.617439 | H30: -2611.793931 | I30: 52.33022726 | J30: -0.01506072579 | K30: 58.86652877 | L30: -0.005941252096 | M30: 32078.77826 | N30: 7.212318095e+10 | O30: 718856107.3 | P30: 902647278.3
A31: Income Tax rates -1p | B31: 428554980 | C31: taxation | D31: yll | E31: absolute | F31: 13200.32912 | G31: 5325.319443 | H31: 2592.67655 | I31: -53.99621765 | J31: 0.01496884104 | K31: -61.16615958 | L31: 0.005870929831 | M31: 32465.4769 | N31: 7.299609982e+10 | O31: 727521670.5 | P31: 913572168.6
A32: Living Wage | B32: 1263991452 | C32: novel | D32: yll | E32: absolute | F32: 53311.79357 | G32: 33535.87029 | H32: 21778.41233 | I32: -1985.925448 | J32: -0.06436666416 | K32: -2200.835286 | L32: -0.02180650002 | M32: 23709.41526 | N32: -5.796397638e+10 | O32: 531306330.3 | P32: -725439793.8
A33: Local Income Tax | B33: 1288077228 | C33: novel | D33: yll | E33: absolute | F33: 49711.23442 | G33: 26221.15175 | H33: 15092.36152 | I33: -1036.828495 | J33: -0.002484825269 | K33: -1184.781621 | L33: 7.031499136e-05 | M33: 25911.18975 | N33: 1.83186715e+13 | O33: 580646084.8 | P33: 2.292646934e+11
A34: Means-tested benefits +50% | B34: 2172658980 | C34: benefits | D34: yll | E34: absolute | F34: 105425.3476 | G34: 85076.94939 | H34: 57731.27837 | I34: -5698.619293 | J34: -0.2241920263 | K34: -6636.630566 | L34: -0.0990615895 | M34: 20608.50667 | N34: -2.19324058e+10 | O34: 461817802.5 | P34: -274491864.3
A35: Personal Allowance -£1K | B35: -540830316 | C35: taxation | D35: yll | E35: absolute | F35: -18938.92817 | G35: -9264.194534 | H35: -4900.450586 | I35: 284.2422826 | J35: -0.005594767714 | K35: 334.8553282 | L35: -0.00266812901 | M35: 28556.54297 | N35: 2.02700212e+11 | O35: 639926033.1 | P35: 2536865295
A36: Personal Allowance +£1K | B36: 512898480 | C36: taxation | D36: yll | E36: absolute | F36: 17619.8352 | G36: 8533.261508 | H36: 4611.564398 | I36: -264.5311101 | J36: 0.005729640234 | K36: -304.3286309 | L36: 0.002693642995 | M36: 29109.15307 | N36: 1.904107118e+11 | O36: 652309520.5 | P36: 2383057825
A37: Council Tax increase (bands E-H) | B37: -135493524 | C37: taxation | D37: yll | E37: absolute | F37: -3250.262208 | G37: -528.893366 | H37: -120.8685176 | I37: -94.31121215 | J37: -0.01253616718 | K37: -113.9174134 | L37: -0.004405269532 | M37: 41686.9518 | N37: 3.075714732e+10 | O37: 934166496.4 | P37: 384936645.2
A38: Benefit uptake +1% | B38: 35696856 | C38: benefits | D38: hosp | E38: percent | F38: 0.06813267274 | G38: 0.1386293486 | H38: 0.2192712351 | I38: -0.5065385848 | J38: -0.2172615791 | K38: -0.4383202623 | L38: -0.3673566047 | M38: 11268.81097 | N38: -1.406421151e+10 | O38: 523931537.8 | P38: -97172217.8
A39: Citizen's Basic Income | B39: 442120692 | C39: novel | D39: hosp | E39: percent | F39: 0.3827034498 | G39: 1.345426617 | H39: 1.624321101 | I39: -7.080248166 | J39: -4.008360579 | K39: -6.817006788 | L39: -6.436936867 | M39: 24847.46094 | N39: -9941109686 | O39: 1155256615 | P39: -68684950.8
A40: Citizen's Basic Income Plus | B40: 535237536 | C40: novel | D40: hosp | E40: percent | F40: 0.8641949022 | G40: 2.567940319 | H40: 3.000301397 | I40: -10.90242087 | J40: -5.78236596 | K40: -10.95660674 | L40: -10.14006566 | M40: 13321.04867 | N40: -7639748636 | O40: 619348175.5 | P40: -52784425.06
A41: Devolved benefits +50% | B41: 773385492 | C41: benefits | D41: hosp | E41: percent | F41: 1.394107958 | G41: 2.049014339 | H41: 2.279674863 | I41: -4.68261123 | J41: -1.828147687 | K41: -4.859792096 | L41: -3.499539633 | M41: 11931.72313 | N41: -3.198588553e+10 | O41: 554752942.7 | P41: -220996351.8
A42: Income Tax rates +1p | B42: -428502000 | C42: taxation | D42: hosp | E42: percent | F42: -0.5343089864 | G42: -0.3907147794 | H42: -0.3336891638 | I42: -0.2637008053 | J42: -0.4428671874 | K42: -0.2629070246 | L42: -0.7860162836 | M42: 17249.0002 | N42: 7.890319407e+10 | O42: 801974159 | P42: 545156644.9
A43: Income Tax rates -1p | B43: 428554980 | C43: taxation | D43: hosp | E43: percent | F43: 0.5282303806 | G43: 0.3877931072 | H43: 0.3314151991 | I43: 0.2528779933 | J43: 0.4398674738 | K43: 0.2514511904 | L43: 0.7768116213 | M43: 17449.65011 | N43: 7.98480117e+10 | O43: 811303165.7 | P43: 551684563.2
A44: Living Wage | B44: 1263991452 | C44: novel | D44: hosp | E44: percent | F44: 1.953488591 | G44: 2.39220176 | H44: 2.789461117 | I44: -5.255705038 | J44: -1.887904551 | K44: -4.793441596 | L44: -2.887983297 | M44: 13916.71746 | N44: -6.334651599e+10 | O44: 647043170.8 | P44: -437672701.7
A45: Local Income Tax | B45: 1288077228 | C45: novel | D45: hosp | E45: percent | F45: 1.90344977 | G45: 1.88872676 | H45: 1.931718811 | I45: -2.005067646 | J45: -0.06956664548 | K45: -1.886842894 | L45: 0.008612973317 | M45: 14554.726 | N45: 2.164522351e+13 | O45: 676706708.2 | P45: 1.495508207e+11
A46: Means-tested benefits +50% | B46: 2172658980 | C46: benefits | D46: hosp | E46: percent | F46: 3.693565345 | G46: 6.064229723 | H46: 7.423249236 | I46: -16.08604538 | J46: -6.606890658 | K46: -15.8104612 | L46: -12.51432436 | M46: 12651.71297 | N46: -2.512797156e+10 | O46: 588228114.9 | P46: -173613765.9
A47: Personal Allowance -£1K | B47: -540830316 | C47: taxation | D47: hosp | E47: percent | F47: -0.7337442065 | G47: -0.6701699046 | H47: -0.6259263986 | I47: 0.3982092694 | J47: -0.1653280826 | K47: 0.3925015632 | L47: -0.3329756661 | M47: 15853.30792 | N47: 2.350833146e+11 | O47: 737082911.5 | P47: 1624233753
A48: Personal Allowance +£1K | B48: 512898480 | C48: taxation | D48: hosp | E48: percent | F48: 0.6842018404 | G48: 0.61697968 | H48: 0.5895998412 | I48: -0.3605403156 | J48: 0.1692134756 | K48: -0.3365718336 | L48: 0.3446045879 | M48: 16123.18089 | N48: 2.154188143e+11 | O48: 749630371.7 | P48: 1488368113
A49: Council Tax increase (bands E-H) | B49: -135493524 | C49: taxation | D49: hosp | E49: percent | F49: -0.1428000281 | G49: -0.03985527568 | H49: -0.01544511052 | I49: -0.4768262952 | J49: -0.3681709638 | K49: -0.469297317 | L49: -0.6077822924 | M49: 20407.68762 | N49: 3.226589897e+10 | O49: 948834015 | P49: 222931016.1
A50: Benefit uptake +1% | B50: 35696856 | C50: benefits | D50: premmort | E50: percent | F50: 0.09255412706 | G50: 0.1699963804 | H50: 0.2583748228 | I50: -0.3902032234 | J50: -0.2578079669 | K50: -0.3441993407 | L50: -0.244928788 | M50: 448242.4883 | N50: -1.153602752e+10 | O50: 385686269.6 | P50: -145743815.1
A51: Citizen's Basic Income | B51: 442120692 | C51: novel | D51: premmort | E51: percent | F51: 0.6759713684 | G51: 1.606534655 | H51: 1.911495513 | I51: -4.397473618 | J51: -4.709904027 | K51: -4.350588042 | L51: -3.646616457 | M51: 760136.1414 | N51: -9596589170 | O51: 654052394.3 | P51: -121241347.2
A52: Citizen's Basic Income Plus | B52: 535237536 | C52: novel | D52: premmort | E52: percent | F52: 1.356080699 | G52: 3.054469209 | H52: 3.526165879 | I52: -7.12861622 | J52: -6.790545672 | K52: -7.300205923 | L52: -5.927317766 | M52: 458711.7554 | N52: -7147505557 | O52: 394694457.5 | P52: -90300125.13
A53: Devolved benefits +50% | B53: 773385492 | C53: benefits | D53: premmort | E53: percent | F53: 1.751440596 | G53: 2.429176049 | H53: 2.681057523 | I53: -3.784519629 | J53: -2.171148237 | K53: -3.908248131 | L53: -2.15091616 | M53: 513191.496 | N53: -2.846024851e+10 | O53: 441571066.6 | P53: -359560965.9
A54: Income Tax rates +1p | B54: -428502000 | C54: taxation | D54: premmort | E54: percent | F54: -0.6028917053 | G54: -0.4559618251 | H54: -0.3933872225 | I54: 0.1251846219 | J54: -0.5157241475 | K54: 0.1199846794 | L54: -0.4695631895 | M54: 826023.4688 | N54: 7.223122145e+10 | O54: 710744560.3 | P54: 912554496.6
A55: Income Tax rates -1p | B55: 428554980 | C55: taxation | D55: premmort | E55: percent | F55: 0.5957142739 | G55: 0.4522430428 | H55: 0.3904766735 | I55: -0.1287134443 | J55: 0.5125218399 | K55: -0.1241350557 | L55: 0.4639567479 | M55: 836079.1283 | N55: 7.311310029e+10 | O55: 719396863.2 | P55: 923695973.7
A56: Living Wage | B56: 1263991452 | C56: novel | D56: premmort | E56: percent | F56: 2.39594355 | G56: 2.84548493 | H56: 3.2790263 | I56: -4.413967969 | J56: -2.24729458 | K56: -4.148239006 | L56: -1.76123736 | M56: 613121.2908 | N56: -5.680576295e+10 | O56: 527554771.4 | P56: -717672405
A57: Local Income Tax | B57: 1288077228 | C57: novel | D57: premmort | E57: percent | F57: 2.238180819 | G57: 2.225633738 | H57: 2.272587522 | I57: -2.320780602 | J57: -0.1059598797 | K57: -2.248920992 | L57: -0.01279707045 | M57: 668845.1387 | N57: -7.967049051e+12 | O57: 575501861.6 | P57: -1.006540702e+11
A58: Means-tested benefits +50% | B58: 2172658980 | C58: benefits | D58: premmort | E58: percent | F58: 4.718228114 | G58: 7.214461875 | H58: 8.687352301 | I58: -12.63641119 | J58: -7.797508505 | K58: -12.46899626 | L58: -7.957825713 | M58: 535169.646 | N58: -2.161042416e+10 | O58: 460481970.7 | P58: -273021684.4
A59: Personal Allowance -£1K | B59: -540830316 | C59: taxation | D59: premmort | E59: percent | F59: -0.8535912345 | G59: -0.7867132672 | H59: -0.738129468 | I59: 0.6398546237 | J59: -0.1863199563 | K59: 0.6391070119 | L59: -0.206561813 | M59: 736359.5492 | N59: 2.072416973e+11 | O59: 633594036.8 | P59: 2618249269
A60: Personal Allowance +£1K | B60: 512898480 | C60: taxation | D60: premmort | E60: percent | F60: 0.7940715828 | G60: 0.7245032229 | H60: 0.69451495 | I60: -0.5955545355 | J60: 0.1913055735 | K60: -0.5811944054 | L60: 0.208834317 | M60: 750672.6616 | N60: 1.943997469e+11 | O60: 645909627.2 | P60: 2456006691
A61: Council Tax increase (bands E-H) | B61: -135493524 | C61: taxation | D61: premmort | E61: percent | F61: -0.1471903068 | G61: -0.04496229303 | H61: -0.01820446801 | I61: -0.2047274015 | J61: -0.4320079482 | K61: -0.2096919571 | L61: -0.350079724 | M61: 1069838.37 | N61: 3.063498909e+10 | O61: 920532927.3 | P61: 387036194.1
A62: Benefit uptake +1% | B62: 35696856 | C62: benefits | D62: yll | E62: percent | F62: 0.09258497587 | G62: 0.1683455773 | H62: 0.2554177631 | I62: -0.3866150297 | J62: -0.2540895743 | K62: -0.3410060522 | L62: -0.2434645397 | M62: 17205.42094 | N62: -1.171523615e+10 | O62: 385557761 | P62: -146620349.9
A63: Citizen's Basic Income | B63: 442120692 | C63: novel | D63: yll | E63: percent | F63: 0.676838332 | G63: 1.590027541 | H63: 1.889937047 | I63: -4.386362951 | J63: -4.667965227 | K63: -4.33975608 | L63: -3.651101879 | M63: 29149.5428 | N63: -9675505972 | O63: 653214617.3 | P63: -121092400.8
A64: Citizen's Basic Income Plus | B64: 535237536 | C64: novel | D64: yll | E64: percent | F64: 1.358735759 | G64: 3.023295473 | H64: 3.486972737 | I64: -7.099526158 | J64: -6.724722366 | K64: -7.273340768 | L64: -5.927230502 | M64: 17578.72654 | N64: -7215252630 | O64: 393923198.4 | P64: -90301454.58
A65: Devolved benefits +50% | B65: 773385492 | C65: benefits | D65: yll | E65: percent | F65: 1.742746014 | G65: 2.403952081 | H65: 2.651028212 | I65: -3.745904816 | J65: -2.136009952 | K65: -3.87210498 | L65: -2.137772478 | M65: 19803.30953 | N65: -2.890622208e+10 | O65: 443774070.3 | P65: -361771657.1
A66: Income Tax rates +1p | B66: -428502000 | C66: taxation | D66: yll | E66: percent | F66: -0.5960886965 | G66: -0.4508608865 | H66: -0.3888592216 | I66: 0.1150191324 | J66: -0.5163076519 | K66: 0.1096891895 | L66: -0.4747169911 | M66: 32078.77826 | N66: 7.212318095e+10 | O66: 718856107.3 | P66: 902647278.3
A67: Income Tax rates -1p | B67: 428554980 | C67: taxation | D67: yll | E67: percent | F67: 0.5890614636 | G67: 0.4472246854 | H67: 0.3860129137 | I67: -0.118680893 | J67: 0.5131576844 | K67: -0.1139742161 | L67: 0.4690981126 | M67: 32465.4769 | N67: 7.299609982e+10 | O67: 727521670.5 | P67: 913572168.6
A68: Living Wage | B68: 1263991452 | C68: novel | D68: yll | E68: percent | F68: 2.379025771 | G68: 2.816369835 | H68: 3.242497951 | I68: -4.364961398 | J68: -2.206600246 | K68: -4.100935519 | L68: -1.742379537 | M68: 23709.41526 | N68: -5.796397638e+10 | O68: 531306330.3 | P68: -725439793.8
A69: Local Income Tax | B69: 1288077228 | C69: novel | D69: yll | E69: percent | F69: 2.218351698 | G69: 2.202073785 | H69: 2.247039433 | I69: -2.278895395 | J69: -0.08518409526 | K69: -2.207667726 | L69: 0.005618297388 | M69: 25911.18975 | N69: 1.83186715e+13 | O69: 580646084.8 | P69: 2.292646934e+11
A70: Means-tested benefits +50% | B70: 2172658980 | C70: benefits | D70: yll | E70: percent | F70: 4.704580395 | G70: 7.144831842 | H70: 8.595371827 | I70: -12.5252704 | J70: -7.685689278 | K70: -12.36639297 | L70: -7.915203554 | M70: 20608.50667 | N70: -2.19324058e+10 | O70: 461817802.5 | P70: -274491864.3
A71: Personal Allowance -£1K | B71: -540830316 | C71: taxation | D71: yll | E71: percent | F71: -0.845145045 | G71: -0.7780146393 | H71: -0.7296078677 | I71: 0.6247498327 | J71: -0.1917982853 | K71: 0.6239540587 | L71: -0.2131884248 | M71: 28556.54297 | N71: 2.02700212e+11 | O71: 639926033.1 | P71: 2536865295
A72: Personal Allowance +£1K | B72: 512898480 | C72: taxation | D72: yll | E72: percent | F72: 0.7862808436 | G72: 0.7166302856 | H72: 0.6865967951 | I72: -0.5814256953 | J72: 0.1964219479 | K72: -0.5670720113 | L72: 0.2152270392 | M72: 29109.15307 | N72: 1.904107118e+11 | O72: 652309520.5 | P72: 2383057825
A73: Council Tax increase (bands E-H) | B73: -135493524 | C73: taxation | D73: yll | E73: percent | F73: -0.1450421574 | G73: -0.04441689775 | H73: -0.01799561486 | I73: -0.2072911654 | J73: -0.4297614294 | K73: -0.2122684828 | L73: -0.3519891538 | M73: 41686.9518 | N73: 3.075714732e+10 | O73: 934166496.4 | P73: 384936645.2

Sheet Hospsavings_Scotland_5yrs (hidden)
D1: hospsavings | E1: hospsavings | F1: hospsavings | G1: hospsavings | H1: hospsavings | I1: hospsavings
D2: percent | E2: percent | F2: percent | G2: absolute | H2: absolute | I2: absolute
A3: policy | B3: cost | C3: type | D3: diff | E3: diffQ1Q2 | F3: diffQ1 | G3: diff | H3: diffQ1Q2 | I3: diffQ1
A4: Benefit uptake +1% | B4: 35696856 | C4: benefits | D4: 0.06813267274 | E4: 0.1386293486 | F4: 0.2192712351 | G4: 7957405.845 | H4: 7606770.543 | I4: 6375720.312
A5: Citizen's Basic Income | B5: 442120692 | C5: novel | D5: 0.3827034498 | E5: 1.345426617 | F5: 1.624321101 | G5: 44697008.73 | H5: 73825287.83 | I5: 47230166.95
A6: Citizen's Basic Income Plus | B6: 535237536 | C6: novel | D6: 0.8641949022 | E6: 2.567940319 | F6: 3.000301397 | G6: 100931745.2 | H6: 140906186 | I6: 87239361.57
A7: Devolved benefits +50% | B7: 773385492 | C7: benefits | D7: 1.394107958 | E7: 2.049014339 | F7: 2.279674863 | G7: 162821776.5 | H7: 112432050.5 | I7: 66285800.42
A8: Income Tax rates +1p | B8: -428502000 | C8: taxation | D8: -0.5343089864 | E8: -0.3907147794 | F8: -0.3336891638 | G8: -62403444.34 | H8: -21439022.15 | I8: -9702635.088
A9: Income Tax rates -1p | B9: 428554980 | C9: taxation | D9: 0.5282303806 | E9: 0.3877931072 | F9: 0.3314151991 | G9: 61693506.93 | H9: 21278706.24 | I9: 9636515.322
A10: Living Wage | B10: 1263991452 | C10: novel | D10: 1.953488591 | E10: 2.39220176 | F10: 2.789461117 | G10: 228153408.7 | H10: 131263185.4 | I10: 81108787.02
A11: Local Income Tax | B11: 1288077228 | C11: novel | D11: 1.90344977 | E11: 1.88872676 | F11: 1.931718811 | G11: 222309234.5 | H11: 103636865 | I11: 56168328.94
A12: Means-tested benefits +50% | B12: 2172658980 | C12: benefits | D12: 3.693565345 | E12: 6.064229723 | F12: 7.423249236 | G12: 431381850.7 | H12: 332752079.5 | I12: 215844823
A13: Personal Allowance -£1K | B13: -540830316 | C13: taxation | D13: -0.7337442065 | E13: -0.6701699046 | F13: -0.6259263986 | G13: -85696042.77 | H13: -36773084.07 | I13: -18199977.99
A14: Personal Allowance +£1K | B14: 512898480 | C14: taxation | D14: 0.6842018404 | E14: 0.61697968 | F14: 0.5895998412 | G14: 79909850.96 | H14: 33854468.08 | I14: 17143715.56
A15: Council Tax increase (bands E-H) | B15: -135493524 | C15: taxation | D15: -0.1428000281 | E15: -0.03985527568 | F15: -0.01544511052 | G15: -16678015.59 | H15: -2186910.205 | I15: -449095.4083
A16: Attendance Allowance +10% | B16: 20272548 | C16: benefits | D16: 0.0338550988 | E16: 0.04488833525 | F16: 0.02891088955 | G16: 3954031.895 | H16: 2463080.652 | I16: 840638.0605
A17: Attendance Allowance +50% | B17: 101364480 | C17: benefits | D17: 0.1689691298 | E17: 0.2238843288 | F17: 0.1443434936 | G17: 19734378.34 | H17: 12284820.89 | I17: 4197056.416
A18: Carer's Allowance +10% | B18: 3984180 | C18: benefits | D18: 0.00574584282 | E18: 0.01011068888 | F18: 0.01098568453 | G18: 671073.0901 | H18: 554786.4944 | I18: 319429.2767
A19: Carer's Allowance +50% | B19: 22892256 | C19: benefits | D19: 0.03361714176 | E19: 0.05890152795 | F19: 0.06136652019 | G19: 3926240.224 | H19: 3232002.547 | I19: 1784346.082
A20: Devolved benefits +10% | B20: 154084740 | C20: benefits | D20: 0.281820427 | E20: 0.4151469011 | F20: 0.463218121 | G20: 32914597.69 | H20: 22779644.07 | I20: 13468931.22
A21: DLA/PIP +10% | B21: 105818280 | C21: benefits | D21: 0.2004867857 | E21: 0.3127754101 | F21: 0.3838991829 | G21: 23415413.72 | H21: 17162388.78 | I21: 11162585.09
A22: DLA/PIP +50% | B22: 529086900 | C22: benefits | D22: 0.9911895982 | E22: 1.543174847 | F22: 1.890140569 | G22: 115763811.8 | H22: 84675987.38 | I22: 54959363.97
A23: Income Tax additional rate +5p | B23: -50542032 | C23: taxation | D23: -0.05634351719 | E23: -0.04292219544 | F23: -0.07367624109 | G23: -6580517.32 | H23: -2355196.034 | I23: -2142274.187
A24: Income Tax basic rate +5p | B24: -1696793076 | C24: taxation | D24: -2.210418004 | E24: -1.727088159 | F24: -1.451116261 | G24: -258160915.1 | H24: -94767547.18 | I24: -42193913.01
A25: Income Tax basic rate -1p | B25: 339525684 | C25: taxation | D25: 0.4301397442 | E25: 0.3385113449 | F25: 0.2853468609 | G25: 50237226.53 | H25: 18574552.6 | I25: 8296992.427
A26: Industrial Injuries Disability Benefit +10% | B26: 4396152 | C26: benefits | D26: 0.00724218412 | E26: 0.009022001511 | F26: 0.005227083712 | G26: 845834.9853 | H26: 495048.8193 | I26: 151987.2125
A27: Industrial Injuries Disability Benefit +50% | B27: 21980916 | C27: benefits | D27: 0.03617777387 | E27: 0.04500513976 | F27: 0.02608803323 | G27: 4225303.627 | H27: 2469489.866 | I27: 758558.2455
A28: Means-tested benefits +10% | B28: 442028316 | C28: benefits | D28: 0.7852375922 | E28: 1.300436841 | F28: 1.613129051 | G28: 91710099.64 | H28: 71356641 | I28: 46904737.2
A29: Severe Disability Allowance +10% | B29: 1831800 | C29: benefits | D29: 0.003186943423 | E29: 0.006213932316 | F29: 0.00371295834 | G29: 372212.0563 | H29: 340966.4532 | I29: 107961.192
A30: Severe Disability Allowance +50% | B30: 9159540 | C30: benefits | D30: 0.01590151068 | E30: 0.03096934892 | F30: 0.01850894824 | G30: 1857182.009 | H30: 1699327.982 | I30: 538182.2071
A31: Winter Fuel Allowance +10% | B31: 17781876 | C31: benefits | D31: 0.03174426981 | E31: 0.03292567771 | F31: 0.0311897558 | G31: 3707502.259 | H31: 1806674.257 | I31: 906900.3489
A32: Winter Fuel Allowance +50% | B32: 88901424 | C32: benefits | D32: 0.1584776674 | E32: 0.1643457304 | F32: 0.1557399756 | G32: 18509051.03 | H32: 9017861.467 | I32: 4528430.395

Sheet Calculations (hidden)
A1: Calculating the deaths, years of life lost, hospital stays, and premature deaths for each group | K1: COUNTS | AJ1: EUROPEAN AGE-STANDARDISED RATE (EASR) PER 100000
A2: AREA: | B2: =Options!B11 -> Scotland | C2: EQUIVALENT AREA: | E2: =VLOOKUP(B2,Lists!D2:E85,2) -> Scotland | K2: CUMULATIVE INCIDENCE (DEATHS) | M2: YEARS OF LIFE LOST | O2: HOSPITALISATIONS | Q2: PREMATURE MORTALITY | S2: AGE STANDARDISED RATE (ASR) | AA2: ASR*EUROPEAN STANDARD POPULATION (ESP2013) | AJ2: CUMULATIVE INCIDENCE (DEATHS) | AL2: YEARS OF LIFE LOST | AN2: HOSPITALISATIONS | AP2: PREMATURE MORTALITY
A3: SIMD | B3: group | C3: mean age (2016) | D3: life exp (2014-16) | E3: sex | F3: SIMD | G3: prevalence exposure | H3: population (2016) ÷10 | I3: no. treated at base | J3: additional no. treated under policy ÷10 | K3: Baseline | L3: Policy | M3: Baseline | N3: Policy | O3: Baseline | P3: Policy | Q3: Baseline | R3: Policy | S3: CI_BASE | T3: CI_POLICY | U3: YLL_BASE | V3: YLL_POLICY | W3: HOSP_BASE | X3: HOSP_POLICY | Y3: PREM_BASE | Z3: PREM_POLICY | AA3: CI_BASE | AB3: CI_POLICY | AC3: YLL_BASE | AD3: YLL_POLICY | AE3: HOSP_BASE | AF3: HOSP_POLICY | AG3: PREM_BASE | AH3: PREM_POLICY | AI3: ESP2013 | AJ3: Baseline | AK3: Policy | AL3: Baseline | AM3: Policy | AN3: Baseline | AO3: Policy | AP3: Baseline | AQ3: Policy
A5: All quintiles | B5: 16+ Males and Females | C5: N/A | E5: BOTH | F5: ALL | H5: =SUM(H7:H11) -> 448878.3 | I5: =SUM(I7:I11) -> 0 | J5: =SUM(J7:J11) -> 448878.3 | K5: =SUMIF(K7:K11,">0") -> 44528.10826 | L5: 42423.77293 | M5: 595692.7873 | N5: 566785.0048 | O5: 1143855.727 | P5: 1099592.357 | Q5: 21625.30398 | R5: 20579.80778 | AA5: =SUMIF(AA7:AA11,">0") -> 906634178.4 | AB5: =SUMIF(AB7:AB11,">0") -> 862003631.3 | AC5: 1.148792512e+10 | AD5: 1.091266049e+10 | AE5: 2.193969232e+10 | AF5: 2.106681027e+10 | AG5: 415460924.5 | AH5: 394539991.2 | AI5: =SUM(AI7:AI11) -> 1000000 | AJ5: =AA5/$AI5 -> 906.6341784 | AK5: =AB5/$AI5 -> 862.0036313 | AL5: =AC5/$AI5 -> 11487.92512 | AM5: 10912.66049 | AN5: 21939.69232 | AO5: 21066.81027 | AP5: 415.4609245 | AQ5: 394.5399912
A6: Q1 and Q2 | B6: 16+ Males and Females | C6: N/A | E6: BOTH | F6: Q1&2 | H6: =SUM(H7:H8) -> 176926.6 | I6: 0 | J6: 176926.6 | K6: 23420.6251 | L6: 21730.86862 | M6: 318079.1264 | N6: 294662.7799 | O6: 542278.7308 | P6: 507894.6163 | Q6: 11406.447 | R6: 10563.73499 | AA6: =SUMIF(AA7:AA8,">0") -> 502859944.3 | AB6: =SUMIF(AB7:AB8,">0") -> 466103589.3 | AC6: 6393049559 | AD6: 5918136559 | AE6: 1.078771081e+10 | AF6: 1.009732884e+10 | AG6: 231459232.8 | AH6: 214174390.5 | AI6: =SUM(AI7:AI8) -> 400000 | AJ6: =AA6/$AI6 -> 1257.149861 | AK6: 1165.258973 | AL6: 15982.6239 | AM6: 14795.3414 | AN6: 26969.27703 | AO6: 25243.32211 | AP6: 578.648082 | AQ6: 535.4359762
A7: SIMD Q1 (most deprived) | B7: 16+ Males and Females | C7: N/A | E7: BOTH | F7: 1 | H7: =H12+H17 -> 87223.4 | I7: 0 | J7: 87223.4 | K7: 12912.34651 | L7: 11783.95887 | M7: 179614.5327 | N7: 163678.6025 | O7: 288715.8401 | P7: 266268.0373 | Q7: 6424.777456 | R7: 5852.195217 | AA7: =AA12+AA17 -> 294492379.9 | AB7: =AB12+AB17 -> 268847941 | AC7: 3752509089 | AD7: 3420165748 | AE7: 5950449632 | AF7: 5487784535 | AG7: 135960102.8 | AH7: 123852339.4 | AI7: =AI12+AI17 -> 200000 | AJ7: =AA7/$AI7 -> 1472.4619 | AK7: 1344.239705 | AL7: =AC7/$AI7 -> 18762.54544 | AM7: =AD7/$AI7 -> 17100.82874 | AN7: =AE7/$AI7 -> 29752.24816 | AO7: =AF7/$AI7 -> 27438.92267 | AP7: =AG7/$AI7 -> 679.8005141 | AQ7: =AH7/$AI7 -> 619.2616972
A8: SIMD Q2 | C8: N/A | E8: BOTH | F8: 2 | H8: =H13+H18 -> 89703.2 | I8: 0 | J8: 89703.2 | K8: =K13+K18 -> 10508.27859 | L8: 9946.909757 | M8: 138464.5937 | N8: 130984.1775 | O8: 253562.8907 | P8: 241626.5789 | Q8: 4981.669543 | R8: 4711.539775 | AA8: =AA13+AA18 -> 208367564.4 | AB8: =AB13+AB18 -> 197255648.3 | AC8: 2640540470 | AD8: 2497970811 | AE8: 4837261178 | AF8: 4609544308 | AG8: 95499129.97 | AH8: 90322051.04 | AI8: =AI13+AI18 -> 200000 | AJ8: 1041.837822 | AK8: 986.2782417 | AL8: 13202.70235 | AM8: 12489.85406 | AN8: 24186.30589 | AO8: 23047.72154 | AP8: 477.4956499 | AQ8: 451.6102552
A9: SIMD Q3 | C9: N/A | E9: BOTH | F9: 3 | H9: 90797.8 | I9: 0 | J9: 90797.8 | K9: 8992.857004 | L9: 8749.810095 | M9: 117531.4268 | N9: 114325.1524 | O9: 227312.9823 | P9: 221929.6829 | Q9: 4322.453625 | R9: 4204.173559 | AA9: =AA14+AA19 -> 169292162.8 | AB9: =AB14+AB19 -> 164723588 | AC9: 2140035870 | AD9: 2081679985 | AE9: 4182172525 | AF9: 4083129939 | AG9: 77334119.23 | AH9: 75218128.11 | AI9: =AI14+AI19 -> 200000 | AJ9: 846.4608138 | AK9: 823.6179402 | AL9: 10700.17935 | AM9: 10408.39992 | AN9: 20910.86262 | AO9: 20415.6497 | AP9: 386.6705962 | AQ9: 376.0906406
A10: SIMD Q4 | C10: N/A | E10: BOTH | F10: 4 | H10: 91079.2 | I10: 0 | J10: 91079.2 | K10: 7033.216553 | L10: 6909.844434 | M10: 93245.9196 | N10: 91597.81877 | O10: 200119.0561 | P10: 197056.747 | Q10: 3452.221204 | R10: 3391.056718 | AA10: =AA15+AA20 -> 134849788.3 | AB10: =AB15+AB20 -> 132487701.2 | AC10: 1700927130 | AD10: 1670879286 | AE10: 3688824591 | AF10: 3632378173 | AG10: 61421581.34 | AH10: 60333482.83 | AI10: =AI15+AI20 -> 200000 | AJ10: 674.2489416 | AK10: 662.4385061 | AL10: 8504.635652 | AM10: 8354.396429 | AN10: 18444.12295 | AO10: 18161.89086 | AP10: 307.1079067 | AQ10: 301.6674141
A11: SIMD Q5 (least deprived) | C11: N/A | E11: BOTH | F11: 5 | H11: 90074.7 | I11: 0 | J11: 90074.7 | K11: 5081.409603 | L11: 5033.249779 | M11: 66836.31451 | N11: 66199.25374 | O11: 174144.9582 | P11: 172711.3109 | Q11: 2444.18215 | R11: 2420.842513 | AA11: =AA16+AA21 -> 99632283 | AB11: =AB16+AB21 -> 98688752.7 | AC11: 1253912557 | AD11: 1241964659 | AE11: 3280984393 | AF11: 3253973313 | AG11: 45245991.09 | AH11: 44813989.73 | AI11: =AI16+AI21 -> 200000 | AJ11: =AA11/$AI11 -> 498.161415 | AK11: 493.4437635 | AL11: 6269.562784 | AM11: 6209.823293 | AN11: 16404.92197 | AO11: 16269.86657 | AP11: 226.2299554 | AQ11: 224.0699487
A12: SIMD Q1 (most deprived) | B12: 16+ Females | C12: N/A | E12: female | F12: 1 | H12: =SUM(H60:H78) -> 45763.3 | I12: =SUM(I60:I78) -> 0 | J12: =SUM(J60:J78) -> 45763.3 | K12: =SUMIF(K60:K78,">0") -> 6432.811176 | L12: 5871.812739 | M12: 82592.81882 | N12: 75269.88189 | O12: 155037.8909 | P12: 142984.0357 | Q12: 2639.120903 | R12: 2403.527469 | AA12: =SUMIF(AA60:AA78,">0") -> 124146962.1 | AB12: =SUMIF(AB60:AB78,">0") -> 113317831.7 | AC12: 1590536996 | AD12: 1449519230 | AE12: 2906076588 | AF12: 2680136012 | AG12: 53087226.46 | AH12: 48350235.13 | AI12: =SUM(AI60:AI78) -> 100000 | AJ12: 1241.469621 | AK12: 1133.178317 | AL12: 15905.36996 | AM12: 14495.1923 | AN12: 29060.76588 | AO12: 26801.36012 | AP12: 530.8722646 | AQ12: 483.5023513
A13: SIMD Q2 | C13: N/A | E13: female | F13: 2 | H13: =SUM(H98:H116) -> 46907.9 | I13: =SUM(I98:I116) -> 0 | J13: =SUM(J98:J116) -> 46907.9 | K13: =SUMIF(K98:K116,">0") -> 5243.371004 | L13: 4963.661075 | M13: 64052.63091 | N13: 60593.89414 | O13: 134904.8591 | P13: 128554.5802 | Q13: 2052.884579 | R13: 1941.428586 | AA13: =SUMIF(AA98:AA116,">0") -> 87786605.43 | AB13: =SUMIF(AB98:AB116,">0") -> 83099409.18 | AC13: 1118817948 | AD13: 1058364649 | AE13: 2362418360 | AF13: 2251214215 | AG13: 37264432.33 | AH13: 35241434.63 | AI13: =SUM(AI98:AI116) -> 100000 | AJ13: 877.8660543 | AK13: 830.9940918 | AL13: 11188.17948 | AM13: 10583.64649 | AN13: 23624.1836 | AO13: 22512.14215 | AP13: 372.6443233 | AQ13: 352.4143463
A14: SIMD Q3 | C14: N/A | E14: female | F14: 3 | H14: =SUM(H136:H154) -> 46909.3 | I14: =SUM(I136:I154) -> 0 | J14: =SUM(J136:J154) -> 46909.3 | K14: =SUMIF(K136:K154,">0") -> 4357.537368 | L14: 4239.888553 | M14: 53304.66313 | N14: 51850.83085 | O14: 118438.0814 | P14: 115633.2092 | Q14: 1753.37979 | R14: 1705.347325 | AA14: =SUMIF(AA136:AA154,">0") -> 71304264.79 | AB14: =SUMIF(AB136:AB154,">0") -> 69377677.34 | AC14: 906603792.3 | AD14: 881865517.7 | AE14: 2042486604 | AF14: 1994116135 | AG14: 30167484.04 | AH14: 29341075.76 | AI14: =SUM(AI136:AI154) -> 100000 | AJ14: 713.0426479 | AK14: 693.7767734 | AL14: 9066.037923 | AM14: 8818.655177 | AN14: 20424.86604 | AO14: 19941.16135 | AP14: 301.6748404 | AQ14: 293.4107576
A15: SIMD Q4 | C15: N/A | E15: female | F15: 4 | H15: =SUM(H174:H192) -> 46879.2 | I15: =SUM(I174:I192) -> 0 | J15: =SUM(J174:J192) -> 46879.2 | K15: =SUMIF(K174:K192,">0") -> 3355.068001 | L15: 3296.253571 | M15: 41832.92631 | N15: 41093.58975 | O15: 103630.2706 | P15: 102044.3847 | Q15: 1387.552789 | R15: 1362.945859 | AA15: =SUMIF(AA174:AA192,">0") -> 56783705.38 | AB15: =SUMIF(AB174:AB192,">0") -> 55787905.94 | AC15: 720477771.8 | AD15: 707742432.4 | AE15: 1801545672 | AF15: 1773976097 | AG15: 23953976.37 | AH15: 23529207.87 | AI15: =SUM(AI174:AI192) -> 100000 | AJ15: 567.8370538 | AK15: 557.8790594 | AL15: 7204.777718 | AM15: 7077.424324 | AN15: 18015.45672 | AO15: 17739.76097 | AP15: 239.5397637 | AQ15: 235.2920787
A16: SIMD Q5 (least deprived) | C16: N/A | E16: female | F16: 5 | H16: =SUM(H212:H230) -> 46507.9 | I16: =SUM(I212:I230) -> 0 | J16: =SUM(J212:J230) -> 46507.9 | K16: =SUMIF(K212:K230,">0") -> 2446.299754 | L16: 2423.128433 | M16: 30221.27953 | N16: 29933.25625 | O16: 90811.93649 | P16: 90064.34437 | Q16: 993.5863315 | R16: 984.0922268 | AA16: =SUMIF(AA212:AA230,">0") -> 41943638.83 | AB16: =SUMIF(AB212:AB230,">0") -> 41546181.58 | AC16: 531054803.9 | AD16: 525992754.5 | AE16: 1602364951 | AF16: 1589173764 | AG16: 17641017.06 | AH16: 17472460.6 | AI16: =SUM(AI212:AI230) -> 100000 | AJ16: 419.4363883 | AK16: 415.4618158 | AL16: 5310.548039 | AM16: 5259.927545 | AN16: 16023.64951 | AO16: 15891.73764 | AP16: 176.4101706 | AQ16: 174.724606
A17: SIMD Q1 (most deprived) | B17: 16+ Males | C17: N/A | E17: male | F17: 1 | H17: =SUM(H79:H97) -> 41460.1 | I17: =SUM(I79:I97) -> 0 | J17: =SUM(J79:J97) -> 41460.1 | K17: =SUMIF(K79:K97,">0") -> 6479.535333 | L17: 5912.146129 | M17: 97021.71392 | N17: 88408.72059 | O17: 133677.9492 | P17: 123284.0017 | Q17: 3785.656554 | R17: 3448.667748 | AA17: =SUMIF(AA79:AA97,">0") -> 170345417.8 | AB17: =SUMIF(AB79:AB97,">0") -> 155530109.3 | AC17: 2161972093 | AD17: 1970646518 | AE17: 3044373044 | AF17: 2807648523 | AG17: 82872876.35 | AH17: 75502104.32 | AI17: =SUM(AI79:AI97) -> 100000 | AJ17: 1703.454178 | AK17: 1555.301093 | AL17: 21619.72093 | AM17: 19706.46518 | AN17: 30443.73044 | AO17: 28076.48523 | AP17: 828.7287635 | AQ17: 755.0210432
A18: SIMD Q2 | C18: N/A | E18: male | F18: 2 | H18: =SUM(H117:H135) -> 42795.3 | I18: =SUM(I117:I135) -> 0 | J18: =SUM(J117:J135) -> 42795.3 | K18: =SUMIF(K117:K135,">0") -> 5264.907584 | L18: 4983.248682 | M18: 74411.96279 | N18: 70390.28332 | O18: 118658.0316 | P18: 113071.9988 | Q18: 2928.784964 | R18: 2770.111189 | AA18: =SUMIF(AA117:AA135,">0") -> 120580958.9 | AB18: =SUMIF(AB117:AB135,">0") -> 114156239.2 | AC18: 1521722521 | AD18: 1439606162 | AE18: 2474842818 | AF18: 2358330093 | AG18: 58234697.65 | AH18: 55080616.41 | AI18: =SUM(AI117:AI135) -> 100000 | AJ18: 1205.809589 | AK18: 1141.562392 | AL18: 15217.22521 | AM18: 14396.06162 | AN18: 24748.42818 | AO18: 23583.30093 | AP18: 582.3469765 | AQ18: 550.8061641
A19: SIMD Q3 | C19: N/A | E19: male | F19: 3 | H19: =SUM(H155:H173) -> 43888.5 | I19: =SUM(I155:I173) -> 0 | J19: =SUM(J155:J173) -> 43888.5 | K19: =SUMIF(K155:K173,">0") -> 4635.319635 | L19: 4509.921542 | M19: 64226.76366 | N19: 62474.32151 | O19: 108874.9009 | P19: 106296.4736 | Q19: 2569.073835 | R19: 2498.826234 | AA19: =SUMIF(AA155:AA173,">0") -> 97987897.96 | AB19: =SUMIF(AB155:AB173,">0") -> 95345910.71 | AC19: 1233432078 | AD19: 1199814467 | AE19: 2139685921 | AF19: 2089013804 | AG19: 47166635.2 | AH19: 45877052.35 | AI19: =SUM(AI155:AI173) -> 100000 | AJ19: =AA19/$AI19 -> 979.8789796 | AK19: =AB19/$AI19 -> 953.4591071 | AL19: =AC19/$AI19 -> 12334.32078 | AM19: =AD19/$AI19 -> 11998.14467 | AN19: 21396.85921 | AO19: 20890.13804 | AP19: 471.666352 | AQ19: 458.7705235
A20: SIMD Q4 | C20: N/A | E20: male | F20: 4 | H20: =SUM(H193:H211) -> 44200 | I20: =SUM(I193:I211) -> 0 | J20: =SUM(J193:J211) -> 44200 | K20: =SUMIF(K193:K211,">0") -> 3678.148551 | L20: 3613.590863 | M20: 51412.9933 | N20: 50504.22901 | O20: 96488.78552 | P20: 95012.36229 | Q20: 2064.668416 | R20: 2028.110859 | AA20: =SUMIF(AA193:AA211,">0") -> 78066082.94 | AB20: =SUMIF(AB193:AB211,">0") -> 76699795.29 | AC20: 980449358.6 | AD20: 963136853.5 | AE20: 1887278919 | AF20: 1858402076 | AG20: 37467604.97 | AH20: 36804274.96 | AI20: =SUM(AI193:AI211) -> 100000 | AJ20: 780.6608294 | AK20: 766.9979529 | AL20: 9804.493586 | AM20: 9631.368535 | AN20: 18872.78919 | AO20: 18584.02076 | AP20: 374.6760497 | AQ20: 368.0427496
A21: SIMD Q5 (least deprived) | C21: N/A | E21: male | F21: 5 | H21: =SUM(H231:H249) -> 43566.8 | I21: =SUM(I231:I249) -> 0 | J21: =SUM(J231:J249) -> 43566.8 | K21: =SUMIF(K231:K249,">0") -> 2635.10985 | L21: 2610.121346 | M21: 36615.03498 | N21: 36265.99748 | O21: 83333.02172 | P21: 82646.96651 | Q21: 1450.595818 | R21: 1436.750287 | AA21: =SUMIF(AA231:AA249,">0") -> 57688644.17 | AB21: =SUMIF(AB231:AB249,">0") -> 57142571.13 | AC21: 722857752.9 | AD21: 715971904.1 | AE21: 1678619443 | AF21: 1664799549 | AG21: 27604974.02 | AH21: 27341529.13 | AI21: =SUM(AI231:AI249) -> 100000 | AJ21: =AA21/$AI21 -> 576.8864417 | AK21: 571.4257113 | AL21: 7228.577529 | AM21: 7159.719041 | AN21: 16786.19443 | AO21: 16647.99549 | AP21: 276.0497402 | AQ21: 273.4152913
B22: Female 0-4 | C22: 2.0384007 | D22: 81.468401 | E22: female | F22: ALL | H22: =SUM(H60,H98,H136,H174,H212) -> 0 | I22: 0 | J22: 0 | K22: =SUM(K60,K98,K136,K174,K212) ->  | AA22: =SUM(AA60,AA98,AA136,AA174,AA212) ->  | AI22: 25000
B23: Female 5-9 | C23: 6.9792795 | D23: 81.43928 | E23: female | F23: ALL | H23: =SUM(H61,H99,H137,H175,H213) -> 0 | I23: 0 | J23: 0 | K23: =SUM(K61,K99,K137,K175,K213) ->  | M23: =SUM(M61,M99,M137,M175,M213) ->  | AA23: =SUM(AA61,AA99,AA137,AA175,AA213) ->  | AI23: 27500
B24: Female 10-15 | C24: 12.478312 | D24: 81.94831 | E24: female | F24: ALL | H24: =SUM(H62,H100,H138,H176,H214) -> 0 | I24: 0 | J24: 0 | K24: =SUM(K62,K100,K138,K176,K214) ->  | L24: =SUM(L62,L100,L138,L176,L214) ->  | O24: =SUM(O62,O100,O138,O176,O214) ->  | P24: =SUM(P62,P100,P138,P176,P214) ->  | AA24: =SUM(AA62,AA100,AA138,AA176,AA214) ->  | AI24: 33000
A25: All quintiles | B25: Female 16-19 | C25: 17.570053 | D25: 81.10005 | E25: female | F25: ALL | H25: =SUM(H63,H101,H139,H177,H215) -> 11880.3 | I25: 0 | J25: 11880.3 | K25: 22.93757658 | L25: 21.76753054 | M25: 1434.286595 | N25: 1361.12362 | O25: 12465.29027 | P25: 11969.41311 | Q25: 22.93757658 | R25: 21.76753054 | AA25: =SUM(AA63,AA101,AA139,AA177,AA215) -> 426138.944 | AB25: 404459.2492 | AC25: 26646466.89 | AD25: 25290835.64 | AE25: 231245008.5 | AF25: 222045841.1 | AG25: 426138.944 | AH25: 404459.2492 | AI25: 22000 | AJ25: 19.369952 | AK25: 18.38451133 | AL25: 1211.20304 | AM25: 1149.583438 | AN25: 10511.13675 | AO25: 10092.99278 | AP25: 19.369952 | AQ25: 18.38451133
B26: Female 20-24 | C26: 22.077057 | D26: 81.66706 | E26: female | F26: ALL | H26: =SUM(H64,H102,H140,H178,H216) -> 18227.9 | I26: 0 | J26: 18227.9 | K26: 51.98103782 | L26: 49.30397734 | M26: 3045.569162 | N26: 2888.72018 | O26: 21506.62704 | P26: 20641.16425 | Q26: 51.98103782 | R26: 49.30397734 | AA26: =SUM(AA64,AA102,AA140,AA178,AA216) -> 852530.34 | AB26: 809160.7899 | AC26: 49949755.18 | AD26: 47408733.11 | AE26: 353188002.8 | AF26: 339137678.6 | AG26: 852530.34 | AH26: 809160.7899 | AI26: 30000 | AJ26: 28.417678 | AK26: 26.97202633 | AL26: 1664.991839 | AM26: 1580.291104 | AN26: 11772.93343 | AO26: 11304.58929 | AP26: 28.417678 | AQ26: 26.97202633
B27: Female 25-29 | C27: 26.975187 | D27: 81.64519 | E27: female | F27: ALL | H27: =SUM(H65,H103,H141,H179,H217) -> 18797.5 | I27: 0 | J27: 18797.5 | K27: 84.83343604 | L27: 80.19906882 | M27: 4553.010767 | N27: 4304.284264 | O27: 25701.25489 | P27: 24593.68891 | Q27: 84.83343604 | R27: 80.19906882 | AA27: =SUM(AA65,AA103,AA141,AA179,AA217) -> 1293015.18 | AB27: 1227240.523 | AC27: 69396128.59 | AD27: 65866002.55 | AE27: 399497115.4 | AF27: 383603657.7 | AG27: 1293015.18 | AH27: 1227240.523 | AI27: 30000 | AJ27: 43.100506 | AK27: 40.90801743 | AL27: 2313.204286 | AM27: 2195.533418 | AN27: 13316.57051 | AO27: 12786.78859 | AP27: 43.100506 | AQ27: 40.90801743
B28: Female 30-34 | C28: 31.999905 | D28: 81.7999 | E28: female | F28: ALL | H28: =SUM(H66,H104,H142,H180,H218) -> 17960.8 | I28: 0 | J28: 17960.8 | K28: 122.8555027 | L28: 116.2622697 | M28: 5995.347917 | N28: 5673.598182 | O28: 27681.46121 | P28: 26511.78536 | Q28: 122.8555027 | R28: 116.2622697 | AA28: =SUM(AA66,AA104,AA142,AA180,AA218) -> 2147409.355 | AB28: 2038191.065 | AC28: 104793565.8 | AD28: 99463713.76 | AE28: 491095913.1 | AF28: 471558227.3 | AG28: 2147409.355 | AH28: 2038191.065 | AI28: 32500 | AJ28: 66.074134 | AK28: 62.71357122 | AL28: 3224.417409 | AM28: 3060.421962 | AN28: 15110.64348 | AO28: 14509.48392 | AP28: 66.074134 | AQ28: 62.71357122
B29: Female 35-39 | C29: 36.918118 | D29: 81.89812 | E29: female | F29: ALL | H29: =SUM(H67,H105,H143,H181,H219) -> 16648.5 | I29: 0 | J29: 16648.5 | K29: 168.2370259 | L29: 159.5388884 | M29: 7399.064735 | N29: 7016.520629 | O29: 28578.84599 | P29: 27423.18163 | Q29: 168.2370259 | R29: 159.5388884 | AA29: =SUM(AA67,AA105,AA143,AA181,AA219) -> 3513065.99 | AB29: 3334434.142 | AC29: 154504649.3 | AD29: 146648420.2 | AE29: 598519214.2 | AF29: 574707590.4 | AG29: 3513065.99 | AH29: 3334434.142 | AI29: 35000 | AJ29: 100.373314 | AK29: 95.2695469 | AL29: 4414.41855 | AM29: 4189.954863 | AN29: 17100.54898 | AO29: 16420.21687 | AP29: 100.373314 | AQ29: 95.2695469
B30: Female 40-44 | C30: 42.077438 | D30: 82.30744 | E30: female | F30: ALL | H30: =SUM(H68,H106,H144,H182,H220) -> 17270.9 | I30: 0 | J30: 17270.9 | K30: 265.8544095 | L30: 252.5123296 | M30: 10429.46902 | N30: 9906.059196 | O30: 33419.63756 | P30: 32111.06202 | Q30: 265.8544095 | R30: 252.5123296 | AA30: =SUM(AA68,AA106,AA144,AA182,AA220) -> 5446621.11 | AB30: 5169812.759 | AC30: 213670957 | AD30: 202811764.9 | AE30: 681457961.7 | AF30: 654349030.5 | AG30: 5446621.11 | AH30: 5169812.759 | AI30: 35000 | AJ30: 155.617746 | AK30: 147.708936 | AL30: 6104.884487 | AM30: 5794.621854 | AN30: 19470.22748 | AO30: 18695.68659 | AP30: 155.617746 | AQ30: 147.708936
B31: Female 45-49 | C31: 47.025772 | D31: 82.58577 | E31: female | F31: ALL | H31: =SUM(H69,H107,H145,H183,H221) -> 20282.9 | I31: 0 | J31: 20282.9 | K31: 475.6958832 | L31: 451.9081981 | M31: 16440.04877 | N31: 15617.94642 | O31: 44462.66378 | P31: 42725.15649 | Q31: 475.6958832 | R31: 451.9081981 | AA31: =SUM(AA69,AA107,AA145,AA183,AA221) -> 8292959.36 | AB31: 7871701.961 | AC31: 286604658.9 | AD31: 272046004 | AE31: 771783001 | AF31: 741077258.7 | AG31: 8292959.36 | AH31: 7871701.961 | AI31: 35000 | AJ31: 236.941696 | AK31: 224.9057703 | AL31: 8188.70454 | AM31: 7772.742972 | AN31: 22050.94289 | AO31: 21173.63596 | AP31: 236.941696 | AQ31: 224.9057703
B32: Female 50-54 | C32: 51.990826 | D32: 82.98083 | E32: female | F32: ALL | H32: =SUM(H70,H108,H146,H184,H222) -> 20926.2 | I32: 0 | J32: 20926.2 | K32: 746.9114441 | L32: 709.8215874 | M32: 22399.87719 | N32: 21287.55224 | O32: 51924.44852 | P32: 49906.50376 | Q32: 746.9114441 | R32: 709.8215874 | AA32: =SUM(AA70,AA108,AA146,AA184,AA222) -> 12641612.48 | AB32: 12000112.76 | AC32: 379122008.8 | AD32: 359883429.6 | AE32: 874448019.8 | AF32: 839660058.6 | AG32: 12641612.48 | AH32: 12000112.76 | AI32: 35000 | AJ32: 361.188928 | AK32: 342.8603645 | AL32: 10832.0574 | AM32: 10282.3837 | AN32: 24984.22914 | AO32: 23990.28739 | AP32: 361.188928 | AQ32: 342.8603645
B33: Female 55-59 | C33: 56.953041 | D33: 83.47304 | E33: female | F33: ALL | H33: =SUM(H71,H109,H147,H185,H223) -> 19008.4 | I33: 0 | J33: 19008.4 | K33: 1032.791813 | L33: 981.7573 | M33: 26356.84603 | N33: 25054.44531 | O33: 53414.87334 | P33: 51345.08448 | Q33: 1032.791813 | R33: 981.7573 | AA33: =SUM(AA71,AA109,AA147,AA185,AA223) -> 17883143.07 | AB33: 16976888.75 | AC33: 456377793.3 | AD33: 433250184 | AE33: 919934892.6 | AF33: 883334771 | AG33: 17883143.07 | AH33: 16976888.75 | AI33: 32500 | AJ33: 550.250556 | AK33: 522.3658078 | AL33: 14042.39364 | AM33: 13330.77489 | AN33: 28305.689 | AO33: 27179.53141 | AP33: 550.250556 | AQ33: 522.3658078
B34: Female 60-64 | C34: 61.947388 | D34: 84.16739 | E34: female | F34: ALL | H34: =SUM(H72,H110,H148,H186,H224) -> 16514.6 | I34: 0 | J34: 16514.6 | K34: 1358.666239 | L34: 1292.840479 | M34: 28830.90031 | N34: 27434.07755 | O34: 52377.01197 | P34: 50383.24739 | Q34: 1358.666239 | R34: 1292.840479 | AA34: =SUM(AA72,AA110,AA148,AA186,AA224) -> 25202404.86 | AB34: 23928231.24 | AC34: 534795081.5 | AD34: 507757114.9 | AE34: 962839226.4 | AF34: 924537364.2 | AG34: 25202404.86 | AH34: 23928231.24 | AI34: 30000 | AJ34: 840.080162 | AK34: 797.6077082 | AL34: 17826.50272 | AM34: 16925.23716 | AN34: 32094.64088 | AO34: 30817.91214 | AP34: 840.080162 | AQ34: 797.6077082
B35: Female 65-69 | C35: 67.063927 | D35: 85.19393 | E35: female | F35: ALL | H35: =SUM(H73,H111,H149,H187,H225) -> 16405.7 | I35: 0 | J35: 16405.7 | K35: 2067.361981 | L35: 1968.902054 | M35: 35413.91693 | N35: 33727.29809 | O35: 58973.2205 | P35: 56759.1079 | Q35: 2067.361981 | R35: 1968.902054 | AA35: =SUM(AA73,AA111,AA149,AA187,AA225) -> 35605067.57 | AB35: 33811125.55 | AC35: 609914914.4 | AD35: 579184682.1 | AE35: 1003826931 | AF35: 963892331 | AG35: 35605067.57 | AH35: 33811125.55 | AI35: 27500 | AJ35: 1294.72973 | AK35: 1229.495475 | AL35: 22178.72416 | AM35: 21061.26117 | AN35: 36502.79749 | AO35: 35050.63022 | AP35: 1294.72973 | AQ35: 1229.495475
B36: Female 70-74 | C36: 71.938164 | D36: 86.24816 | E36: female | F36: ALL | H36: =SUM(H74,H112,H150,H188,H226) -> 12715 | I36: 0 | J36: 12715 | K36: 2428.398044 | L36: 2312.527783 | M36: 32321.96825 | N36: 30779.73554 | O36: 51815.94224 | P36: 49854.59249 | Q36: 2428.398044 | R36: 2312.527783 | AA36: =SUM(AA74,AA112,AA150,AA188,AA226) -> 48810168 | AB36: 46363055.19 | AC36: 649663140.8 | AD36: 617092079.1 | AE36: 1031603609 | AF36: 990560019.3 | AG36: 48810168 | AH36: 46363055.19 | AI36: 25000 | AJ36: 1952.40672 | AK36: 1854.522208 | AL36: 25986.52563 | AM36: 24683.68316 | AN36: 41264.14437 | AO36: 39622.40077 | AP36: 1952.40672 | AQ36: 1854.522208
B37: Female 75-79 | C37: 76.942825 | D37: 87.81283 | E37: female | F37: ALL | H37: =SUM(H75,H113,H151,H189,H227) -> 10433.1 | I37: 0 | J37: 10433.1 | K37: 3079.383076 | L37: 2929.470346 | M37: 30393.52636 | N37: 28913.88696 | O37: 48655.39333 | P37: 46756.7026 | Q37: 0 | R37: 0 | AA37: =SUM(AA75,AA113,AA151,AA189,AA227) -> 59413070.32 | AB37: 56457808.99 | AC37: 586407301.1 | AD37: 557238857 | AE37: 935996664.2 | AF37: 898755250.7 | AG37: 0 | AH37: 0 | AI37: 20000 | AJ37: 2970.653516 | AK37: 2822.890449 | AL37: 29320.36506 | AM37: 27861.94285 | AN37: 46799.83321 | AO37: 44937.76253 | AP37: 0 | AQ37: 0
B38: Female 80-84 | C38: 81.856712 | D38: 89.73671 | E38: female | F38: ALL | H38: =SUM(H76,H114,H152,H190,H228) -> 8021.7 | I38: 0 | J38: 8021.7 | K38: 3572.447119 | L38: 3399.797021 | M38: 24578.42904 | N38: 23390.59671 | O38: 42391.15608 | P38: 40728.73998 | Q38: 0 | R38: 0 | AA38: =SUM(AA76,AA114,AA152,AA190,AA228) -> 55901264.72 | AB38: 53153392.12 | AC38: 384600589.5 | AD38: 365695231.5 | AE38: 661963669 | AF38: 635624418.3 | AG38: 0 | AH38: 0 | AI38: 12500 | AJ38: 4472.101178 | AK38: 4252.27137 | AL38: 30768.04716 | AM38: 29255.61852 | AN38: 52957.09352 | AO38: 50849.95347 | AP38: 0 | AQ38: 0
B39: Female 85-89 | C39: 86.73082 | D39: 92.22082 | E39: female | F39: ALL | H39: =SUM(H77,H115,H153,H191,H229) -> 4969.1 | I39: 0 | J39: 4969.1 | K39: 3276.500044 | L39: 3123.255265 | M39: 14711.4852 | N39: 14023.41614 | O39: 29525.06547 | P39: 28386.84358 | Q39: 0 | R39: 0 | AA39: =SUM(AA77,AA115,AA153,AA191,AA229) -> 50101859.86 | AB39: 47683020.16 | AC39: 224957350.8 | AD39: 214096760.5 | AE39: 448983820.1 | AF39: 431120754.8 | AG39: 0 | AH39: 0 | AI39: 7500 | AJ39: 6680.247982 | AK39: 6357.736022 | AL39: 29994.31344 | AM39: 28546.23474 | AN39: 59864.50934 | AO39: 57482.7673 | AP39: 0 | AQ39: 0
B40: Female 90+ | C40: 92.779343 | D40: 96.27934 | E40: female | F40: ALL | H40: =SUM(H78,H116,H154,H192,H230) -> 2905 | I40: 0 | J40: 2905 | K40: 3080.232671 | L40: 2944.880273 | M40: 7700.572437 | N40: 7362.191849 | O40: 19930.14616 | P40: 19184.28025 | Q40: 0 | R40: 0 | AA40: =SUM(AA78,AA116,AA154,AA192,AA230) -> 54434845.39 | AB40: 51900370.45 | AC40: 136086950.2 | AD40: 129750770.4 | AE40: 348509125.9 | AF40: 334651970.3 | AG40: 0 | AH40: 0 | AI40: 5000 | AJ40: 10886.96908 | AK40: 10380.07409 | AL40: 27217.39003 | AM40: 25950.15408 | AN40: 69701.82517 | AO40: 66930.39407 | AP40: 0 | AQ40: 0
B41: Male 0-4 | C41: 2.0320823 | D41: 77.402082 | E41: male | F41: ALL | H41: =SUM(H79,H117,H155,H193,H231) -> 0 | I41: 0 | J41: 0 | AA41: =SUM(AA79,AA117,AA155,AA193,AA231) ->  | AI41: 25000
B42: Male 5-9 | C42: 6.9784756 | D42: 77.398476 | E42: male | F42: ALL | H42: =SUM(H80,H118,H156,H194,H232) -> 0 | I42: 0 | J42: 0 | AA42: =SUM(AA80,AA118,AA156,AA194,AA232) ->  | AI42: 27500
B43: Male 10-15 | C43: 12.471144 | D43: 77.92114 | E43: male | F43: ALL | H43: =SUM(H81,H119,H157,H195,H233) -> 0 | I43: 0 | J43: 0 | AA43: =SUM(AA81,AA119,AA157,AA195,AA233) ->  | AI43: 33000
B44: Male 16-19 | C44: 17.556318 | D44: 77.07632 | E44: male | F44: ALL | H44: =SUM(H82,H120,H158,H196,H234) -> 12441.8 | I44: 0 | J44: 12441.8 | K44: 56.98461184 | L44: 54.08182339 | M44: 3334.739599 | N44: 3164.868413 | O44: 8826.189231 | P44: 8475.900871 | Q44: 56.98461184 | R44: 54.08182339 | AA44: =SUM(AA82,AA120,AA158,AA196,AA234) -> 1013135.596 | AB44: 961599.2366 | AC44: 59288697.1 | AD44: 56272789.25 | AE44: 156551621.6 | AF44: 150323414.5 | AG44: 1013135.596 | AH44: 961599.2366 | AI44: 22000 | AJ44: 46.051618 | AK44: 43.70905621 | AL44: 2694.940777 | AM44: 2557.854057 | AN44: 7115.9828 | AO44: 6832.882479 | AP44: 46.051618 | AQ44: 43.70905621
B45: Male 20-24 | C45: 22.054632 | D45: 77.70463 | E45: male | F45: ALL | H45: =SUM(H83,H121,H159,H197,H235) -> 18168.8 | I45: 0 | J45: 18168.8 | K45: 117.533684 | L45: 111.514292 | M45: 6423.215593 | N45: 6094.255833 | O45: 15171.57336 | P45: 14564.7374 | Q45: 117.533684 | R45: 111.514292 | AA45: =SUM(AA83,AA121,AA159,AA197,AA235) -> 1940044.32 | AB45: 1841373.561 | AC45: 106023418.2 | AD45: 100631061.5 | AE45: 250437460.6 | AF45: 240474277.4 | AG45: 1940044.32 | AH45: 1841373.561 | AI45: 30000 | AJ45: 64.668144 | AK45: 61.37911872 | AL45: 3534.11394 | AM45: 3354.368715 | AN45: 8347.915354 | AO45: 8015.809248 | AP45: 64.668144 | AQ45: 61.37911872
B46: Male 25-29 | C46: 26.959763 | D46: 77.78976 | E46: male | F46: ALL | H46: =SUM(H84,H122,H160,H198,H236) -> 18614.9 | I46: 0 | J46: 18614.9 | K46: 180.0770489 | L46: 170.4200124 | M46: 8973.238808 | N46: 8492.028705 | O46: 18844.70775 | P46: 18049.56578 | Q46: 180.0770489 | R46: 170.4200124 | AA46: =SUM(AA84,AA122,AA160,AA198,AA236) -> 2809119.9 | AB46: 2666277.513 | AC46: 139978436.2 | AD46: 132860600.5 | AE46: 298066844.9 | AF46: 286208672.5 | AG46: 2809119.9 | AH46: 2666277.513 | AI46: 30000 | AJ46: 93.63733 | AK46: 88.87591709 | AL46: 4665.947873 | AM46: 4428.686682 | AN46: 9935.561496 | AO46: 9540.289085 | AP46: 93.63733 | AQ46: 88.87591709
B47: Male 30-34 | C47: 31.981522 | D47: 78.06152 | E47: male | F47: ALL | H47: =SUM(H85,H123,H161,H199,H237) -> 17230.5 | I47: 0 | J47: 17230.5 | K47: 242.7538613 | L47: 229.8896229 | M47: 10943.34358 | N47: 10363.42374 | O47: 20810.11301 | P47: 19941.03213 | Q47: 242.7538613 | R47: 229.8896229 | AA47: =SUM(AA85,AA123,AA161,AA199,AA237) -> 4445082.265 | AB47: 4219106.239 | AC47: 200384299.6 | AD47: 190197300.8 | AE47: 385911765.1 | AF47: 370557566.6 | AG47: 4445082.265 | AH47: 4219106.239 | AI47: 32500 | AJ47: 136.771762 | AK47: 129.8186535 | AL47: 6165.670757 | AM47: 5852.224641 | AN47: 11874.20816 | AO47: 11401.77128 | AP47: 136.771762 | AQ47: 129.8186535
B48: Male 35-39 | C48: 36.92601 | D48: 78.33601 | E48: male | F48: ALL | H48: =SUM(H86,H124,H162,H200,H238) -> 16126.8 | I48: 0 | J48: 16126.8 | K48: 321.6860566 | L48: 305.2119566 | M48: 12999.33355 | N48: 12333.61517 | O48: 22880.10876 | P48: 21962.14339 | Q48: 321.6860566 | R48: 305.2119566 | AA48: =SUM(AA86,AA124,AA162,AA200,AA238) -> 6950751.85 | AB48: 6597612.559 | AC48: 280879882.3 | AD48: 266609523.5 | AE48: 495329032.5 | AF48: 475624166.1 | AG48: 6950751.85 | AH48: 6597612.559 | AI48: 35000 | AJ48: 198.59291 | AK48: 188.503216 | AL48: 8025.139493 | AM48: 7617.414957 | AN48: 14152.25807 | AO48: 13589.26189 | AP48: 198.59291 | AQ48: 188.503216
B49: Male 40-44 | C49: 42.067703 | D49: 78.9077 | E49: male | F49: ALL | H49: =SUM(H87,H125,H163,H201,H239) -> 16492.9 | I49: 0 | J49: 16492.9 | K49: 475.9949366 | L49: 452.2598374 | M49: 17059.6571 | N49: 16208.99121 | O49: 27796.41123 | P49: 26714.17807 | Q49: 475.9949366 | R49: 452.2598374 | AA49: =SUM(AA87,AA125,AA163,AA201,AA239) -> 10242001.49 | AB49: 9722028.698 | AC49: 367073302.7 | AD49: 348437479.4 | AE49: 594504097.5 | AF49: 570854536.8 | AG49: 10242001.49 | AH49: 9722028.698 | AI49: 35000 | AJ49: 292.628614 | AK49: 277.7722485 | AL49: 10487.80865 | AM49: 9955.356554 | AN49: 16985.83136 | AO49: 16310.12962 | AP49: 292.628614 | AQ49: 277.7722485
B50: Male 45-49 | C50: 47.038155 | D50: 79.41815 | E50: male | F50: ALL | H50: =SUM(H88,H126,H164,H202,H240) -> 18942.2 | I50: 0 | J50: 18942.2 | K50: 794.8852995 | L50: 755.454741 | M50: 24943.49672 | N50: 23706.166 | O50: 38076.87909 | P50: 36599.35152 | Q50: 794.8852995 | R50: 755.454741 | AA50: =SUM(AA88,AA126,AA164,AA202,AA240) -> 14894504.87 | AB50: 14138989.97 | AC50: 467389488.3 | AD50: 443681434.4 | AE50: 709212168.1 | AF50: 680995721.6 | AG50: 14894504.87 | AH50: 14138989.97 | AI50: 35000 | AJ50: 425.557282 | AK50: 403.9711419 | AL50: 13353.98538 | AM50: 12676.61241 | AN50: 20263.2048 | AO50: 19457.02062 | AP50: 425.557282 | AQ50: 403.9711419
B51: Male 50-54 | C51: 51.998646 | D51: 79.98865 | E51: male | F51: ALL | H51: =SUM(H89,H127,H165,H203,H241) -> 19742.9 | I51: 0 | J51: 19742.9 | K51: 1202.362353 | L51: 1143.135187 | M51: 32451.76472 | N51: 30853.22327 | O51: 47294.71013 | P51: 45468.60617 | Q51: 1202.362353 | R51: 1143.135187 | AA51: =SUM(AA89,AA127,AA165,AA203,AA241) -> 21636714.05 | AB51: 20540880.14 | AC51: 583974998.8 | AD51: 554398437 | AE51: 845753788.7 | AF51: 812106921.9 | AG51: 21636714.05 | AH51: 20540880.14 | AI51: 35000 | AJ51: 618.19183 | AK51: 586.8822896 | AL51: 16684.99996 | AM51: 15839.95534 | AN51: 24164.39396 | AO51: 23203.05491 | AP51: 618.19183 | AQ51: 586.8822896
B52: Male 55-59 | C52: 56.950867 | D52: 80.66087 | E52: male | F52: ALL | H52: =SUM(H90,H128,H166,H204,H242) -> 18073.7 | I52: 0 | J52: 18073.7 | K52: 1595.693672 | L52: 1517.576265 | M52: 36238.20808 | N52: 34464.16153 | O52: 51591.13693 | P52: 49606.09087 | Q52: 1595.693672 | R52: 1517.576265 | AA52: =SUM(AA90,AA128,AA166,AA204,AA242) -> 29153067.51 | AB52: 27679679.64 | AC52: 662066250.7 | AD52: 628605607.6 | AE52: 936266656.8 | AF52: 899018793.8 | AG52: 29153067.51 | AH52: 27679679.64 | AI52: 32500 | AJ52: 897.017462 | AK52: 851.6824503 | AL52: 20371.26925 | AM52: 19341.711 | AN52: 28808.20482 | AO52: 27662.11673 | AP52: 897.017462 | AQ52: 851.6824503
B53: Male 60-64 | C53: 61.942989 | D53: 81.61299 | E53: male | F53: ALL | H53: =SUM(H91,H129,H167,H205,H243) -> 15640.6 | I53: 0 | J53: 15640.6 | K53: 1990.588342 | L53: 1895.167911 | M53: 37164.28633 | N53: 35382.7868 | O53: 53033.32073 | P53: 51030.61428 | Q53: 1990.588342 | R53: 1895.167911 | AA53: =SUM(AA91,AA129,AA167,AA205,AA243) -> 39136617.9 | AB53: 37164712.06 | AC53: 730680695.3 | AD53: 693865211.4 | AE53: 1031793596 | AF53: 990743047.2 | AG53: 39136617.9 | AH53: 37164712.06 | AI53: 30000 | AJ53: 1304.55393 | AK53: 1238.823735 | AL53: 24356.02318 | AM53: 23128.84038 | AN53: 34393.11986 | AO53: 33024.76824 | AP53: 1304.55393 | AQ53: 1238.823735
B54: Male 65-69 | C54: 67.05442 | D54: 82.95442 | E54: male | F54: ALL | H54: =SUM(H92,H130,H168,H206,H244) -> 15346.7 | I54: 0 | J54: 15346.7 | K54: 2845.43991 | L54: 2711.617118 | M54: 42397.05466 | N54: 40403.09505 | O54: 62174.33177 | P54: 59859.82994 | Q54: 2845.43991 | R54: 2711.617118 | AA54: =SUM(AA92,AA130,AA168,AA206,AA244) -> 52584699.03 | AB54: 49947497.65 | AC54: 783512015.6 | AD54: 744217714.9 | AE54: 1133962873 | AF54: 1088846047 | AG54: 52584699.03 | AH54: 49947497.65 | AI54: 27500 | AJ54: 1912.170874 | AK54: 1816.272642 | AL54: 28491.34602 | AM54: 27062.46236 | AN54: 41235.01357 | AO54: 39594.40172 | AP54: 1912.170874 | AQ54: 1816.272642
B55: Male 70-74 | C55: 71.891098 | D55: 84.3411 | E55: male | F55: ALL | H55: =SUM(H93,H131,H169,H207,H245) -> 11186.9 | I55: 0 | J55: 11186.9 | K55: 2974.779811 | L55: 2836.137551 | M55: 34061.23479 | N55: 32473.78063 | O55: 53814.8044 | P55: 51815.09631 | Q55: 2974.779811 | R55: 2836.137551 | AA55: =SUM(AA93,AA131,AA169,AA207,AA245) -> 68541049.4 | AB55: 65125819.91 | AC55: 784795152.7 | AD55: 745690768.2 | AE55: 1223954580 | AF55: 1175258761 | AG55: 68541049.4 | AH55: 65125819.91 | AI55: 25000 | AJ55: 2741.641976 | AK55: 2605.032796 | AL55: 31391.80611 | AM55: 29827.63073 | AN55: 48958.18319 | AO55: 47010.35044 | AP55: 2741.641976 | AQ55: 2605.032796
B56: Male 75-79 | C56: 76.9077 | D56: 86.3577 | E56: male | F56: ALL | H56: =SUM(H94,H132,H170,H208,H246) -> 8251.5 | I56: 0 | J56: 8251.5 | K56: 3204.941532 | L56: 3055.187038 | M56: 27081.75595 | N56: 25816.33047 | O56: 47629.86304 | P56: 45835.88363 | Q56: 0 | R56: 0 | AA56: =SUM(AA94,AA132,AA170,AA208,AA246) -> 79500841.64 | AB56: 75578338.24 | AC56: 671782111.9 | AD56: 638636958.2 | AE56: 1170005852 | AF56: 1123461403 | AG56: 0 | AH56: 0 | AI56: 20000 | AJ56: 3975.042082 | AK56: 3778.916912 | AL56: 33589.10559 | AM56: 31931.84791 | AN56: 58500.29258 | AO56: 56173.07015 | AP56: 0 | AQ56: 0
B57: Male 80-84 | C57: 81.797089 | D57: 88.62709 | E57: male | F57: ALL | H57: =SUM(H95,H133,H171,H209,H247) -> 5620.1 | I57: 0 | J57: 5620.1 | K57: 3103.948479 | L57: 2962.082403 | M57: 18096.02274 | N57: 17268.94337 | O57: 38436.06303 | P57: 37003.48668 | Q57: 0 | R57: 0 | AA57: =SUM(AA95,AA133,AA171,AA209,AA247) -> 71140704.03 | AB57: 67677772.19 | AC57: 414750375.6 | AD57: 394561479.6 | AE57: 869840774.2 | AF57: 835229273.5 | AG57: 0 | AH57: 0 | AI57: 12500 | AJ57: 5691.256322 | AK57: 5414.221775 | AL57: 33180.03005 | AM57: 31564.91836 | AN57: 69587.26194 | AO57: 66818.34188 | AP57: 0 | AQ57: 0
B58: Male 85-89 | C58: 86.630753 | D58: 91.42075 | E58: male | F58: ALL | H58: =SUM(H96,H134,H172,H210,H248) -> 2828.7 | I58: 0 | J58: 2828.7 | K58: 2197.859553 | L58: 2101.013827 | M58: 8329.881111 | N58: 7962.836101 | O58: 22836.6917 | P58: 22001.5077 | Q58: 0 | R58: 0 | AA58: =SUM(AA96,AA134,AA172,AA210,AA248) -> 60596740.92 | AB58: 57704551.94 | AC58: 229661466.3 | AD58: 218700078.7 | AE58: 619589003.4 | AF58: 594934396.9 | AG58: 0 | AH58: 0 | AI58: 7500 | AJ58: 8079.565456 | AK58: 7693.940259 | AL58: 30621.52884 | AM58: 29160.0105 | AN58: 82611.86713 | AO58: 79324.58626 | AP58: 0 | AQ58: 0
B59: Male 90+ | C59: 92.215477 | D59: 95.51548 | E59: male | F59: ALL | H59: =SUM(H97,H135,H173,H211,H249) -> 1201.7 | I59: 0 | J59: 1201.7 | K59: 1387.491802 | L59: 1328.278977 | M59: 3191.235308 | N59: 3055.045633 | O59: 11815.7848 | P59: 11383.77815 | Q59: 0 | R59: 0 | AA59: =SUM(AA97,AA135,AA173,AA211,AA249) -> 60083927.03 | AB59: 57308386.03 | AC59: 138193212.4 | AD59: 131809459.8 | AE59: 503620030.1 | AF59: 483557044.9 | AG59: 0 | AH59: 0 | AI59: 5000 | AJ59: =AA59/$AI59 -> 12016.78541 | AK59: 11461.67721 | AL59: =AC59/$AI59 -> 27638.64248 | AM59: 26361.89196 | AN59: 100724.006 | AO59: 96711.40899 | AP59: 0 | AQ59: 0
B60: Female 0-4 | C60: 2.0384007 | D60: 81.468401 | E60: female | F60: 1 | G60: 1 | H60: =HLOOKUP(Calculations!$E$2,'Population 2016'!$C$3:$BC$249,'Population 2016'!BD60,FALSE)/10 -> 0 | I60: 0 | J60: =H60 -> 0 | K60: =IF(AND(OR(Results!$C$4="Orkney Health Board",Results!$C$4="Orkney Islands Local Authority"),$F60=1),0,IF(AND(OR(Results!$C$4="Shetland Health Board",Results!$C$4="Western Isles Health Board",Results!$C$4="Shetland Islands Local Authority",Results!$C$4="Eilean Siar Local Authority"),OR($F60=1,$F60=5)),0,new_ci(VALUE(LEFT(Options!$B$14,2)),$C60,$E60,$F60,2016,$I60,1,$H60,$G60*$H60,SIMD_rateratios_mortality,VALUE(VLOOKUP(Options!$B$8,Lists!$I$2:$J$31,2)))*10)) ->  | L60: =IF(AND(OR(Results!$C$4="Orkney Health Board",Results!$C$4="Orkney Islands Local Authority"),$F60=1),0,IF(AND(OR(Results!$C$4="Shetland Health Board",Results!$C$4="Western Isles Health Board",Results!$C$4="Shetland Islands Local Authority",Results!$C$4="Eilean Siar Local Authority"),OR($F60=1,$F60=5)),0,new_ci(VALUE(LEFT(Options!$B$14,2)),$C60,$E60,$F60,2016,$I60+$J60,1,$H60,$G60*$H60, SIMD_rateratios_mortality, VALUE(VLOOKUP(Options!$B$8,Lists!$I$2:$J$31,2)))*10)) ->  | M60: =IF(AND(OR(Results!$C$4="Orkney Health Board",Results!$C$4="Orkney Islands Local Authority"),$F60=1),0,IF(AND(OR(Results!$C$4="Shetland Health Board",Results!$C$4="Western Isles Health Board",Results!$C$4="Shetland Islands Local Authority",Results!$C$4="Eilean Siar Local Authority"),OR($F60=1,$F60=5)),0,new_yllv2(VALUE(LEFT(Options!$B$14,2)),$C60,$D60,$E60,$F60,2016,$I60,1,$H60,$G60*$H60,SIMD_rateratios_mortality,VALUE(VLOOKUP(Options!$B$8,Lists!$I$2:$J$31,2)))*10)) ->  | N60: =IF(AND(OR(Results!$C$4="Orkney Health Board",Results!$C$4="Orkney Islands Local Authority"),$F60=1),0,IF(AND(OR(Results!$C$4="Shetland Health Board",Results!$C$4="Western Isles Health Board",Results!$C$4="Shetland Islands Local Authority",Results!$C$4="Eilean Siar Local Authority"),OR($F60=1,$F60=5)),0,new_yllv2(VALUE(LEFT(Options!$B$14,2)),$C60,$D60,$E60,$F60,2016,$I60+$J60,1,$H60,$G60*$H60,SIMD_rateratios_mortality,VALUE(VLOOKUP(Options!$B$8,Lists!$I$2:$J$31,2)))*10)) ->  | O60: =IF(AND(OR(Results!$C$4="Orkney Health Board",Results!$C$4="Orkney Islands Local Authority"),$F60=1),0,IF(AND(OR(Results!$C$4="Shetland Health Board",Results!$C$4="Western Isles Health Board",Results!$C$4="Shetland Islands Local Authority",Results!$C$4="Eilean Siar Local Authority"),OR($F60=1,$F60=5)),0,hosp_count(VALUE(LEFT(Options!$B$14,2)),$C60,$E60,$F60,2016,$I60,1,$H60,$G60*$H60, SIMD_rateratios_hosp, SIMD_rateratios_mortality,VALUE(VLOOKUP(Options!$B$8,Lists!$I$2:$J$31,2)))*10)) ->  | P60: =IF(AND(OR(Results!$C$4="Orkney Health Board",Results!$C$4="Orkney Islands Local Authority"),$F60=1),0,IF(AND(OR(Results!$C$4="Shetland Health Board",Results!$C$4="Western Isles Health Board",Results!$C$4="Shetland Islands Local Authority",Results!$C$4="Eilean Siar Local Authority"),OR($F60=1,$F60=5)),0,hosp_count(VALUE(LEFT(Options!$B$14,2)),$C60,$E60,$F60,2016,$I60+$J60,1,$H60,$G60*$H60, SIMD_rateratios_hosp, SIMD_rateratios_mortality,VALUE(VLOOKUP(Options!$B$8,Lists!$I$2:$J$31,2)))*10)) ->  | Q60: =IF(AND(OR(Results!$C$4="Orkney Health Board",Results!$C$4="Orkney Islands Local Authority"),$F60=1),0,IF(AND(OR(Results!$C$4="Shetland Health Board",Results!$C$4="Western Isles Health Board",Results!$C$4="Shetland Islands Local Authority",Results!$C$4="Eilean Siar Local Authority"),OR($F60=1,$F60=5)),0,prem_mort(VALUE(LEFT(Options!$B$14,2)),$C60,$E60,$F60,2016,$I60,1,$H60,$G60*$H60,SIMD_rateratios_mortality,VALUE(VLOOKUP(Options!$B$8,Lists!$I$2:$J$31,2)))*10)) ->  | R60: =IF(AND(OR(Results!$C$4="Orkney Health Board",Results!$C$4="Orkney Islands Local Authority"),$F60=1),0,IF(AND(OR(Results!$C$4="Shetland Health Board",Results!$C$4="Western Isles Health Board",Results!$C$4="Shetland Islands Local Authority",Results!$C$4="Eilean Siar Local Authority"),OR($F60=1,$F60=5)),0,prem_mort(VALUE(LEFT(Options!$B$14,2)),$C60,$E60,$F60,2016,$I60+$J60,1,$H60,$G60*$H60,SIMD_rateratios_mortality,VALUE(VLOOKUP(Options!$B$8,Lists!$I$2:$J$31,2)))*10)) ->  | S60: =K60*100000/($H60*10) ->  | T60: =L60*100000/($H60*10) ->  | AA60: =S60*$AI60 ->  | AB60: =T60*$AI60 ->  | AC60: =U60*$AI60 ->  | AD60: =V60*$AI60 ->  | AE60: =W60*$AI60 ->  | AF60: =X60*$AI60 ->  | AG60: =Y60*$AI60 ->  | AH60: =Z60*$AI60 ->  | AI60: 5000
B61: Female 5-9 | C61: 6.9792795 | D61: 81.43928 | E61: female | F61: 1 | G61: 1 | H61: =HLOOKUP(Calculations!$E$2,'Population 2016'!$C$3:$BC$249,'Population 2016'!BD61,FALSE)/10 -> 0 | I61: 0 | J61: =H61 -> 0 | K61: =IF(AND(OR(Results!$C$4="Orkney Health Board",Results!$C$4="Orkney Islands Local Authority"),$F61=1),0,IF(AND(OR(Results!$C$4="Shetland Health Board",Results!$C$4="Western Isles Health Board",Results!$C$4="Shetland Islands Local Authority",Results!$C$4="Eilean Siar Local Authority"),OR($F61=1,$F61=5)),0,new_ci(VALUE(LEFT(Options!$B$14,2)),$C61,$E61,$F61,2016,$I61,1,$H61,$G61*$H61,SIMD_rateratios_mortality,VALUE(VLOOKUP(Options!$B$8,Lists!$I$2:$J$31,2)))*10)) ->  | L61: =IF(AND(OR(Results!$C$4="Orkney Health Board",Results!$C$4="Orkney Islands Local Authority"),$F61=1),0,IF(AND(OR(Results!$C$4="Shetland Health Board",Results!$C$4="Western Isles Health Board",Results!$C$4="Shetland Islands Local Authority",Results!$C$4="Eilean Siar Local Authority"),OR($F61=1,$F61=5)),0,new_ci(VALUE(LEFT(Options!$B$14,2)),$C61,$E61,$F61,2016,$I61+$J61,1,$H61,$G61*$H61, SIMD_rateratios_mortality, VALUE(VLOOKUP(Options!$B$8,Lists!$I$2:$J$31,2)))*10)) ->  | M61: =IF(AND(OR(Results!$C$4="Orkney Health Board",Results!$C$4="Orkney Islands Local Authority"),$F61=1),0,IF(AND(OR(Results!$C$4="Shetland Health Board",Results!$C$4="Western Isles Health Board",Results!$C$4="Shetland Islands Local Authority",Results!$C$4="Eilean Siar Local Authority"),OR($F61=1,$F61=5)),0,new_yllv2(VALUE(LEFT(Options!$B$14,2)),$C61,$D61,$E61,$F61,2016,$I61,1,$H61,$G61*$H61,SIMD_rateratios_mortality,VALUE(VLOOKUP(Options!$B$8,Lists!$I$2:$J$31,2)))*10)) ->  | N61: =IF(AND(OR(Results!$C$4="Orkney Health Board",Results!$C$4="Orkney Islands Local Authority"),$F61=1),0,IF(AND(OR(Results!$C$4="Shetland Health Board",Results!$C$4="Western Isles Health Board",Results!$C$4="Shetland Islands Local Authority",Results!$C$4="Eilean Siar Local Authority"),OR($F61=1,$F61=5)),0,new_yllv2(VALUE(LEFT(Options!$B$14,2)),$C61,$D61,$E61,$F61,2016,$I61+$J61,1,$H61,$G61*$H61,SIMD_rateratios_mortality,VALUE(VLOOKUP(Options!$B$8,Lists!$I$2:$J$31,2)))*10)) ->  | O61: =IF(AND(OR(Results!$C$4="Orkney Health Board",Results!$C$4="Orkney Islands Local Authority"),$F61=1),0,IF(AND(OR(Results!$C$4="Shetland Health Board",Results!$C$4="Western Isles Health Board",Results!$C$4="Shetland Islands Local Authority",Results!$C$4="Eilean Siar Local Authority"),OR($F61=1,$F61=5)),0,hosp_count(VALUE(LEFT(Options!$B$14,2)),$C61,$E61,$F61,2016,$I61,1,$H61,$G61*$H61, SIMD_rateratios_hosp, SIMD_rateratios_mortality,VALUE(VLOOKUP(Options!$B$8,Lists!$I$2:$J$31,2)))*10)) ->  | P61: =IF(AND(OR(Results!$C$4="Orkney Health Board",Results!$C$4="Orkney Islands Local Authority"),$F61=1),0,IF(AND(OR(Results!$C$4="Shetland Health Board",Results!$C$4="Western Isles Health Board",Results!$C$4="Shetland Islands Local Authority",Results!$C$4="Eilean Siar Local Authority"),OR($F61=1,$F61=5)),0,hosp_count(VALUE(LEFT(Options!$B$14,2)),$C61,$E61,$F61,2016,$I61+$J61,1,$H61,$G61*$H61, SIMD_rateratios_hosp, SIMD_rateratios_mortality,VALUE(VLOOKUP(Options!$B$8,Lists!$I$2:$J$31,2)))*10)) ->  | Q61: =IF(AND(OR(Results!$C$4="Orkney Health Board",Results!$C$4="Orkney Islands Local Authority"),$F61=1),0,IF(AND(OR(Results!$C$4="Shetland Health Board",Results!$C$4="Western Isles Health Board",Results!$C$4="Shetland Islands Local Authority",Results!$C$4="Eilean Siar Local Authority"),OR($F61=1,$F61=5)),0,prem_mort(VALUE(LEFT(Options!$B$14,2)),$C61,$E61,$F61,2016,$I61,1,$H61,$G61*$H61,SIMD_rateratios_mortality,VALUE(VLOOKUP(Options!$B$8,Lists!$I$2:$J$31,2)))*10)) ->  | R61: =IF(AND(OR(Results!$C$4="Orkney Health Board",Results!$C$4="Orkney Islands Local Authority"),$F61=1),0,IF(AND(OR(Results!$C$4="Shetland Health Board",Results!$C$4="Western Isles Health Board",Results!$C$4="Shetland Islands Local Authority",Results!$C$4="Eilean Siar Local Authority"),OR($F61=1,$F61=5)),0,prem_mort(VALUE(LEFT(Options!$B$14,2)),$C61,$E61,$F61,2016,$I61+$J61,1,$H61,$G61*$H61,SIMD_rateratios_mortality,VALUE(VLOOKUP(Options!$B$8,Lists!$I$2:$J$31,2)))*10)) ->  | S61: =K61*100000/($H61*10) ->  | T61: =L61*100000/($H61*10) ->  | AA61: =S61*$AI61 ->  | AB61: =T61*$AI61 ->  | AC61: =U61*$AI61 ->  | AI61: 5500
B62: Female 10-15 | C62: 12.478312 | D62: 81.94831 | E62: female | F62: 1 | G62: 1 | H62: =HLOOKUP(Calculations!$E$2,'Population 2016'!$C$3:$BC$249,'Population 2016'!BD62,FALSE)/10 -> 0 | I62: 0 | J62: 0 | K62: =IF(AND(OR(Results!$C$4="Orkney Health Board",Results!$C$4="Orkney Islands Local Authority"),$F62=1),0,IF(AND(OR(Results!$C$4="Shetland Health Board",Results!$C$4="Western Isles Health Board",Results!$C$4="Shetland Islands Local Authority",Results!$C$4="Eilean Siar Local Authority"),OR($F62=1,$F62=5)),0,new_ci(VALUE(LEFT(Options!$B$14,2)),$C62,$E62,$F62,2016,$I62,1,$H62,$G62*$H62,SIMD_rateratios_mortality,VALUE(VLOOKUP(Options!$B$8,Lists!$I$2:$J$31,2)))*10)) ->  | L62: =IF(AND(OR(Results!$C$4="Orkney Health Board",Results!$C$4="Orkney Islands Local Authority"),$F62=1),0,IF(AND(OR(Results!$C$4="Shetland Health Board",Results!$C$4="Western Isles Health Board",Results!$C$4="Shetland Islands Local Authority",Results!$C$4="Eilean Siar Local Authority"),OR($F62=1,$F62=5)),0,new_ci(VALUE(LEFT(Options!$B$14,2)),$C62,$E62,$F62,2016,$I62+$J62,1,$H62,$G62*$H62, SIMD_rateratios_mortality, VALUE(VLOOKUP(Options!$B$8,Lists!$I$2:$J$31,2)))*10)) ->  | M62: =IF(AND(OR(Results!$C$4="Orkney Health Board",Results!$C$4="Orkney Islands Local Authority"),$F62=1),0,IF(AND(OR(Results!$C$4="Shetland Health Board",Results!$C$4="Western Isles Health Board",Results!$C$4="Shetland Islands Local Authority",Results!$C$4="Eilean Siar Local Authority"),OR($F62=1,$F62=5)),0,new_yllv2(VALUE(LEFT(Options!$B$14,2)),$C62,$D62,$E62,$F62,2016,$I62,1,$H62,$G62*$H62,SIMD_rateratios_mortality,VALUE(VLOOKUP(Options!$B$8,Lists!$I$2:$J$31,2)))*10)) ->  | N62: =IF(AND(OR(Results!$C$4="Orkney Health Board",Results!$C$4="Orkney Islands Local Authority"),$F62=1),0,IF(AND(OR(Results!$C$4="Shetland Health Board",Results!$C$4="Western Isles Health Board",Results!$C$4="Shetland Islands Local Authority",Results!$C$4="Eilean Siar Local Authority"),OR($F62=1,$F62=5)),0,new_yllv2(VALUE(LEFT(Options!$B$14,2)),$C62,$D62,$E62,$F62,2016,$I62+$J62,1,$H62,$G62*$H62,SIMD_rateratios_mortality,VALUE(VLOOKUP(Options!$B$8,Lists!$I$2:$J$31,2)))*10)) ->  | O62: =IF(AND(OR(Results!$C$4="Orkney Health Board",Results!$C$4="Orkney Islands Local Authority"),$F62=1),0,IF(AND(OR(Results!$C$4="Shetland Health Board",Results!$C$4="Western Isles Health Board",Results!$C$4="Shetland Islands Local Authority",Results!$C$4="Eilean Siar Local Authority"),OR($F62=1,$F62=5)),0,hosp_count(VALUE(LEFT(Options!$B$14,2)),$C62,$E62,$F62,2016,$I62,1,$H62,$G62*$H62, SIMD_rateratios_hosp, SIMD_rateratios_mortality,VALUE(VLOOKUP(Options!$B$8,Lists!$I$2:$J$31,2)))*10)) ->  | P62: =IF(AND(OR(Results!$C$4="Orkney Health Board",Results!$C$4="Orkney Islands Local Authority"),$F62=1),0,IF(AND(OR(Results!$C$4="Shetland Health Board",Results!$C$4="Western Isles Health Board",Results!$C$4="Shetland Islands Local Authority",Results!$C$4="Eilean Siar Local Authority"),OR($F62=1,$F62=5)),0,hosp_count(VALUE(LEFT(Options!$B$14,2)),$C62,$E62,$F62,2016,$I62+$J62,1,$H62,$G62*$H62, SIMD_rateratios_hosp, SIMD_rateratios_mortality,VALUE(VLOOKUP(Options!$B$8,Lists!$I$2:$J$31,2)))*10)) ->  | Q62: =IF(AND(OR(Results!$C$4="Orkney Health Board",Results!$C$4="Orkney Islands Local Authority"),$F62=1),0,IF(AND(OR(Results!$C$4="Shetland Health Board",Results!$C$4="Western Isles Health Board",Results!$C$4="Shetland Islands Local Authority",Results!$C$4="Eilean Siar Local Authority"),OR($F62=1,$F62=5)),0,prem_mort(VALUE(LEFT(Options!$B$14,2)),$C62,$E62,$F62,2016,$I62,1,$H62,$G62*$H62,SIMD_rateratios_mortality,VALUE(VLOOKUP(Options!$B$8,Lists!$I$2:$J$31,2)))*10)) ->  | R62: =IF(AND(OR(Results!$C$4="Orkney Health Board",Results!$C$4="Orkney Islands Local Authority"),$F62=1),0,IF(AND(OR(Results!$C$4="Shetland Health Board",Results!$C$4="Western Isles Health Board",Results!$C$4="Shetland Islands Local Authority",Results!$C$4="Eilean Siar Local Authority"),OR($F62=1,$F62=5)),0,prem_mort(VALUE(LEFT(Options!$B$14,2)),$C62,$E62,$F62,2016,$I62+$J62,1,$H62,$G62*$H62,SIMD_rateratios_mortality,VALUE(VLOOKUP(Options!$B$8,Lists!$I$2:$J$31,2)))*10)) ->  | S62: =K62*100000/($H62*10) ->  | AI62: 6600
A63: SIMD Q1 (most deprived) | B63: Female 16-19 | C63: 17.570053 | D63: 81.10005 | E63: female | F63: 1 | G63: 1 | H63: =HLOOKUP(Calculations!$E$2,'Population 2016'!$C$3:$BC$249,'Population 2016'!BD63,FALSE)/10 -> 2414.2 | I63: 0 | J63: 2414.2 | K63: =IF(AND(OR(Results!$C$4="Orkney Health Board",Results!$C$4="Orkney Islands Local Authority"),$F63=1),0,IF(AND(OR(Results!$C$4="Shetland Health Board",Results!$C$4="Western Isles Health Board",Results!$C$4="Shetland Islands Local Authority",Results!$C$4="Eilean Siar Local Authority"),OR($F63=1,$F63=5)),0,new_ci(VALUE(LEFT(Options!$B$14,2)),$C63,$E63,$F63,2016,$I63,1,$H63,$G63*$H63,SIMD_rateratios_mortality,VALUE(VLOOKUP(Options!$B$8,Lists!$I$2:$J$31,2)))*10)) -> 7.677704023 | L63: =IF(AND(OR(Results!$C$4="Orkney Health Board",Results!$C$4="Orkney Islands Local Authority"),$F63=1),0,IF(AND(OR(Results!$C$4="Shetland Health Board",Results!$C$4="Western Isles Health Board",Results!$C$4="Shetland Islands Local Authority",Results!$C$4="Eilean Siar Local Authority"),OR($F63=1,$F63=5)),0,new_ci(VALUE(LEFT(Options!$B$14,2)),$C63,$E63,$F63,2016,$I63+$J63,1,$H63,$G63*$H63, SIMD_rateratios_mortality, VALUE(VLOOKUP(Options!$B$8,Lists!$I$2:$J$31,2)))*10)) -> 6.987029655 | M63: =IF(AND(OR(Results!$C$4="Orkney Health Board",Results!$C$4="Orkney Islands Local Authority"),$F63=1),0,IF(AND(OR(Results!$C$4="Shetland Health Board",Results!$C$4="Western Isles Health Board",Results!$C$4="Shetland Islands Local Authority",Results!$C$4="Eilean Siar Local Authority"),OR($F63=1,$F63=5)),0,new_yllv2(VALUE(LEFT(Options!$B$14,2)),$C63,$D63,$E63,$F63,2016,$I63,1,$H63,$G63*$H63,SIMD_rateratios_mortality,VALUE(VLOOKUP(Options!$B$8,Lists!$I$2:$J$31,2)))*10)) -> 480.0868095 | N63: =IF(AND(OR(Results!$C$4="Orkney Health Board",Results!$C$4="Orkney Islands Local Authority"),$F63=1),0,IF(AND(OR(Results!$C$4="Shetland Health Board",Results!$C$4="Western Isles Health Board",Results!$C$4="Shetland Islands Local Authority",Results!$C$4="Eilean Siar Local Authority"),OR($F63=1,$F63=5)),0,new_yllv2(VALUE(LEFT(Options!$B$14,2)),$C63,$D63,$E63,$F63,2016,$I63+$J63,1,$H63,$G63*$H63,SIMD_rateratios_mortality,VALUE(VLOOKUP(Options!$B$8,Lists!$I$2:$J$31,2)))*10)) -> 436.8989434 | O63: =IF(AND(OR(Results!$C$4="Orkney Health Board",Results!$C$4="Orkney Islands Local Authority"),$F63=1),0,IF(AND(OR(Results!$C$4="Shetland Health Board",Results!$C$4="Western Isles Health Board",Results!$C$4="Shetland Islands Local Authority",Results!$C$4="Eilean Siar Local Authority"),OR($F63=1,$F63=5)),0,hosp_count(VALUE(LEFT(Options!$B$14,2)),$C63,$E63,$F63,2016,$I63,1,$H63,$G63*$H63, SIMD_rateratios_hosp, SIMD_rateratios_mortality,VALUE(VLOOKUP(Options!$B$8,Lists!$I$2:$J$31,2)))*10)) -> 3441.218007 | P63: =IF(AND(OR(Results!$C$4="Orkney Health Board",Results!$C$4="Orkney Islands Local Authority"),$F63=1),0,IF(AND(OR(Results!$C$4="Shetland Health Board",Results!$C$4="Western Isles Health Board",Results!$C$4="Shetland Islands Local Authority",Results!$C$4="Eilean Siar Local Authority"),OR($F63=1,$F63=5)),0,hosp_count(VALUE(LEFT(Options!$B$14,2)),$C63,$E63,$F63,2016,$I63+$J63,1,$H63,$G63*$H63, SIMD_rateratios_hosp, SIMD_rateratios_mortality,VALUE(VLOOKUP(Options!$B$8,Lists!$I$2:$J$31,2)))*10)) -> 3173.692767 | Q63: =IF(AND(OR(Results!$C$4="Orkney Health Board",Results!$C$4="Orkney Islands Local Authority"),$F63=1),0,IF(AND(OR(Results!$C$4="Shetland Health Board",Results!$C$4="Western Isles Health Board",Results!$C$4="Shetland Islands Local Authority",Results!$C$4="Eilean Siar Local Authority"),OR($F63=1,$F63=5)),0,prem_mort(VALUE(LEFT(Options!$B$14,2)),$C63,$E63,$F63,2016,$I63,1,$H63,$G63*$H63,SIMD_rateratios_mortality,VALUE(VLOOKUP(Options!$B$8,Lists!$I$2:$J$31,2)))*10)) -> 7.677704023 | R63: =IF(AND(OR(Results!$C$4="Orkney Health Board",Results!$C$4="Orkney Islands Local Authority"),$F63=1),0,IF(AND(OR(Results!$C$4="Shetland Health Board",Results!$C$4="Western Isles Health Board",Results!$C$4="Shetland Islands Local Authority",Results!$C$4="Eilean Siar Local Authority"),OR($F63=1,$F63=5)),0,prem_mort(VALUE(LEFT(Options!$B$14,2)),$C63,$E63,$F63,2016,$I63+$J63,1,$H63,$G63*$H63,SIMD_rateratios_mortality,VALUE(VLOOKUP(Options!$B$8,Lists!$I$2:$J$31,2)))*10)) -> 6.987029655 | S63: =K63*100000/($H63*10) -> 31.80227 | T63: 28.94138702 | U63: 1988.595848 | V63: 1809.704844 | W63: 14254.07177 | X63: 13145.93972 | Y63: 31.80227 | Z63: 28.94138702 | AA63: =S63*$AI63 -> 139929.988 | AB63: 127342.1029 | AC63: 8749821.729 | AD63: 7962701.312 | AE63: 62717915.79 | AF63: 57842134.76 | AG63: 139929.988 | AH63: =Z63*$AI63 -> 127342.1029 | AI63: 4400
B64: Female 20-24 | C64: 22.077057 | D64: 81.66706 | E64: female | F64: 1 | G64: 1 | H64: =HLOOKUP(Calculations!$E$2,'Population 2016'!$C$3:$BC$249,'Population 2016'!BD64,FALSE)/10 -> 3762.4 | I64: 0 | J64: 3762.4 | K64: =IF(AND(OR(Results!$C$4="Orkney Health Board",Results!$C$4="Orkney Islands Local Authority"),$F64=1),0,IF(AND(OR(Results!$C$4="Shetland Health Board",Results!$C$4="Western Isles Health Board",Results!$C$4="Shetland Islands Local Authority",Results!$C$4="Eilean Siar Local Authority"),OR($F64=1,$F64=5)),0,new_ci(VALUE(LEFT(Options!$B$14,2)),$C64,$E64,$F64,2016,$I64,1,$H64,$G64*$H64,SIMD_rateratios_mortality,VALUE(VLOOKUP(Options!$B$8,Lists!$I$2:$J$31,2)))*10)) -> 17.55389106 | L64: =IF(AND(OR(Results!$C$4="Orkney Health Board",Results!$C$4="Orkney Islands Local Authority"),$F64=1),0,IF(AND(OR(Results!$C$4="Shetland Health Board",Results!$C$4="Western Isles Health Board",Results!$C$4="Shetland Islands Local Authority",Results!$C$4="Eilean Siar Local Authority"),OR($F64=1,$F64=5)),0,new_ci(VALUE(LEFT(Options!$B$14,2)),$C64,$E64,$F64,2016,$I64+$J64,1,$H64,$G64*$H64, SIMD_rateratios_mortality, VALUE(VLOOKUP(Options!$B$8,Lists!$I$2:$J$31,2)))*10)) -> 15.97491195 | M64: =IF(AND(OR(Results!$C$4="Orkney Health Board",Results!$C$4="Orkney Islands Local Authority"),$F64=1),0,IF(AND(OR(Results!$C$4="Shetland Health Board",Results!$C$4="Western Isles Health Board",Results!$C$4="Shetland Islands Local Authority",Results!$C$4="Eilean Siar Local Authority"),OR($F64=1,$F64=5)),0,new_yllv2(VALUE(LEFT(Options!$B$14,2)),$C64,$D64,$E64,$F64,2016,$I64,1,$H64,$G64*$H64,SIMD_rateratios_mortality,VALUE(VLOOKUP(Options!$B$8,Lists!$I$2:$J$31,2)))*10)) -> 1028.48253 | N64: =IF(AND(OR(Results!$C$4="Orkney Health Board",Results!$C$4="Orkney Islands Local Authority"),$F64=1),0,IF(AND(OR(Results!$C$4="Shetland Health Board",Results!$C$4="Western Isles Health Board",Results!$C$4="Shetland Islands Local Authority",Results!$C$4="Eilean Siar Local Authority"),OR($F64=1,$F64=5)),0,new_yllv2(VALUE(LEFT(Options!$B$14,2)),$C64,$D64,$E64,$F64,2016,$I64+$J64,1,$H64,$G64*$H64,SIMD_rateratios_mortality,VALUE(VLOOKUP(Options!$B$8,Lists!$I$2:$J$31,2)))*10)) -> 935.970139 | O64: =IF(AND(OR(Results!$C$4="Orkney Health Board",Results!$C$4="Orkney Islands Local Authority"),$F64=1),0,IF(AND(OR(Results!$C$4="Shetland Health Board",Results!$C$4="Western Isles Health Board",Results!$C$4="Shetland Islands Local Authority",Results!$C$4="Eilean Siar Local Authority"),OR($F64=1,$F64=5)),0,hosp_count(VALUE(LEFT(Options!$B$14,2)),$C64,$E64,$F64,2016,$I64,1,$H64,$G64*$H64, SIMD_rateratios_hosp, SIMD_rateratios_mortality,VALUE(VLOOKUP(Options!$B$8,Lists!$I$2:$J$31,2)))*10)) -> 6006.741035 | P64: =IF(AND(OR(Results!$C$4="Orkney Health Board",Results!$C$4="Orkney Islands Local Authority"),$F64=1),0,IF(AND(OR(Results!$C$4="Shetland Health Board",Results!$C$4="Western Isles Health Board",Results!$C$4="Shetland Islands Local Authority",Results!$C$4="Eilean Siar Local Authority"),OR($F64=1,$F64=5)),0,hosp_count(VALUE(LEFT(Options!$B$14,2)),$C64,$E64,$F64,2016,$I64+$J64,1,$H64,$G64*$H64, SIMD_rateratios_hosp, SIMD_rateratios_mortality,VALUE(VLOOKUP(Options!$B$8,Lists!$I$2:$J$31,2)))*10)) -> 5539.779305 | Q64: =IF(AND(OR(Results!$C$4="Orkney Health Board",Results!$C$4="Orkney Islands Local Authority"),$F64=1),0,IF(AND(OR(Results!$C$4="Shetland Health Board",Results!$C$4="Western Isles Health Board",Results!$C$4="Shetland Islands Local Authority",Results!$C$4="Eilean Siar Local Authority"),OR($F64=1,$F64=5)),0,prem_mort(VALUE(LEFT(Options!$B$14,2)),$C64,$E64,$F64,2016,$I64,1,$H64,$G64*$H64,SIMD_rateratios_mortality,VALUE(VLOOKUP(Options!$B$8,Lists!$I$2:$J$31,2)))*10)) -> 17.55389106 | R64: =IF(AND(OR(Results!$C$4="Orkney Health Board",Results!$C$4="Orkney Islands Local Authority"),$F64=1),0,IF(AND(OR(Results!$C$4="Shetland Health Board",Results!$C$4="Western Isles Health Board",Results!$C$4="Shetland Islands Local Authority",Results!$C$4="Eilean Siar Local Authority"),OR($F64=1,$F64=5)),0,prem_mort(VALUE(LEFT(Options!$B$14,2)),$C64,$E64,$F64,2016,$I64+$J64,1,$H64,$G64*$H64,SIMD_rateratios_mortality,VALUE(VLOOKUP(Options!$B$8,Lists!$I$2:$J$31,2)))*10)) -> 15.97491195 | S64: =K64*100000/($H64*10) -> 46.6561 | T64: 42.45936622 | U64: 2733.581039 | V64: 2487.694394 | W64: 15965.18455 | X64: 14724.05726 | Y64: 46.6561 | Z64: 42.45936622 | AA64: 279936.6 | AB64: 254756.1973 | AC64: 16401486.23 | AD64: 14926166.37 | AE64: 95791107.3 | AF64: 88344343.59 | AG64: 279936.6 | AH64: 254756.1973 | AI64: 6000
B65: Female 25-29 | C65: 26.975187 | D65: 81.64519 | E65: female | F65: 1 | G65: 1 | H65: =HLOOKUP(Calculations!$E$2,'Population 2016'!$C$3:$BC$249,'Population 2016'!BD65,FALSE)/10 -> 4512.9 | I65: 0 | J65: 4512.9 | K65: =IF(AND(OR(Results!$C$4="Orkney Health Board",Results!$C$4="Orkney Islands Local Authority"),$F65=1),0,IF(AND(OR(Results!$C$4="Shetland Health Board",Results!$C$4="Western Isles Health Board",Results!$C$4="Shetland Islands Local Authority",Results!$C$4="Eilean Siar Local Authority"),OR($F65=1,$F65=5)),0,new_ci(VALUE(LEFT(Options!$B$14,2)),$C65,$E65,$F65,2016,$I65,1,$H65,$G65*$H65,SIMD_rateratios_mortality,VALUE(VLOOKUP(Options!$B$8,Lists!$I$2:$J$31,2)))*10)) -> 31.93316758 | L65: =IF(AND(OR(Results!$C$4="Orkney Health Board",Results!$C$4="Orkney Islands Local Authority"),$F65=1),0,IF(AND(OR(Results!$C$4="Shetland Health Board",Results!$C$4="Western Isles Health Board",Results!$C$4="Shetland Islands Local Authority",Results!$C$4="Eilean Siar Local Authority"),OR($F65=1,$F65=5)),0,new_ci(VALUE(LEFT(Options!$B$14,2)),$C65,$E65,$F65,2016,$I65+$J65,1,$H65,$G65*$H65, SIMD_rateratios_mortality, VALUE(VLOOKUP(Options!$B$8,Lists!$I$2:$J$31,2)))*10)) -> 29.0607198 | M65: =IF(AND(OR(Results!$C$4="Orkney Health Board",Results!$C$4="Orkney Islands Local Authority"),$F65=1),0,IF(AND(OR(Results!$C$4="Shetland Health Board",Results!$C$4="Western Isles Health Board",Results!$C$4="Shetland Islands Local Authority",Results!$C$4="Eilean Siar Local Authority"),OR($F65=1,$F65=5)),0,new_yllv2(VALUE(LEFT(Options!$B$14,2)),$C65,$D65,$E65,$F65,2016,$I65,1,$H65,$G65*$H65,SIMD_rateratios_mortality,VALUE(VLOOKUP(Options!$B$8,Lists!$I$2:$J$31,2)))*10)) -> 1713.8532 | N65: =IF(AND(OR(Results!$C$4="Orkney Health Board",Results!$C$4="Orkney Islands Local Authority"),$F65=1),0,IF(AND(OR(Results!$C$4="Shetland Health Board",Results!$C$4="Western Isles Health Board",Results!$C$4="Shetland Islands Local Authority",Results!$C$4="Eilean Siar Local Authority"),OR($F65=1,$F65=5)),0,new_yllv2(VALUE(LEFT(Options!$B$14,2)),$C65,$D65,$E65,$F65,2016,$I65+$J65,1,$H65,$G65*$H65,SIMD_rateratios_mortality,VALUE(VLOOKUP(Options!$B$8,Lists!$I$2:$J$31,2)))*10)) -> 1559.688919 | O65: =IF(AND(OR(Results!$C$4="Orkney Health Board",Results!$C$4="Orkney Islands Local Authority"),$F65=1),0,IF(AND(OR(Results!$C$4="Shetland Health Board",Results!$C$4="Western Isles Health Board",Results!$C$4="Shetland Islands Local Authority",Results!$C$4="Eilean Siar Local Authority"),OR($F65=1,$F65=5)),0,hosp_count(VALUE(LEFT(Options!$B$14,2)),$C65,$E65,$F65,2016,$I65,1,$H65,$G65*$H65, SIMD_rateratios_hosp, SIMD_rateratios_mortality,VALUE(VLOOKUP(Options!$B$8,Lists!$I$2:$J$31,2)))*10)) -> 8149.619987 | P65: =IF(AND(OR(Results!$C$4="Orkney Health Board",Results!$C$4="Orkney Islands Local Authority"),$F65=1),0,IF(AND(OR(Results!$C$4="Shetland Health Board",Results!$C$4="Western Isles Health Board",Results!$C$4="Shetland Islands Local Authority",Results!$C$4="Eilean Siar Local Authority"),OR($F65=1,$F65=5)),0,hosp_count(VALUE(LEFT(Options!$B$14,2)),$C65,$E65,$F65,2016,$I65+$J65,1,$H65,$G65*$H65, SIMD_rateratios_hosp, SIMD_rateratios_mortality,VALUE(VLOOKUP(Options!$B$8,Lists!$I$2:$J$31,2)))*10)) -> 7515.990269 | Q65: =IF(AND(OR(Results!$C$4="Orkney Health Board",Results!$C$4="Orkney Islands Local Authority"),$F65=1),0,IF(AND(OR(Results!$C$4="Shetland Health Board",Results!$C$4="Western Isles Health Board",Results!$C$4="Shetland Islands Local Authority",Results!$C$4="Eilean Siar Local Authority"),OR($F65=1,$F65=5)),0,prem_mort(VALUE(LEFT(Options!$B$14,2)),$C65,$E65,$F65,2016,$I65,1,$H65,$G65*$H65,SIMD_rateratios_mortality,VALUE(VLOOKUP(Options!$B$8,Lists!$I$2:$J$31,2)))*10)) -> 31.93316758 | R65: =IF(AND(OR(Results!$C$4="Orkney Health Board",Results!$C$4="Orkney Islands Local Authority"),$F65=1),0,IF(AND(OR(Results!$C$4="Shetland Health Board",Results!$C$4="Western Isles Health Board",Results!$C$4="Shetland Islands Local Authority",Results!$C$4="Eilean Siar Local Authority"),OR($F65=1,$F65=5)),0,prem_mort(VALUE(LEFT(Options!$B$14,2)),$C65,$E65,$F65,2016,$I65+$J65,1,$H65,$G65*$H65,SIMD_rateratios_mortality,VALUE(VLOOKUP(Options!$B$8,Lists!$I$2:$J$31,2)))*10)) -> 29.0607198 | S65: =K65*100000/($H65*10) -> 70.75975 | T65: =L65*100000/($H65*10) -> 64.39477896 | U65: =M65*100000/($H65*10) -> 3797.675995 | V65: =N65*100000/($H65*10) -> 3456.06798 | W65: =O65*100000/($H65*10) -> 18058.49894 | X65: =P65*100000/($H65*10) -> 16654.45782 | Y65: =Q65*100000/($H65*10) -> 70.75975 | Z65: =R65*100000/($H65*10) -> 64.39477896 | AA65: 424558.5 | AB65: 386368.6738 | AC65: 22786055.97 | AD65: 20736407.88 | AE65: 108350993.6 | AF65: 99926746.91 | AG65: 424558.5 | AH65: 386368.6738 | AI65: 6000
B66: Female 30-34 | C66: 31.999905 | D66: 81.7999 | E66: female | F66: 1 | G66: 1 | H66: =HLOOKUP(Calculations!$E$2,'Population 2016'!$C$3:$BC$249,'Population 2016'!BD66,FALSE)/10 -> 4124 | I66: 0 | J66: 4124 | K66: =IF(AND(OR(Results!$C$4="Orkney Health Board",Results!$C$4="Orkney Islands Local Authority"),$F66=1),0,IF(AND(OR(Results!$C$4="Shetland Health Board",Results!$C$4="Western Isles Health Board",Results!$C$4="Shetland Islands Local Authority",Results!$C$4="Eilean Siar Local Authority"),OR($F66=1,$F66=5)),0,new_ci(VALUE(LEFT(Options!$B$14,2)),$C66,$E66,$F66,2016,$I66,1,$H66,$G66*$H66,SIMD_rateratios_mortality,VALUE(VLOOKUP(Options!$B$8,Lists!$I$2:$J$31,2)))*10)) -> 44.73311873 | L66: =IF(AND(OR(Results!$C$4="Orkney Health Board",Results!$C$4="Orkney Islands Local Authority"),$F66=1),0,IF(AND(OR(Results!$C$4="Shetland Health Board",Results!$C$4="Western Isles Health Board",Results!$C$4="Shetland Islands Local Authority",Results!$C$4="Eilean Siar Local Authority"),OR($F66=1,$F66=5)),0,new_ci(VALUE(LEFT(Options!$B$14,2)),$C66,$E66,$F66,2016,$I66+$J66,1,$H66,$G66*$H66, SIMD_rateratios_mortality, VALUE(VLOOKUP(Options!$B$8,Lists!$I$2:$J$31,2)))*10)) -> 40.710066 | M66: =IF(AND(OR(Results!$C$4="Orkney Health Board",Results!$C$4="Orkney Islands Local Authority"),$F66=1),0,IF(AND(OR(Results!$C$4="Shetland Health Board",Results!$C$4="Western Isles Health Board",Results!$C$4="Shetland Islands Local Authority",Results!$C$4="Eilean Siar Local Authority"),OR($F66=1,$F66=5)),0,new_yllv2(VALUE(LEFT(Options!$B$14,2)),$C66,$D66,$E66,$F66,2016,$I66,1,$H66,$G66*$H66,SIMD_rateratios_mortality,VALUE(VLOOKUP(Options!$B$8,Lists!$I$2:$J$31,2)))*10)) -> 2182.97597 | N66: =IF(AND(OR(Results!$C$4="Orkney Health Board",Results!$C$4="Orkney Islands Local Authority"),$F66=1),0,IF(AND(OR(Results!$C$4="Shetland Health Board",Results!$C$4="Western Isles Health Board",Results!$C$4="Shetland Islands Local Authority",Results!$C$4="Eilean Siar Local Authority"),OR($F66=1,$F66=5)),0,new_yllv2(VALUE(LEFT(Options!$B$14,2)),$C66,$D66,$E66,$F66,2016,$I66+$J66,1,$H66,$G66*$H66,SIMD_rateratios_mortality,VALUE(VLOOKUP(Options!$B$8,Lists!$I$2:$J$31,2)))*10)) -> 1986.651017 | O66: =IF(AND(OR(Results!$C$4="Orkney Health Board",Results!$C$4="Orkney Islands Local Authority"),$F66=1),0,IF(AND(OR(Results!$C$4="Shetland Health Board",Results!$C$4="Western Isles Health Board",Results!$C$4="Shetland Islands Local Authority",Results!$C$4="Eilean Siar Local Authority"),OR($F66=1,$F66=5)),0,hosp_count(VALUE(LEFT(Options!$B$14,2)),$C66,$E66,$F66,2016,$I66,1,$H66,$G66*$H66, SIMD_rateratios_hosp, SIMD_rateratios_mortality,VALUE(VLOOKUP(Options!$B$8,Lists!$I$2:$J$31,2)))*10)) -> 8450.664705 | P66: =IF(AND(OR(Results!$C$4="Orkney Health Board",Results!$C$4="Orkney Islands Local Authority"),$F66=1),0,IF(AND(OR(Results!$C$4="Shetland Health Board",Results!$C$4="Western Isles Health Board",Results!$C$4="Shetland Islands Local Authority",Results!$C$4="Eilean Siar Local Authority"),OR($F66=1,$F66=5)),0,hosp_count(VALUE(LEFT(Options!$B$14,2)),$C66,$E66,$F66,2016,$I66+$J66,1,$H66,$G66*$H66, SIMD_rateratios_hosp, SIMD_rateratios_mortality,VALUE(VLOOKUP(Options!$B$8,Lists!$I$2:$J$31,2)))*10)) -> 7793.643439 | Q66: =IF(AND(OR(Results!$C$4="Orkney Health Board",Results!$C$4="Orkney Islands Local Authority"),$F66=1),0,IF(AND(OR(Results!$C$4="Shetland Health Board",Results!$C$4="Western Isles Health Board",Results!$C$4="Shetland Islands Local Authority",Results!$C$4="Eilean Siar Local Authority"),OR($F66=1,$F66=5)),0,prem_mort(VALUE(LEFT(Options!$B$14,2)),$C66,$E66,$F66,2016,$I66,1,$H66,$G66*$H66,SIMD_rateratios_mortality,VALUE(VLOOKUP(Options!$B$8,Lists!$I$2:$J$31,2)))*10)) -> 44.73311873 | R66: =IF(AND(OR(Results!$C$4="Orkney Health Board",Results!$C$4="Orkney Islands Local Authority"),$F66=1),0,IF(AND(OR(Results!$C$4="Shetland Health Board",Results!$C$4="Western Isles Health Board",Results!$C$4="Shetland Islands Local Authority",Results!$C$4="Eilean Siar Local Authority"),OR($F66=1,$F66=5)),0,prem_mort(VALUE(LEFT(Options!$B$14,2)),$C66,$E66,$F66,2016,$I66+$J66,1,$H66,$G66*$H66,SIMD_rateratios_mortality,VALUE(VLOOKUP(Options!$B$8,Lists!$I$2:$J$31,2)))*10)) -> 40.710066 | S66: 108.47022 | T66: 98.715 | U66: 5293.346194 | V66: 4817.291506 | W66: 20491.42751 | X66: 18898.26246 | Y66: 108.47022 | Z66: 98.715 | AA66: 705056.43 | AB66: 641647.5 | AC66: 34406750.26 | AD66: 31312394.79 | AE66: 133194278.8 | AF66: 122838706 | AG66: 705056.43 | AH66: 641647.5 | AI66: 6500
B67: Female 35-39 | C67: 36.918118 | D67: 81.89812 | E67: female | F67: 1 | G67: 1 | H67: =HLOOKUP(Calculations!$E$2,'Population 2016'!$C$3:$BC$249,'Population 2016'!BD67,FALSE)/10 -> 3503.8 | I67: 0 | J67: 3503.8 | K67: =IF(AND(OR(Results!$C$4="Orkney Health Board",Results!$C$4="Orkney Islands Local Authority"),$F67=1),0,IF(AND(OR(Results!$C$4="Shetland Health Board",Results!$C$4="Western Isles Health Board",Results!$C$4="Shetland Islands Local Authority",Results!$C$4="Eilean Siar Local Authority"),OR($F67=1,$F67=5)),0,new_ci(VALUE(LEFT(Options!$B$14,2)),$C67,$E67,$F67,2016,$I67,1,$H67,$G67*$H67,SIMD_rateratios_mortality,VALUE(VLOOKUP(Options!$B$8,Lists!$I$2:$J$31,2)))*10)) -> 57.72972651 | L67: =IF(AND(OR(Results!$C$4="Orkney Health Board",Results!$C$4="Orkney Islands Local Authority"),$F67=1),0,IF(AND(OR(Results!$C$4="Shetland Health Board",Results!$C$4="Western Isles Health Board",Results!$C$4="Shetland Islands Local Authority",Results!$C$4="Eilean Siar Local Authority"),OR($F67=1,$F67=5)),0,new_ci(VALUE(LEFT(Options!$B$14,2)),$C67,$E67,$F67,2016,$I67+$J67,1,$H67,$G67*$H67, SIMD_rateratios_mortality, VALUE(VLOOKUP(Options!$B$8,Lists!$I$2:$J$31,2)))*10)) -> 52.53886587 | M67: =IF(AND(OR(Results!$C$4="Orkney Health Board",Results!$C$4="Orkney Islands Local Authority"),$F67=1),0,IF(AND(OR(Results!$C$4="Shetland Health Board",Results!$C$4="Western Isles Health Board",Results!$C$4="Shetland Islands Local Authority",Results!$C$4="Eilean Siar Local Authority"),OR($F67=1,$F67=5)),0,new_yllv2(VALUE(LEFT(Options!$B$14,2)),$C67,$D67,$E67,$F67,2016,$I67,1,$H67,$G67*$H67,SIMD_rateratios_mortality,VALUE(VLOOKUP(Options!$B$8,Lists!$I$2:$J$31,2)))*10)) -> 2538.953487 | N67: =IF(AND(OR(Results!$C$4="Orkney Health Board",Results!$C$4="Orkney Islands Local Authority"),$F67=1),0,IF(AND(OR(Results!$C$4="Shetland Health Board",Results!$C$4="Western Isles Health Board",Results!$C$4="Shetland Islands Local Authority",Results!$C$4="Eilean Siar Local Authority"),OR($F67=1,$F67=5)),0,new_yllv2(VALUE(LEFT(Options!$B$14,2)),$C67,$D67,$E67,$F67,2016,$I67+$J67,1,$H67,$G67*$H67,SIMD_rateratios_mortality,VALUE(VLOOKUP(Options!$B$8,Lists!$I$2:$J$31,2)))*10)) -> 2310.659426 | O67: =IF(AND(OR(Results!$C$4="Orkney Health Board",Results!$C$4="Orkney Islands Local Authority"),$F67=1),0,IF(AND(OR(Results!$C$4="Shetland Health Board",Results!$C$4="Western Isles Health Board",Results!$C$4="Shetland Islands Local Authority",Results!$C$4="Eilean Siar Local Authority"),OR($F67=1,$F67=5)),0,hosp_count(VALUE(LEFT(Options!$B$14,2)),$C67,$E67,$F67,2016,$I67,1,$H67,$G67*$H67, SIMD_rateratios_hosp, SIMD_rateratios_mortality,VALUE(VLOOKUP(Options!$B$8,Lists!$I$2:$J$31,2)))*10)) -> 8125.285242 | P67: =IF(AND(OR(Results!$C$4="Orkney Health Board",Results!$C$4="Orkney Islands Local Authority"),$F67=1),0,IF(AND(OR(Results!$C$4="Shetland Health Board",Results!$C$4="Western Isles Health Board",Results!$C$4="Shetland Islands Local Authority",Results!$C$4="Eilean Siar Local Authority"),OR($F67=1,$F67=5)),0,hosp_count(VALUE(LEFT(Options!$B$14,2)),$C67,$E67,$F67,2016,$I67+$J67,1,$H67,$G67*$H67, SIMD_rateratios_hosp, SIMD_rateratios_mortality,VALUE(VLOOKUP(Options!$B$8,Lists!$I$2:$J$31,2)))*10)) -> 7493.525479 | Q67: =IF(AND(OR(Results!$C$4="Orkney Health Board",Results!$C$4="Orkney Islands Local Authority"),$F67=1),0,IF(AND(OR(Results!$C$4="Shetland Health Board",Results!$C$4="Western Isles Health Board",Results!$C$4="Shetland Islands Local Authority",Results!$C$4="Eilean Siar Local Authority"),OR($F67=1,$F67=5)),0,prem_mort(VALUE(LEFT(Options!$B$14,2)),$C67,$E67,$F67,2016,$I67,1,$H67,$G67*$H67,SIMD_rateratios_mortality,VALUE(VLOOKUP(Options!$B$8,Lists!$I$2:$J$31,2)))*10)) -> 57.72972651 | R67: =IF(AND(OR(Results!$C$4="Orkney Health Board",Results!$C$4="Orkney Islands Local Authority"),$F67=1),0,IF(AND(OR(Results!$C$4="Shetland Health Board",Results!$C$4="Western Isles Health Board",Results!$C$4="Shetland Islands Local Authority",Results!$C$4="Eilean Siar Local Authority"),OR($F67=1,$F67=5)),0,prem_mort(VALUE(LEFT(Options!$B$14,2)),$C67,$E67,$F67,2016,$I67+$J67,1,$H67,$G67*$H67,SIMD_rateratios_mortality,VALUE(VLOOKUP(Options!$B$8,Lists!$I$2:$J$31,2)))*10)) -> 52.53886587 | S67: 164.76319 | T67: 149.9482444 | U67: 7246.285426 | V67: 6594.724088 | W67: 23189.92306 | X67: 21386.85279 | Y67: 164.76319 | Z67: 149.9482444 | AA67: 1153342.33 | AB67: 1049637.711 | AC67: 50723997.98 | AD67: 46163068.62 | AE67: 162329461.4 | AF67: 149707969.5 | AG67: 1153342.33 | AH67: 1049637.711 | AI67: 7000
B68: Female 40-44 | C68: 42.077438 | D68: 82.30744 | E68: female | F68: 1 | G68: 1 | H68: =HLOOKUP(Calculations!$E$2,'Population 2016'!$C$3:$BC$249,'Population 2016'!BD68,FALSE)/10 -> 3366.3 | I68: 0 | J68: 3366.3 | K68: =IF(AND(OR(Results!$C$4="Orkney Health Board",Results!$C$4="Orkney Islands Local Authority"),$F68=1),0,IF(AND(OR(Results!$C$4="Shetland Health Board",Results!$C$4="Western Isles Health Board",Results!$C$4="Shetland Islands Local Authority",Results!$C$4="Eilean Siar Local Authority"),OR($F68=1,$F68=5)),0,new_ci(VALUE(LEFT(Options!$B$14,2)),$C68,$E68,$F68,2016,$I68,1,$H68,$G68*$H68,SIMD_rateratios_mortality,VALUE(VLOOKUP(Options!$B$8,Lists!$I$2:$J$31,2)))*10)) -> 85.97932136 | L68: =IF(AND(OR(Results!$C$4="Orkney Health Board",Results!$C$4="Orkney Islands Local Authority"),$F68=1),0,IF(AND(OR(Results!$C$4="Shetland Health Board",Results!$C$4="Western Isles Health Board",Results!$C$4="Shetland Islands Local Authority",Results!$C$4="Eilean Siar Local Authority"),OR($F68=1,$F68=5)),0,new_ci(VALUE(LEFT(Options!$B$14,2)),$C68,$E68,$F68,2016,$I68+$J68,1,$H68,$G68*$H68, SIMD_rateratios_mortality, VALUE(VLOOKUP(Options!$B$8,Lists!$I$2:$J$31,2)))*10)) -> 78.25267846 | M68: =IF(AND(OR(Results!$C$4="Orkney Health Board",Results!$C$4="Orkney Islands Local Authority"),$F68=1),0,IF(AND(OR(Results!$C$4="Shetland Health Board",Results!$C$4="Western Isles Health Board",Results!$C$4="Shetland Islands Local Authority",Results!$C$4="Eilean Siar Local Authority"),OR($F68=1,$F68=5)),0,new_yllv2(VALUE(LEFT(Options!$B$14,2)),$C68,$D68,$E68,$F68,2016,$I68,1,$H68,$G68*$H68,SIMD_rateratios_mortality,VALUE(VLOOKUP(Options!$B$8,Lists!$I$2:$J$31,2)))*10)) -> 3372.968949 | N68: =IF(AND(OR(Results!$C$4="Orkney Health Board",Results!$C$4="Orkney Islands Local Authority"),$F68=1),0,IF(AND(OR(Results!$C$4="Shetland Health Board",Results!$C$4="Western Isles Health Board",Results!$C$4="Shetland Islands Local Authority",Results!$C$4="Eilean Siar Local Authority"),OR($F68=1,$F68=5)),0,new_yllv2(VALUE(LEFT(Options!$B$14,2)),$C68,$D68,$E68,$F68,2016,$I68+$J68,1,$H68,$G68*$H68,SIMD_rateratios_mortality,VALUE(VLOOKUP(Options!$B$8,Lists!$I$2:$J$31,2)))*10)) -> 3069.852732 | O68: =IF(AND(OR(Results!$C$4="Orkney Health Board",Results!$C$4="Orkney Islands Local Authority"),$F68=1),0,IF(AND(OR(Results!$C$4="Shetland Health Board",Results!$C$4="Western Isles Health Board",Results!$C$4="Shetland Islands Local Authority",Results!$C$4="Eilean Siar Local Authority"),OR($F68=1,$F68=5)),0,hosp_count(VALUE(LEFT(Options!$B$14,2)),$C68,$E68,$F68,2016,$I68,1,$H68,$G68*$H68, SIMD_rateratios_hosp, SIMD_rateratios_mortality,VALUE(VLOOKUP(Options!$B$8,Lists!$I$2:$J$31,2)))*10)) -> 8888.185251 | P68: =IF(AND(OR(Results!$C$4="Orkney Health Board",Results!$C$4="Orkney Islands Local Authority"),$F68=1),0,IF(AND(OR(Results!$C$4="Shetland Health Board",Results!$C$4="Western Isles Health Board",Results!$C$4="Shetland Islands Local Authority",Results!$C$4="Eilean Siar Local Authority"),OR($F68=1,$F68=5)),0,hosp_count(VALUE(LEFT(Options!$B$14,2)),$C68,$E68,$F68,2016,$I68+$J68,1,$H68,$G68*$H68, SIMD_rateratios_hosp, SIMD_rateratios_mortality,VALUE(VLOOKUP(Options!$B$8,Lists!$I$2:$J$31,2)))*10)) -> 8197.209273 | Q68: =IF(AND(OR(Results!$C$4="Orkney Health Board",Results!$C$4="Orkney Islands Local Authority"),$F68=1),0,IF(AND(OR(Results!$C$4="Shetland Health Board",Results!$C$4="Western Isles Health Board",Results!$C$4="Shetland Islands Local Authority",Results!$C$4="Eilean Siar Local Authority"),OR($F68=1,$F68=5)),0,prem_mort(VALUE(LEFT(Options!$B$14,2)),$C68,$E68,$F68,2016,$I68,1,$H68,$G68*$H68,SIMD_rateratios_mortality,VALUE(VLOOKUP(Options!$B$8,Lists!$I$2:$J$31,2)))*10)) -> 85.97932136 | R68: =IF(AND(OR(Results!$C$4="Orkney Health Board",Results!$C$4="Orkney Islands Local Authority"),$F68=1),0,IF(AND(OR(Results!$C$4="Shetland Health Board",Results!$C$4="Western Isles Health Board",Results!$C$4="Shetland Islands Local Authority",Results!$C$4="Eilean Siar Local Authority"),OR($F68=1,$F68=5)),0,prem_mort(VALUE(LEFT(Options!$B$14,2)),$C68,$E68,$F68,2016,$I68+$J68,1,$H68,$G68*$H68,SIMD_rateratios_mortality,VALUE(VLOOKUP(Options!$B$8,Lists!$I$2:$J$31,2)))*10)) -> 78.25267846 | S68: 255.41194 | T68: 232.4590157 | U68: 10019.81092 | V68: 9119.367651 | W68: 26403.42587 | X68: 24350.79842 | Y68: 255.41194 | Z68: 232.4590157 | AA68: 1787883.58 | AB68: 1627213.11 | AC68: 70138676.42 | AD68: 63835573.56 | AE68: 184823981.1 | AF68: 170455589 | AG68: 1787883.58 | AH68: 1627213.11 | AI68: 7000
B69: Female 45-49 | C69: 47.025772 | D69: 82.58577 | E69: female | F69: 1 | G69: 1 | H69: =HLOOKUP(Calculations!$E$2,'Population 2016'!$C$3:$BC$249,'Population 2016'!BD69,FALSE)/10 -> 3919.7 | I69: 0 | J69: 3919.7 | K69: =IF(AND(OR(Results!$C$4="Orkney Health Board",Results!$C$4="Orkney Islands Local Authority"),$F69=1),0,IF(AND(OR(Results!$C$4="Shetland Health Board",Results!$C$4="Western Isles Health Board",Results!$C$4="Shetland Islands Local Authority",Results!$C$4="Eilean Siar Local Authority"),OR($F69=1,$F69=5)),0,new_ci(VALUE(LEFT(Options!$B$14,2)),$C69,$E69,$F69,2016,$I69,1,$H69,$G69*$H69,SIMD_rateratios_mortality,VALUE(VLOOKUP(Options!$B$8,Lists!$I$2:$J$31,2)))*10)) -> 152.4011462 | L69: =IF(AND(OR(Results!$C$4="Orkney Health Board",Results!$C$4="Orkney Islands Local Authority"),$F69=1),0,IF(AND(OR(Results!$C$4="Shetland Health Board",Results!$C$4="Western Isles Health Board",Results!$C$4="Shetland Islands Local Authority",Results!$C$4="Eilean Siar Local Authority"),OR($F69=1,$F69=5)),0,new_ci(VALUE(LEFT(Options!$B$14,2)),$C69,$E69,$F69,2016,$I69+$J69,1,$H69,$G69*$H69, SIMD_rateratios_mortality, VALUE(VLOOKUP(Options!$B$8,Lists!$I$2:$J$31,2)))*10)) -> 138.7114988 | M69: =IF(AND(OR(Results!$C$4="Orkney Health Board",Results!$C$4="Orkney Islands Local Authority"),$F69=1),0,IF(AND(OR(Results!$C$4="Shetland Health Board",Results!$C$4="Western Isles Health Board",Results!$C$4="Shetland Islands Local Authority",Results!$C$4="Eilean Siar Local Authority"),OR($F69=1,$F69=5)),0,new_yllv2(VALUE(LEFT(Options!$B$14,2)),$C69,$D69,$E69,$F69,2016,$I69,1,$H69,$G69*$H69,SIMD_rateratios_mortality,VALUE(VLOOKUP(Options!$B$8,Lists!$I$2:$J$31,2)))*10)) -> 5266.983309 | N69: =IF(AND(OR(Results!$C$4="Orkney Health Board",Results!$C$4="Orkney Islands Local Authority"),$F69=1),0,IF(AND(OR(Results!$C$4="Shetland Health Board",Results!$C$4="Western Isles Health Board",Results!$C$4="Shetland Islands Local Authority",Results!$C$4="Eilean Siar Local Authority"),OR($F69=1,$F69=5)),0,new_yllv2(VALUE(LEFT(Options!$B$14,2)),$C69,$D69,$E69,$F69,2016,$I69+$J69,1,$H69,$G69*$H69,SIMD_rateratios_mortality,VALUE(VLOOKUP(Options!$B$8,Lists!$I$2:$J$31,2)))*10)) -> 4793.869121 | O69: =IF(AND(OR(Results!$C$4="Orkney Health Board",Results!$C$4="Orkney Islands Local Authority"),$F69=1),0,IF(AND(OR(Results!$C$4="Shetland Health Board",Results!$C$4="Western Isles Health Board",Results!$C$4="Shetland Islands Local Authority",Results!$C$4="Eilean Siar Local Authority"),OR($F69=1,$F69=5)),0,hosp_count(VALUE(LEFT(Options!$B$14,2)),$C69,$E69,$F69,2016,$I69,1,$H69,$G69*$H69, SIMD_rateratios_hosp, SIMD_rateratios_mortality,VALUE(VLOOKUP(Options!$B$8,Lists!$I$2:$J$31,2)))*10)) -> 11721.12367 | P69: =IF(AND(OR(Results!$C$4="Orkney Health Board",Results!$C$4="Orkney Islands Local Authority"),$F69=1),0,IF(AND(OR(Results!$C$4="Shetland Health Board",Results!$C$4="Western Isles Health Board",Results!$C$4="Shetland Islands Local Authority",Results!$C$4="Eilean Siar Local Authority"),OR($F69=1,$F69=5)),0,hosp_count(VALUE(LEFT(Options!$B$14,2)),$C69,$E69,$F69,2016,$I69+$J69,1,$H69,$G69*$H69, SIMD_rateratios_hosp, SIMD_rateratios_mortality,VALUE(VLOOKUP(Options!$B$8,Lists!$I$2:$J$31,2)))*10)) -> 10809.76141 | Q69: =IF(AND(OR(Results!$C$4="Orkney Health Board",Results!$C$4="Orkney Islands Local Authority"),$F69=1),0,IF(AND(OR(Results!$C$4="Shetland Health Board",Results!$C$4="Western Isles Health Board",Results!$C$4="Shetland Islands Local Authority",Results!$C$4="Eilean Siar Local Authority"),OR($F69=1,$F69=5)),0,prem_mort(VALUE(LEFT(Options!$B$14,2)),$C69,$E69,$F69,2016,$I69,1,$H69,$G69*$H69,SIMD_rateratios_mortality,VALUE(VLOOKUP(Options!$B$8,Lists!$I$2:$J$31,2)))*10)) -> 152.4011462 | R69: =IF(AND(OR(Results!$C$4="Orkney Health Board",Results!$C$4="Orkney Islands Local Authority"),$F69=1),0,IF(AND(OR(Results!$C$4="Shetland Health Board",Results!$C$4="Western Isles Health Board",Results!$C$4="Shetland Islands Local Authority",Results!$C$4="Eilean Siar Local Authority"),OR($F69=1,$F69=5)),0,prem_mort(VALUE(LEFT(Options!$B$14,2)),$C69,$E69,$F69,2016,$I69+$J69,1,$H69,$G69*$H69,SIMD_rateratios_mortality,VALUE(VLOOKUP(Options!$B$8,Lists!$I$2:$J$31,2)))*10)) -> 138.7114988 | S69: 388.80819 | T69: 353.8829471 | U69: 13437.21027 | V69: 12230.19395 | W69: 29903.1142 | X69: 27578.03253 | Y69: 388.80819 | Z69: 353.8829471 | AA69: 2721657.33 | AB69: 2477180.63 | AC69: 94060471.88 | AD69: 85611357.62 | AE69: 209321799.4 | AF69: 193046227.7 | AG69: 2721657.33 | AH69: 2477180.63 | AI69: 7000
B70: Female 50-54 | C70: 51.990826 | D70: 82.98083 | E70: female | F70: 1 | G70: 1 | H70: =HLOOKUP(Calculations!$E$2,'Population 2016'!$C$3:$BC$249,'Population 2016'!BD70,FALSE)/10 -> 3970.4 | I70: 0 | J70: 3970.4 | K70: =IF(AND(OR(Results!$C$4="Orkney Health Board",Results!$C$4="Orkney Islands Local Authority"),$F70=1),0,IF(AND(OR(Results!$C$4="Shetland Health Board",Results!$C$4="Western Isles Health Board",Results!$C$4="Shetland Islands Local Authority",Results!$C$4="Eilean Siar Local Authority"),OR($F70=1,$F70=5)),0,new_ci(VALUE(LEFT(Options!$B$14,2)),$C70,$E70,$F70,2016,$I70,1,$H70,$G70*$H70,SIMD_rateratios_mortality,VALUE(VLOOKUP(Options!$B$8,Lists!$I$2:$J$31,2)))*10)) -> 235.2490071 | L70: =IF(AND(OR(Results!$C$4="Orkney Health Board",Results!$C$4="Orkney Islands Local Authority"),$F70=1),0,IF(AND(OR(Results!$C$4="Shetland Health Board",Results!$C$4="Western Isles Health Board",Results!$C$4="Shetland Islands Local Authority",Results!$C$4="Eilean Siar Local Authority"),OR($F70=1,$F70=5)),0,new_ci(VALUE(LEFT(Options!$B$14,2)),$C70,$E70,$F70,2016,$I70+$J70,1,$H70,$G70*$H70, SIMD_rateratios_mortality, VALUE(VLOOKUP(Options!$B$8,Lists!$I$2:$J$31,2)))*10)) -> 214.1408704 | M70: =IF(AND(OR(Results!$C$4="Orkney Health Board",Results!$C$4="Orkney Islands Local Authority"),$F70=1),0,IF(AND(OR(Results!$C$4="Shetland Health Board",Results!$C$4="Western Isles Health Board",Results!$C$4="Shetland Islands Local Authority",Results!$C$4="Eilean Siar Local Authority"),OR($F70=1,$F70=5)),0,new_yllv2(VALUE(LEFT(Options!$B$14,2)),$C70,$D70,$E70,$F70,2016,$I70,1,$H70,$G70*$H70,SIMD_rateratios_mortality,VALUE(VLOOKUP(Options!$B$8,Lists!$I$2:$J$31,2)))*10)) -> 7055.118663 | N70: =IF(AND(OR(Results!$C$4="Orkney Health Board",Results!$C$4="Orkney Islands Local Authority"),$F70=1),0,IF(AND(OR(Results!$C$4="Shetland Health Board",Results!$C$4="Western Isles Health Board",Results!$C$4="Shetland Islands Local Authority",Results!$C$4="Eilean Siar Local Authority"),OR($F70=1,$F70=5)),0,new_yllv2(VALUE(LEFT(Options!$B$14,2)),$C70,$D70,$E70,$F70,2016,$I70+$J70,1,$H70,$G70*$H70,SIMD_rateratios_mortality,VALUE(VLOOKUP(Options!$B$8,Lists!$I$2:$J$31,2)))*10)) -> 6422.08556 | O70: =IF(AND(OR(Results!$C$4="Orkney Health Board",Results!$C$4="Orkney Islands Local Authority"),$F70=1),0,IF(AND(OR(Results!$C$4="Shetland Health Board",Results!$C$4="Western Isles Health Board",Results!$C$4="Shetland Islands Local Authority",Results!$C$4="Eilean Siar Local Authority"),OR($F70=1,$F70=5)),0,hosp_count(VALUE(LEFT(Options!$B$14,2)),$C70,$E70,$F70,2016,$I70,1,$H70,$G70*$H70, SIMD_rateratios_hosp, SIMD_rateratios_mortality,VALUE(VLOOKUP(Options!$B$8,Lists!$I$2:$J$31,2)))*10)) -> 13452.08093 | P70: =IF(AND(OR(Results!$C$4="Orkney Health Board",Results!$C$4="Orkney Islands Local Authority"),$F70=1),0,IF(AND(OR(Results!$C$4="Shetland Health Board",Results!$C$4="Western Isles Health Board",Results!$C$4="Shetland Islands Local Authority",Results!$C$4="Eilean Siar Local Authority"),OR($F70=1,$F70=5)),0,hosp_count(VALUE(LEFT(Options!$B$14,2)),$C70,$E70,$F70,2016,$I70+$J70,1,$H70,$G70*$H70, SIMD_rateratios_hosp, SIMD_rateratios_mortality,VALUE(VLOOKUP(Options!$B$8,Lists!$I$2:$J$31,2)))*10)) -> 12406.31553 | Q70: =IF(AND(OR(Results!$C$4="Orkney Health Board",Results!$C$4="Orkney Islands Local Authority"),$F70=1),0,IF(AND(OR(Results!$C$4="Shetland Health Board",Results!$C$4="Western Isles Health Board",Results!$C$4="Shetland Islands Local Authority",Results!$C$4="Eilean Siar Local Authority"),OR($F70=1,$F70=5)),0,prem_mort(VALUE(LEFT(Options!$B$14,2)),$C70,$E70,$F70,2016,$I70,1,$H70,$G70*$H70,SIMD_rateratios_mortality,VALUE(VLOOKUP(Options!$B$8,Lists!$I$2:$J$31,2)))*10)) -> 235.2490071 | R70: =IF(AND(OR(Results!$C$4="Orkney Health Board",Results!$C$4="Orkney Islands Local Authority"),$F70=1),0,IF(AND(OR(Results!$C$4="Shetland Health Board",Results!$C$4="Western Isles Health Board",Results!$C$4="Shetland Islands Local Authority",Results!$C$4="Eilean Siar Local Authority"),OR($F70=1,$F70=5)),0,prem_mort(VALUE(LEFT(Options!$B$14,2)),$C70,$E70,$F70,2016,$I70+$J70,1,$H70,$G70*$H70,SIMD_rateratios_mortality,VALUE(VLOOKUP(Options!$B$8,Lists!$I$2:$J$31,2)))*10)) -> 214.1408704 | S70: 592.50707 | T70: 539.3433165 | U70: 17769.2894 | V70: 16174.90822 | W70: 33880.92115 | X70: 31247.01674 | Y70: 592.50707 | Z70: 539.3433165 | AA70: 4147549.49 | AB70: 3775403.216 | AC70: 124385025.8 | AD70: 113224357.5 | AE70: 237166448.1 | AF70: 218729117.2 | AG70: 4147549.49 | AH70: 3775403.216 | AI70: 7000
B71: Female 55-59 | C71: 56.953041 | D71: 83.47304 | E71: female | F71: 1 | G71: 1 | H71: =HLOOKUP(Calculations!$E$2,'Population 2016'!$C$3:$BC$249,'Population 2016'!BD71,FALSE)/10 -> 3552.8 | I71: 0 | J71: 3552.8 | K71: =IF(AND(OR(Results!$C$4="Orkney Health Board",Results!$C$4="Orkney Islands Local Authority"),$F71=1),0,IF(AND(OR(Results!$C$4="Shetland Health Board",Results!$C$4="Western Isles Health Board",Results!$C$4="Shetland Islands Local Authority",Results!$C$4="Eilean Siar Local Authority"),OR($F71=1,$F71=5)),0,new_ci(VALUE(LEFT(Options!$B$14,2)),$C71,$E71,$F71,2016,$I71,1,$H71,$G71*$H71,SIMD_rateratios_mortality,VALUE(VLOOKUP(Options!$B$8,Lists!$I$2:$J$31,2)))*10)) -> 320.5420077 | L71: =IF(AND(OR(Results!$C$4="Orkney Health Board",Results!$C$4="Orkney Islands Local Authority"),$F71=1),0,IF(AND(OR(Results!$C$4="Shetland Health Board",Results!$C$4="Western Isles Health Board",Results!$C$4="Shetland Islands Local Authority",Results!$C$4="Eilean Siar Local Authority"),OR($F71=1,$F71=5)),0,new_ci(VALUE(LEFT(Options!$B$14,2)),$C71,$E71,$F71,2016,$I71+$J71,1,$H71,$G71*$H71, SIMD_rateratios_mortality, VALUE(VLOOKUP(Options!$B$8,Lists!$I$2:$J$31,2)))*10)) -> 291.8171539 | M71: =IF(AND(OR(Results!$C$4="Orkney Health Board",Results!$C$4="Orkney Islands Local Authority"),$F71=1),0,IF(AND(OR(Results!$C$4="Shetland Health Board",Results!$C$4="Western Isles Health Board",Results!$C$4="Shetland Islands Local Authority",Results!$C$4="Eilean Siar Local Authority"),OR($F71=1,$F71=5)),0,new_yllv2(VALUE(LEFT(Options!$B$14,2)),$C71,$D71,$E71,$F71,2016,$I71,1,$H71,$G71*$H71,SIMD_rateratios_mortality,VALUE(VLOOKUP(Options!$B$8,Lists!$I$2:$J$31,2)))*10)) -> 8180.231716 | N71: =IF(AND(OR(Results!$C$4="Orkney Health Board",Results!$C$4="Orkney Islands Local Authority"),$F71=1),0,IF(AND(OR(Results!$C$4="Shetland Health Board",Results!$C$4="Western Isles Health Board",Results!$C$4="Shetland Islands Local Authority",Results!$C$4="Eilean Siar Local Authority"),OR($F71=1,$F71=5)),0,new_yllv2(VALUE(LEFT(Options!$B$14,2)),$C71,$D71,$E71,$F71,2016,$I71+$J71,1,$H71,$G71*$H71,SIMD_rateratios_mortality,VALUE(VLOOKUP(Options!$B$8,Lists!$I$2:$J$31,2)))*10)) -> 7447.173475 | O71: =IF(AND(OR(Results!$C$4="Orkney Health Board",Results!$C$4="Orkney Islands Local Authority"),$F71=1),0,IF(AND(OR(Results!$C$4="Shetland Health Board",Results!$C$4="Western Isles Health Board",Results!$C$4="Shetland Islands Local Authority",Results!$C$4="Eilean Siar Local Authority"),OR($F71=1,$F71=5)),0,hosp_count(VALUE(LEFT(Options!$B$14,2)),$C71,$E71,$F71,2016,$I71,1,$H71,$G71*$H71, SIMD_rateratios_hosp, SIMD_rateratios_mortality,VALUE(VLOOKUP(Options!$B$8,Lists!$I$2:$J$31,2)))*10)) -> 13637.46804 | P71: =IF(AND(OR(Results!$C$4="Orkney Health Board",Results!$C$4="Orkney Islands Local Authority"),$F71=1),0,IF(AND(OR(Results!$C$4="Shetland Health Board",Results!$C$4="Western Isles Health Board",Results!$C$4="Shetland Islands Local Authority",Results!$C$4="Eilean Siar Local Authority"),OR($F71=1,$F71=5)),0,hosp_count(VALUE(LEFT(Options!$B$14,2)),$C71,$E71,$F71,2016,$I71+$J71,1,$H71,$G71*$H71, SIMD_rateratios_hosp, SIMD_rateratios_mortality,VALUE(VLOOKUP(Options!$B$8,Lists!$I$2:$J$31,2)))*10)) -> 12577.12413 | Q71: =IF(AND(OR(Results!$C$4="Orkney Health Board",Results!$C$4="Orkney Islands Local Authority"),$F71=1),0,IF(AND(OR(Results!$C$4="Shetland Health Board",Results!$C$4="Western Isles Health Board",Results!$C$4="Shetland Islands Local Authority",Results!$C$4="Eilean Siar Local Authority"),OR($F71=1,$F71=5)),0,prem_mort(VALUE(LEFT(Options!$B$14,2)),$C71,$E71,$F71,2016,$I71,1,$H71,$G71*$H71,SIMD_rateratios_mortality,VALUE(VLOOKUP(Options!$B$8,Lists!$I$2:$J$31,2)))*10)) -> 320.5420077 | R71: =IF(AND(OR(Results!$C$4="Orkney Health Board",Results!$C$4="Orkney Islands Local Authority"),$F71=1),0,IF(AND(OR(Results!$C$4="Shetland Health Board",Results!$C$4="Western Isles Health Board",Results!$C$4="Shetland Islands Local Authority",Results!$C$4="Eilean Siar Local Authority"),OR($F71=1,$F71=5)),0,prem_mort(VALUE(LEFT(Options!$B$14,2)),$C71,$E71,$F71,2016,$I71+$J71,1,$H71,$G71*$H71,SIMD_rateratios_mortality,VALUE(VLOOKUP(Options!$B$8,Lists!$I$2:$J$31,2)))*10)) -> 291.8171539 | S71: 902.22362 | T71: 821.3723088 | U71: 23024.74588 | V71: 20961.4205 | W71: 38385.12735 | X71: 35400.59708 | Y71: 902.22362 | Z71: 821.3723088 | AA71: 5864453.53 | AB71: 5338920.007 | AC71: 149660848.2 | AD71: 136249233.3 | AE71: 249503327.8 | AF71: 230103881 | AG71: 5864453.53 | AH71: 5338920.007 | AI71: 6500
B72: Female 60-64 | C72: 61.947388 | D72: 84.16739 | E72: female | F72: 1 | G72: 1 | H72: =HLOOKUP(Calculations!$E$2,'Population 2016'!$C$3:$BC$249,'Population 2016'!BD72,FALSE)/10 -> 2921.2 | I72: 0 | J72: 2921.2 | K72: =IF(AND(OR(Results!$C$4="Orkney Health Board",Results!$C$4="Orkney Islands Local Authority"),$F72=1),0,IF(AND(OR(Results!$C$4="Shetland Health Board",Results!$C$4="Western Isles Health Board",Results!$C$4="Shetland Islands Local Authority",Results!$C$4="Eilean Siar Local Authority"),OR($F72=1,$F72=5)),0,new_ci(VALUE(LEFT(Options!$B$14,2)),$C72,$E72,$F72,2016,$I72,1,$H72,$G72*$H72,SIMD_rateratios_mortality,VALUE(VLOOKUP(Options!$B$8,Lists!$I$2:$J$31,2)))*10)) -> 402.0871222 | L72: =IF(AND(OR(Results!$C$4="Orkney Health Board",Results!$C$4="Orkney Islands Local Authority"),$F72=1),0,IF(AND(OR(Results!$C$4="Shetland Health Board",Results!$C$4="Western Isles Health Board",Results!$C$4="Shetland Islands Local Authority",Results!$C$4="Eilean Siar Local Authority"),OR($F72=1,$F72=5)),0,new_ci(VALUE(LEFT(Options!$B$14,2)),$C72,$E72,$F72,2016,$I72+$J72,1,$H72,$G72*$H72, SIMD_rateratios_mortality, VALUE(VLOOKUP(Options!$B$8,Lists!$I$2:$J$31,2)))*10)) -> 366.1379487 | M72: =IF(AND(OR(Results!$C$4="Orkney Health Board",Results!$C$4="Orkney Islands Local Authority"),$F72=1),0,IF(AND(OR(Results!$C$4="Shetland Health Board",Results!$C$4="Western Isles Health Board",Results!$C$4="Shetland Islands Local Authority",Results!$C$4="Eilean Siar Local Authority"),OR($F72=1,$F72=5)),0,new_yllv2(VALUE(LEFT(Options!$B$14,2)),$C72,$D72,$E72,$F72,2016,$I72,1,$H72,$G72*$H72,SIMD_rateratios_mortality,VALUE(VLOOKUP(Options!$B$8,Lists!$I$2:$J$31,2)))*10)) -> 8532.289536 | N72: =IF(AND(OR(Results!$C$4="Orkney Health Board",Results!$C$4="Orkney Islands Local Authority"),$F72=1),0,IF(AND(OR(Results!$C$4="Shetland Health Board",Results!$C$4="Western Isles Health Board",Results!$C$4="Shetland Islands Local Authority",Results!$C$4="Eilean Siar Local Authority"),OR($F72=1,$F72=5)),0,new_yllv2(VALUE(LEFT(Options!$B$14,2)),$C72,$D72,$E72,$F72,2016,$I72+$J72,1,$H72,$G72*$H72,SIMD_rateratios_mortality,VALUE(VLOOKUP(Options!$B$8,Lists!$I$2:$J$31,2)))*10)) -> 7769.448004 | O72: =IF(AND(OR(Results!$C$4="Orkney Health Board",Results!$C$4="Orkney Islands Local Authority"),$F72=1),0,IF(AND(OR(Results!$C$4="Shetland Health Board",Results!$C$4="Western Isles Health Board",Results!$C$4="Shetland Islands Local Authority",Results!$C$4="Eilean Siar Local Authority"),OR($F72=1,$F72=5)),0,hosp_count(VALUE(LEFT(Options!$B$14,2)),$C72,$E72,$F72,2016,$I72,1,$H72,$G72*$H72, SIMD_rateratios_hosp, SIMD_rateratios_mortality,VALUE(VLOOKUP(Options!$B$8,Lists!$I$2:$J$31,2)))*10)) -> 12714.02519 | P72: =IF(AND(OR(Results!$C$4="Orkney Health Board",Results!$C$4="Orkney Islands Local Authority"),$F72=1),0,IF(AND(OR(Results!$C$4="Shetland Health Board",Results!$C$4="Western Isles Health Board",Results!$C$4="Shetland Islands Local Authority",Results!$C$4="Eilean Siar Local Authority"),OR($F72=1,$F72=5)),0,hosp_count(VALUE(LEFT(Options!$B$14,2)),$C72,$E72,$F72,2016,$I72+$J72,1,$H72,$G72*$H72, SIMD_rateratios_hosp, SIMD_rateratios_mortality,VALUE(VLOOKUP(Options!$B$8,Lists!$I$2:$J$31,2)))*10)) -> 11725.60436 | Q72: =IF(AND(OR(Results!$C$4="Orkney Health Board",Results!$C$4="Orkney Islands Local Authority"),$F72=1),0,IF(AND(OR(Results!$C$4="Shetland Health Board",Results!$C$4="Western Isles Health Board",Results!$C$4="Shetland Islands Local Authority",Results!$C$4="Eilean Siar Local Authority"),OR($F72=1,$F72=5)),0,prem_mort(VALUE(LEFT(Options!$B$14,2)),$C72,$E72,$F72,2016,$I72,1,$H72,$G72*$H72,SIMD_rateratios_mortality,VALUE(VLOOKUP(Options!$B$8,Lists!$I$2:$J$31,2)))*10)) -> 402.0871222 | R72: =IF(AND(OR(Results!$C$4="Orkney Health Board",Results!$C$4="Orkney Islands Local Authority"),$F72=1),0,IF(AND(OR(Results!$C$4="Shetland Health Board",Results!$C$4="Western Isles Health Board",Results!$C$4="Shetland Islands Local Authority",Results!$C$4="Eilean Siar Local Authority"),OR($F72=1,$F72=5)),0,prem_mort(VALUE(LEFT(Options!$B$14,2)),$C72,$E72,$F72,2016,$I72+$J72,1,$H72,$G72*$H72,SIMD_rateratios_mortality,VALUE(VLOOKUP(Options!$B$8,Lists!$I$2:$J$31,2)))*10)) -> 366.1379487 | S72: 1376.44503 | T72: 1253.381996 | U72: 29208.16629 | V72: 26596.76846 | W72: 43523.29587 | X72: 40139.68356 | Y72: 1376.44503 | Z72: 1253.381996 | AA72: 8258670.18 | AB72: 7520291.977 | AC72: 175248997.7 | AD72: 159580610.8 | AE72: 261139775.2 | AF72: 240838101.4 | AG72: 8258670.18 | AH72: 7520291.977 | AI72: 6000
B73: Female 65-69 | C73: 67.063927 | D73: 85.19393 | E73: female | F73: 1 | G73: 1 | H73: =HLOOKUP(Calculations!$E$2,'Population 2016'!$C$3:$BC$249,'Population 2016'!BD73,FALSE)/10 -> 2776.2 | I73: 0 | J73: 2776.2 | K73: =IF(AND(OR(Results!$C$4="Orkney Health Board",Results!$C$4="Orkney Islands Local Authority"),$F73=1),0,IF(AND(OR(Results!$C$4="Shetland Health Board",Results!$C$4="Western Isles Health Board",Results!$C$4="Shetland Islands Local Authority",Results!$C$4="Eilean Siar Local Authority"),OR($F73=1,$F73=5)),0,new_ci(VALUE(LEFT(Options!$B$14,2)),$C73,$E73,$F73,2016,$I73,1,$H73,$G73*$H73,SIMD_rateratios_mortality,VALUE(VLOOKUP(Options!$B$8,Lists!$I$2:$J$31,2)))*10)) -> 588.262763 | L73: =IF(AND(OR(Results!$C$4="Orkney Health Board",Results!$C$4="Orkney Islands Local Authority"),$F73=1),0,IF(AND(OR(Results!$C$4="Shetland Health Board",Results!$C$4="Western Isles Health Board",Results!$C$4="Shetland Islands Local Authority",Results!$C$4="Eilean Siar Local Authority"),OR($F73=1,$F73=5)),0,new_ci(VALUE(LEFT(Options!$B$14,2)),$C73,$E73,$F73,2016,$I73+$J73,1,$H73,$G73*$H73, SIMD_rateratios_mortality, VALUE(VLOOKUP(Options!$B$8,Lists!$I$2:$J$31,2)))*10)) -> 535.84959 | M73: =IF(AND(OR(Results!$C$4="Orkney Health Board",Results!$C$4="Orkney Islands Local Authority"),$F73=1),0,IF(AND(OR(Results!$C$4="Shetland Health Board",Results!$C$4="Western Isles Health Board",Results!$C$4="Shetland Islands Local Authority",Results!$C$4="Eilean Siar Local Authority"),OR($F73=1,$F73=5)),0,new_yllv2(VALUE(LEFT(Options!$B$14,2)),$C73,$D73,$E73,$F73,2016,$I73,1,$H73,$G73*$H73,SIMD_rateratios_mortality,VALUE(VLOOKUP(Options!$B$8,Lists!$I$2:$J$31,2)))*10)) -> 10076.94289 | N73: =IF(AND(OR(Results!$C$4="Orkney Health Board",Results!$C$4="Orkney Islands Local Authority"),$F73=1),0,IF(AND(OR(Results!$C$4="Shetland Health Board",Results!$C$4="Western Isles Health Board",Results!$C$4="Shetland Islands Local Authority",Results!$C$4="Eilean Siar Local Authority"),OR($F73=1,$F73=5)),0,new_yllv2(VALUE(LEFT(Options!$B$14,2)),$C73,$D73,$E73,$F73,2016,$I73+$J73,1,$H73,$G73*$H73,SIMD_rateratios_mortality,VALUE(VLOOKUP(Options!$B$8,Lists!$I$2:$J$31,2)))*10)) -> 9179.105084 | O73: =IF(AND(OR(Results!$C$4="Orkney Health Board",Results!$C$4="Orkney Islands Local Authority"),$F73=1),0,IF(AND(OR(Results!$C$4="Shetland Health Board",Results!$C$4="Western Isles Health Board",Results!$C$4="Shetland Islands Local Authority",Results!$C$4="Eilean Siar Local Authority"),OR($F73=1,$F73=5)),0,hosp_count(VALUE(LEFT(Options!$B$14,2)),$C73,$E73,$F73,2016,$I73,1,$H73,$G73*$H73, SIMD_rateratios_hosp, SIMD_rateratios_mortality,VALUE(VLOOKUP(Options!$B$8,Lists!$I$2:$J$31,2)))*10)) -> 13742.51292 | P73: =IF(AND(OR(Results!$C$4="Orkney Health Board",Results!$C$4="Orkney Islands Local Authority"),$F73=1),0,IF(AND(OR(Results!$C$4="Shetland Health Board",Results!$C$4="Western Isles Health Board",Results!$C$4="Shetland Islands Local Authority",Results!$C$4="Eilean Siar Local Authority"),OR($F73=1,$F73=5)),0,hosp_count(VALUE(LEFT(Options!$B$14,2)),$C73,$E73,$F73,2016,$I73+$J73,1,$H73,$G73*$H73, SIMD_rateratios_hosp, SIMD_rateratios_mortality,VALUE(VLOOKUP(Options!$B$8,Lists!$I$2:$J$31,2)))*10)) -> 12674.13865 | Q73: =IF(AND(OR(Results!$C$4="Orkney Health Board",Results!$C$4="Orkney Islands Local Authority"),$F73=1),0,IF(AND(OR(Results!$C$4="Shetland Health Board",Results!$C$4="Western Isles Health Board",Results!$C$4="Shetland Islands Local Authority",Results!$C$4="Eilean Siar Local Authority"),OR($F73=1,$F73=5)),0,prem_mort(VALUE(LEFT(Options!$B$14,2)),$C73,$E73,$F73,2016,$I73,1,$H73,$G73*$H73,SIMD_rateratios_mortality,VALUE(VLOOKUP(Options!$B$8,Lists!$I$2:$J$31,2)))*10)) -> 588.262763 | R73: =IF(AND(OR(Results!$C$4="Orkney Health Board",Results!$C$4="Orkney Islands Local Authority"),$F73=1),0,IF(AND(OR(Results!$C$4="Shetland Health Board",Results!$C$4="Western Isles Health Board",Results!$C$4="Shetland Islands Local Authority",Results!$C$4="Eilean Siar Local Authority"),OR($F73=1,$F73=5)),0,prem_mort(VALUE(LEFT(Options!$B$14,2)),$C73,$E73,$F73,2016,$I73+$J73,1,$H73,$G73*$H73,SIMD_rateratios_mortality,VALUE(VLOOKUP(Options!$B$8,Lists!$I$2:$J$31,2)))*10)) -> 535.84959 | S73: 2118.94951 | T73: 1930.154852 | U73: 36297.61146 | V73: 33063.5584 | W73: 49501.16318 | X73: 45652.82995 | Y73: 2118.94951 | Z73: 1930.154852 | AA73: 11654222.3 | AB73: 10615851.69 | AC73: 199636863 | AD73: 181849571.2 | AE73: 272256397.5 | AF73: 251090564.7 | AG73: 11654222.3 | AH73: 10615851.69 | AI73: 5500
B74: Female 70-74 | C74: 71.938164 | D74: 86.24816 | E74: female | F74: 1 | G74: 1 | H74: =HLOOKUP(Calculations!$E$2,'Population 2016'!$C$3:$BC$249,'Population 2016'!BD74,FALSE)/10 -> 2178.6 | I74: 0 | J74: 2178.6 | K74: =IF(AND(OR(Results!$C$4="Orkney Health Board",Results!$C$4="Orkney Islands Local Authority"),$F74=1),0,IF(AND(OR(Results!$C$4="Shetland Health Board",Results!$C$4="Western Isles Health Board",Results!$C$4="Shetland Islands Local Authority",Results!$C$4="Eilean Siar Local Authority"),OR($F74=1,$F74=5)),0,new_ci(VALUE(LEFT(Options!$B$14,2)),$C74,$E74,$F74,2016,$I74,1,$H74,$G74*$H74,SIMD_rateratios_mortality,VALUE(VLOOKUP(Options!$B$8,Lists!$I$2:$J$31,2)))*10)) -> 694.9719273 | L74: =IF(AND(OR(Results!$C$4="Orkney Health Board",Results!$C$4="Orkney Islands Local Authority"),$F74=1),0,IF(AND(OR(Results!$C$4="Shetland Health Board",Results!$C$4="Western Isles Health Board",Results!$C$4="Shetland Islands Local Authority",Results!$C$4="Eilean Siar Local Authority"),OR($F74=1,$F74=5)),0,new_ci(VALUE(LEFT(Options!$B$14,2)),$C74,$E74,$F74,2016,$I74+$J74,1,$H74,$G74*$H74, SIMD_rateratios_mortality, VALUE(VLOOKUP(Options!$B$8,Lists!$I$2:$J$31,2)))*10)) -> 633.3461357 | M74: =IF(AND(OR(Results!$C$4="Orkney Health Board",Results!$C$4="Orkney Islands Local Authority"),$F74=1),0,IF(AND(OR(Results!$C$4="Shetland Health Board",Results!$C$4="Western Isles Health Board",Results!$C$4="Shetland Islands Local Authority",Results!$C$4="Eilean Siar Local Authority"),OR($F74=1,$F74=5)),0,new_yllv2(VALUE(LEFT(Options!$B$14,2)),$C74,$D74,$E74,$F74,2016,$I74,1,$H74,$G74*$H74,SIMD_rateratios_mortality,VALUE(VLOOKUP(Options!$B$8,Lists!$I$2:$J$31,2)))*10)) -> 9250.073572 | N74: =IF(AND(OR(Results!$C$4="Orkney Health Board",Results!$C$4="Orkney Islands Local Authority"),$F74=1),0,IF(AND(OR(Results!$C$4="Shetland Health Board",Results!$C$4="Western Isles Health Board",Results!$C$4="Shetland Islands Local Authority",Results!$C$4="Eilean Siar Local Authority"),OR($F74=1,$F74=5)),0,new_yllv2(VALUE(LEFT(Options!$B$14,2)),$C74,$D74,$E74,$F74,2016,$I74+$J74,1,$H74,$G74*$H74,SIMD_rateratios_mortality,VALUE(VLOOKUP(Options!$B$8,Lists!$I$2:$J$31,2)))*10)) -> 8429.834532 | O74: =IF(AND(OR(Results!$C$4="Orkney Health Board",Results!$C$4="Orkney Islands Local Authority"),$F74=1),0,IF(AND(OR(Results!$C$4="Shetland Health Board",Results!$C$4="Western Isles Health Board",Results!$C$4="Shetland Islands Local Authority",Results!$C$4="Eilean Siar Local Authority"),OR($F74=1,$F74=5)),0,hosp_count(VALUE(LEFT(Options!$B$14,2)),$C74,$E74,$F74,2016,$I74,1,$H74,$G74*$H74, SIMD_rateratios_hosp, SIMD_rateratios_mortality,VALUE(VLOOKUP(Options!$B$8,Lists!$I$2:$J$31,2)))*10)) -> 12191.0075 | P74: =IF(AND(OR(Results!$C$4="Orkney Health Board",Results!$C$4="Orkney Islands Local Authority"),$F74=1),0,IF(AND(OR(Results!$C$4="Shetland Health Board",Results!$C$4="Western Isles Health Board",Results!$C$4="Shetland Islands Local Authority",Results!$C$4="Eilean Siar Local Authority"),OR($F74=1,$F74=5)),0,hosp_count(VALUE(LEFT(Options!$B$14,2)),$C74,$E74,$F74,2016,$I74+$J74,1,$H74,$G74*$H74, SIMD_rateratios_hosp, SIMD_rateratios_mortality,VALUE(VLOOKUP(Options!$B$8,Lists!$I$2:$J$31,2)))*10)) -> 11243.00849 | Q74: =IF(AND(OR(Results!$C$4="Orkney Health Board",Results!$C$4="Orkney Islands Local Authority"),$F74=1),0,IF(AND(OR(Results!$C$4="Shetland Health Board",Results!$C$4="Western Isles Health Board",Results!$C$4="Shetland Islands Local Authority",Results!$C$4="Eilean Siar Local Authority"),OR($F74=1,$F74=5)),0,prem_mort(VALUE(LEFT(Options!$B$14,2)),$C74,$E74,$F74,2016,$I74,1,$H74,$G74*$H74,SIMD_rateratios_mortality,VALUE(VLOOKUP(Options!$B$8,Lists!$I$2:$J$31,2)))*10)) -> 694.9719273 | R74: =IF(AND(OR(Results!$C$4="Orkney Health Board",Results!$C$4="Orkney Islands Local Authority"),$F74=1),0,IF(AND(OR(Results!$C$4="Shetland Health Board",Results!$C$4="Western Isles Health Board",Results!$C$4="Shetland Islands Local Authority",Results!$C$4="Eilean Siar Local Authority"),OR($F74=1,$F74=5)),0,prem_mort(VALUE(LEFT(Options!$B$14,2)),$C74,$E74,$F74,2016,$I74+$J74,1,$H74,$G74*$H74,SIMD_rateratios_mortality,VALUE(VLOOKUP(Options!$B$8,Lists!$I$2:$J$31,2)))*10)) -> 633.3461357 | S74: 3189.99324 | T74: 2907.124464 | U74: 42458.79726 | V74: 38693.81498 | W74: 55957.98909 | X74: 51606.57528 | Y74: 3189.99324 | Z74: 2907.124464 | AA74: 15949966.2 | AB74: 14535622.32 | AC74: 212293986.3 | AD74: 193469074.9 | AE74: 279789945.4 | AF74: 258032876.4 | AG74: 15949966.2 | AH74: 14535622.32 | AI74: 5000
B75: Female 75-79 | C75: 76.942825 | D75: 87.81283 | E75: female | F75: 1 | G75: 1 | H75: =HLOOKUP(Calculations!$E$2,'Population 2016'!$C$3:$BC$249,'Population 2016'!BD75,FALSE)/10 -> 1913.8 | I75: 0 | J75: 1913.8 | K75: =IF(AND(OR(Results!$C$4="Orkney Health Board",Results!$C$4="Orkney Islands Local Authority"),$F75=1),0,IF(AND(OR(Results!$C$4="Shetland Health Board",Results!$C$4="Western Isles Health Board",Results!$C$4="Shetland Islands Local Authority",Results!$C$4="Eilean Siar Local Authority"),OR($F75=1,$F75=5)),0,new_ci(VALUE(LEFT(Options!$B$14,2)),$C75,$E75,$F75,2016,$I75,1,$H75,$G75*$H75,SIMD_rateratios_mortality,VALUE(VLOOKUP(Options!$B$8,Lists!$I$2:$J$31,2)))*10)) -> 926.4920777 | L75: =IF(AND(OR(Results!$C$4="Orkney Health Board",Results!$C$4="Orkney Islands Local Authority"),$F75=1),0,IF(AND(OR(Results!$C$4="Shetland Health Board",Results!$C$4="Western Isles Health Board",Results!$C$4="Shetland Islands Local Authority",Results!$C$4="Eilean Siar Local Authority"),OR($F75=1,$F75=5)),0,new_ci(VALUE(LEFT(Options!$B$14,2)),$C75,$E75,$F75,2016,$I75+$J75,1,$H75,$G75*$H75, SIMD_rateratios_mortality, VALUE(VLOOKUP(Options!$B$8,Lists!$I$2:$J$31,2)))*10)) -> 844.9882617 | M75: =IF(AND(OR(Results!$C$4="Orkney Health Board",Results!$C$4="Orkney Islands Local Authority"),$F75=1),0,IF(AND(OR(Results!$C$4="Shetland Health Board",Results!$C$4="Western Isles Health Board",Results!$C$4="Shetland Islands Local Authority",Results!$C$4="Eilean Siar Local Authority"),OR($F75=1,$F75=5)),0,new_yllv2(VALUE(LEFT(Options!$B$14,2)),$C75,$D75,$E75,$F75,2016,$I75,1,$H75,$G75*$H75,SIMD_rateratios_mortality,VALUE(VLOOKUP(Options!$B$8,Lists!$I$2:$J$31,2)))*10)) -> 9144.48144 | N75: =IF(AND(OR(Results!$C$4="Orkney Health Board",Results!$C$4="Orkney Islands Local Authority"),$F75=1),0,IF(AND(OR(Results!$C$4="Shetland Health Board",Results!$C$4="Western Isles Health Board",Results!$C$4="Shetland Islands Local Authority",Results!$C$4="Eilean Siar Local Authority"),OR($F75=1,$F75=5)),0,new_yllv2(VALUE(LEFT(Options!$B$14,2)),$C75,$D75,$E75,$F75,2016,$I75+$J75,1,$H75,$G75*$H75,SIMD_rateratios_mortality,VALUE(VLOOKUP(Options!$B$8,Lists!$I$2:$J$31,2)))*10)) -> 8340.038367 | O75: =IF(AND(OR(Results!$C$4="Orkney Health Board",Results!$C$4="Orkney Islands Local Authority"),$F75=1),0,IF(AND(OR(Results!$C$4="Shetland Health Board",Results!$C$4="Western Isles Health Board",Results!$C$4="Shetland Islands Local Authority",Results!$C$4="Eilean Siar Local Authority"),OR($F75=1,$F75=5)),0,hosp_count(VALUE(LEFT(Options!$B$14,2)),$C75,$E75,$F75,2016,$I75,1,$H75,$G75*$H75, SIMD_rateratios_hosp, SIMD_rateratios_mortality,VALUE(VLOOKUP(Options!$B$8,Lists!$I$2:$J$31,2)))*10)) -> 12145.91145 | P75: =IF(AND(OR(Results!$C$4="Orkney Health Board",Results!$C$4="Orkney Islands Local Authority"),$F75=1),0,IF(AND(OR(Results!$C$4="Shetland Health Board",Results!$C$4="Western Isles Health Board",Results!$C$4="Shetland Islands Local Authority",Results!$C$4="Eilean Siar Local Authority"),OR($F75=1,$F75=5)),0,hosp_count(VALUE(LEFT(Options!$B$14,2)),$C75,$E75,$F75,2016,$I75+$J75,1,$H75,$G75*$H75, SIMD_rateratios_hosp, SIMD_rateratios_mortality,VALUE(VLOOKUP(Options!$B$8,Lists!$I$2:$J$31,2)))*10)) -> 11201.4939 | Q75: =IF(AND(OR(Results!$C$4="Orkney Health Board",Results!$C$4="Orkney Islands Local Authority"),$F75=1),0,IF(AND(OR(Results!$C$4="Shetland Health Board",Results!$C$4="Western Isles Health Board",Results!$C$4="Shetland Islands Local Authority",Results!$C$4="Eilean Siar Local Authority"),OR($F75=1,$F75=5)),0,prem_mort(VALUE(LEFT(Options!$B$14,2)),$C75,$E75,$F75,2016,$I75,1,$H75,$G75*$H75,SIMD_rateratios_mortality,VALUE(VLOOKUP(Options!$B$8,Lists!$I$2:$J$31,2)))*10)) -> 0 | R75: =IF(AND(OR(Results!$C$4="Orkney Health Board",Results!$C$4="Orkney Islands Local Authority"),$F75=1),0,IF(AND(OR(Results!$C$4="Shetland Health Board",Results!$C$4="Western Isles Health Board",Results!$C$4="Shetland Islands Local Authority",Results!$C$4="Eilean Siar Local Authority"),OR($F75=1,$F75=5)),0,prem_mort(VALUE(LEFT(Options!$B$14,2)),$C75,$E75,$F75,2016,$I75+$J75,1,$H75,$G75*$H75,SIMD_rateratios_mortality,VALUE(VLOOKUP(Options!$B$8,Lists!$I$2:$J$31,2)))*10)) -> 0 | S75: 4841.11233 | T75: 4415.238069 | U75: 47781.8029 | V75: 43578.42182 | W75: 63464.8942 | X75: 58530.11757 | Y75: 0 | Z75: 0 | AA75: 19364449.32 | AB75: 17660952.28 | AC75: 191127211.6 | AD75: 174313687.3 | AE75: 253859576.8 | AF75: 234120470.3 | AG75: 0 | AH75: 0 | AI75: 4000
B76: Female 80-84 | C76: 81.856712 | D76: 89.73671 | E76: female | F76: 1 | G76: 1 | H76: =HLOOKUP(Calculations!$E$2,'Population 2016'!$C$3:$BC$249,'Population 2016'!BD76,FALSE)/10 -> 1477.6 | I76: 0 | J76: 1477.6 | K76: =IF(AND(OR(Results!$C$4="Orkney Health Board",Results!$C$4="Orkney Islands Local Authority"),$F76=1),0,IF(AND(OR(Results!$C$4="Shetland Health Board",Results!$C$4="Western Isles Health Board",Results!$C$4="Shetland Islands Local Authority",Results!$C$4="Eilean Siar Local Authority"),OR($F76=1,$F76=5)),0,new_ci(VALUE(LEFT(Options!$B$14,2)),$C76,$E76,$F76,2016,$I76,1,$H76,$G76*$H76,SIMD_rateratios_mortality,VALUE(VLOOKUP(Options!$B$8,Lists!$I$2:$J$31,2)))*10)) -> 1072.708776 | L76: =IF(AND(OR(Results!$C$4="Orkney Health Board",Results!$C$4="Orkney Islands Local Authority"),$F76=1),0,IF(AND(OR(Results!$C$4="Shetland Health Board",Results!$C$4="Western Isles Health Board",Results!$C$4="Shetland Islands Local Authority",Results!$C$4="Eilean Siar Local Authority"),OR($F76=1,$F76=5)),0,new_ci(VALUE(LEFT(Options!$B$14,2)),$C76,$E76,$F76,2016,$I76+$J76,1,$H76,$G76*$H76, SIMD_rateratios_mortality, VALUE(VLOOKUP(Options!$B$8,Lists!$I$2:$J$31,2)))*10)) -> 979.4381587 | M76: =IF(AND(OR(Results!$C$4="Orkney Health Board",Results!$C$4="Orkney Islands Local Authority"),$F76=1),0,IF(AND(OR(Results!$C$4="Shetland Health Board",Results!$C$4="Western Isles Health Board",Results!$C$4="Shetland Islands Local Authority",Results!$C$4="Eilean Siar Local Authority"),OR($F76=1,$F76=5)),0,new_yllv2(VALUE(LEFT(Options!$B$14,2)),$C76,$D76,$E76,$F76,2016,$I76,1,$H76,$G76*$H76,SIMD_rateratios_mortality,VALUE(VLOOKUP(Options!$B$8,Lists!$I$2:$J$31,2)))*10)) -> 7380.234237 | N76: =IF(AND(OR(Results!$C$4="Orkney Health Board",Results!$C$4="Orkney Islands Local Authority"),$F76=1),0,IF(AND(OR(Results!$C$4="Shetland Health Board",Results!$C$4="Western Isles Health Board",Results!$C$4="Shetland Islands Local Authority",Results!$C$4="Eilean Siar Local Authority"),OR($F76=1,$F76=5)),0,new_yllv2(VALUE(LEFT(Options!$B$14,2)),$C76,$D76,$E76,$F76,2016,$I76+$J76,1,$H76,$G76*$H76,SIMD_rateratios_mortality,VALUE(VLOOKUP(Options!$B$8,Lists!$I$2:$J$31,2)))*10)) -> 6738.532573 | O76: =IF(AND(OR(Results!$C$4="Orkney Health Board",Results!$C$4="Orkney Islands Local Authority"),$F76=1),0,IF(AND(OR(Results!$C$4="Shetland Health Board",Results!$C$4="Western Isles Health Board",Results!$C$4="Shetland Islands Local Authority",Results!$C$4="Eilean Siar Local Authority"),OR($F76=1,$F76=5)),0,hosp_count(VALUE(LEFT(Options!$B$14,2)),$C76,$E76,$F76,2016,$I76,1,$H76,$G76*$H76, SIMD_rateratios_hosp, SIMD_rateratios_mortality,VALUE(VLOOKUP(Options!$B$8,Lists!$I$2:$J$31,2)))*10)) -> 10611.34119 | P76: =IF(AND(OR(Results!$C$4="Orkney Health Board",Results!$C$4="Orkney Islands Local Authority"),$F76=1),0,IF(AND(OR(Results!$C$4="Shetland Health Board",Results!$C$4="Western Isles Health Board",Results!$C$4="Shetland Islands Local Authority",Results!$C$4="Eilean Siar Local Authority"),OR($F76=1,$F76=5)),0,hosp_count(VALUE(LEFT(Options!$B$14,2)),$C76,$E76,$F76,2016,$I76+$J76,1,$H76,$G76*$H76, SIMD_rateratios_hosp, SIMD_rateratios_mortality,VALUE(VLOOKUP(Options!$B$8,Lists!$I$2:$J$31,2)))*10)) -> 9786.108572 | Q76: =IF(AND(OR(Results!$C$4="Orkney Health Board",Results!$C$4="Orkney Islands Local Authority"),$F76=1),0,IF(AND(OR(Results!$C$4="Shetland Health Board",Results!$C$4="Western Isles Health Board",Results!$C$4="Shetland Islands Local Authority",Results!$C$4="Eilean Siar Local Authority"),OR($F76=1,$F76=5)),0,prem_mort(VALUE(LEFT(Options!$B$14,2)),$C76,$E76,$F76,2016,$I76,1,$H76,$G76*$H76,SIMD_rateratios_mortality,VALUE(VLOOKUP(Options!$B$8,Lists!$I$2:$J$31,2)))*10)) -> 0 | R76: =IF(AND(OR(Results!$C$4="Orkney Health Board",Results!$C$4="Orkney Islands Local Authority"),$F76=1),0,IF(AND(OR(Results!$C$4="Shetland Health Board",Results!$C$4="Western Isles Health Board",Results!$C$4="Shetland Islands Local Authority",Results!$C$4="Eilean Siar Local Authority"),OR($F76=1,$F76=5)),0,prem_mort(VALUE(LEFT(Options!$B$14,2)),$C76,$E76,$F76,2016,$I76+$J76,1,$H76,$G76*$H76,SIMD_rateratios_mortality,VALUE(VLOOKUP(Options!$B$8,Lists!$I$2:$J$31,2)))*10)) -> 0 | S76: 7259.80493 | T76: 6628.574436 | U76: 49947.4434 | V76: 45604.57886 | W76: 71814.70758 | X76: 66229.75482 | Y76: 0 | Z76: 0 | AA76: 18149512.33 | AB76: 16571436.09 | AC76: 124868608.5 | AD76: 114011447.2 | AE76: 179536769 | AF76: 165574387.1 | AG76: 0 | AH76: 0 | AI76: 2500
B77: Female 85-89 | C77: 86.73082 | D77: 92.22082 | E77: female | F77: 1 | G77: 1 | H77: =HLOOKUP(Calculations!$E$2,'Population 2016'!$C$3:$BC$249,'Population 2016'!BD77,FALSE)/10 -> 886.9 | I77: 0 | J77: 886.9 | K77: =IF(AND(OR(Results!$C$4="Orkney Health Board",Results!$C$4="Orkney Islands Local Authority"),$F77=1),0,IF(AND(OR(Results!$C$4="Shetland Health Board",Results!$C$4="Western Isles Health Board",Results!$C$4="Shetland Islands Local Authority",Results!$C$4="Eilean Siar Local Authority"),OR($F77=1,$F77=5)),0,new_ci(VALUE(LEFT(Options!$B$14,2)),$C77,$E77,$F77,2016,$I77,1,$H77,$G77*$H77,SIMD_rateratios_mortality,VALUE(VLOOKUP(Options!$B$8,Lists!$I$2:$J$31,2)))*10)) -> 956.2419475 | L77: =IF(AND(OR(Results!$C$4="Orkney Health Board",Results!$C$4="Orkney Islands Local Authority"),$F77=1),0,IF(AND(OR(Results!$C$4="Shetland Health Board",Results!$C$4="Western Isles Health Board",Results!$C$4="Shetland Islands Local Authority",Results!$C$4="Eilean Siar Local Authority"),OR($F77=1,$F77=5)),0,new_ci(VALUE(LEFT(Options!$B$14,2)),$C77,$E77,$F77,2016,$I77+$J77,1,$H77,$G77*$H77, SIMD_rateratios_mortality, VALUE(VLOOKUP(Options!$B$8,Lists!$I$2:$J$31,2)))*10)) -> 874.5875295 | M77: =IF(AND(OR(Results!$C$4="Orkney Health Board",Results!$C$4="Orkney Islands Local Authority"),$F77=1),0,IF(AND(OR(Results!$C$4="Shetland Health Board",Results!$C$4="Western Isles Health Board",Results!$C$4="Shetland Islands Local Authority",Results!$C$4="Eilean Siar Local Authority"),OR($F77=1,$F77=5)),0,new_yllv2(VALUE(LEFT(Options!$B$14,2)),$C77,$D77,$E77,$F77,2016,$I77,1,$H77,$G77*$H77,SIMD_rateratios_mortality,VALUE(VLOOKUP(Options!$B$8,Lists!$I$2:$J$31,2)))*10)) -> 4293.526344 | N77: =IF(AND(OR(Results!$C$4="Orkney Health Board",Results!$C$4="Orkney Islands Local Authority"),$F77=1),0,IF(AND(OR(Results!$C$4="Shetland Health Board",Results!$C$4="Western Isles Health Board",Results!$C$4="Shetland Islands Local Authority",Results!$C$4="Eilean Siar Local Authority"),OR($F77=1,$F77=5)),0,new_yllv2(VALUE(LEFT(Options!$B$14,2)),$C77,$D77,$E77,$F77,2016,$I77+$J77,1,$H77,$G77*$H77,SIMD_rateratios_mortality,VALUE(VLOOKUP(Options!$B$8,Lists!$I$2:$J$31,2)))*10)) -> 3926.898007 | O77: =IF(AND(OR(Results!$C$4="Orkney Health Board",Results!$C$4="Orkney Islands Local Authority"),$F77=1),0,IF(AND(OR(Results!$C$4="Shetland Health Board",Results!$C$4="Western Isles Health Board",Results!$C$4="Shetland Islands Local Authority",Results!$C$4="Eilean Siar Local Authority"),OR($F77=1,$F77=5)),0,hosp_count(VALUE(LEFT(Options!$B$14,2)),$C77,$E77,$F77,2016,$I77,1,$H77,$G77*$H77, SIMD_rateratios_hosp, SIMD_rateratios_mortality,VALUE(VLOOKUP(Options!$B$8,Lists!$I$2:$J$31,2)))*10)) -> 7200.01394 | P77: =IF(AND(OR(Results!$C$4="Orkney Health Board",Results!$C$4="Orkney Islands Local Authority"),$F77=1),0,IF(AND(OR(Results!$C$4="Shetland Health Board",Results!$C$4="Western Isles Health Board",Results!$C$4="Shetland Islands Local Authority",Results!$C$4="Eilean Siar Local Authority"),OR($F77=1,$F77=5)),0,hosp_count(VALUE(LEFT(Options!$B$14,2)),$C77,$E77,$F77,2016,$I77+$J77,1,$H77,$G77*$H77, SIMD_rateratios_hosp, SIMD_rateratios_mortality,VALUE(VLOOKUP(Options!$B$8,Lists!$I$2:$J$31,2)))*10)) -> 6640.165003 | Q77: =IF(AND(OR(Results!$C$4="Orkney Health Board",Results!$C$4="Orkney Islands Local Authority"),$F77=1),0,IF(AND(OR(Results!$C$4="Shetland Health Board",Results!$C$4="Western Isles Health Board",Results!$C$4="Shetland Islands Local Authority",Results!$C$4="Eilean Siar Local Authority"),OR($F77=1,$F77=5)),0,prem_mort(VALUE(LEFT(Options!$B$14,2)),$C77,$E77,$F77,2016,$I77,1,$H77,$G77*$H77,SIMD_rateratios_mortality,VALUE(VLOOKUP(Options!$B$8,Lists!$I$2:$J$31,2)))*10)) -> 0 | R77: =IF(AND(OR(Results!$C$4="Orkney Health Board",Results!$C$4="Orkney Islands Local Authority"),$F77=1),0,IF(AND(OR(Results!$C$4="Shetland Health Board",Results!$C$4="Western Isles Health Board",Results!$C$4="Shetland Islands Local Authority",Results!$C$4="Eilean Siar Local Authority"),OR($F77=1,$F77=5)),0,prem_mort(VALUE(LEFT(Options!$B$14,2)),$C77,$E77,$F77,2016,$I77+$J77,1,$H77,$G77*$H77,SIMD_rateratios_mortality,VALUE(VLOOKUP(Options!$B$8,Lists!$I$2:$J$31,2)))*10)) -> 0 | S77: 10781.84629 | T77: 9861.174084 | U77: 48410.48984 | V77: 44276.67164 | W77: 81181.8011 | X77: 74869.37651 | Y77: 0 | Z77: 0 | AA77: 16172769.43 | AB77: 14791761.13 | AC77: 72615734.76 | AD77: 66415007.45 | AE77: 121772701.6 | AF77: 112304064.8 | AG77: 0 | AH77: 0 | AI77: 1500
B78: Female 90+ | C78: 92.779343 | D78: 96.27934 | E78: female | F78: 1 | G78: 1 | H78: =HLOOKUP(Calculations!$E$2,'Population 2016'!$C$3:$BC$249,'Population 2016'!BD78,FALSE)/10 -> 482.5 | I78: 0 | J78: 482.5 | K78: =IF(AND(OR(Results!$C$4="Orkney Health Board",Results!$C$4="Orkney Islands Local Authority"),$F78=1),0,IF(AND(OR(Results!$C$4="Shetland Health Board",Results!$C$4="Western Isles Health Board",Results!$C$4="Shetland Islands Local Authority",Results!$C$4="Eilean Siar Local Authority"),OR($F78=1,$F78=5)),0,new_ci(VALUE(LEFT(Options!$B$14,2)),$C78,$E78,$F78,2016,$I78,1,$H78,$G78*$H78,SIMD_rateratios_mortality,VALUE(VLOOKUP(Options!$B$8,Lists!$I$2:$J$31,2)))*10)) -> 838.2474715 | L78: =IF(AND(OR(Results!$C$4="Orkney Health Board",Results!$C$4="Orkney Islands Local Authority"),$F78=1),0,IF(AND(OR(Results!$C$4="Shetland Health Board",Results!$C$4="Western Isles Health Board",Results!$C$4="Shetland Islands Local Authority",Results!$C$4="Eilean Siar Local Authority"),OR($F78=1,$F78=5)),0,new_ci(VALUE(LEFT(Options!$B$14,2)),$C78,$E78,$F78,2016,$I78+$J78,1,$H78,$G78*$H78, SIMD_rateratios_mortality, VALUE(VLOOKUP(Options!$B$8,Lists!$I$2:$J$31,2)))*10)) -> 769.2713203 | M78: =IF(AND(OR(Results!$C$4="Orkney Health Board",Results!$C$4="Orkney Islands Local Authority"),$F78=1),0,IF(AND(OR(Results!$C$4="Shetland Health Board",Results!$C$4="Western Isles Health Board",Results!$C$4="Shetland Islands Local Authority",Results!$C$4="Eilean Siar Local Authority"),OR($F78=1,$F78=5)),0,new_yllv2(VALUE(LEFT(Options!$B$14,2)),$C78,$D78,$E78,$F78,2016,$I78,1,$H78,$G78*$H78,SIMD_rateratios_mortality,VALUE(VLOOKUP(Options!$B$8,Lists!$I$2:$J$31,2)))*10)) -> 2095.616164 | N78: =IF(AND(OR(Results!$C$4="Orkney Health Board",Results!$C$4="Orkney Islands Local Authority"),$F78=1),0,IF(AND(OR(Results!$C$4="Shetland Health Board",Results!$C$4="Western Isles Health Board",Results!$C$4="Shetland Islands Local Authority",Results!$C$4="Eilean Siar Local Authority"),OR($F78=1,$F78=5)),0,new_yllv2(VALUE(LEFT(Options!$B$14,2)),$C78,$D78,$E78,$F78,2016,$I78+$J78,1,$H78,$G78*$H78,SIMD_rateratios_mortality,VALUE(VLOOKUP(Options!$B$8,Lists!$I$2:$J$31,2)))*10)) -> 1923.175993 | O78: =IF(AND(OR(Results!$C$4="Orkney Health Board",Results!$C$4="Orkney Islands Local Authority"),$F78=1),0,IF(AND(OR(Results!$C$4="Shetland Health Board",Results!$C$4="Western Isles Health Board",Results!$C$4="Shetland Islands Local Authority",Results!$C$4="Eilean Siar Local Authority"),OR($F78=1,$F78=5)),0,hosp_count(VALUE(LEFT(Options!$B$14,2)),$C78,$E78,$F78,2016,$I78,1,$H78,$G78*$H78, SIMD_rateratios_hosp, SIMD_rateratios_mortality,VALUE(VLOOKUP(Options!$B$8,Lists!$I$2:$J$31,2)))*10)) -> 4560.691784 | P78: =IF(AND(OR(Results!$C$4="Orkney Health Board",Results!$C$4="Orkney Islands Local Authority"),$F78=1),0,IF(AND(OR(Results!$C$4="Shetland Health Board",Results!$C$4="Western Isles Health Board",Results!$C$4="Shetland Islands Local Authority",Results!$C$4="Eilean Siar Local Authority"),OR($F78=1,$F78=5)),0,hosp_count(VALUE(LEFT(Options!$B$14,2)),$C78,$E78,$F78,2016,$I78+$J78,1,$H78,$G78*$H78, SIMD_rateratios_hosp, SIMD_rateratios_mortality,VALUE(VLOOKUP(Options!$B$8,Lists!$I$2:$J$31,2)))*10)) -> 4206.475111 | Q78: =IF(AND(OR(Results!$C$4="Orkney Health Board",Results!$C$4="Orkney Islands Local Authority"),$F78=1),0,IF(AND(OR(Results!$C$4="Shetland Health Board",Results!$C$4="Western Isles Health Board",Results!$C$4="Shetland Islands Local Authority",Results!$C$4="Eilean Siar Local Authority"),OR($F78=1,$F78=5)),0,prem_mort(VALUE(LEFT(Options!$B$14,2)),$C78,$E78,$F78,2016,$I78,1,$H78,$G78*$H78,SIMD_rateratios_mortality,VALUE(VLOOKUP(Options!$B$8,Lists!$I$2:$J$31,2)))*10)) -> 0 | R78: =IF(AND(OR(Results!$C$4="Orkney Health Board",Results!$C$4="Orkney Islands Local Authority"),$F78=1),0,IF(AND(OR(Results!$C$4="Shetland Health Board",Results!$C$4="Western Isles Health Board",Results!$C$4="Shetland Islands Local Authority",Results!$C$4="Eilean Siar Local Authority"),OR($F78=1,$F78=5)),0,prem_mort(VALUE(LEFT(Options!$B$14,2)),$C78,$E78,$F78,2016,$I78+$J78,1,$H78,$G78*$H78,SIMD_rateratios_mortality,VALUE(VLOOKUP(Options!$B$8,Lists!$I$2:$J$31,2)))*10)) -> 0 | S78: 17373.00459 | T78: 15943.44705 | U78: 43432.45936 | V78: 39858.5698 | W78: 94522.10951 | X78: 87180.83131 | Y78: 0 | Z78: 0 | AA78: 17373004.59 | AB78: 15943447.05 | AC78: 43432459.36 | AD78: 39858569.8 | AE78: 94522109.51 | AF78: 87180831.31 | AG78: 0 | AH78: 0 | AI78: 1000
B79: Male 0-4 | C79: 2.0320823 | D79: 77.402082 | E79: male | F79: 1 | G79: 1 | H79: =HLOOKUP(Calculations!$E$2,'Population 2016'!$C$3:$BC$249,'Population 2016'!BD79,FALSE)/10 -> 0 | I79: 0 | J79: 0 | K79: =IF(AND(OR(Results!$C$4="Orkney Health Board",Results!$C$4="Orkney Islands Local Authority"),$F79=1),0,IF(AND(OR(Results!$C$4="Shetland Health Board",Results!$C$4="Western Isles Health Board",Results!$C$4="Shetland Islands Local Authority",Results!$C$4="Eilean Siar Local Authority"),OR($F79=1,$F79=5)),0,new_ci(VALUE(LEFT(Options!$B$14,2)),$C79,$E79,$F79,2016,$I79,1,$H79,$G79*$H79,SIMD_rateratios_mortality,VALUE(VLOOKUP(Options!$B$8,Lists!$I$2:$J$31,2)))*10)) ->  | L79: =IF(AND(OR(Results!$C$4="Orkney Health Board",Results!$C$4="Orkney Islands Local Authority"),$F79=1),0,IF(AND(OR(Results!$C$4="Shetland Health Board",Results!$C$4="Western Isles Health Board",Results!$C$4="Shetland Islands Local Authority",Results!$C$4="Eilean Siar Local Authority"),OR($F79=1,$F79=5)),0,new_ci(VALUE(LEFT(Options!$B$14,2)),$C79,$E79,$F79,2016,$I79+$J79,1,$H79,$G79*$H79, SIMD_rateratios_mortality, VALUE(VLOOKUP(Options!$B$8,Lists!$I$2:$J$31,2)))*10)) ->  | M79: =IF(AND(OR(Results!$C$4="Orkney Health Board",Results!$C$4="Orkney Islands Local Authority"),$F79=1),0,IF(AND(OR(Results!$C$4="Shetland Health Board",Results!$C$4="Western Isles Health Board",Results!$C$4="Shetland Islands Local Authority",Results!$C$4="Eilean Siar Local Authority"),OR($F79=1,$F79=5)),0,new_yllv2(VALUE(LEFT(Options!$B$14,2)),$C79,$D79,$E79,$F79,2016,$I79,1,$H79,$G79*$H79,SIMD_rateratios_mortality,VALUE(VLOOKUP(Options!$B$8,Lists!$I$2:$J$31,2)))*10)) ->  | N79: =IF(AND(OR(Results!$C$4="Orkney Health Board",Results!$C$4="Orkney Islands Local Authority"),$F79=1),0,IF(AND(OR(Results!$C$4="Shetland Health Board",Results!$C$4="Western Isles Health Board",Results!$C$4="Shetland Islands Local Authority",Results!$C$4="Eilean Siar Local Authority"),OR($F79=1,$F79=5)),0,new_yllv2(VALUE(LEFT(Options!$B$14,2)),$C79,$D79,$E79,$F79,2016,$I79+$J79,1,$H79,$G79*$H79,SIMD_rateratios_mortality,VALUE(VLOOKUP(Options!$B$8,Lists!$I$2:$J$31,2)))*10)) ->  | O79: =IF(AND(OR(Results!$C$4="Orkney Health Board",Results!$C$4="Orkney Islands Local Authority"),$F79=1),0,IF(AND(OR(Results!$C$4="Shetland Health Board",Results!$C$4="Western Isles Health Board",Results!$C$4="Shetland Islands Local Authority",Results!$C$4="Eilean Siar Local Authority"),OR($F79=1,$F79=5)),0,hosp_count(VALUE(LEFT(Options!$B$14,2)),$C79,$E79,$F79,2016,$I79,1,$H79,$G79*$H79, SIMD_rateratios_hosp, SIMD_rateratios_mortality,VALUE(VLOOKUP(Options!$B$8,Lists!$I$2:$J$31,2)))*10)) ->  | P79: =IF(AND(OR(Results!$C$4="Orkney Health Board",Results!$C$4="Orkney Islands Local Authority"),$F79=1),0,IF(AND(OR(Results!$C$4="Shetland Health Board",Results!$C$4="Western Isles Health Board",Results!$C$4="Shetland Islands Local Authority",Results!$C$4="Eilean Siar Local Authority"),OR($F79=1,$F79=5)),0,hosp_count(VALUE(LEFT(Options!$B$14,2)),$C79,$E79,$F79,2016,$I79+$J79,1,$H79,$G79*$H79, SIMD_rateratios_hosp, SIMD_rateratios_mortality,VALUE(VLOOKUP(Options!$B$8,Lists!$I$2:$J$31,2)))*10)) ->  | Q79: =IF(AND(OR(Results!$C$4="Orkney Health Board",Results!$C$4="Orkney Islands Local Authority"),$F79=1),0,IF(AND(OR(Results!$C$4="Shetland Health Board",Results!$C$4="Western Isles Health Board",Results!$C$4="Shetland Islands Local Authority",Results!$C$4="Eilean Siar Local Authority"),OR($F79=1,$F79=5)),0,prem_mort(VALUE(LEFT(Options!$B$14,2)),$C79,$E79,$F79,2016,$I79,1,$H79,$G79*$H79,SIMD_rateratios_mortality,VALUE(VLOOKUP(Options!$B$8,Lists!$I$2:$J$31,2)))*10)) ->  | R79: =IF(AND(OR(Results!$C$4="Orkney Health Board",Results!$C$4="Orkney Islands Local Authority"),$F79=1),0,IF(AND(OR(Results!$C$4="Shetland Health Board",Results!$C$4="Western Isles Health Board",Results!$C$4="Shetland Islands Local Authority",Results!$C$4="Eilean Siar Local Authority"),OR($F79=1,$F79=5)),0,prem_mort(VALUE(LEFT(Options!$B$14,2)),$C79,$E79,$F79,2016,$I79+$J79,1,$H79,$G79*$H79,SIMD_rateratios_mortality,VALUE(VLOOKUP(Options!$B$8,Lists!$I$2:$J$31,2)))*10)) ->  | AI79: 5000
B80: Male 5-9 | C80: 6.9784756 | D80: 77.398476 | E80: male | F80: 1 | G80: 1 | H80: =HLOOKUP(Calculations!$E$2,'Population 2016'!$C$3:$BC$249,'Population 2016'!BD80,FALSE)/10 -> 0 | I80: 0 | J80: 0 | K80: =IF(AND(OR(Results!$C$4="Orkney Health Board",Results!$C$4="Orkney Islands Local Authority"),$F80=1),0,IF(AND(OR(Results!$C$4="Shetland Health Board",Results!$C$4="Western Isles Health Board",Results!$C$4="Shetland Islands Local Authority",Results!$C$4="Eilean Siar Local Authority"),OR($F80=1,$F80=5)),0,new_ci(VALUE(LEFT(Options!$B$14,2)),$C80,$E80,$F80,2016,$I80,1,$H80,$G80*$H80,SIMD_rateratios_mortality,VALUE(VLOOKUP(Options!$B$8,Lists!$I$2:$J$31,2)))*10)) ->  | L80: =IF(AND(OR(Results!$C$4="Orkney Health Board",Results!$C$4="Orkney Islands Local Authority"),$F80=1),0,IF(AND(OR(Results!$C$4="Shetland Health Board",Results!$C$4="Western Isles Health Board",Results!$C$4="Shetland Islands Local Authority",Results!$C$4="Eilean Siar Local Authority"),OR($F80=1,$F80=5)),0,new_ci(VALUE(LEFT(Options!$B$14,2)),$C80,$E80,$F80,2016,$I80+$J80,1,$H80,$G80*$H80, SIMD_rateratios_mortality, VALUE(VLOOKUP(Options!$B$8,Lists!$I$2:$J$31,2)))*10)) ->  | M80: =IF(AND(OR(Results!$C$4="Orkney Health Board",Results!$C$4="Orkney Islands Local Authority"),$F80=1),0,IF(AND(OR(Results!$C$4="Shetland Health Board",Results!$C$4="Western Isles Health Board",Results!$C$4="Shetland Islands Local Authority",Results!$C$4="Eilean Siar Local Authority"),OR($F80=1,$F80=5)),0,new_yllv2(VALUE(LEFT(Options!$B$14,2)),$C80,$D80,$E80,$F80,2016,$I80,1,$H80,$G80*$H80,SIMD_rateratios_mortality,VALUE(VLOOKUP(Options!$B$8,Lists!$I$2:$J$31,2)))*10)) ->  | N80: =IF(AND(OR(Results!$C$4="Orkney Health Board",Results!$C$4="Orkney Islands Local Authority"),$F80=1),0,IF(AND(OR(Results!$C$4="Shetland Health Board",Results!$C$4="Western Isles Health Board",Results!$C$4="Shetland Islands Local Authority",Results!$C$4="Eilean Siar Local Authority"),OR($F80=1,$F80=5)),0,new_yllv2(VALUE(LEFT(Options!$B$14,2)),$C80,$D80,$E80,$F80,2016,$I80+$J80,1,$H80,$G80*$H80,SIMD_rateratios_mortality,VALUE(VLOOKUP(Options!$B$8,Lists!$I$2:$J$31,2)))*10)) ->  | O80: =IF(AND(OR(Results!$C$4="Orkney Health Board",Results!$C$4="Orkney Islands Local Authority"),$F80=1),0,IF(AND(OR(Results!$C$4="Shetland Health Board",Results!$C$4="Western Isles Health Board",Results!$C$4="Shetland Islands Local Authority",Results!$C$4="Eilean Siar Local Authority"),OR($F80=1,$F80=5)),0,hosp_count(VALUE(LEFT(Options!$B$14,2)),$C80,$E80,$F80,2016,$I80,1,$H80,$G80*$H80, SIMD_rateratios_hosp, SIMD_rateratios_mortality,VALUE(VLOOKUP(Options!$B$8,Lists!$I$2:$J$31,2)))*10)) ->  | P80: =IF(AND(OR(Results!$C$4="Orkney Health Board",Results!$C$4="Orkney Islands Local Authority"),$F80=1),0,IF(AND(OR(Results!$C$4="Shetland Health Board",Results!$C$4="Western Isles Health Board",Results!$C$4="Shetland Islands Local Authority",Results!$C$4="Eilean Siar Local Authority"),OR($F80=1,$F80=5)),0,hosp_count(VALUE(LEFT(Options!$B$14,2)),$C80,$E80,$F80,2016,$I80+$J80,1,$H80,$G80*$H80, SIMD_rateratios_hosp, SIMD_rateratios_mortality,VALUE(VLOOKUP(Options!$B$8,Lists!$I$2:$J$31,2)))*10)) ->  | Q80: =IF(AND(OR(Results!$C$4="Orkney Health Board",Results!$C$4="Orkney Islands Local Authority"),$F80=1),0,IF(AND(OR(Results!$C$4="Shetland Health Board",Results!$C$4="Western Isles Health Board",Results!$C$4="Shetland Islands Local Authority",Results!$C$4="Eilean Siar Local Authority"),OR($F80=1,$F80=5)),0,prem_mort(VALUE(LEFT(Options!$B$14,2)),$C80,$E80,$F80,2016,$I80,1,$H80,$G80*$H80,SIMD_rateratios_mortality,VALUE(VLOOKUP(Options!$B$8,Lists!$I$2:$J$31,2)))*10)) ->  | R80: =IF(AND(OR(Results!$C$4="Orkney Health Board",Results!$C$4="Orkney Islands Local Authority"),$F80=1),0,IF(AND(OR(Results!$C$4="Shetland Health Board",Results!$C$4="Western Isles Health Board",Results!$C$4="Shetland Islands Local Authority",Results!$C$4="Eilean Siar Local Authority"),OR($F80=1,$F80=5)),0,prem_mort(VALUE(LEFT(Options!$B$14,2)),$C80,$E80,$F80,2016,$I80+$J80,1,$H80,$G80*$H80,SIMD_rateratios_mortality,VALUE(VLOOKUP(Options!$B$8,Lists!$I$2:$J$31,2)))*10)) ->  | AI80: 5500
B81: Male 10-15 | C81: 12.471144 | D81: 77.92114 | E81: male | F81: 1 | G81: 1 | H81: =HLOOKUP(Calculations!$E$2,'Population 2016'!$C$3:$BC$249,'Population 2016'!BD81,FALSE)/10 -> 0 | I81: 0 | J81: 0 | K81: =IF(AND(OR(Results!$C$4="Orkney Health Board",Results!$C$4="Orkney Islands Local Authority"),$F81=1),0,IF(AND(OR(Results!$C$4="Shetland Health Board",Results!$C$4="Western Isles Health Board",Results!$C$4="Shetland Islands Local Authority",Results!$C$4="Eilean Siar Local Authority"),OR($F81=1,$F81=5)),0,new_ci(VALUE(LEFT(Options!$B$14,2)),$C81,$E81,$F81,2016,$I81,1,$H81,$G81*$H81,SIMD_rateratios_mortality,VALUE(VLOOKUP(Options!$B$8,Lists!$I$2:$J$31,2)))*10)) ->  | L81: =IF(AND(OR(Results!$C$4="Orkney Health Board",Results!$C$4="Orkney Islands Local Authority"),$F81=1),0,IF(AND(OR(Results!$C$4="Shetland Health Board",Results!$C$4="Western Isles Health Board",Results!$C$4="Shetland Islands Local Authority",Results!$C$4="Eilean Siar Local Authority"),OR($F81=1,$F81=5)),0,new_ci(VALUE(LEFT(Options!$B$14,2)),$C81,$E81,$F81,2016,$I81+$J81,1,$H81,$G81*$H81, SIMD_rateratios_mortality, VALUE(VLOOKUP(Options!$B$8,Lists!$I$2:$J$31,2)))*10)) ->  | M81: =IF(AND(OR(Results!$C$4="Orkney Health Board",Results!$C$4="Orkney Islands Local Authority"),$F81=1),0,IF(AND(OR(Results!$C$4="Shetland Health Board",Results!$C$4="Western Isles Health Board",Results!$C$4="Shetland Islands Local Authority",Results!$C$4="Eilean Siar Local Authority"),OR($F81=1,$F81=5)),0,new_yllv2(VALUE(LEFT(Options!$B$14,2)),$C81,$D81,$E81,$F81,2016,$I81,1,$H81,$G81*$H81,SIMD_rateratios_mortality,VALUE(VLOOKUP(Options!$B$8,Lists!$I$2:$J$31,2)))*10)) ->  | N81: =IF(AND(OR(Results!$C$4="Orkney Health Board",Results!$C$4="Orkney Islands Local Authority"),$F81=1),0,IF(AND(OR(Results!$C$4="Shetland Health Board",Results!$C$4="Western Isles Health Board",Results!$C$4="Shetland Islands Local Authority",Results!$C$4="Eilean Siar Local Authority"),OR($F81=1,$F81=5)),0,new_yllv2(VALUE(LEFT(Options!$B$14,2)),$C81,$D81,$E81,$F81,2016,$I81+$J81,1,$H81,$G81*$H81,SIMD_rateratios_mortality,VALUE(VLOOKUP(Options!$B$8,Lists!$I$2:$J$31,2)))*10)) ->  | O81: =IF(AND(OR(Results!$C$4="Orkney Health Board",Results!$C$4="Orkney Islands Local Authority"),$F81=1),0,IF(AND(OR(Results!$C$4="Shetland Health Board",Results!$C$4="Western Isles Health Board",Results!$C$4="Shetland Islands Local Authority",Results!$C$4="Eilean Siar Local Authority"),OR($F81=1,$F81=5)),0,hosp_count(VALUE(LEFT(Options!$B$14,2)),$C81,$E81,$F81,2016,$I81,1,$H81,$G81*$H81, SIMD_rateratios_hosp, SIMD_rateratios_mortality,VALUE(VLOOKUP(Options!$B$8,Lists!$I$2:$J$31,2)))*10)) ->  | P81: =IF(AND(OR(Results!$C$4="Orkney Health Board",Results!$C$4="Orkney Islands Local Authority"),$F81=1),0,IF(AND(OR(Results!$C$4="Shetland Health Board",Results!$C$4="Western Isles Health Board",Results!$C$4="Shetland Islands Local Authority",Results!$C$4="Eilean Siar Local Authority"),OR($F81=1,$F81=5)),0,hosp_count(VALUE(LEFT(Options!$B$14,2)),$C81,$E81,$F81,2016,$I81+$J81,1,$H81,$G81*$H81, SIMD_rateratios_hosp, SIMD_rateratios_mortality,VALUE(VLOOKUP(Options!$B$8,Lists!$I$2:$J$31,2)))*10)) ->  | Q81: =IF(AND(OR(Results!$C$4="Orkney Health Board",Results!$C$4="Orkney Islands Local Authority"),$F81=1),0,IF(AND(OR(Results!$C$4="Shetland Health Board",Results!$C$4="Western Isles Health Board",Results!$C$4="Shetland Islands Local Authority",Results!$C$4="Eilean Siar Local Authority"),OR($F81=1,$F81=5)),0,prem_mort(VALUE(LEFT(Options!$B$14,2)),$C81,$E81,$F81,2016,$I81,1,$H81,$G81*$H81,SIMD_rateratios_mortality,VALUE(VLOOKUP(Options!$B$8,Lists!$I$2:$J$31,2)))*10)) ->  | R81: =IF(AND(OR(Results!$C$4="Orkney Health Board",Results!$C$4="Orkney Islands Local Authority"),$F81=1),0,IF(AND(OR(Results!$C$4="Shetland Health Board",Results!$C$4="Western Isles Health Board",Results!$C$4="Shetland Islands Local Authority",Results!$C$4="Eilean Siar Local Authority"),OR($F81=1,$F81=5)),0,prem_mort(VALUE(LEFT(Options!$B$14,2)),$C81,$E81,$F81,2016,$I81+$J81,1,$H81,$G81*$H81,SIMD_rateratios_mortality,VALUE(VLOOKUP(Options!$B$8,Lists!$I$2:$J$31,2)))*10)) ->  | AI81: 6600
B82: Male 16-19 | C82: 17.556318 | D82: 77.07632 | E82: male | F82: 1 | G82: 1 | H82: =HLOOKUP(Calculations!$E$2,'Population 2016'!$C$3:$BC$249,'Population 2016'!BD82,FALSE)/10 -> 2535.9 | I82: 0 | J82: 2535.9 | K82: =IF(AND(OR(Results!$C$4="Orkney Health Board",Results!$C$4="Orkney Islands Local Authority"),$F82=1),0,IF(AND(OR(Results!$C$4="Shetland Health Board",Results!$C$4="Western Isles Health Board",Results!$C$4="Shetland Islands Local Authority",Results!$C$4="Eilean Siar Local Authority"),OR($F82=1,$F82=5)),0,new_ci(VALUE(LEFT(Options!$B$14,2)),$C82,$E82,$F82,2016,$I82,1,$H82,$G82*$H82,SIMD_rateratios_mortality,VALUE(VLOOKUP(Options!$B$8,Lists!$I$2:$J$31,2)))*10)) -> 19.1724564 | L82: =IF(AND(OR(Results!$C$4="Orkney Health Board",Results!$C$4="Orkney Islands Local Authority"),$F82=1),0,IF(AND(OR(Results!$C$4="Shetland Health Board",Results!$C$4="Western Isles Health Board",Results!$C$4="Shetland Islands Local Authority",Results!$C$4="Eilean Siar Local Authority"),OR($F82=1,$F82=5)),0,new_ci(VALUE(LEFT(Options!$B$14,2)),$C82,$E82,$F82,2016,$I82+$J82,1,$H82,$G82*$H82, SIMD_rateratios_mortality, VALUE(VLOOKUP(Options!$B$8,Lists!$I$2:$J$31,2)))*10)) -> 17.44786228 | M82: =IF(AND(OR(Results!$C$4="Orkney Health Board",Results!$C$4="Orkney Islands Local Authority"),$F82=1),0,IF(AND(OR(Results!$C$4="Shetland Health Board",Results!$C$4="Western Isles Health Board",Results!$C$4="Shetland Islands Local Authority",Results!$C$4="Eilean Siar Local Authority"),OR($F82=1,$F82=5)),0,new_yllv2(VALUE(LEFT(Options!$B$14,2)),$C82,$D82,$E82,$F82,2016,$I82,1,$H82,$G82*$H82,SIMD_rateratios_mortality,VALUE(VLOOKUP(Options!$B$8,Lists!$I$2:$J$31,2)))*10)) -> 1121.972187 | N82: =IF(AND(OR(Results!$C$4="Orkney Health Board",Results!$C$4="Orkney Islands Local Authority"),$F82=1),0,IF(AND(OR(Results!$C$4="Shetland Health Board",Results!$C$4="Western Isles Health Board",Results!$C$4="Shetland Islands Local Authority",Results!$C$4="Eilean Siar Local Authority"),OR($F82=1,$F82=5)),0,new_yllv2(VALUE(LEFT(Options!$B$14,2)),$C82,$D82,$E82,$F82,2016,$I82+$J82,1,$H82,$G82*$H82,SIMD_rateratios_mortality,VALUE(VLOOKUP(Options!$B$8,Lists!$I$2:$J$31,2)))*10)) -> 1021.048935 | O82: =IF(AND(OR(Results!$C$4="Orkney Health Board",Results!$C$4="Orkney Islands Local Authority"),$F82=1),0,IF(AND(OR(Results!$C$4="Shetland Health Board",Results!$C$4="Western Isles Health Board",Results!$C$4="Shetland Islands Local Authority",Results!$C$4="Eilean Siar Local Authority"),OR($F82=1,$F82=5)),0,hosp_count(VALUE(LEFT(Options!$B$14,2)),$C82,$E82,$F82,2016,$I82,1,$H82,$G82*$H82, SIMD_rateratios_hosp, SIMD_rateratios_mortality,VALUE(VLOOKUP(Options!$B$8,Lists!$I$2:$J$31,2)))*10)) -> 2447.125645 | P82: =IF(AND(OR(Results!$C$4="Orkney Health Board",Results!$C$4="Orkney Islands Local Authority"),$F82=1),0,IF(AND(OR(Results!$C$4="Shetland Health Board",Results!$C$4="Western Isles Health Board",Results!$C$4="Shetland Islands Local Authority",Results!$C$4="Eilean Siar Local Authority"),OR($F82=1,$F82=5)),0,hosp_count(VALUE(LEFT(Options!$B$14,2)),$C82,$E82,$F82,2016,$I82+$J82,1,$H82,$G82*$H82, SIMD_rateratios_hosp, SIMD_rateratios_mortality,VALUE(VLOOKUP(Options!$B$8,Lists!$I$2:$J$31,2)))*10)) -> 2256.859311 | Q82: =IF(AND(OR(Results!$C$4="Orkney Health Board",Results!$C$4="Orkney Islands Local Authority"),$F82=1),0,IF(AND(OR(Results!$C$4="Shetland Health Board",Results!$C$4="Western Isles Health Board",Results!$C$4="Shetland Islands Local Authority",Results!$C$4="Eilean Siar Local Authority"),OR($F82=1,$F82=5)),0,prem_mort(VALUE(LEFT(Options!$B$14,2)),$C82,$E82,$F82,2016,$I82,1,$H82,$G82*$H82,SIMD_rateratios_mortality,VALUE(VLOOKUP(Options!$B$8,Lists!$I$2:$J$31,2)))*10)) -> 19.1724564 | R82: =IF(AND(OR(Results!$C$4="Orkney Health Board",Results!$C$4="Orkney Islands Local Authority"),$F82=1),0,IF(AND(OR(Results!$C$4="Shetland Health Board",Results!$C$4="Western Isles Health Board",Results!$C$4="Shetland Islands Local Authority",Results!$C$4="Eilean Siar Local Authority"),OR($F82=1,$F82=5)),0,prem_mort(VALUE(LEFT(Options!$B$14,2)),$C82,$E82,$F82,2016,$I82+$J82,1,$H82,$G82*$H82,SIMD_rateratios_mortality,VALUE(VLOOKUP(Options!$B$8,Lists!$I$2:$J$31,2)))*10)) -> 17.44786228 | S82: 75.60415 | T82: 68.80343183 | U82: 4424.355009 | V82: 4026.376968 | W82: 9649.92959 | X82: 8899.638434 | Y82: 75.60415 | Z82: 68.80343183 | AA82: 332658.26 | AB82: 302735.1001 | AC82: 19467162.04 | AD82: 17716058.66 | AE82: 42459690.2 | AF82: 39158409.11 | AG82: 332658.26 | AH82: 302735.1001 | AI82: 4400
B83: Male 20-24 | C83: 22.054632 | D83: 77.70463 | E83: male | F83: 1 | G83: 1 | H83: =HLOOKUP(Calculations!$E$2,'Population 2016'!$C$3:$BC$249,'Population 2016'!BD83,FALSE)/10 -> 3718 | I83: 0 | J83: 3718 | K83: =IF(AND(OR(Results!$C$4="Orkney Health Board",Results!$C$4="Orkney Islands Local Authority"),$F83=1),0,IF(AND(OR(Results!$C$4="Shetland Health Board",Results!$C$4="Western Isles Health Board",Results!$C$4="Shetland Islands Local Authority",Results!$C$4="Eilean Siar Local Authority"),OR($F83=1,$F83=5)),0,new_ci(VALUE(LEFT(Options!$B$14,2)),$C83,$E83,$F83,2016,$I83,1,$H83,$G83*$H83,SIMD_rateratios_mortality,VALUE(VLOOKUP(Options!$B$8,Lists!$I$2:$J$31,2)))*10)) -> 39.47120263 | L83: =IF(AND(OR(Results!$C$4="Orkney Health Board",Results!$C$4="Orkney Islands Local Authority"),$F83=1),0,IF(AND(OR(Results!$C$4="Shetland Health Board",Results!$C$4="Western Isles Health Board",Results!$C$4="Shetland Islands Local Authority",Results!$C$4="Eilean Siar Local Authority"),OR($F83=1,$F83=5)),0,new_ci(VALUE(LEFT(Options!$B$14,2)),$C83,$E83,$F83,2016,$I83+$J83,1,$H83,$G83*$H83, SIMD_rateratios_mortality, VALUE(VLOOKUP(Options!$B$8,Lists!$I$2:$J$31,2)))*10)) -> 35.92134174 | M83: =IF(AND(OR(Results!$C$4="Orkney Health Board",Results!$C$4="Orkney Islands Local Authority"),$F83=1),0,IF(AND(OR(Results!$C$4="Shetland Health Board",Results!$C$4="Western Isles Health Board",Results!$C$4="Shetland Islands Local Authority",Results!$C$4="Eilean Siar Local Authority"),OR($F83=1,$F83=5)),0,new_yllv2(VALUE(LEFT(Options!$B$14,2)),$C83,$D83,$E83,$F83,2016,$I83,1,$H83,$G83*$H83,SIMD_rateratios_mortality,VALUE(VLOOKUP(Options!$B$8,Lists!$I$2:$J$31,2)))*10)) -> 2157.101145 | N83: =IF(AND(OR(Results!$C$4="Orkney Health Board",Results!$C$4="Orkney Islands Local Authority"),$F83=1),0,IF(AND(OR(Results!$C$4="Shetland Health Board",Results!$C$4="Western Isles Health Board",Results!$C$4="Shetland Islands Local Authority",Results!$C$4="Eilean Siar Local Authority"),OR($F83=1,$F83=5)),0,new_yllv2(VALUE(LEFT(Options!$B$14,2)),$C83,$D83,$E83,$F83,2016,$I83+$J83,1,$H83,$G83*$H83,SIMD_rateratios_mortality,VALUE(VLOOKUP(Options!$B$8,Lists!$I$2:$J$31,2)))*10)) -> 1963.101254 | O83: =IF(AND(OR(Results!$C$4="Orkney Health Board",Results!$C$4="Orkney Islands Local Authority"),$F83=1),0,IF(AND(OR(Results!$C$4="Shetland Health Board",Results!$C$4="Western Isles Health Board",Results!$C$4="Shetland Islands Local Authority",Results!$C$4="Eilean Siar Local Authority"),OR($F83=1,$F83=5)),0,hosp_count(VALUE(LEFT(Options!$B$14,2)),$C83,$E83,$F83,2016,$I83,1,$H83,$G83*$H83, SIMD_rateratios_hosp, SIMD_rateratios_mortality,VALUE(VLOOKUP(Options!$B$8,Lists!$I$2:$J$31,2)))*10)) -> 4208.978207 | P83: =IF(AND(OR(Results!$C$4="Orkney Health Board",Results!$C$4="Orkney Islands Local Authority"),$F83=1),0,IF(AND(OR(Results!$C$4="Shetland Health Board",Results!$C$4="Western Isles Health Board",Results!$C$4="Shetland Islands Local Authority",Results!$C$4="Eilean Siar Local Authority"),OR($F83=1,$F83=5)),0,hosp_count(VALUE(LEFT(Options!$B$14,2)),$C83,$E83,$F83,2016,$I83+$J83,1,$H83,$G83*$H83, SIMD_rateratios_hosp, SIMD_rateratios_mortality,VALUE(VLOOKUP(Options!$B$8,Lists!$I$2:$J$31,2)))*10)) -> 3881.739073 | Q83: =IF(AND(OR(Results!$C$4="Orkney Health Board",Results!$C$4="Orkney Islands Local Authority"),$F83=1),0,IF(AND(OR(Results!$C$4="Shetland Health Board",Results!$C$4="Western Isles Health Board",Results!$C$4="Shetland Islands Local Authority",Results!$C$4="Eilean Siar Local Authority"),OR($F83=1,$F83=5)),0,prem_mort(VALUE(LEFT(Options!$B$14,2)),$C83,$E83,$F83,2016,$I83,1,$H83,$G83*$H83,SIMD_rateratios_mortality,VALUE(VLOOKUP(Options!$B$8,Lists!$I$2:$J$31,2)))*10)) -> 39.47120263 | R83: =IF(AND(OR(Results!$C$4="Orkney Health Board",Results!$C$4="Orkney Islands Local Authority"),$F83=1),0,IF(AND(OR(Results!$C$4="Shetland Health Board",Results!$C$4="Western Isles Health Board",Results!$C$4="Shetland Islands Local Authority",Results!$C$4="Eilean Siar Local Authority"),OR($F83=1,$F83=5)),0,prem_mort(VALUE(LEFT(Options!$B$14,2)),$C83,$E83,$F83,2016,$I83+$J83,1,$H83,$G83*$H83,SIMD_rateratios_mortality,VALUE(VLOOKUP(Options!$B$8,Lists!$I$2:$J$31,2)))*10)) -> 35.92134174 | S83: 106.16246 | T83: 96.61469 | U83: 5801.778227 | V83: 5279.992615 | W83: 11320.54386 | X83: 10440.39557 | Y83: 106.16246 | Z83: 96.61469 | AA83: 636974.76 | AB83: 579688.14 | AC83: 34810669.36 | AD83: 31679955.69 | AE83: 67923263.16 | AF83: 62642373.42 | AG83: 636974.76 | AH83: 579688.14 | AI83: 6000
B84: Male 25-29 | C84: 26.959763 | D84: 77.78976 | E84: male | F84: 1 | G84: 1 | H84: =HLOOKUP(Calculations!$E$2,'Population 2016'!$C$3:$BC$249,'Population 2016'!BD84,FALSE)/10 -> 4260 | I84: 0 | J84: 4260 | K84: =IF(AND(OR(Results!$C$4="Orkney Health Board",Results!$C$4="Orkney Islands Local Authority"),$F84=1),0,IF(AND(OR(Results!$C$4="Shetland Health Board",Results!$C$4="Western Isles Health Board",Results!$C$4="Shetland Islands Local Authority",Results!$C$4="Eilean Siar Local Authority"),OR($F84=1,$F84=5)),0,new_ci(VALUE(LEFT(Options!$B$14,2)),$C84,$E84,$F84,2016,$I84,1,$H84,$G84*$H84,SIMD_rateratios_mortality,VALUE(VLOOKUP(Options!$B$8,Lists!$I$2:$J$31,2)))*10)) -> 65.47987638 | L84: =IF(AND(OR(Results!$C$4="Orkney Health Board",Results!$C$4="Orkney Islands Local Authority"),$F84=1),0,IF(AND(OR(Results!$C$4="Shetland Health Board",Results!$C$4="Western Isles Health Board",Results!$C$4="Shetland Islands Local Authority",Results!$C$4="Eilean Siar Local Authority"),OR($F84=1,$F84=5)),0,new_ci(VALUE(LEFT(Options!$B$14,2)),$C84,$E84,$F84,2016,$I84+$J84,1,$H84,$G84*$H84, SIMD_rateratios_mortality, VALUE(VLOOKUP(Options!$B$8,Lists!$I$2:$J$31,2)))*10)) -> 59.59219002 | M84: =IF(AND(OR(Results!$C$4="Orkney Health Board",Results!$C$4="Orkney Islands Local Authority"),$F84=1),0,IF(AND(OR(Results!$C$4="Shetland Health Board",Results!$C$4="Western Isles Health Board",Results!$C$4="Shetland Islands Local Authority",Results!$C$4="Eilean Siar Local Authority"),OR($F84=1,$F84=5)),0,new_yllv2(VALUE(LEFT(Options!$B$14,2)),$C84,$D84,$E84,$F84,2016,$I84,1,$H84,$G84*$H84,SIMD_rateratios_mortality,VALUE(VLOOKUP(Options!$B$8,Lists!$I$2:$J$31,2)))*10)) -> 3262.862044 | N84: =IF(AND(OR(Results!$C$4="Orkney Health Board",Results!$C$4="Orkney Islands Local Authority"),$F84=1),0,IF(AND(OR(Results!$C$4="Shetland Health Board",Results!$C$4="Western Isles Health Board",Results!$C$4="Shetland Islands Local Authority",Results!$C$4="Eilean Siar Local Authority"),OR($F84=1,$F84=5)),0,new_yllv2(VALUE(LEFT(Options!$B$14,2)),$C84,$D84,$E84,$F84,2016,$I84+$J84,1,$H84,$G84*$H84,SIMD_rateratios_mortality,VALUE(VLOOKUP(Options!$B$8,Lists!$I$2:$J$31,2)))*10)) -> 2969.47865 | O84: =IF(AND(OR(Results!$C$4="Orkney Health Board",Results!$C$4="Orkney Islands Local Authority"),$F84=1),0,IF(AND(OR(Results!$C$4="Shetland Health Board",Results!$C$4="Western Isles Health Board",Results!$C$4="Shetland Islands Local Authority",Results!$C$4="Eilean Siar Local Authority"),OR($F84=1,$F84=5)),0,hosp_count(VALUE(LEFT(Options!$B$14,2)),$C84,$E84,$F84,2016,$I84,1,$H84,$G84*$H84, SIMD_rateratios_hosp, SIMD_rateratios_mortality,VALUE(VLOOKUP(Options!$B$8,Lists!$I$2:$J$31,2)))*10)) -> 5739.727444 | P84: =IF(AND(OR(Results!$C$4="Orkney Health Board",Results!$C$4="Orkney Islands Local Authority"),$F84=1),0,IF(AND(OR(Results!$C$4="Shetland Health Board",Results!$C$4="Western Isles Health Board",Results!$C$4="Shetland Islands Local Authority",Results!$C$4="Eilean Siar Local Authority"),OR($F84=1,$F84=5)),0,hosp_count(VALUE(LEFT(Options!$B$14,2)),$C84,$E84,$F84,2016,$I84+$J84,1,$H84,$G84*$H84, SIMD_rateratios_hosp, SIMD_rateratios_mortality,VALUE(VLOOKUP(Options!$B$8,Lists!$I$2:$J$31,2)))*10)) -> 5293.475804 | Q84: =IF(AND(OR(Results!$C$4="Orkney Health Board",Results!$C$4="Orkney Islands Local Authority"),$F84=1),0,IF(AND(OR(Results!$C$4="Shetland Health Board",Results!$C$4="Western Isles Health Board",Results!$C$4="Shetland Islands Local Authority",Results!$C$4="Eilean Siar Local Authority"),OR($F84=1,$F84=5)),0,prem_mort(VALUE(LEFT(Options!$B$14,2)),$C84,$E84,$F84,2016,$I84,1,$H84,$G84*$H84,SIMD_rateratios_mortality,VALUE(VLOOKUP(Options!$B$8,Lists!$I$2:$J$31,2)))*10)) -> 65.47987638 | R84: =IF(AND(OR(Results!$C$4="Orkney Health Board",Results!$C$4="Orkney Islands Local Authority"),$F84=1),0,IF(AND(OR(Results!$C$4="Shetland Health Board",Results!$C$4="Western Isles Health Board",Results!$C$4="Shetland Islands Local Authority",Results!$C$4="Eilean Siar Local Authority"),OR($F84=1,$F84=5)),0,prem_mort(VALUE(LEFT(Options!$B$14,2)),$C84,$E84,$F84,2016,$I84+$J84,1,$H84,$G84*$H84,SIMD_rateratios_mortality,VALUE(VLOOKUP(Options!$B$8,Lists!$I$2:$J$31,2)))*10)) -> 59.59219002 | S84: 153.70863 | T84: 139.88777 | U84: 7659.300572 | V84: 6970.607159 | W84: 13473.5386 | X84: 12425.99954 | Y84: 153.70863 | Z84: 139.88777 | AA84: 922251.78 | AB84: 839326.62 | AC84: 45955803.43 | AD84: 41823642.96 | AE84: 80841231.6 | AF84: 74555997.24 | AG84: 922251.78 | AH84: 839326.62 | AI84: 6000
B85: Male 30-34 | C85: 31.981522 | D85: 78.06152 | E85: male | F85: 1 | G85: 1 | H85: =HLOOKUP(Calculations!$E$2,'Population 2016'!$C$3:$BC$249,'Population 2016'!BD85,FALSE)/10 -> 3800.6 | I85: 0 | J85: 3800.6 | K85: =IF(AND(OR(Results!$C$4="Orkney Health Board",Results!$C$4="Orkney Islands Local Authority"),$F85=1),0,IF(AND(OR(Results!$C$4="Shetland Health Board",Results!$C$4="Western Isles Health Board",Results!$C$4="Shetland Islands Local Authority",Results!$C$4="Eilean Siar Local Authority"),OR($F85=1,$F85=5)),0,new_ci(VALUE(LEFT(Options!$B$14,2)),$C85,$E85,$F85,2016,$I85,1,$H85,$G85*$H85,SIMD_rateratios_mortality,VALUE(VLOOKUP(Options!$B$8,Lists!$I$2:$J$31,2)))*10)) -> 85.32004566 | L85: =IF(AND(OR(Results!$C$4="Orkney Health Board",Results!$C$4="Orkney Islands Local Authority"),$F85=1),0,IF(AND(OR(Results!$C$4="Shetland Health Board",Results!$C$4="Western Isles Health Board",Results!$C$4="Shetland Islands Local Authority",Results!$C$4="Eilean Siar Local Authority"),OR($F85=1,$F85=5)),0,new_ci(VALUE(LEFT(Options!$B$14,2)),$C85,$E85,$F85,2016,$I85+$J85,1,$H85,$G85*$H85, SIMD_rateratios_mortality, VALUE(VLOOKUP(Options!$B$8,Lists!$I$2:$J$31,2)))*10)) -> 77.65007998 | M85: =IF(AND(OR(Results!$C$4="Orkney Health Board",Results!$C$4="Orkney Islands Local Authority"),$F85=1),0,IF(AND(OR(Results!$C$4="Shetland Health Board",Results!$C$4="Western Isles Health Board",Results!$C$4="Shetland Islands Local Authority",Results!$C$4="Eilean Siar Local Authority"),OR($F85=1,$F85=5)),0,new_yllv2(VALUE(LEFT(Options!$B$14,2)),$C85,$D85,$E85,$F85,2016,$I85,1,$H85,$G85*$H85,SIMD_rateratios_mortality,VALUE(VLOOKUP(Options!$B$8,Lists!$I$2:$J$31,2)))*10)) -> 3846.227488 | N85: =IF(AND(OR(Results!$C$4="Orkney Health Board",Results!$C$4="Orkney Islands Local Authority"),$F85=1),0,IF(AND(OR(Results!$C$4="Shetland Health Board",Results!$C$4="Western Isles Health Board",Results!$C$4="Shetland Islands Local Authority",Results!$C$4="Eilean Siar Local Authority"),OR($F85=1,$F85=5)),0,new_yllv2(VALUE(LEFT(Options!$B$14,2)),$C85,$D85,$E85,$F85,2016,$I85+$J85,1,$H85,$G85*$H85,SIMD_rateratios_mortality,VALUE(VLOOKUP(Options!$B$8,Lists!$I$2:$J$31,2)))*10)) -> 3500.46545 | O85: =IF(AND(OR(Results!$C$4="Orkney Health Board",Results!$C$4="Orkney Islands Local Authority"),$F85=1),0,IF(AND(OR(Results!$C$4="Shetland Health Board",Results!$C$4="Western Isles Health Board",Results!$C$4="Shetland Islands Local Authority",Results!$C$4="Eilean Siar Local Authority"),OR($F85=1,$F85=5)),0,hosp_count(VALUE(LEFT(Options!$B$14,2)),$C85,$E85,$F85,2016,$I85,1,$H85,$G85*$H85, SIMD_rateratios_hosp, SIMD_rateratios_mortality,VALUE(VLOOKUP(Options!$B$8,Lists!$I$2:$J$31,2)))*10)) -> 6119.924679 | P85: =IF(AND(OR(Results!$C$4="Orkney Health Board",Results!$C$4="Orkney Islands Local Authority"),$F85=1),0,IF(AND(OR(Results!$C$4="Shetland Health Board",Results!$C$4="Western Isles Health Board",Results!$C$4="Shetland Islands Local Authority",Results!$C$4="Eilean Siar Local Authority"),OR($F85=1,$F85=5)),0,hosp_count(VALUE(LEFT(Options!$B$14,2)),$C85,$E85,$F85,2016,$I85+$J85,1,$H85,$G85*$H85, SIMD_rateratios_hosp, SIMD_rateratios_mortality,VALUE(VLOOKUP(Options!$B$8,Lists!$I$2:$J$31,2)))*10)) -> 5644.063432 | Q85: =IF(AND(OR(Results!$C$4="Orkney Health Board",Results!$C$4="Orkney Islands Local Authority"),$F85=1),0,IF(AND(OR(Results!$C$4="Shetland Health Board",Results!$C$4="Western Isles Health Board",Results!$C$4="Shetland Islands Local Authority",Results!$C$4="Eilean Siar Local Authority"),OR($F85=1,$F85=5)),0,prem_mort(VALUE(LEFT(Options!$B$14,2)),$C85,$E85,$F85,2016,$I85,1,$H85,$G85*$H85,SIMD_rateratios_mortality,VALUE(VLOOKUP(Options!$B$8,Lists!$I$2:$J$31,2)))*10)) -> 85.32004566 | R85: =IF(AND(OR(Results!$C$4="Orkney Health Board",Results!$C$4="Orkney Islands Local Authority"),$F85=1),0,IF(AND(OR(Results!$C$4="Shetland Health Board",Results!$C$4="Western Isles Health Board",Results!$C$4="Shetland Islands Local Authority",Results!$C$4="Eilean Siar Local Authority"),OR($F85=1,$F85=5)),0,prem_mort(VALUE(LEFT(Options!$B$14,2)),$C85,$E85,$F85,2016,$I85+$J85,1,$H85,$G85*$H85,SIMD_rateratios_mortality,VALUE(VLOOKUP(Options!$B$8,Lists!$I$2:$J$31,2)))*10)) -> 77.65007998 | S85: 224.49099 | T85: 204.3100562 | U85: 10120.05338 | V85: 9210.296927 | W85: 16102.52244 | X85: 14850.4537 | Y85: 224.49099 | Z85: 204.3100562 | AA85: 1459191.435 | AB85: 1328015.366 | AC85: 65780346.97 | AD85: 59866930.03 | AE85: 104666395.9 | AF85: 96527949.04 | AG85: 1459191.435 | AH85: 1328015.366 | AI85: 6500
B86: Male 35-39 | C86: 36.92601 | D86: 78.33601 | E86: male | F86: 1 | G86: 1 | H86: =HLOOKUP(Calculations!$E$2,'Population 2016'!$C$3:$BC$249,'Population 2016'!BD86,FALSE)/10 -> 3298.4 | I86: 0 | J86: 3298.4 | K86: =IF(AND(OR(Results!$C$4="Orkney Health Board",Results!$C$4="Orkney Islands Local Authority"),$F86=1),0,IF(AND(OR(Results!$C$4="Shetland Health Board",Results!$C$4="Western Isles Health Board",Results!$C$4="Shetland Islands Local Authority",Results!$C$4="Eilean Siar Local Authority"),OR($F86=1,$F86=5)),0,new_ci(VALUE(LEFT(Options!$B$14,2)),$C86,$E86,$F86,2016,$I86,1,$H86,$G86*$H86,SIMD_rateratios_mortality,VALUE(VLOOKUP(Options!$B$8,Lists!$I$2:$J$31,2)))*10)) -> 107.498537 | L86: =IF(AND(OR(Results!$C$4="Orkney Health Board",Results!$C$4="Orkney Islands Local Authority"),$F86=1),0,IF(AND(OR(Results!$C$4="Shetland Health Board",Results!$C$4="Western Isles Health Board",Results!$C$4="Shetland Islands Local Authority",Results!$C$4="Eilean Siar Local Authority"),OR($F86=1,$F86=5)),0,new_ci(VALUE(LEFT(Options!$B$14,2)),$C86,$E86,$F86,2016,$I86+$J86,1,$H86,$G86*$H86, SIMD_rateratios_mortality, VALUE(VLOOKUP(Options!$B$8,Lists!$I$2:$J$31,2)))*10)) -> 97.84146533 | M86: =IF(AND(OR(Results!$C$4="Orkney Health Board",Results!$C$4="Orkney Islands Local Authority"),$F86=1),0,IF(AND(OR(Results!$C$4="Shetland Health Board",Results!$C$4="Western Isles Health Board",Results!$C$4="Shetland Islands Local Authority",Results!$C$4="Eilean Siar Local Authority"),OR($F86=1,$F86=5)),0,new_yllv2(VALUE(LEFT(Options!$B$14,2)),$C86,$D86,$E86,$F86,2016,$I86,1,$H86,$G86*$H86,SIMD_rateratios_mortality,VALUE(VLOOKUP(Options!$B$8,Lists!$I$2:$J$31,2)))*10)) -> 4344.015881 | N86: =IF(AND(OR(Results!$C$4="Orkney Health Board",Results!$C$4="Orkney Islands Local Authority"),$F86=1),0,IF(AND(OR(Results!$C$4="Shetland Health Board",Results!$C$4="Western Isles Health Board",Results!$C$4="Shetland Islands Local Authority",Results!$C$4="Eilean Siar Local Authority"),OR($F86=1,$F86=5)),0,new_yllv2(VALUE(LEFT(Options!$B$14,2)),$C86,$D86,$E86,$F86,2016,$I86+$J86,1,$H86,$G86*$H86,SIMD_rateratios_mortality,VALUE(VLOOKUP(Options!$B$8,Lists!$I$2:$J$31,2)))*10)) -> 3953.773614 | O86: =IF(AND(OR(Results!$C$4="Orkney Health Board",Results!$C$4="Orkney Islands Local Authority"),$F86=1),0,IF(AND(OR(Results!$C$4="Shetland Health Board",Results!$C$4="Western Isles Health Board",Results!$C$4="Shetland Islands Local Authority",Results!$C$4="Eilean Siar Local Authority"),OR($F86=1,$F86=5)),0,hosp_count(VALUE(LEFT(Options!$B$14,2)),$C86,$E86,$F86,2016,$I86,1,$H86,$G86*$H86, SIMD_rateratios_hosp, SIMD_rateratios_mortality,VALUE(VLOOKUP(Options!$B$8,Lists!$I$2:$J$31,2)))*10)) -> 6330.212896 | P86: =IF(AND(OR(Results!$C$4="Orkney Health Board",Results!$C$4="Orkney Islands Local Authority"),$F86=1),0,IF(AND(OR(Results!$C$4="Shetland Health Board",Results!$C$4="Western Isles Health Board",Results!$C$4="Shetland Islands Local Authority",Results!$C$4="Eilean Siar Local Authority"),OR($F86=1,$F86=5)),0,hosp_count(VALUE(LEFT(Options!$B$14,2)),$C86,$E86,$F86,2016,$I86+$J86,1,$H86,$G86*$H86, SIMD_rateratios_hosp, SIMD_rateratios_mortality,VALUE(VLOOKUP(Options!$B$8,Lists!$I$2:$J$31,2)))*10)) -> 5838.111947 | Q86: =IF(AND(OR(Results!$C$4="Orkney Health Board",Results!$C$4="Orkney Islands Local Authority"),$F86=1),0,IF(AND(OR(Results!$C$4="Shetland Health Board",Results!$C$4="Western Isles Health Board",Results!$C$4="Shetland Islands Local Authority",Results!$C$4="Eilean Siar Local Authority"),OR($F86=1,$F86=5)),0,prem_mort(VALUE(LEFT(Options!$B$14,2)),$C86,$E86,$F86,2016,$I86,1,$H86,$G86*$H86,SIMD_rateratios_mortality,VALUE(VLOOKUP(Options!$B$8,Lists!$I$2:$J$31,2)))*10)) -> 107.498537 | R86: =IF(AND(OR(Results!$C$4="Orkney Health Board",Results!$C$4="Orkney Islands Local Authority"),$F86=1),0,IF(AND(OR(Results!$C$4="Shetland Health Board",Results!$C$4="Western Isles Health Board",Results!$C$4="Shetland Islands Local Authority",Results!$C$4="Eilean Siar Local Authority"),OR($F86=1,$F86=5)),0,prem_mort(VALUE(LEFT(Options!$B$14,2)),$C86,$E86,$F86,2016,$I86+$J86,1,$H86,$G86*$H86,SIMD_rateratios_mortality,VALUE(VLOOKUP(Options!$B$8,Lists!$I$2:$J$31,2)))*10)) -> 97.84146533 | S86: 325.91116 | T86: 296.633111 | U86: 13170.06998 | V86: 11986.94402 | W86: 19191.76842 | X86: 17699.83006 | Y86: 325.91116 | Z86: 296.633111 | AA86: 2281378.12 | AB86: 2076431.777 | AC86: 92190489.83 | AD86: 83908608.11 | AE86: 134342378.9 | AF86: 123898810.4 | AG86: 2281378.12 | AH86: 2076431.777 | AI86: 7000
B87: Male 40-44 | C87: 42.067703 | D87: 78.9077 | E87: male | F87: 1 | G87: 1 | H87: =HLOOKUP(Calculations!$E$2,'Population 2016'!$C$3:$BC$249,'Population 2016'!BD87,FALSE)/10 -> 3162.3 | I87: 0 | J87: 3162.3 | K87: =IF(AND(OR(Results!$C$4="Orkney Health Board",Results!$C$4="Orkney Islands Local Authority"),$F87=1),0,IF(AND(OR(Results!$C$4="Shetland Health Board",Results!$C$4="Western Isles Health Board",Results!$C$4="Shetland Islands Local Authority",Results!$C$4="Eilean Siar Local Authority"),OR($F87=1,$F87=5)),0,new_ci(VALUE(LEFT(Options!$B$14,2)),$C87,$E87,$F87,2016,$I87,1,$H87,$G87*$H87,SIMD_rateratios_mortality,VALUE(VLOOKUP(Options!$B$8,Lists!$I$2:$J$31,2)))*10)) -> 151.8285247 | L87: =IF(AND(OR(Results!$C$4="Orkney Health Board",Results!$C$4="Orkney Islands Local Authority"),$F87=1),0,IF(AND(OR(Results!$C$4="Shetland Health Board",Results!$C$4="Western Isles Health Board",Results!$C$4="Shetland Islands Local Authority",Results!$C$4="Eilean Siar Local Authority"),OR($F87=1,$F87=5)),0,new_ci(VALUE(LEFT(Options!$B$14,2)),$C87,$E87,$F87,2016,$I87+$J87,1,$H87,$G87*$H87, SIMD_rateratios_mortality, VALUE(VLOOKUP(Options!$B$8,Lists!$I$2:$J$31,2)))*10)) -> 138.1983442 | M87: =IF(AND(OR(Results!$C$4="Orkney Health Board",Results!$C$4="Orkney Islands Local Authority"),$F87=1),0,IF(AND(OR(Results!$C$4="Shetland Health Board",Results!$C$4="Western Isles Health Board",Results!$C$4="Shetland Islands Local Authority",Results!$C$4="Eilean Siar Local Authority"),OR($F87=1,$F87=5)),0,new_yllv2(VALUE(LEFT(Options!$B$14,2)),$C87,$D87,$E87,$F87,2016,$I87,1,$H87,$G87*$H87,SIMD_rateratios_mortality,VALUE(VLOOKUP(Options!$B$8,Lists!$I$2:$J$31,2)))*10)) -> 5441.533869 | N87: =IF(AND(OR(Results!$C$4="Orkney Health Board",Results!$C$4="Orkney Islands Local Authority"),$F87=1),0,IF(AND(OR(Results!$C$4="Shetland Health Board",Results!$C$4="Western Isles Health Board",Results!$C$4="Shetland Islands Local Authority",Results!$C$4="Eilean Siar Local Authority"),OR($F87=1,$F87=5)),0,new_yllv2(VALUE(LEFT(Options!$B$14,2)),$C87,$D87,$E87,$F87,2016,$I87+$J87,1,$H87,$G87*$H87,SIMD_rateratios_mortality,VALUE(VLOOKUP(Options!$B$8,Lists!$I$2:$J$31,2)))*10)) -> 4953.028243 | O87: =IF(AND(OR(Results!$C$4="Orkney Health Board",Results!$C$4="Orkney Islands Local Authority"),$F87=1),0,IF(AND(OR(Results!$C$4="Shetland Health Board",Results!$C$4="Western Isles Health Board",Results!$C$4="Shetland Islands Local Authority",Results!$C$4="Eilean Siar Local Authority"),OR($F87=1,$F87=5)),0,hosp_count(VALUE(LEFT(Options!$B$14,2)),$C87,$E87,$F87,2016,$I87,1,$H87,$G87*$H87, SIMD_rateratios_hosp, SIMD_rateratios_mortality,VALUE(VLOOKUP(Options!$B$8,Lists!$I$2:$J$31,2)))*10)) -> 7284.154202 | P87: =IF(AND(OR(Results!$C$4="Orkney Health Board",Results!$C$4="Orkney Islands Local Authority"),$F87=1),0,IF(AND(OR(Results!$C$4="Shetland Health Board",Results!$C$4="Western Isles Health Board",Results!$C$4="Shetland Islands Local Authority",Results!$C$4="Eilean Siar Local Authority"),OR($F87=1,$F87=5)),0,hosp_count(VALUE(LEFT(Options!$B$14,2)),$C87,$E87,$F87,2016,$I87+$J87,1,$H87,$G87*$H87, SIMD_rateratios_hosp, SIMD_rateratios_mortality,VALUE(VLOOKUP(Options!$B$8,Lists!$I$2:$J$31,2)))*10)) -> 6717.880381 | Q87: =IF(AND(OR(Results!$C$4="Orkney Health Board",Results!$C$4="Orkney Islands Local Authority"),$F87=1),0,IF(AND(OR(Results!$C$4="Shetland Health Board",Results!$C$4="Western Isles Health Board",Results!$C$4="Shetland Islands Local Authority",Results!$C$4="Eilean Siar Local Authority"),OR($F87=1,$F87=5)),0,prem_mort(VALUE(LEFT(Options!$B$14,2)),$C87,$E87,$F87,2016,$I87,1,$H87,$G87*$H87,SIMD_rateratios_mortality,VALUE(VLOOKUP(Options!$B$8,Lists!$I$2:$J$31,2)))*10)) -> 151.8285247 | R87: =IF(AND(OR(Results!$C$4="Orkney Health Board",Results!$C$4="Orkney Islands Local Authority"),$F87=1),0,IF(AND(OR(Results!$C$4="Shetland Health Board",Results!$C$4="Western Isles Health Board",Results!$C$4="Shetland Islands Local Authority",Results!$C$4="Eilean Siar Local Authority"),OR($F87=1,$F87=5)),0,prem_mort(VALUE(LEFT(Options!$B$14,2)),$C87,$E87,$F87,2016,$I87+$J87,1,$H87,$G87*$H87,SIMD_rateratios_mortality,VALUE(VLOOKUP(Options!$B$8,Lists!$I$2:$J$31,2)))*10)) -> 138.1983442 | S87: 480.12056 | T87: 437.0184494 | U87: 17207.51943 | V87: 15662.73991 | W87: 23034.35538 | X87: 21243.65298 | Y87: 480.12056 | Z87: 437.0184494 | AA87: 3360843.92 | AB87: 3059129.146 | AC87: 120452636 | AD87: 109639179.4 | AE87: 161240487.7 | AF87: 148705570.8 | AG87: 3360843.92 | AH87: 3059129.146 | AI87: 7000
B88: Male 45-49 | C88: 47.038155 | D88: 79.41815 | E88: male | F88: 1 | G88: 1 | H88: =HLOOKUP(Calculations!$E$2,'Population 2016'!$C$3:$BC$249,'Population 2016'!BD88,FALSE)/10 -> 3587.8 | I88: 0 | J88: 3587.8 | K88: =IF(AND(OR(Results!$C$4="Orkney Health Board",Results!$C$4="Orkney Islands Local Authority"),$F88=1),0,IF(AND(OR(Results!$C$4="Shetland Health Board",Results!$C$4="Western Isles Health Board",Results!$C$4="Shetland Islands Local Authority",Results!$C$4="Eilean Siar Local Authority"),OR($F88=1,$F88=5)),0,new_ci(VALUE(LEFT(Options!$B$14,2)),$C88,$E88,$F88,2016,$I88,1,$H88,$G88*$H88,SIMD_rateratios_mortality,VALUE(VLOOKUP(Options!$B$8,Lists!$I$2:$J$31,2)))*10)) -> 250.4237256 | L88: =IF(AND(OR(Results!$C$4="Orkney Health Board",Results!$C$4="Orkney Islands Local Authority"),$F88=1),0,IF(AND(OR(Results!$C$4="Shetland Health Board",Results!$C$4="Western Isles Health Board",Results!$C$4="Shetland Islands Local Authority",Results!$C$4="Eilean Siar Local Authority"),OR($F88=1,$F88=5)),0,new_ci(VALUE(LEFT(Options!$B$14,2)),$C88,$E88,$F88,2016,$I88+$J88,1,$H88,$G88*$H88, SIMD_rateratios_mortality, VALUE(VLOOKUP(Options!$B$8,Lists!$I$2:$J$31,2)))*10)) -> 227.9613566 | M88: =IF(AND(OR(Results!$C$4="Orkney Health Board",Results!$C$4="Orkney Islands Local Authority"),$F88=1),0,IF(AND(OR(Results!$C$4="Shetland Health Board",Results!$C$4="Western Isles Health Board",Results!$C$4="Shetland Islands Local Authority",Results!$C$4="Eilean Siar Local Authority"),OR($F88=1,$F88=5)),0,new_yllv2(VALUE(LEFT(Options!$B$14,2)),$C88,$D88,$E88,$F88,2016,$I88,1,$H88,$G88*$H88,SIMD_rateratios_mortality,VALUE(VLOOKUP(Options!$B$8,Lists!$I$2:$J$31,2)))*10)) -> 7858.295258 | N88: =IF(AND(OR(Results!$C$4="Orkney Health Board",Results!$C$4="Orkney Islands Local Authority"),$F88=1),0,IF(AND(OR(Results!$C$4="Shetland Health Board",Results!$C$4="Western Isles Health Board",Results!$C$4="Shetland Islands Local Authority",Results!$C$4="Eilean Siar Local Authority"),OR($F88=1,$F88=5)),0,new_yllv2(VALUE(LEFT(Options!$B$14,2)),$C88,$D88,$E88,$F88,2016,$I88+$J88,1,$H88,$G88*$H88,SIMD_rateratios_mortality,VALUE(VLOOKUP(Options!$B$8,Lists!$I$2:$J$31,2)))*10)) -> 7153.426231 | O88: =IF(AND(OR(Results!$C$4="Orkney Health Board",Results!$C$4="Orkney Islands Local Authority"),$F88=1),0,IF(AND(OR(Results!$C$4="Shetland Health Board",Results!$C$4="Western Isles Health Board",Results!$C$4="Shetland Islands Local Authority",Results!$C$4="Eilean Siar Local Authority"),OR($F88=1,$F88=5)),0,hosp_count(VALUE(LEFT(Options!$B$14,2)),$C88,$E88,$F88,2016,$I88,1,$H88,$G88*$H88, SIMD_rateratios_hosp, SIMD_rateratios_mortality,VALUE(VLOOKUP(Options!$B$8,Lists!$I$2:$J$31,2)))*10)) -> 9858.835372 | P88: =IF(AND(OR(Results!$C$4="Orkney Health Board",Results!$C$4="Orkney Islands Local Authority"),$F88=1),0,IF(AND(OR(Results!$C$4="Shetland Health Board",Results!$C$4="Western Isles Health Board",Results!$C$4="Shetland Islands Local Authority",Results!$C$4="Eilean Siar Local Authority"),OR($F88=1,$F88=5)),0,hosp_count(VALUE(LEFT(Options!$B$14,2)),$C88,$E88,$F88,2016,$I88+$J88,1,$H88,$G88*$H88, SIMD_rateratios_hosp, SIMD_rateratios_mortality,VALUE(VLOOKUP(Options!$B$8,Lists!$I$2:$J$31,2)))*10)) -> 9092.289096 | Q88: =IF(AND(OR(Results!$C$4="Orkney Health Board",Results!$C$4="Orkney Islands Local Authority"),$F88=1),0,IF(AND(OR(Results!$C$4="Shetland Health Board",Results!$C$4="Western Isles Health Board",Results!$C$4="Shetland Islands Local Authority",Results!$C$4="Eilean Siar Local Authority"),OR($F88=1,$F88=5)),0,prem_mort(VALUE(LEFT(Options!$B$14,2)),$C88,$E88,$F88,2016,$I88,1,$H88,$G88*$H88,SIMD_rateratios_mortality,VALUE(VLOOKUP(Options!$B$8,Lists!$I$2:$J$31,2)))*10)) -> 250.4237256 | R88: =IF(AND(OR(Results!$C$4="Orkney Health Board",Results!$C$4="Orkney Islands Local Authority"),$F88=1),0,IF(AND(OR(Results!$C$4="Shetland Health Board",Results!$C$4="Western Isles Health Board",Results!$C$4="Shetland Islands Local Authority",Results!$C$4="Eilean Siar Local Authority"),OR($F88=1,$F88=5)),0,prem_mort(VALUE(LEFT(Options!$B$14,2)),$C88,$E88,$F88,2016,$I88+$J88,1,$H88,$G88*$H88,SIMD_rateratios_mortality,VALUE(VLOOKUP(Options!$B$8,Lists!$I$2:$J$31,2)))*10)) -> 227.9613566 | S88: 697.98686 | T88: 635.3792202 | U88: 21902.82418 | V88: 19938.19675 | W88: 27478.77633 | X88: 25342.24064 | Y88: 697.98686 | Z88: 635.3792202 | AA88: 4885908.02 | AB88: 4447654.541 | AC88: 153319769.2 | AD88: 139567377.3 | AE88: 192351434.3 | AF88: 177395684.5 | AG88: 4885908.02 | AH88: 4447654.541 | AI88: 7000
B89: Male 50-54 | C89: 51.998646 | D89: 79.98865 | E89: male | F89: 1 | G89: 1 | H89: =HLOOKUP(Calculations!$E$2,'Population 2016'!$C$3:$BC$249,'Population 2016'!BD89,FALSE)/10 -> 3692.2 | I89: 0 | J89: 3692.2 | K89: =IF(AND(OR(Results!$C$4="Orkney Health Board",Results!$C$4="Orkney Islands Local Authority"),$F89=1),0,IF(AND(OR(Results!$C$4="Shetland Health Board",Results!$C$4="Western Isles Health Board",Results!$C$4="Shetland Islands Local Authority",Results!$C$4="Eilean Siar Local Authority"),OR($F89=1,$F89=5)),0,new_ci(VALUE(LEFT(Options!$B$14,2)),$C89,$E89,$F89,2016,$I89,1,$H89,$G89*$H89,SIMD_rateratios_mortality,VALUE(VLOOKUP(Options!$B$8,Lists!$I$2:$J$31,2)))*10)) -> 374.1866441 | L89: =IF(AND(OR(Results!$C$4="Orkney Health Board",Results!$C$4="Orkney Islands Local Authority"),$F89=1),0,IF(AND(OR(Results!$C$4="Shetland Health Board",Results!$C$4="Western Isles Health Board",Results!$C$4="Shetland Islands Local Authority",Results!$C$4="Eilean Siar Local Authority"),OR($F89=1,$F89=5)),0,new_ci(VALUE(LEFT(Options!$B$14,2)),$C89,$E89,$F89,2016,$I89+$J89,1,$H89,$G89*$H89, SIMD_rateratios_mortality, VALUE(VLOOKUP(Options!$B$8,Lists!$I$2:$J$31,2)))*10)) -> 340.6753754 | M89: =IF(AND(OR(Results!$C$4="Orkney Health Board",Results!$C$4="Orkney Islands Local Authority"),$F89=1),0,IF(AND(OR(Results!$C$4="Shetland Health Board",Results!$C$4="Western Isles Health Board",Results!$C$4="Shetland Islands Local Authority",Results!$C$4="Eilean Siar Local Authority"),OR($F89=1,$F89=5)),0,new_yllv2(VALUE(LEFT(Options!$B$14,2)),$C89,$D89,$E89,$F89,2016,$I89,1,$H89,$G89*$H89,SIMD_rateratios_mortality,VALUE(VLOOKUP(Options!$B$8,Lists!$I$2:$J$31,2)))*10)) -> 10099.29902 | N89: =IF(AND(OR(Results!$C$4="Orkney Health Board",Results!$C$4="Orkney Islands Local Authority"),$F89=1),0,IF(AND(OR(Results!$C$4="Shetland Health Board",Results!$C$4="Western Isles Health Board",Results!$C$4="Shetland Islands Local Authority",Results!$C$4="Eilean Siar Local Authority"),OR($F89=1,$F89=5)),0,new_yllv2(VALUE(LEFT(Options!$B$14,2)),$C89,$D89,$E89,$F89,2016,$I89+$J89,1,$H89,$G89*$H89,SIMD_rateratios_mortality,VALUE(VLOOKUP(Options!$B$8,Lists!$I$2:$J$31,2)))*10)) -> 9194.829744 | O89: =IF(AND(OR(Results!$C$4="Orkney Health Board",Results!$C$4="Orkney Islands Local Authority"),$F89=1),0,IF(AND(OR(Results!$C$4="Shetland Health Board",Results!$C$4="Western Isles Health Board",Results!$C$4="Shetland Islands Local Authority",Results!$C$4="Eilean Siar Local Authority"),OR($F89=1,$F89=5)),0,hosp_count(VALUE(LEFT(Options!$B$14,2)),$C89,$E89,$F89,2016,$I89,1,$H89,$G89*$H89, SIMD_rateratios_hosp, SIMD_rateratios_mortality,VALUE(VLOOKUP(Options!$B$8,Lists!$I$2:$J$31,2)))*10)) -> 12099.02518 | P89: =IF(AND(OR(Results!$C$4="Orkney Health Board",Results!$C$4="Orkney Islands Local Authority"),$F89=1),0,IF(AND(OR(Results!$C$4="Shetland Health Board",Results!$C$4="Western Isles Health Board",Results!$C$4="Shetland Islands Local Authority",Results!$C$4="Eilean Siar Local Authority"),OR($F89=1,$F89=5)),0,hosp_count(VALUE(LEFT(Options!$B$14,2)),$C89,$E89,$F89,2016,$I89+$J89,1,$H89,$G89*$H89, SIMD_rateratios_hosp, SIMD_rateratios_mortality,VALUE(VLOOKUP(Options!$B$8,Lists!$I$2:$J$31,2)))*10)) -> 11158.40258 | Q89: =IF(AND(OR(Results!$C$4="Orkney Health Board",Results!$C$4="Orkney Islands Local Authority"),$F89=1),0,IF(AND(OR(Results!$C$4="Shetland Health Board",Results!$C$4="Western Isles Health Board",Results!$C$4="Shetland Islands Local Authority",Results!$C$4="Eilean Siar Local Authority"),OR($F89=1,$F89=5)),0,prem_mort(VALUE(LEFT(Options!$B$14,2)),$C89,$E89,$F89,2016,$I89,1,$H89,$G89*$H89,SIMD_rateratios_mortality,VALUE(VLOOKUP(Options!$B$8,Lists!$I$2:$J$31,2)))*10)) -> 374.1866441 | R89: =IF(AND(OR(Results!$C$4="Orkney Health Board",Results!$C$4="Orkney Islands Local Authority"),$F89=1),0,IF(AND(OR(Results!$C$4="Shetland Health Board",Results!$C$4="Western Isles Health Board",Results!$C$4="Shetland Islands Local Authority",Results!$C$4="Eilean Siar Local Authority"),OR($F89=1,$F89=5)),0,prem_mort(VALUE(LEFT(Options!$B$14,2)),$C89,$E89,$F89,2016,$I89+$J89,1,$H89,$G89*$H89,SIMD_rateratios_mortality,VALUE(VLOOKUP(Options!$B$8,Lists!$I$2:$J$31,2)))*10)) -> 340.6753754 | S89: 1013.45172 | T89: 922.6893867 | U89: 27353.06598 | V89: 24903.39024 | W89: 32769.14897 | X89: 30221.55512 | Y89: 1013.45172 | Z89: 922.6893867 | AA89: 7094162.04 | AB89: 6458825.707 | AC89: 191471461.8 | AD89: 174323731.7 | AE89: 229384042.8 | AF89: 211550885.8 | AG89: 7094162.04 | AH89: 6458825.707 | AI89: 7000
B90: Male 55-59 | C90: 56.950867 | D90: 80.66087 | E90: male | F90: 1 | G90: 1 | H90: =HLOOKUP(Calculations!$E$2,'Population 2016'!$C$3:$BC$249,'Population 2016'!BD90,FALSE)/10 -> 3325.1 | I90: 0 | J90: 3325.1 | K90: =IF(AND(OR(Results!$C$4="Orkney Health Board",Results!$C$4="Orkney Islands Local Authority"),$F90=1),0,IF(AND(OR(Results!$C$4="Shetland Health Board",Results!$C$4="Western Isles Health Board",Results!$C$4="Shetland Islands Local Authority",Results!$C$4="Eilean Siar Local Authority"),OR($F90=1,$F90=5)),0,new_ci(VALUE(LEFT(Options!$B$14,2)),$C90,$E90,$F90,2016,$I90,1,$H90,$G90*$H90,SIMD_rateratios_mortality,VALUE(VLOOKUP(Options!$B$8,Lists!$I$2:$J$31,2)))*10)) -> 488.6317278 | L90: =IF(AND(OR(Results!$C$4="Orkney Health Board",Results!$C$4="Orkney Islands Local Authority"),$F90=1),0,IF(AND(OR(Results!$C$4="Shetland Health Board",Results!$C$4="Western Isles Health Board",Results!$C$4="Shetland Islands Local Authority",Results!$C$4="Eilean Siar Local Authority"),OR($F90=1,$F90=5)),0,new_ci(VALUE(LEFT(Options!$B$14,2)),$C90,$E90,$F90,2016,$I90+$J90,1,$H90,$G90*$H90, SIMD_rateratios_mortality, VALUE(VLOOKUP(Options!$B$8,Lists!$I$2:$J$31,2)))*10)) -> 444.9620456 | M90: =IF(AND(OR(Results!$C$4="Orkney Health Board",Results!$C$4="Orkney Islands Local Authority"),$F90=1),0,IF(AND(OR(Results!$C$4="Shetland Health Board",Results!$C$4="Western Isles Health Board",Results!$C$4="Shetland Islands Local Authority",Results!$C$4="Eilean Siar Local Authority"),OR($F90=1,$F90=5)),0,new_yllv2(VALUE(LEFT(Options!$B$14,2)),$C90,$D90,$E90,$F90,2016,$I90,1,$H90,$G90*$H90,SIMD_rateratios_mortality,VALUE(VLOOKUP(Options!$B$8,Lists!$I$2:$J$31,2)))*10)) -> 11096.828 | N90: =IF(AND(OR(Results!$C$4="Orkney Health Board",Results!$C$4="Orkney Islands Local Authority"),$F90=1),0,IF(AND(OR(Results!$C$4="Shetland Health Board",Results!$C$4="Western Isles Health Board",Results!$C$4="Shetland Islands Local Authority",Results!$C$4="Eilean Siar Local Authority"),OR($F90=1,$F90=5)),0,new_yllv2(VALUE(LEFT(Options!$B$14,2)),$C90,$D90,$E90,$F90,2016,$I90+$J90,1,$H90,$G90*$H90,SIMD_rateratios_mortality,VALUE(VLOOKUP(Options!$B$8,Lists!$I$2:$J$31,2)))*10)) -> 10105.08939 | O90: =IF(AND(OR(Results!$C$4="Orkney Health Board",Results!$C$4="Orkney Islands Local Authority"),$F90=1),0,IF(AND(OR(Results!$C$4="Shetland Health Board",Results!$C$4="Western Isles Health Board",Results!$C$4="Shetland Islands Local Authority",Results!$C$4="Eilean Siar Local Authority"),OR($F90=1,$F90=5)),0,hosp_count(VALUE(LEFT(Options!$B$14,2)),$C90,$E90,$F90,2016,$I90,1,$H90,$G90*$H90, SIMD_rateratios_hosp, SIMD_rateratios_mortality,VALUE(VLOOKUP(Options!$B$8,Lists!$I$2:$J$31,2)))*10)) -> 12990.03024 | P90: =IF(AND(OR(Results!$C$4="Orkney Health Board",Results!$C$4="Orkney Islands Local Authority"),$F90=1),0,IF(AND(OR(Results!$C$4="Shetland Health Board",Results!$C$4="Western Isles Health Board",Results!$C$4="Shetland Islands Local Authority",Results!$C$4="Eilean Siar Local Authority"),OR($F90=1,$F90=5)),0,hosp_count(VALUE(LEFT(Options!$B$14,2)),$C90,$E90,$F90,2016,$I90+$J90,1,$H90,$G90*$H90, SIMD_rateratios_hosp, SIMD_rateratios_mortality,VALUE(VLOOKUP(Options!$B$8,Lists!$I$2:$J$31,2)))*10)) -> 11980.1133 | Q90: =IF(AND(OR(Results!$C$4="Orkney Health Board",Results!$C$4="Orkney Islands Local Authority"),$F90=1),0,IF(AND(OR(Results!$C$4="Shetland Health Board",Results!$C$4="Western Isles Health Board",Results!$C$4="Shetland Islands Local Authority",Results!$C$4="Eilean Siar Local Authority"),OR($F90=1,$F90=5)),0,prem_mort(VALUE(LEFT(Options!$B$14,2)),$C90,$E90,$F90,2016,$I90,1,$H90,$G90*$H90,SIMD_rateratios_mortality,VALUE(VLOOKUP(Options!$B$8,Lists!$I$2:$J$31,2)))*10)) -> 488.6317278 | R90: =IF(AND(OR(Results!$C$4="Orkney Health Board",Results!$C$4="Orkney Islands Local Authority"),$F90=1),0,IF(AND(OR(Results!$C$4="Shetland Health Board",Results!$C$4="Western Isles Health Board",Results!$C$4="Shetland Islands Local Authority",Results!$C$4="Eilean Siar Local Authority"),OR($F90=1,$F90=5)),0,prem_mort(VALUE(LEFT(Options!$B$14,2)),$C90,$E90,$F90,2016,$I90+$J90,1,$H90,$G90*$H90,SIMD_rateratios_mortality,VALUE(VLOOKUP(Options!$B$8,Lists!$I$2:$J$31,2)))*10)) -> 444.9620456 | S90: 1469.52491 | T90: 1338.19147 | U90: 33372.91511 | V90: 30390.3323 | W90: 39066.58519 | X90: 36029.33236 | Y90: 1469.52491 | Z90: 1338.19147 | AA90: 9551911.915 | AB90: 8698244.554 | AC90: 216923948.2 | AD90: 197537159.9 | AE90: 253932803.7 | AF90: 234190660.3 | AG90: 9551911.915 | AH90: 8698244.554 | AI90: 6500
B91: Male 60-64 | C91: 61.942989 | D91: 81.61299 | E91: male | F91: 1 | G91: 1 | H91: =HLOOKUP(Calculations!$E$2,'Population 2016'!$C$3:$BC$249,'Population 2016'!BD91,FALSE)/10 -> 2735.8 | I91: 0 | J91: 2735.8 | K91: =IF(AND(OR(Results!$C$4="Orkney Health Board",Results!$C$4="Orkney Islands Local Authority"),$F91=1),0,IF(AND(OR(Results!$C$4="Shetland Health Board",Results!$C$4="Western Isles Health Board",Results!$C$4="Shetland Islands Local Authority",Results!$C$4="Eilean Siar Local Authority"),OR($F91=1,$F91=5)),0,new_ci(VALUE(LEFT(Options!$B$14,2)),$C91,$E91,$F91,2016,$I91,1,$H91,$G91*$H91,SIMD_rateratios_mortality,VALUE(VLOOKUP(Options!$B$8,Lists!$I$2:$J$31,2)))*10)) -> 584.0864277 | L91: =IF(AND(OR(Results!$C$4="Orkney Health Board",Results!$C$4="Orkney Islands Local Authority"),$F91=1),0,IF(AND(OR(Results!$C$4="Shetland Health Board",Results!$C$4="Western Isles Health Board",Results!$C$4="Shetland Islands Local Authority",Results!$C$4="Eilean Siar Local Authority"),OR($F91=1,$F91=5)),0,new_ci(VALUE(LEFT(Options!$B$14,2)),$C91,$E91,$F91,2016,$I91+$J91,1,$H91,$G91*$H91, SIMD_rateratios_mortality, VALUE(VLOOKUP(Options!$B$8,Lists!$I$2:$J$31,2)))*10)) -> 532.0417021 | M91: =IF(AND(OR(Results!$C$4="Orkney Health Board",Results!$C$4="Orkney Islands Local Authority"),$F91=1),0,IF(AND(OR(Results!$C$4="Shetland Health Board",Results!$C$4="Western Isles Health Board",Results!$C$4="Shetland Islands Local Authority",Results!$C$4="Eilean Siar Local Authority"),OR($F91=1,$F91=5)),0,new_yllv2(VALUE(LEFT(Options!$B$14,2)),$C91,$D91,$E91,$F91,2016,$I91,1,$H91,$G91*$H91,SIMD_rateratios_mortality,VALUE(VLOOKUP(Options!$B$8,Lists!$I$2:$J$31,2)))*10)) -> 10904.89419 | N91: =IF(AND(OR(Results!$C$4="Orkney Health Board",Results!$C$4="Orkney Islands Local Authority"),$F91=1),0,IF(AND(OR(Results!$C$4="Shetland Health Board",Results!$C$4="Western Isles Health Board",Results!$C$4="Shetland Islands Local Authority",Results!$C$4="Eilean Siar Local Authority"),OR($F91=1,$F91=5)),0,new_yllv2(VALUE(LEFT(Options!$B$14,2)),$C91,$D91,$E91,$F91,2016,$I91+$J91,1,$H91,$G91*$H91,SIMD_rateratios_mortality,VALUE(VLOOKUP(Options!$B$8,Lists!$I$2:$J$31,2)))*10)) -> 9933.219111 | O91: =IF(AND(OR(Results!$C$4="Orkney Health Board",Results!$C$4="Orkney Islands Local Authority"),$F91=1),0,IF(AND(OR(Results!$C$4="Shetland Health Board",Results!$C$4="Western Isles Health Board",Results!$C$4="Shetland Islands Local Authority",Results!$C$4="Eilean Siar Local Authority"),OR($F91=1,$F91=5)),0,hosp_count(VALUE(LEFT(Options!$B$14,2)),$C91,$E91,$F91,2016,$I91,1,$H91,$G91*$H91, SIMD_rateratios_hosp, SIMD_rateratios_mortality,VALUE(VLOOKUP(Options!$B$8,Lists!$I$2:$J$31,2)))*10)) -> 12759.83838 | P91: =IF(AND(OR(Results!$C$4="Orkney Health Board",Results!$C$4="Orkney Islands Local Authority"),$F91=1),0,IF(AND(OR(Results!$C$4="Shetland Health Board",Results!$C$4="Western Isles Health Board",Results!$C$4="Shetland Islands Local Authority",Results!$C$4="Eilean Siar Local Authority"),OR($F91=1,$F91=5)),0,hosp_count(VALUE(LEFT(Options!$B$14,2)),$C91,$E91,$F91,2016,$I91+$J91,1,$H91,$G91*$H91, SIMD_rateratios_hosp, SIMD_rateratios_mortality,VALUE(VLOOKUP(Options!$B$8,Lists!$I$2:$J$31,2)))*10)) -> 11767.71547 | Q91: =IF(AND(OR(Results!$C$4="Orkney Health Board",Results!$C$4="Orkney Islands Local Authority"),$F91=1),0,IF(AND(OR(Results!$C$4="Shetland Health Board",Results!$C$4="Western Isles Health Board",Results!$C$4="Shetland Islands Local Authority",Results!$C$4="Eilean Siar Local Authority"),OR($F91=1,$F91=5)),0,prem_mort(VALUE(LEFT(Options!$B$14,2)),$C91,$E91,$F91,2016,$I91,1,$H91,$G91*$H91,SIMD_rateratios_mortality,VALUE(VLOOKUP(Options!$B$8,Lists!$I$2:$J$31,2)))*10)) -> 584.0864277 | R91: =IF(AND(OR(Results!$C$4="Orkney Health Board",Results!$C$4="Orkney Islands Local Authority"),$F91=1),0,IF(AND(OR(Results!$C$4="Shetland Health Board",Results!$C$4="Western Isles Health Board",Results!$C$4="Shetland Islands Local Authority",Results!$C$4="Eilean Siar Local Authority"),OR($F91=1,$F91=5)),0,prem_mort(VALUE(LEFT(Options!$B$14,2)),$C91,$E91,$F91,2016,$I91+$J91,1,$H91,$G91*$H91,SIMD_rateratios_mortality,VALUE(VLOOKUP(Options!$B$8,Lists!$I$2:$J$31,2)))*10)) -> 532.0417021 | S91: 2134.97488 | T91: 1944.739024 | U91: 39859.98314 | V91: 36308.27952 | W91: 46640.24555 | X91: 43013.80025 | Y91: 2134.97488 | Z91: 1944.739024 | AA91: 12809849.28 | AB91: 11668434.14 | AC91: 239159898.9 | AD91: 217849677.1 | AE91: 279841473.3 | AF91: 258082801.5 | AG91: 12809849.28 | AH91: 11668434.14 | AI91: 6000
B92: Male 65-69 | C92: 67.05442 | D92: 82.95442 | E92: male | F92: 1 | G92: 1 | H92: =HLOOKUP(Calculations!$E$2,'Population 2016'!$C$3:$BC$249,'Population 2016'!BD92,FALSE)/10 -> 2556.7 | I92: 0 | J92: 2556.7 | K92: =IF(AND(OR(Results!$C$4="Orkney Health Board",Results!$C$4="Orkney Islands Local Authority"),$F92=1),0,IF(AND(OR(Results!$C$4="Shetland Health Board",Results!$C$4="Western Isles Health Board",Results!$C$4="Shetland Islands Local Authority",Results!$C$4="Eilean Siar Local Authority"),OR($F92=1,$F92=5)),0,new_ci(VALUE(LEFT(Options!$B$14,2)),$C92,$E92,$F92,2016,$I92,1,$H92,$G92*$H92,SIMD_rateratios_mortality,VALUE(VLOOKUP(Options!$B$8,Lists!$I$2:$J$31,2)))*10)) -> 798.8591826 | L92: =IF(AND(OR(Results!$C$4="Orkney Health Board",Results!$C$4="Orkney Islands Local Authority"),$F92=1),0,IF(AND(OR(Results!$C$4="Shetland Health Board",Results!$C$4="Western Isles Health Board",Results!$C$4="Shetland Islands Local Authority",Results!$C$4="Eilean Siar Local Authority"),OR($F92=1,$F92=5)),0,new_ci(VALUE(LEFT(Options!$B$14,2)),$C92,$E92,$F92,2016,$I92+$J92,1,$H92,$G92*$H92, SIMD_rateratios_mortality, VALUE(VLOOKUP(Options!$B$8,Lists!$I$2:$J$31,2)))*10)) -> 728.0041066 | M92: =IF(AND(OR(Results!$C$4="Orkney Health Board",Results!$C$4="Orkney Islands Local Authority"),$F92=1),0,IF(AND(OR(Results!$C$4="Shetland Health Board",Results!$C$4="Western Isles Health Board",Results!$C$4="Shetland Islands Local Authority",Results!$C$4="Eilean Siar Local Authority"),OR($F92=1,$F92=5)),0,new_yllv2(VALUE(LEFT(Options!$B$14,2)),$C92,$D92,$E92,$F92,2016,$I92,1,$H92,$G92*$H92,SIMD_rateratios_mortality,VALUE(VLOOKUP(Options!$B$8,Lists!$I$2:$J$31,2)))*10)) -> 11903.00182 | N92: =IF(AND(OR(Results!$C$4="Orkney Health Board",Results!$C$4="Orkney Islands Local Authority"),$F92=1),0,IF(AND(OR(Results!$C$4="Shetland Health Board",Results!$C$4="Western Isles Health Board",Results!$C$4="Shetland Islands Local Authority",Results!$C$4="Eilean Siar Local Authority"),OR($F92=1,$F92=5)),0,new_yllv2(VALUE(LEFT(Options!$B$14,2)),$C92,$D92,$E92,$F92,2016,$I92+$J92,1,$H92,$G92*$H92,SIMD_rateratios_mortality,VALUE(VLOOKUP(Options!$B$8,Lists!$I$2:$J$31,2)))*10)) -> 10847.26119 | O92: =IF(AND(OR(Results!$C$4="Orkney Health Board",Results!$C$4="Orkney Islands Local Authority"),$F92=1),0,IF(AND(OR(Results!$C$4="Shetland Health Board",Results!$C$4="Western Isles Health Board",Results!$C$4="Shetland Islands Local Authority",Results!$C$4="Eilean Siar Local Authority"),OR($F92=1,$F92=5)),0,hosp_count(VALUE(LEFT(Options!$B$14,2)),$C92,$E92,$F92,2016,$I92,1,$H92,$G92*$H92, SIMD_rateratios_hosp, SIMD_rateratios_mortality,VALUE(VLOOKUP(Options!$B$8,Lists!$I$2:$J$31,2)))*10)) -> 14296.67907 | P92: =IF(AND(OR(Results!$C$4="Orkney Health Board",Results!$C$4="Orkney Islands Local Authority"),$F92=1),0,IF(AND(OR(Results!$C$4="Shetland Health Board",Results!$C$4="Western Isles Health Board",Results!$C$4="Shetland Islands Local Authority",Results!$C$4="Eilean Siar Local Authority"),OR($F92=1,$F92=5)),0,hosp_count(VALUE(LEFT(Options!$B$14,2)),$C92,$E92,$F92,2016,$I92+$J92,1,$H92,$G92*$H92, SIMD_rateratios_hosp, SIMD_rateratios_mortality,VALUE(VLOOKUP(Options!$B$8,Lists!$I$2:$J$31,2)))*10)) -> 13185.01216 | Q92: =IF(AND(OR(Results!$C$4="Orkney Health Board",Results!$C$4="Orkney Islands Local Authority"),$F92=1),0,IF(AND(OR(Results!$C$4="Shetland Health Board",Results!$C$4="Western Isles Health Board",Results!$C$4="Shetland Islands Local Authority",Results!$C$4="Eilean Siar Local Authority"),OR($F92=1,$F92=5)),0,prem_mort(VALUE(LEFT(Options!$B$14,2)),$C92,$E92,$F92,2016,$I92,1,$H92,$G92*$H92,SIMD_rateratios_mortality,VALUE(VLOOKUP(Options!$B$8,Lists!$I$2:$J$31,2)))*10)) -> 798.8591826 | R92: =IF(AND(OR(Results!$C$4="Orkney Health Board",Results!$C$4="Orkney Islands Local Authority"),$F92=1),0,IF(AND(OR(Results!$C$4="Shetland Health Board",Results!$C$4="Western Isles Health Board",Results!$C$4="Shetland Islands Local Authority",Results!$C$4="Eilean Siar Local Authority"),OR($F92=1,$F92=5)),0,prem_mort(VALUE(LEFT(Options!$B$14,2)),$C92,$E92,$F92,2016,$I92+$J92,1,$H92,$G92*$H92,SIMD_rateratios_mortality,VALUE(VLOOKUP(Options!$B$8,Lists!$I$2:$J$31,2)))*10)) -> 728.0041066 | S92: 3124.57145 | T92: 2847.436565 | U92: 46556.11461 | V92: 42426.80482 | W92: 55918.48504 | X92: 51570.43124 | Y92: 3124.57145 | Z92: 2847.436565 | AA92: 17185142.98 | AB92: 15660901.11 | AC92: 256058630.3 | AD92: 233347426.5 | AE92: =W92*$AI92 -> 307551667.7 | AF92: =X92*$AI92 -> 283637371.8 | AG92: =Y92*$AI92 -> 17185142.98 | AH92: =Z92*$AI92 -> 15660901.11 | AI92: 5500
B93: Male 70-74 | C93: 71.891098 | D93: 84.3411 | E93: male | F93: 1 | G93: 1 | H93: =HLOOKUP(Calculations!$E$2,'Population 2016'!$C$3:$BC$249,'Population 2016'!BD93,FALSE)/10 -> 1835.8 | I93: 0 | J93: 1835.8 | K93: =IF(AND(OR(Results!$C$4="Orkney Health Board",Results!$C$4="Orkney Islands Local Authority"),$F93=1),0,IF(AND(OR(Results!$C$4="Shetland Health Board",Results!$C$4="Western Isles Health Board",Results!$C$4="Shetland Islands Local Authority",Results!$C$4="Eilean Siar Local Authority"),OR($F93=1,$F93=5)),0,new_ci(VALUE(LEFT(Options!$B$14,2)),$C93,$E93,$F93,2016,$I93,1,$H93,$G93*$H93,SIMD_rateratios_mortality,VALUE(VLOOKUP(Options!$B$8,Lists!$I$2:$J$31,2)))*10)) -> 820.698203 | L93: =IF(AND(OR(Results!$C$4="Orkney Health Board",Results!$C$4="Orkney Islands Local Authority"),$F93=1),0,IF(AND(OR(Results!$C$4="Shetland Health Board",Results!$C$4="Western Isles Health Board",Results!$C$4="Shetland Islands Local Authority",Results!$C$4="Eilean Siar Local Authority"),OR($F93=1,$F93=5)),0,new_ci(VALUE(LEFT(Options!$B$14,2)),$C93,$E93,$F93,2016,$I93+$J93,1,$H93,$G93*$H93, SIMD_rateratios_mortality, VALUE(VLOOKUP(Options!$B$8,Lists!$I$2:$J$31,2)))*10)) -> 748.3718783 | M93: =IF(AND(OR(Results!$C$4="Orkney Health Board",Results!$C$4="Orkney Islands Local Authority"),$F93=1),0,IF(AND(OR(Results!$C$4="Shetland Health Board",Results!$C$4="Western Isles Health Board",Results!$C$4="Shetland Islands Local Authority",Results!$C$4="Eilean Siar Local Authority"),OR($F93=1,$F93=5)),0,new_yllv2(VALUE(LEFT(Options!$B$14,2)),$C93,$D93,$E93,$F93,2016,$I93,1,$H93,$G93*$H93,SIMD_rateratios_mortality,VALUE(VLOOKUP(Options!$B$8,Lists!$I$2:$J$31,2)))*10)) -> 9396.996065 | N93: =IF(AND(OR(Results!$C$4="Orkney Health Board",Results!$C$4="Orkney Islands Local Authority"),$F93=1),0,IF(AND(OR(Results!$C$4="Shetland Health Board",Results!$C$4="Western Isles Health Board",Results!$C$4="Shetland Islands Local Authority",Results!$C$4="Eilean Siar Local Authority"),OR($F93=1,$F93=5)),0,new_yllv2(VALUE(LEFT(Options!$B$14,2)),$C93,$D93,$E93,$F93,2016,$I93+$J93,1,$H93,$G93*$H93,SIMD_rateratios_mortality,VALUE(VLOOKUP(Options!$B$8,Lists!$I$2:$J$31,2)))*10)) -> 8568.859504 | O93: =IF(AND(OR(Results!$C$4="Orkney Health Board",Results!$C$4="Orkney Islands Local Authority"),$F93=1),0,IF(AND(OR(Results!$C$4="Shetland Health Board",Results!$C$4="Western Isles Health Board",Results!$C$4="Shetland Islands Local Authority",Results!$C$4="Eilean Siar Local Authority"),OR($F93=1,$F93=5)),0,hosp_count(VALUE(LEFT(Options!$B$14,2)),$C93,$E93,$F93,2016,$I93,1,$H93,$G93*$H93, SIMD_rateratios_hosp, SIMD_rateratios_mortality,VALUE(VLOOKUP(Options!$B$8,Lists!$I$2:$J$31,2)))*10)) -> 12188.20958 | P93: =IF(AND(OR(Results!$C$4="Orkney Health Board",Results!$C$4="Orkney Islands Local Authority"),$F93=1),0,IF(AND(OR(Results!$C$4="Shetland Health Board",Results!$C$4="Western Isles Health Board",Results!$C$4="Shetland Islands Local Authority",Results!$C$4="Eilean Siar Local Authority"),OR($F93=1,$F93=5)),0,hosp_count(VALUE(LEFT(Options!$B$14,2)),$C93,$E93,$F93,2016,$I93+$J93,1,$H93,$G93*$H93, SIMD_rateratios_hosp, SIMD_rateratios_mortality,VALUE(VLOOKUP(Options!$B$8,Lists!$I$2:$J$31,2)))*10)) -> 11240.49889 | Q93: =IF(AND(OR(Results!$C$4="Orkney Health Board",Results!$C$4="Orkney Islands Local Authority"),$F93=1),0,IF(AND(OR(Results!$C$4="Shetland Health Board",Results!$C$4="Western Isles Health Board",Results!$C$4="Shetland Islands Local Authority",Results!$C$4="Eilean Siar Local Authority"),OR($F93=1,$F93=5)),0,prem_mort(VALUE(LEFT(Options!$B$14,2)),$C93,$E93,$F93,2016,$I93,1,$H93,$G93*$H93,SIMD_rateratios_mortality,VALUE(VLOOKUP(Options!$B$8,Lists!$I$2:$J$31,2)))*10)) -> 820.698203 | R93: =IF(AND(OR(Results!$C$4="Orkney Health Board",Results!$C$4="Orkney Islands Local Authority"),$F93=1),0,IF(AND(OR(Results!$C$4="Shetland Health Board",Results!$C$4="Western Isles Health Board",Results!$C$4="Shetland Islands Local Authority",Results!$C$4="Eilean Siar Local Authority"),OR($F93=1,$F93=5)),0,prem_mort(VALUE(LEFT(Options!$B$14,2)),$C93,$E93,$F93,2016,$I93+$J93,1,$H93,$G93*$H93,SIMD_rateratios_mortality,VALUE(VLOOKUP(Options!$B$8,Lists!$I$2:$J$31,2)))*10)) -> 748.3718783 | S93: 4470.52077 | T93: 4076.543623 | U93: 51187.47176 | V93: 46676.43264 | W93: 66391.81602 | X93: 61229.43073 | Y93: 4470.52077 | Z93: 4076.543623 | AA93: 22352603.85 | AB93: 20382718.12 | AC93: 255937358.8 | AD93: 233382163.2 | AE93: 331959080.1 | AF93: 306147153.6 | AG93: 22352603.85 | AH93: 20382718.12 | AI93: 5000
B94: Male 75-79 | C94: 76.9077 | D94: 86.3577 | E94: male | F94: 1 | G94: 1 | H94: =HLOOKUP(Calculations!$E$2,'Population 2016'!$C$3:$BC$249,'Population 2016'!BD94,FALSE)/10 -> 1391.4 | I94: 0 | J94: 1391.4 | K94: =IF(AND(OR(Results!$C$4="Orkney Health Board",Results!$C$4="Orkney Islands Local Authority"),$F94=1),0,IF(AND(OR(Results!$C$4="Shetland Health Board",Results!$C$4="Western Isles Health Board",Results!$C$4="Shetland Islands Local Authority",Results!$C$4="Eilean Siar Local Authority"),OR($F94=1,$F94=5)),0,new_ci(VALUE(LEFT(Options!$B$14,2)),$C94,$E94,$F94,2016,$I94,1,$H94,$G94*$H94,SIMD_rateratios_mortality,VALUE(VLOOKUP(Options!$B$8,Lists!$I$2:$J$31,2)))*10)) -> 899.0124644 | L94: =IF(AND(OR(Results!$C$4="Orkney Health Board",Results!$C$4="Orkney Islands Local Authority"),$F94=1),0,IF(AND(OR(Results!$C$4="Shetland Health Board",Results!$C$4="Western Isles Health Board",Results!$C$4="Shetland Islands Local Authority",Results!$C$4="Eilean Siar Local Authority"),OR($F94=1,$F94=5)),0,new_ci(VALUE(LEFT(Options!$B$14,2)),$C94,$E94,$F94,2016,$I94+$J94,1,$H94,$G94*$H94, SIMD_rateratios_mortality, VALUE(VLOOKUP(Options!$B$8,Lists!$I$2:$J$31,2)))*10)) -> 820.5787942 | M94: =IF(AND(OR(Results!$C$4="Orkney Health Board",Results!$C$4="Orkney Islands Local Authority"),$F94=1),0,IF(AND(OR(Results!$C$4="Shetland Health Board",Results!$C$4="Western Isles Health Board",Results!$C$4="Shetland Islands Local Authority",Results!$C$4="Eilean Siar Local Authority"),OR($F94=1,$F94=5)),0,new_yllv2(VALUE(LEFT(Options!$B$14,2)),$C94,$D94,$E94,$F94,2016,$I94,1,$H94,$G94*$H94,SIMD_rateratios_mortality,VALUE(VLOOKUP(Options!$B$8,Lists!$I$2:$J$31,2)))*10)) -> 7596.655324 | N94: =IF(AND(OR(Results!$C$4="Orkney Health Board",Results!$C$4="Orkney Islands Local Authority"),$F94=1),0,IF(AND(OR(Results!$C$4="Shetland Health Board",Results!$C$4="Western Isles Health Board",Results!$C$4="Shetland Islands Local Authority",Results!$C$4="Eilean Siar Local Authority"),OR($F94=1,$F94=5)),0,new_yllv2(VALUE(LEFT(Options!$B$14,2)),$C94,$D94,$E94,$F94,2016,$I94+$J94,1,$H94,$G94*$H94,SIMD_rateratios_mortality,VALUE(VLOOKUP(Options!$B$8,Lists!$I$2:$J$31,2)))*10)) -> 6933.890811 | O94: =IF(AND(OR(Results!$C$4="Orkney Health Board",Results!$C$4="Orkney Islands Local Authority"),$F94=1),0,IF(AND(OR(Results!$C$4="Shetland Health Board",Results!$C$4="Western Isles Health Board",Results!$C$4="Shetland Islands Local Authority",Results!$C$4="Eilean Siar Local Authority"),OR($F94=1,$F94=5)),0,hosp_count(VALUE(LEFT(Options!$B$14,2)),$C94,$E94,$F94,2016,$I94,1,$H94,$G94*$H94, SIMD_rateratios_hosp, SIMD_rateratios_mortality,VALUE(VLOOKUP(Options!$B$8,Lists!$I$2:$J$31,2)))*10)) -> 11038.22627 | P94: =IF(AND(OR(Results!$C$4="Orkney Health Board",Results!$C$4="Orkney Islands Local Authority"),$F94=1),0,IF(AND(OR(Results!$C$4="Shetland Health Board",Results!$C$4="Western Isles Health Board",Results!$C$4="Shetland Islands Local Authority",Results!$C$4="Eilean Siar Local Authority"),OR($F94=1,$F94=5)),0,hosp_count(VALUE(LEFT(Options!$B$14,2)),$C94,$E94,$F94,2016,$I94+$J94,1,$H94,$G94*$H94, SIMD_rateratios_hosp, SIMD_rateratios_mortality,VALUE(VLOOKUP(Options!$B$8,Lists!$I$2:$J$31,2)))*10)) -> 10180.27429 | Q94: =IF(AND(OR(Results!$C$4="Orkney Health Board",Results!$C$4="Orkney Islands Local Authority"),$F94=1),0,IF(AND(OR(Results!$C$4="Shetland Health Board",Results!$C$4="Western Isles Health Board",Results!$C$4="Shetland Islands Local Authority",Results!$C$4="Eilean Siar Local Authority"),OR($F94=1,$F94=5)),0,prem_mort(VALUE(LEFT(Options!$B$14,2)),$C94,$E94,$F94,2016,$I94,1,$H94,$G94*$H94,SIMD_rateratios_mortality,VALUE(VLOOKUP(Options!$B$8,Lists!$I$2:$J$31,2)))*10)) -> 0 | R94: =IF(AND(OR(Results!$C$4="Orkney Health Board",Results!$C$4="Orkney Islands Local Authority"),$F94=1),0,IF(AND(OR(Results!$C$4="Shetland Health Board",Results!$C$4="Western Isles Health Board",Results!$C$4="Shetland Islands Local Authority",Results!$C$4="Eilean Siar Local Authority"),OR($F94=1,$F94=5)),0,prem_mort(VALUE(LEFT(Options!$B$14,2)),$C94,$E94,$F94,2016,$I94+$J94,1,$H94,$G94*$H94,SIMD_rateratios_mortality,VALUE(VLOOKUP(Options!$B$8,Lists!$I$2:$J$31,2)))*10)) -> 0 | S94: 6461.20788 | T94: 5897.50463 | U94: 54597.20659 | V94: 49833.91412 | W94: 79331.79723 | X94: 73165.69132 | Y94: 0 | Z94: 0 | AA94: 25844831.52 | AB94: 23590018.52 | AC94: 218388826.3 | AD94: 199335656.5 | AE94: 317327188.9 | AF94: 292662765.3 | AG94: 0 | AH94: 0 | AI94: 4000
B95: Male 80-84 | C95: 81.797089 | D95: 88.62709 | E95: male | F95: 1 | G95: 1 | H95: =HLOOKUP(Calculations!$E$2,'Population 2016'!$C$3:$BC$249,'Population 2016'!BD95,FALSE)/10 -> 923.6 | I95: 0 | J95: 923.6 | K95: =IF(AND(OR(Results!$C$4="Orkney Health Board",Results!$C$4="Orkney Islands Local Authority"),$F95=1),0,IF(AND(OR(Results!$C$4="Shetland Health Board",Results!$C$4="Western Isles Health Board",Results!$C$4="Shetland Islands Local Authority",Results!$C$4="Eilean Siar Local Authority"),OR($F95=1,$F95=5)),0,new_ci(VALUE(LEFT(Options!$B$14,2)),$C95,$E95,$F95,2016,$I95,1,$H95,$G95*$H95,SIMD_rateratios_mortality,VALUE(VLOOKUP(Options!$B$8,Lists!$I$2:$J$31,2)))*10)) -> 850.5980261 | L95: =IF(AND(OR(Results!$C$4="Orkney Health Board",Results!$C$4="Orkney Islands Local Authority"),$F95=1),0,IF(AND(OR(Results!$C$4="Shetland Health Board",Results!$C$4="Western Isles Health Board",Results!$C$4="Shetland Islands Local Authority",Results!$C$4="Eilean Siar Local Authority"),OR($F95=1,$F95=5)),0,new_ci(VALUE(LEFT(Options!$B$14,2)),$C95,$E95,$F95,2016,$I95+$J95,1,$H95,$G95*$H95, SIMD_rateratios_mortality, VALUE(VLOOKUP(Options!$B$8,Lists!$I$2:$J$31,2)))*10)) -> 777.3504181 | M95: =IF(AND(OR(Results!$C$4="Orkney Health Board",Results!$C$4="Orkney Islands Local Authority"),$F95=1),0,IF(AND(OR(Results!$C$4="Shetland Health Board",Results!$C$4="Western Isles Health Board",Results!$C$4="Shetland Islands Local Authority",Results!$C$4="Eilean Siar Local Authority"),OR($F95=1,$F95=5)),0,new_yllv2(VALUE(LEFT(Options!$B$14,2)),$C95,$D95,$E95,$F95,2016,$I95,1,$H95,$G95*$H95,SIMD_rateratios_mortality,VALUE(VLOOKUP(Options!$B$8,Lists!$I$2:$J$31,2)))*10)) -> 4958.987343 | N95: =IF(AND(OR(Results!$C$4="Orkney Health Board",Results!$C$4="Orkney Islands Local Authority"),$F95=1),0,IF(AND(OR(Results!$C$4="Shetland Health Board",Results!$C$4="Western Isles Health Board",Results!$C$4="Shetland Islands Local Authority",Results!$C$4="Eilean Siar Local Authority"),OR($F95=1,$F95=5)),0,new_yllv2(VALUE(LEFT(Options!$B$14,2)),$C95,$D95,$E95,$F95,2016,$I95+$J95,1,$H95,$G95*$H95,SIMD_rateratios_mortality,VALUE(VLOOKUP(Options!$B$8,Lists!$I$2:$J$31,2)))*10)) -> 4531.953715 | O95: =IF(AND(OR(Results!$C$4="Orkney Health Board",Results!$C$4="Orkney Islands Local Authority"),$F95=1),0,IF(AND(OR(Results!$C$4="Shetland Health Board",Results!$C$4="Western Isles Health Board",Results!$C$4="Shetland Islands Local Authority",Results!$C$4="Eilean Siar Local Authority"),OR($F95=1,$F95=5)),0,hosp_count(VALUE(LEFT(Options!$B$14,2)),$C95,$E95,$F95,2016,$I95,1,$H95,$G95*$H95, SIMD_rateratios_hosp, SIMD_rateratios_mortality,VALUE(VLOOKUP(Options!$B$8,Lists!$I$2:$J$31,2)))*10)) -> 8715.71314 | P95: =IF(AND(OR(Results!$C$4="Orkney Health Board",Results!$C$4="Orkney Islands Local Authority"),$F95=1),0,IF(AND(OR(Results!$C$4="Shetland Health Board",Results!$C$4="Western Isles Health Board",Results!$C$4="Shetland Islands Local Authority",Results!$C$4="Eilean Siar Local Authority"),OR($F95=1,$F95=5)),0,hosp_count(VALUE(LEFT(Options!$B$14,2)),$C95,$E95,$F95,2016,$I95+$J95,1,$H95,$G95*$H95, SIMD_rateratios_hosp, SIMD_rateratios_mortality,VALUE(VLOOKUP(Options!$B$8,Lists!$I$2:$J$31,2)))*10)) -> 8037.791448 | Q95: =IF(AND(OR(Results!$C$4="Orkney Health Board",Results!$C$4="Orkney Islands Local Authority"),$F95=1),0,IF(AND(OR(Results!$C$4="Shetland Health Board",Results!$C$4="Western Isles Health Board",Results!$C$4="Shetland Islands Local Authority",Results!$C$4="Eilean Siar Local Authority"),OR($F95=1,$F95=5)),0,prem_mort(VALUE(LEFT(Options!$B$14,2)),$C95,$E95,$F95,2016,$I95,1,$H95,$G95*$H95,SIMD_rateratios_mortality,VALUE(VLOOKUP(Options!$B$8,Lists!$I$2:$J$31,2)))*10)) -> 0 | R95: =IF(AND(OR(Results!$C$4="Orkney Health Board",Results!$C$4="Orkney Islands Local Authority"),$F95=1),0,IF(AND(OR(Results!$C$4="Shetland Health Board",Results!$C$4="Western Isles Health Board",Results!$C$4="Shetland Islands Local Authority",Results!$C$4="Eilean Siar Local Authority"),OR($F95=1,$F95=5)),0,prem_mort(VALUE(LEFT(Options!$B$14,2)),$C95,$E95,$F95,2016,$I95+$J95,1,$H95,$G95*$H95,SIMD_rateratios_mortality,VALUE(VLOOKUP(Options!$B$8,Lists!$I$2:$J$31,2)))*10)) -> 0 | S95: 9209.59318 | T95: 8416.526831 | U95: 53691.93745 | V95: 49068.35984 | W95: 94366.75119 | X95: 87026.75885 | Y95: 0 | Z95: 0 | AA95: 23023982.95 | AB95: 21041317.08 | AC95: 134229843.6 | AD95: 122670899.6 | AE95: 235916878 | AF95: 217566897.1 | AG95: 0 | AH95: 0 | AI95: 2500
B96: Male 85-89 | C96: 86.630753 | D96: 91.42075 | E96: male | F96: 1 | G96: 1 | H96: =HLOOKUP(Calculations!$E$2,'Population 2016'!$C$3:$BC$249,'Population 2016'!BD96,FALSE)/10 -> 444.9 | I96: 0 | J96: 444.9 | K96: =IF(AND(OR(Results!$C$4="Orkney Health Board",Results!$C$4="Orkney Islands Local Authority"),$F96=1),0,IF(AND(OR(Results!$C$4="Shetland Health Board",Results!$C$4="Western Isles Health Board",Results!$C$4="Shetland Islands Local Authority",Results!$C$4="Eilean Siar Local Authority"),OR($F96=1,$F96=5)),0,new_ci(VALUE(LEFT(Options!$B$14,2)),$C96,$E96,$F96,2016,$I96,1,$H96,$G96*$H96,SIMD_rateratios_mortality,VALUE(VLOOKUP(Options!$B$8,Lists!$I$2:$J$31,2)))*10)) -> 578.0052679 | L96: =IF(AND(OR(Results!$C$4="Orkney Health Board",Results!$C$4="Orkney Islands Local Authority"),$F96=1),0,IF(AND(OR(Results!$C$4="Shetland Health Board",Results!$C$4="Western Isles Health Board",Results!$C$4="Shetland Islands Local Authority",Results!$C$4="Eilean Siar Local Authority"),OR($F96=1,$F96=5)),0,new_ci(VALUE(LEFT(Options!$B$14,2)),$C96,$E96,$F96,2016,$I96+$J96,1,$H96,$G96*$H96, SIMD_rateratios_mortality, VALUE(VLOOKUP(Options!$B$8,Lists!$I$2:$J$31,2)))*10)) -> 529.2162702 | M96: =IF(AND(OR(Results!$C$4="Orkney Health Board",Results!$C$4="Orkney Islands Local Authority"),$F96=1),0,IF(AND(OR(Results!$C$4="Shetland Health Board",Results!$C$4="Western Isles Health Board",Results!$C$4="Shetland Islands Local Authority",Results!$C$4="Eilean Siar Local Authority"),OR($F96=1,$F96=5)),0,new_yllv2(VALUE(LEFT(Options!$B$14,2)),$C96,$D96,$E96,$F96,2016,$I96,1,$H96,$G96*$H96,SIMD_rateratios_mortality,VALUE(VLOOKUP(Options!$B$8,Lists!$I$2:$J$31,2)))*10)) -> 2190.638231 | N96: =IF(AND(OR(Results!$C$4="Orkney Health Board",Results!$C$4="Orkney Islands Local Authority"),$F96=1),0,IF(AND(OR(Results!$C$4="Shetland Health Board",Results!$C$4="Western Isles Health Board",Results!$C$4="Shetland Islands Local Authority",Results!$C$4="Eilean Siar Local Authority"),OR($F96=1,$F96=5)),0,new_yllv2(VALUE(LEFT(Options!$B$14,2)),$C96,$D96,$E96,$F96,2016,$I96+$J96,1,$H96,$G96*$H96,SIMD_rateratios_mortality,VALUE(VLOOKUP(Options!$B$8,Lists!$I$2:$J$31,2)))*10)) -> 2005.728076 | O96: =IF(AND(OR(Results!$C$4="Orkney Health Board",Results!$C$4="Orkney Islands Local Authority"),$F96=1),0,IF(AND(OR(Results!$C$4="Shetland Health Board",Results!$C$4="Western Isles Health Board",Results!$C$4="Shetland Islands Local Authority",Results!$C$4="Eilean Siar Local Authority"),OR($F96=1,$F96=5)),0,hosp_count(VALUE(LEFT(Options!$B$14,2)),$C96,$E96,$F96,2016,$I96,1,$H96,$G96*$H96, SIMD_rateratios_hosp, SIMD_rateratios_mortality,VALUE(VLOOKUP(Options!$B$8,Lists!$I$2:$J$31,2)))*10)) -> 4984.184367 | P96: =IF(AND(OR(Results!$C$4="Orkney Health Board",Results!$C$4="Orkney Islands Local Authority"),$F96=1),0,IF(AND(OR(Results!$C$4="Shetland Health Board",Results!$C$4="Western Isles Health Board",Results!$C$4="Shetland Islands Local Authority",Results!$C$4="Eilean Siar Local Authority"),OR($F96=1,$F96=5)),0,hosp_count(VALUE(LEFT(Options!$B$14,2)),$C96,$E96,$F96,2016,$I96+$J96,1,$H96,$G96*$H96, SIMD_rateratios_hosp, SIMD_rateratios_mortality,VALUE(VLOOKUP(Options!$B$8,Lists!$I$2:$J$31,2)))*10)) -> 4596.587498 | Q96: =IF(AND(OR(Results!$C$4="Orkney Health Board",Results!$C$4="Orkney Islands Local Authority"),$F96=1),0,IF(AND(OR(Results!$C$4="Shetland Health Board",Results!$C$4="Western Isles Health Board",Results!$C$4="Shetland Islands Local Authority",Results!$C$4="Eilean Siar Local Authority"),OR($F96=1,$F96=5)),0,prem_mort(VALUE(LEFT(Options!$B$14,2)),$C96,$E96,$F96,2016,$I96,1,$H96,$G96*$H96,SIMD_rateratios_mortality,VALUE(VLOOKUP(Options!$B$8,Lists!$I$2:$J$31,2)))*10)) -> 0 | R96: =IF(AND(OR(Results!$C$4="Orkney Health Board",Results!$C$4="Orkney Islands Local Authority"),$F96=1),0,IF(AND(OR(Results!$C$4="Shetland Health Board",Results!$C$4="Western Isles Health Board",Results!$C$4="Shetland Islands Local Authority",Results!$C$4="Eilean Siar Local Authority"),OR($F96=1,$F96=5)),0,prem_mort(VALUE(LEFT(Options!$B$14,2)),$C96,$E96,$F96,2016,$I96+$J96,1,$H96,$G96*$H96,SIMD_rateratios_mortality,VALUE(VLOOKUP(Options!$B$8,Lists!$I$2:$J$31,2)))*10)) -> 0 | S96: 12991.80193 | T96: 11895.17353 | U96: 49238.89034 | V96: 45082.67198 | W96: 112029.3182 | X96: 103317.3185 | Y96: 0 | Z96: 0 | AA96: 19487702.9 | AB96: 17842760.29 | AC96: 73858335.51 | AD96: 67624007.97 | AE96: 168043977.3 | AF96: 154975977.7 | AG96: 0 | AH96: 0 | AI96: 1500
B97: Male 90+ | C97: 92.215477 | D97: 95.51548 | E97: male | F97: 1 | G97: 1 | H97: =HLOOKUP(Calculations!$E$2,'Population 2016'!$C$3:$BC$249,'Population 2016'!BD97,FALSE)/10 -> 191.6 | I97: 0 | J97: 191.6 | K97: =IF(AND(OR(Results!$C$4="Orkney Health Board",Results!$C$4="Orkney Islands Local Authority"),$F97=1),0,IF(AND(OR(Results!$C$4="Shetland Health Board",Results!$C$4="Western Isles Health Board",Results!$C$4="Shetland Islands Local Authority",Results!$C$4="Eilean Siar Local Authority"),OR($F97=1,$F97=5)),0,new_ci(VALUE(LEFT(Options!$B$14,2)),$C97,$E97,$F97,2016,$I97,1,$H97,$G97*$H97,SIMD_rateratios_mortality,VALUE(VLOOKUP(Options!$B$8,Lists!$I$2:$J$31,2)))*10)) -> 366.2630214 | L97: =IF(AND(OR(Results!$C$4="Orkney Health Board",Results!$C$4="Orkney Islands Local Authority"),$F97=1),0,IF(AND(OR(Results!$C$4="Shetland Health Board",Results!$C$4="Western Isles Health Board",Results!$C$4="Shetland Islands Local Authority",Results!$C$4="Eilean Siar Local Authority"),OR($F97=1,$F97=5)),0,new_ci(VALUE(LEFT(Options!$B$14,2)),$C97,$E97,$F97,2016,$I97+$J97,1,$H97,$G97*$H97, SIMD_rateratios_mortality, VALUE(VLOOKUP(Options!$B$8,Lists!$I$2:$J$31,2)))*10)) -> 336.3328979 | M97: =IF(AND(OR(Results!$C$4="Orkney Health Board",Results!$C$4="Orkney Islands Local Authority"),$F97=1),0,IF(AND(OR(Results!$C$4="Shetland Health Board",Results!$C$4="Western Isles Health Board",Results!$C$4="Shetland Islands Local Authority",Results!$C$4="Eilean Siar Local Authority"),OR($F97=1,$F97=5)),0,new_yllv2(VALUE(LEFT(Options!$B$14,2)),$C97,$D97,$E97,$F97,2016,$I97,1,$H97,$G97*$H97,SIMD_rateratios_mortality,VALUE(VLOOKUP(Options!$B$8,Lists!$I$2:$J$31,2)))*10)) -> 842.4060479 | N97: =IF(AND(OR(Results!$C$4="Orkney Health Board",Results!$C$4="Orkney Islands Local Authority"),$F97=1),0,IF(AND(OR(Results!$C$4="Shetland Health Board",Results!$C$4="Western Isles Health Board",Results!$C$4="Shetland Islands Local Authority",Results!$C$4="Eilean Siar Local Authority"),OR($F97=1,$F97=5)),0,new_yllv2(VALUE(LEFT(Options!$B$14,2)),$C97,$D97,$E97,$F97,2016,$I97+$J97,1,$H97,$G97*$H97,SIMD_rateratios_mortality,VALUE(VLOOKUP(Options!$B$8,Lists!$I$2:$J$31,2)))*10)) -> 773.5666741 | O97: =IF(AND(OR(Results!$C$4="Orkney Health Board",Results!$C$4="Orkney Islands Local Authority"),$F97=1),0,IF(AND(OR(Results!$C$4="Shetland Health Board",Results!$C$4="Western Isles Health Board",Results!$C$4="Shetland Islands Local Authority",Results!$C$4="Eilean Siar Local Authority"),OR($F97=1,$F97=5)),0,hosp_count(VALUE(LEFT(Options!$B$14,2)),$C97,$E97,$F97,2016,$I97,1,$H97,$G97*$H97, SIMD_rateratios_hosp, SIMD_rateratios_mortality,VALUE(VLOOKUP(Options!$B$8,Lists!$I$2:$J$31,2)))*10)) -> 2617.084529 | P97: =IF(AND(OR(Results!$C$4="Orkney Health Board",Results!$C$4="Orkney Islands Local Authority"),$F97=1),0,IF(AND(OR(Results!$C$4="Shetland Health Board",Results!$C$4="Western Isles Health Board",Results!$C$4="Shetland Islands Local Authority",Results!$C$4="Eilean Siar Local Authority"),OR($F97=1,$F97=5)),0,hosp_count(VALUE(LEFT(Options!$B$14,2)),$C97,$E97,$F97,2016,$I97+$J97,1,$H97,$G97*$H97, SIMD_rateratios_hosp, SIMD_rateratios_mortality,VALUE(VLOOKUP(Options!$B$8,Lists!$I$2:$J$31,2)))*10)) -> 2413.186968 | Q97: =IF(AND(OR(Results!$C$4="Orkney Health Board",Results!$C$4="Orkney Islands Local Authority"),$F97=1),0,IF(AND(OR(Results!$C$4="Shetland Health Board",Results!$C$4="Western Isles Health Board",Results!$C$4="Shetland Islands Local Authority",Results!$C$4="Eilean Siar Local Authority"),OR($F97=1,$F97=5)),0,prem_mort(VALUE(LEFT(Options!$B$14,2)),$C97,$E97,$F97,2016,$I97,1,$H97,$G97*$H97,SIMD_rateratios_mortality,VALUE(VLOOKUP(Options!$B$8,Lists!$I$2:$J$31,2)))*10)) -> 0 | R97: =IF(AND(OR(Results!$C$4="Orkney Health Board",Results!$C$4="Orkney Islands Local Authority"),$F97=1),0,IF(AND(OR(Results!$C$4="Shetland Health Board",Results!$C$4="Western Isles Health Board",Results!$C$4="Shetland Islands Local Authority",Results!$C$4="Eilean Siar Local Authority"),OR($F97=1,$F97=5)),0,prem_mort(VALUE(LEFT(Options!$B$14,2)),$C97,$E97,$F97,2016,$I97+$J97,1,$H97,$G97*$H97,SIMD_rateratios_mortality,VALUE(VLOOKUP(Options!$B$8,Lists!$I$2:$J$31,2)))*10)) -> 0 | S97: 19116.02408 | T97: 17553.90907 | U97: 43966.91273 | V97: 40374.04353 | W97: 136591.0506 | X97: 125949.2155 | Y97: 0 | Z97: 0 | AA97: 19116024.08 | AB97: 17553909.07 | AC97: 43966912.73 | AD97: 40374043.53 | AE97: 136591050.6 | AF97: 125949215.5 | AG97: 0 | AH97: 0 | AI97: 1000
B98: Female 0-4 | C98: 2.0384007 | D98: 81.468401 | E98: female | F98: 2 | G98: 1 | H98: =HLOOKUP(Calculations!$E$2,'Population 2016'!$C$3:$BC$249,'Population 2016'!BD98,FALSE)/10 -> 0 | I98: 0 | J98: 0 | K98: =IF(AND(OR(Results!$C$4="Orkney Health Board",Results!$C$4="Orkney Islands Local Authority"),$F98=1),0,IF(AND(OR(Results!$C$4="Shetland Health Board",Results!$C$4="Western Isles Health Board",Results!$C$4="Shetland Islands Local Authority",Results!$C$4="Eilean Siar Local Authority"),OR($F98=1,$F98=5)),0,new_ci(VALUE(LEFT(Options!$B$14,2)),$C98,$E98,$F98,2016,$I98,1,$H98,$G98*$H98,SIMD_rateratios_mortality,VALUE(VLOOKUP(Options!$B$8,Lists!$I$2:$J$31,2)))*10)) ->  | L98: =IF(AND(OR(Results!$C$4="Orkney Health Board",Results!$C$4="Orkney Islands Local Authority"),$F98=1),0,IF(AND(OR(Results!$C$4="Shetland Health Board",Results!$C$4="Western Isles Health Board",Results!$C$4="Shetland Islands Local Authority",Results!$C$4="Eilean Siar Local Authority"),OR($F98=1,$F98=5)),0,new_ci(VALUE(LEFT(Options!$B$14,2)),$C98,$E98,$F98,2016,$I98+$J98,1,$H98,$G98*$H98, SIMD_rateratios_mortality, VALUE(VLOOKUP(Options!$B$8,Lists!$I$2:$J$31,2)))*10)) ->  | M98: =IF(AND(OR(Results!$C$4="Orkney Health Board",Results!$C$4="Orkney Islands Local Authority"),$F98=1),0,IF(AND(OR(Results!$C$4="Shetland Health Board",Results!$C$4="Western Isles Health Board",Results!$C$4="Shetland Islands Local Authority",Results!$C$4="Eilean Siar Local Authority"),OR($F98=1,$F98=5)),0,new_yllv2(VALUE(LEFT(Options!$B$14,2)),$C98,$D98,$E98,$F98,2016,$I98,1,$H98,$G98*$H98,SIMD_rateratios_mortality,VALUE(VLOOKUP(Options!$B$8,Lists!$I$2:$J$31,2)))*10)) ->  | N98: =IF(AND(OR(Results!$C$4="Orkney Health Board",Results!$C$4="Orkney Islands Local Authority"),$F98=1),0,IF(AND(OR(Results!$C$4="Shetland Health Board",Results!$C$4="Western Isles Health Board",Results!$C$4="Shetland Islands Local Authority",Results!$C$4="Eilean Siar Local Authority"),OR($F98=1,$F98=5)),0,new_yllv2(VALUE(LEFT(Options!$B$14,2)),$C98,$D98,$E98,$F98,2016,$I98+$J98,1,$H98,$G98*$H98,SIMD_rateratios_mortality,VALUE(VLOOKUP(Options!$B$8,Lists!$I$2:$J$31,2)))*10)) ->  | O98: =IF(AND(OR(Results!$C$4="Orkney Health Board",Results!$C$4="Orkney Islands Local Authority"),$F98=1),0,IF(AND(OR(Results!$C$4="Shetland Health Board",Results!$C$4="Western Isles Health Board",Results!$C$4="Shetland Islands Local Authority",Results!$C$4="Eilean Siar Local Authority"),OR($F98=1,$F98=5)),0,hosp_count(VALUE(LEFT(Options!$B$14,2)),$C98,$E98,$F98,2016,$I98,1,$H98,$G98*$H98, SIMD_rateratios_hosp, SIMD_rateratios_mortality,VALUE(VLOOKUP(Options!$B$8,Lists!$I$2:$J$31,2)))*10)) ->  | P98: =IF(AND(OR(Results!$C$4="Orkney Health Board",Results!$C$4="Orkney Islands Local Authority"),$F98=1),0,IF(AND(OR(Results!$C$4="Shetland Health Board",Results!$C$4="Western Isles Health Board",Results!$C$4="Shetland Islands Local Authority",Results!$C$4="Eilean Siar Local Authority"),OR($F98=1,$F98=5)),0,hosp_count(VALUE(LEFT(Options!$B$14,2)),$C98,$E98,$F98,2016,$I98+$J98,1,$H98,$G98*$H98, SIMD_rateratios_hosp, SIMD_rateratios_mortality,VALUE(VLOOKUP(Options!$B$8,Lists!$I$2:$J$31,2)))*10)) ->  | Q98: =IF(AND(OR(Results!$C$4="Orkney Health Board",Results!$C$4="Orkney Islands Local Authority"),$F98=1),0,IF(AND(OR(Results!$C$4="Shetland Health Board",Results!$C$4="Western Isles Health Board",Results!$C$4="Shetland Islands Local Authority",Results!$C$4="Eilean Siar Local Authority"),OR($F98=1,$F98=5)),0,prem_mort(VALUE(LEFT(Options!$B$14,2)),$C98,$E98,$F98,2016,$I98,1,$H98,$G98*$H98,SIMD_rateratios_mortality,VALUE(VLOOKUP(Options!$B$8,Lists!$I$2:$J$31,2)))*10)) ->  | R98: =IF(AND(OR(Results!$C$4="Orkney Health Board",Results!$C$4="Orkney Islands Local Authority"),$F98=1),0,IF(AND(OR(Results!$C$4="Shetland Health Board",Results!$C$4="Western Isles Health Board",Results!$C$4="Shetland Islands Local Authority",Results!$C$4="Eilean Siar Local Authority"),OR($F98=1,$F98=5)),0,prem_mort(VALUE(LEFT(Options!$B$14,2)),$C98,$E98,$F98,2016,$I98+$J98,1,$H98,$G98*$H98,SIMD_rateratios_mortality,VALUE(VLOOKUP(Options!$B$8,Lists!$I$2:$J$31,2)))*10)) ->  | AI98: 5000
B99: Female 5-9 | C99: 6.9792795 | D99: 81.43928 | E99: female | F99: 2 | G99: 1 | H99: =HLOOKUP(Calculations!$E$2,'Population 2016'!$C$3:$BC$249,'Population 2016'!BD99,FALSE)/10 -> 0 | I99: 0 | J99: 0 | K99: =IF(AND(OR(Results!$C$4="Orkney Health Board",Results!$C$4="Orkney Islands Local Authority"),$F99=1),0,IF(AND(OR(Results!$C$4="Shetland Health Board",Results!$C$4="Western Isles Health Board",Results!$C$4="Shetland Islands Local Authority",Results!$C$4="Eilean Siar Local Authority"),OR($F99=1,$F99=5)),0,new_ci(VALUE(LEFT(Options!$B$14,2)),$C99,$E99,$F99,2016,$I99,1,$H99,$G99*$H99,SIMD_rateratios_mortality,VALUE(VLOOKUP(Options!$B$8,Lists!$I$2:$J$31,2)))*10)) ->  | L99: =IF(AND(OR(Results!$C$4="Orkney Health Board",Results!$C$4="Orkney Islands Local Authority"),$F99=1),0,IF(AND(OR(Results!$C$4="Shetland Health Board",Results!$C$4="Western Isles Health Board",Results!$C$4="Shetland Islands Local Authority",Results!$C$4="Eilean Siar Local Authority"),OR($F99=1,$F99=5)),0,new_ci(VALUE(LEFT(Options!$B$14,2)),$C99,$E99,$F99,2016,$I99+$J99,1,$H99,$G99*$H99, SIMD_rateratios_mortality, VALUE(VLOOKUP(Options!$B$8,Lists!$I$2:$J$31,2)))*10)) ->  | M99: =IF(AND(OR(Results!$C$4="Orkney Health Board",Results!$C$4="Orkney Islands Local Authority"),$F99=1),0,IF(AND(OR(Results!$C$4="Shetland Health Board",Results!$C$4="Western Isles Health Board",Results!$C$4="Shetland Islands Local Authority",Results!$C$4="Eilean Siar Local Authority"),OR($F99=1,$F99=5)),0,new_yllv2(VALUE(LEFT(Options!$B$14,2)),$C99,$D99,$E99,$F99,2016,$I99,1,$H99,$G99*$H99,SIMD_rateratios_mortality,VALUE(VLOOKUP(Options!$B$8,Lists!$I$2:$J$31,2)))*10)) ->  | N99: =IF(AND(OR(Results!$C$4="Orkney Health Board",Results!$C$4="Orkney Islands Local Authority"),$F99=1),0,IF(AND(OR(Results!$C$4="Shetland Health Board",Results!$C$4="Western Isles Health Board",Results!$C$4="Shetland Islands Local Authority",Results!$C$4="Eilean Siar Local Authority"),OR($F99=1,$F99=5)),0,new_yllv2(VALUE(LEFT(Options!$B$14,2)),$C99,$D99,$E99,$F99,2016,$I99+$J99,1,$H99,$G99*$H99,SIMD_rateratios_mortality,VALUE(VLOOKUP(Options!$B$8,Lists!$I$2:$J$31,2)))*10)) ->  | O99: =IF(AND(OR(Results!$C$4="Orkney Health Board",Results!$C$4="Orkney Islands Local Authority"),$F99=1),0,IF(AND(OR(Results!$C$4="Shetland Health Board",Results!$C$4="Western Isles Health Board",Results!$C$4="Shetland Islands Local Authority",Results!$C$4="Eilean Siar Local Authority"),OR($F99=1,$F99=5)),0,hosp_count(VALUE(LEFT(Options!$B$14,2)),$C99,$E99,$F99,2016,$I99,1,$H99,$G99*$H99, SIMD_rateratios_hosp, SIMD_rateratios_mortality,VALUE(VLOOKUP(Options!$B$8,Lists!$I$2:$J$31,2)))*10)) ->  | P99: =IF(AND(OR(Results!$C$4="Orkney Health Board",Results!$C$4="Orkney Islands Local Authority"),$F99=1),0,IF(AND(OR(Results!$C$4="Shetland Health Board",Results!$C$4="Western Isles Health Board",Results!$C$4="Shetland Islands Local Authority",Results!$C$4="Eilean Siar Local Authority"),OR($F99=1,$F99=5)),0,hosp_count(VALUE(LEFT(Options!$B$14,2)),$C99,$E99,$F99,2016,$I99+$J99,1,$H99,$G99*$H99, SIMD_rateratios_hosp, SIMD_rateratios_mortality,VALUE(VLOOKUP(Options!$B$8,Lists!$I$2:$J$31,2)))*10)) ->  | Q99: =IF(AND(OR(Results!$C$4="Orkney Health Board",Results!$C$4="Orkney Islands Local Authority"),$F99=1),0,IF(AND(OR(Results!$C$4="Shetland Health Board",Results!$C$4="Western Isles Health Board",Results!$C$4="Shetland Islands Local Authority",Results!$C$4="Eilean Siar Local Authority"),OR($F99=1,$F99=5)),0,prem_mort(VALUE(LEFT(Options!$B$14,2)),$C99,$E99,$F99,2016,$I99,1,$H99,$G99*$H99,SIMD_rateratios_mortality,VALUE(VLOOKUP(Options!$B$8,Lists!$I$2:$J$31,2)))*10)) ->  | R99: =IF(AND(OR(Results!$C$4="Orkney Health Board",Results!$C$4="Orkney Islands Local Authority"),$F99=1),0,IF(AND(OR(Results!$C$4="Shetland Health Board",Results!$C$4="Western Isles Health Board",Results!$C$4="Shetland Islands Local Authority",Results!$C$4="Eilean Siar Local Authority"),OR($F99=1,$F99=5)),0,prem_mort(VALUE(LEFT(Options!$B$14,2)),$C99,$E99,$F99,2016,$I99+$J99,1,$H99,$G99*$H99,SIMD_rateratios_mortality,VALUE(VLOOKUP(Options!$B$8,Lists!$I$2:$J$31,2)))*10)) ->  | AI99: 5500
B100: Female 10-15 | C100: 12.478312 | D100: 81.94831 | E100: female | F100: 2 | G100: 1 | H100: =HLOOKUP(Calculations!$E$2,'Population 2016'!$C$3:$BC$249,'Population 2016'!BD100,FALSE)/10 -> 0 | I100: 0 | J100: 0 | K100: =IF(AND(OR(Results!$C$4="Orkney Health Board",Results!$C$4="Orkney Islands Local Authority"),$F100=1),0,IF(AND(OR(Results!$C$4="Shetland Health Board",Results!$C$4="Western Isles Health Board",Results!$C$4="Shetland Islands Local Authority",Results!$C$4="Eilean Siar Local Authority"),OR($F100=1,$F100=5)),0,new_ci(VALUE(LEFT(Options!$B$14,2)),$C100,$E100,$F100,2016,$I100,1,$H100,$G100*$H100,SIMD_rateratios_mortality,VALUE(VLOOKUP(Options!$B$8,Lists!$I$2:$J$31,2)))*10)) ->  | L100: =IF(AND(OR(Results!$C$4="Orkney Health Board",Results!$C$4="Orkney Islands Local Authority"),$F100=1),0,IF(AND(OR(Results!$C$4="Shetland Health Board",Results!$C$4="Western Isles Health Board",Results!$C$4="Shetland Islands Local Authority",Results!$C$4="Eilean Siar Local Authority"),OR($F100=1,$F100=5)),0,new_ci(VALUE(LEFT(Options!$B$14,2)),$C100,$E100,$F100,2016,$I100+$J100,1,$H100,$G100*$H100, SIMD_rateratios_mortality, VALUE(VLOOKUP(Options!$B$8,Lists!$I$2:$J$31,2)))*10)) ->  | M100: =IF(AND(OR(Results!$C$4="Orkney Health Board",Results!$C$4="Orkney Islands Local Authority"),$F100=1),0,IF(AND(OR(Results!$C$4="Shetland Health Board",Results!$C$4="Western Isles Health Board",Results!$C$4="Shetland Islands Local Authority",Results!$C$4="Eilean Siar Local Authority"),OR($F100=1,$F100=5)),0,new_yllv2(VALUE(LEFT(Options!$B$14,2)),$C100,$D100,$E100,$F100,2016,$I100,1,$H100,$G100*$H100,SIMD_rateratios_mortality,VALUE(VLOOKUP(Options!$B$8,Lists!$I$2:$J$31,2)))*10)) ->  | N100: =IF(AND(OR(Results!$C$4="Orkney Health Board",Results!$C$4="Orkney Islands Local Authority"),$F100=1),0,IF(AND(OR(Results!$C$4="Shetland Health Board",Results!$C$4="Western Isles Health Board",Results!$C$4="Shetland Islands Local Authority",Results!$C$4="Eilean Siar Local Authority"),OR($F100=1,$F100=5)),0,new_yllv2(VALUE(LEFT(Options!$B$14,2)),$C100,$D100,$E100,$F100,2016,$I100+$J100,1,$H100,$G100*$H100,SIMD_rateratios_mortality,VALUE(VLOOKUP(Options!$B$8,Lists!$I$2:$J$31,2)))*10)) ->  | O100: =IF(AND(OR(Results!$C$4="Orkney Health Board",Results!$C$4="Orkney Islands Local Authority"),$F100=1),0,IF(AND(OR(Results!$C$4="Shetland Health Board",Results!$C$4="Western Isles Health Board",Results!$C$4="Shetland Islands Local Authority",Results!$C$4="Eilean Siar Local Authority"),OR($F100=1,$F100=5)),0,hosp_count(VALUE(LEFT(Options!$B$14,2)),$C100,$E100,$F100,2016,$I100,1,$H100,$G100*$H100, SIMD_rateratios_hosp, SIMD_rateratios_mortality,VALUE(VLOOKUP(Options!$B$8,Lists!$I$2:$J$31,2)))*10)) ->  | P100: =IF(AND(OR(Results!$C$4="Orkney Health Board",Results!$C$4="Orkney Islands Local Authority"),$F100=1),0,IF(AND(OR(Results!$C$4="Shetland Health Board",Results!$C$4="Western Isles Health Board",Results!$C$4="Shetland Islands Local Authority",Results!$C$4="Eilean Siar Local Authority"),OR($F100=1,$F100=5)),0,hosp_count(VALUE(LEFT(Options!$B$14,2)),$C100,$E100,$F100,2016,$I100+$J100,1,$H100,$G100*$H100, SIMD_rateratios_hosp, SIMD_rateratios_mortality,VALUE(VLOOKUP(Options!$B$8,Lists!$I$2:$J$31,2)))*10)) ->  | Q100: =IF(AND(OR(Results!$C$4="Orkney Health Board",Results!$C$4="Orkney Islands Local Authority"),$F100=1),0,IF(AND(OR(Results!$C$4="Shetland Health Board",Results!$C$4="Western Isles Health Board",Results!$C$4="Shetland Islands Local Authority",Results!$C$4="Eilean Siar Local Authority"),OR($F100=1,$F100=5)),0,prem_mort(VALUE(LEFT(Options!$B$14,2)),$C100,$E100,$F100,2016,$I100,1,$H100,$G100*$H100,SIMD_rateratios_mortality,VALUE(VLOOKUP(Options!$B$8,Lists!$I$2:$J$31,2)))*10)) ->  | R100: =IF(AND(OR(Results!$C$4="Orkney Health Board",Results!$C$4="Orkney Islands Local Authority"),$F100=1),0,IF(AND(OR(Results!$C$4="Shetland Health Board",Results!$C$4="Western Isles Health Board",Results!$C$4="Shetland Islands Local Authority",Results!$C$4="Eilean Siar Local Authority"),OR($F100=1,$F100=5)),0,prem_mort(VALUE(LEFT(Options!$B$14,2)),$C100,$E100,$F100,2016,$I100+$J100,1,$H100,$G100*$H100,SIMD_rateratios_mortality,VALUE(VLOOKUP(Options!$B$8,Lists!$I$2:$J$31,2)))*10)) ->  | AI100: 6600
